Workbook

Sheet AER only (hidden)
B1: Data in these columns used for data validation and database purposes.
B2: Date last modified: | C2: 2017-01-16 | D2: added (Albury and Victora) for AGN
C3: 2016-10-17 | D3: updated TransGrid's correct legal name, corrected TasNetworks (T) to June financial year
C4: 2017-02-01 | D4: inserted Power and Water, added NRs (dms_FeederCat_1 and dms_FeederCat_2)
C5: 2017-03-03 | D5: inserted AEMO as a business | AC5: FOR ELECTRICITY BUSINESSES ONLY
AC6: Feeder Types | AG6: TasNetworks (D) | AH6: MAIFI flag | AI6: Feeder Names
AC7: CBD | AD7: Urban | AE7: Short rural | AF7: long rural | AG7: EXTRA
B8: dms_TradingName_List | C8: dms_TradingNameFull_List | D8: dms_ABN_List | E8: dms_JurisdictionList | F8: dms_Sector_List | G8: dms_Segment_List | H8: dms_FormControl_List | I8: dms_RPT_List | J8: dms_RPTMonth_List | K8: dms_CRCPlength_List | L8: dms_FRCPlength_List | M8: dms_663_List | N8: dms_DeterminationRef_List | O8: dms_Addr1_List | P8: dms_Addr2_List | Q8: dms_Suburb_List | R8: dms_State_List | S8: dms_PostCode_List | T8: dms_PAddr1_List | U8: dms_PAddr2_List | V8: dms_PSuburb_List | W8: dms_PState_List | X8: dms_PPostCode_List | Y8: dms_ContactName1_List | Z8: dms_ContactPh1_List | AA8: dms_ContactEmail_List | AB8: Column1 | AC8: dms_CBD_flag | AD8: dms_Urban_flag | AE8: dms_ShortRural_flag | AF8: dms_LongRural_flag | AG8: dms_FeederType_5_flag | AH8: dms_MAIFI_flag_List | AI8: dms_FeederName_1 | AJ8: dms_FeederName_2 | AK8: dms_FeederName_3 | AL8: dms_FeederName_4 | AM8: dms_FeederName_5
B9: ActewAGL Distribution | C9: ActewAGL Distribution | D9: 76670568688 | E9: ACT | F9: Electricity | G9: Distribution | H9: Revenue cap | I9: Financial | J9: June | K9: 5 | L9: 5 | M9: 5 | N9: 2014-19 Distribution Determination | O9: 40 Bunda Street | Q9: CANBERRA | R9: ACT | S9: 2600 | T9: GPO BOX 366 | V9: CANBERRA | W9: ACT | X9: 2601 | Y9: Robert Walker | Z9: 02 6248 3847 | AA9: robert.walker@actewagle.com.au | AC9: NO | AD9: YES | AE9: YES | AF9: NO | AG9: NO | AI9: CBD | AJ9: Urban | AK9: Short rural | AL9: Long rural | AN9: ActewAGL Distribution
B10: ActewAGL Distribution (Tx Assets) | C10: ActewAGL Distribution (Tx Assets) | D10: 76670568688 | E10: ACT | F10: Electricity | G10: Distribution | H10: Revenue cap | I10: Financial | J10: June | K10: 5 | L10: 5 | M10: 5 | N10: distribution determination | O10: 40 Bunda Street | Q10: CANBERRA | R10: ACT | S10: 2600 | T10: GPO BOX 366 | V10: CANBERRA | W10: ACT | X10: 2601 | Y10: Robert Walker | Z10: 02 6248 3847 | AA10: robert.walker@actewagle.com.au | AI10: CBD | AJ10: Urban | AK10: Short rural | AL10: Long rural | AN10: ActewAGL Distribution (Tx Assets)
B11: ActewAGL Gas | C11: ActewAGL Gas | D11: 76670568688 | E11: ACT | F11: Gas | G11: Distribution | H11: Weighted average price cap | I11: Financial | J11: June | K11: 5 | L11: 5 | M11: x | O11: 40 Bunda Street | Q11: CANBERRA | R11: ACT | S11: 2600 | T11: GPO BOX 366 | V11: CANBERRA | W11: ACT | X11: 2601 | Y11: Philip Deamer | Z11: 02 6248 3438 | AA11: GasAAReview@actewagl.com.au | AN11: ActewAGL Gas
B12: AEMO | C12: Australian Energy Market Operator Ltd | D12: 94072010327 | E12: Vic | F12: Electricity | G12: Transmission | H12: - | I12: Financial | J12: March | K12: 5 | L12: 5 | M12: x | N12: - | O12: Level 22 | P12: 530 Collins Street | Q12: MELBOURNE | R12: VIC | S12: 3000 | T12: GPO Box 2008 | V12: MELBOURNE | W12: VIC | X12: 3001 | AN12: AEMO
B13: AGN (Albury and Victoria) | C13: Australian Gas Networks Limited (reporting data for Albury and Victoria) | D13: 19078551685 | E13: Vic | F13: Gas | G13: Distribution | H13: Weighted average price cap | I13: Calendar | J13: December | K13: 5 | L13: 5 | M13: x | O13: Level 6 | P13: 400 King William Street | Q13: ADELAIDE | R13: SA | S13: 5000 | T13: PO Box 6468 | U13: Halifax Street | V13: ADELAIDE | W13: SA | X13: 5000 | Y13: Craig de Laine | Z13: 08 8418 1129 | AA13: craig.delaine@agn.com.au | AI13: CBD | AJ13: Urban | AK13: Short rural | AL13: Long rural | AN13: AGN (Albury)
B14: AGN (Albury) | C14: Australian Gas Networks Limited (reporting data for Albury) | D14: 19078551685 | E14: Vic | F14: Gas | G14: Distribution | H14: Weighted average price cap | I14: Calendar | J14: December | K14: 5 | L14: 5 | M14: x | O14: Level 6 | P14: 400 King William Street | Q14: ADELAIDE | R14: SA | S14: 5000 | T14: PO Box 6468 | U14: Halifax Street | V14: ADELAIDE | W14: SA | X14: 5000 | Y14: Craig de Laine | Z14: 08 8418 1129 | AA14: craig.delaine@agn.com.au | AI14: CBD | AJ14: Urban | AK14: Short rural | AL14: Long rural
B15: AGN (SA) | C15: Australian Gas Networks Limited (reporting data for SA) | D15: 19078551685 | E15: SA | F15: Gas | G15: Distribution | H15: Weighted average price cap | I15: Financial | J15: June | K15: 5 | L15: 5 | M15: 5 | N15: distribution determination | O15: Level 6 | P15: 400 King William Street | Q15: ADELAIDE | R15: SA | S15: 5000 | T15: PO Box 6468 | U15: Halifax Street | V15: ADELAIDE | W15: SA | X15: 5000 | Y15: Craig de Laine | Z15: 08 8418 1129 | AA15: craig.delaine@agn.com.au | AN15: AGN (SA)
B16: AGN (Victoria) | C16: Australian Gas Networks Limited (reporting data for Victoria) | D16: 19078551685 | E16: Vic | F16: Gas | G16: Distribution | H16: Weighted average price cap | I16: Calendar | J16: December | K16: 5 | L16: 5 | M16: x | AN16: AGN (Victoria)
B17: Amadeus | C17: APT Pipelines (NT) Pty Ltd | D17: 39009737393 | E17: NT | F17: Gas | G17: Transmission | H17: Weighted average price cap | I17: Financial | J17: June | K17: 5 | L17: 5 | M17: x | N17: n/a | O17: Level 19, HSBC Building | P17: 580 George Street | Q17: SYDNEY | R17: NSW | S17: 2000 | T17: Level 19, HSBC Building | U17: 580 George Street | V17: SYDNEY | W17: NSW | X17: 2000 | Y17: Alexandra Curran | Z17: 02 9275 0020 | AA17: alexandra.curran@apa.com.au | AN17: Amadeus
B18: APA GasNet | C18: APA GasNet Australia (Operations) Pty Ltd | D18: 065083009 | E18: Vic | F18: Gas | G18: Transmission | H18: Weighted average price cap | I18: Calendar | J18: December | K18: 5 | L18: 5 | M18: x | O18: Level 19, HSBC Building | P18: 580 George Street | Q18: SYDNEY | R18: NSW | S18: 2000 | T18: PO Box R41 | V18: ROYAL EXCHANGE | W18: NSW | X18: 1225 | Z18: 02 9693 0000 | AN18: APA GasNet
B19: Ausgrid | C19: Ausgrid | D19: 78508211731 | E19: NSW | F19: Electricity | G19: Distribution | H19: Revenue cap | I19: Financial | J19: June | K19: 5 | L19: 5 | M19: 5 | N19: 2014-19 Distribution Determination | O19: 570 George St | Q19: SYDNEY | R19: NSW | S19: 2000 | T19: GPO Box 4009 | V19: SYDNEY | W19: NSW | X19: 2001 | Y19: John Thomson | Z19: (02) 9269 2312 | AA19: john.thomson@ausgrid.com.au | AC19: YES | AD19: YES | AE19: YES | AF19: YES | AG19: NO | AI19: CBD | AJ19: Urban | AK19: Short rural | AL19: Long rural | AN19: Ausgrid
B20: Ausgrid (Tx Assets) | C20: Ausgrid (Tx Assets) | D20: 67505337385 | E20: NSW | F20: Electricity | G20: Distribution | H20: Revenue cap | I20: Financial | J20: June | K20: 5 | L20: 5 | M20: 5 | N20: distribution determination | R20: NSW | AI20: CBD | AJ20: Urban | AK20: Short rural | AL20: Long rural | AN20: Ausgrid (Tx Assets)
B21: AusNet (D) | C21: AusNet Electricity Services Pty Ltd | D21: 91064651118 | E21: Vic | F21: Electricity | G21: Distribution | H21: Revenue cap | I21: Calendar | J21: December | K21: 5 | L21: 5 | M21: 2 | N21: 2016-20 Distribution Determination | O21: Level 32 | P21: 2 Southbank Boulevard | Q21: SOUTHBANK | R21: Vic | S21: 3006 | T21: Locked Bag 14051 | V21: MELBOURNE CITY MAIL CENTRE | W21: VIC | X21: 8001 | Y21: Hannah Williams | Z21: 03 9683 4088 | AA21: hwilliams@powercor.com.au | AD21: YES | AE21: YES | AF21: YES | AG21: NO | AI21: CBD | AJ21: Urban | AK21: Short rural | AL21: Long rural | AN21: AusNet (D)
B22: AusNet (Gas) | C22: AusNet Gas Services | D22: 086015036 | E22: Vic | F22: Gas | G22: Distribution | H22: Weighted average price cap | I22: Calendar | J22: December | K22: 5 | L22: 5 | M22: X | AN22: AusNet (Gas)
B23: AusNet (T) | C23: Ausnet Services (Transmission) Ltd | D23: 48116124362 | E23: Vic | F23: Electricity | G23: Transmission | H23: Revenue cap | I23: Financial | J23: March | K23: 5 | L23: 5 | M23: 2 | N23: transmission determination | O23: Level 32 | P23: 2 Southbank Boulevard | Q23: SOUTHBANK | R23: Vic | S23: 3006 | T23: Locked Bag 14051 | V23: MELBOURNE CITY MAIL CENTRE | W23: Vic | X23: 8001 | Y23: Clare Thompson | Z23: 03 9695 6670 | AA23: clare.e.thompson@ausnetservices.com.au | AI23: CBD | AJ23: Urban | AK23: Short rural | AL23: Long rural | AN23: AusNet (T)
B24: Australian Distribution Co. | C24: Australian Distribution Co. | D24: 11222333444 | E24: - | F24: Electricity | G24: Distribution | H24: Revenue cap | I24: Financial | J24: June | K24: 5 | L24: 5 | M24: 2 | N24: distribution determination | O24: 123 Straight Street | Q24: SYDNEY | R24: NSW | S24: 2000 | T24: PO Box 123 | V24: SYDNEY | W24: NSW | X24: 2000 | Y24: Bob Smith | Z24: 02 1234 5678 | AA24: bob@auselec.net.au | AI24: CBD | AJ24: Urban | AK24: Short rural | AL24: Long rural | AN24: Australian Distribution Co.
B25: Australian Distribution Co. (Vic) | C25: Australian Distribution Co. (Victoria) | D25: 11222333444 | E25: Vic | F25: Electricity | G25: Distribution | H25: Revenue cap | I25: Calendar | J25: December | K25: 5 | L25: 5 | M25: 2 | N25: distribution determination | O25: 123 Straight Street | Q25: MELBOURNE | R25: Vic | S25: 3000 | T25: PO Box 123 | V25: MELBOURNE | W25: VIC | X25: 3000 | Y25: Bob Smith | Z25: 02 1234 5678 | AA25: bob@auselec.net.au | AI25: CBD | AJ25: Urban | AK25: Short rural | AL25: Long rural | AN25: Australian Distribution Co. (Vic)
B26: Australian Transmission Co. | C26: Australian Transmission Co. | D26: 11222333444 | E26: - | F26: Electricity | G26: Transmission | H26: Revenue cap | I26: Financial | J26: June | K26: 5 | L26: 5 | M26: 5 | N26: transmission determination | O26: 123 Straight Street | Q26: SYDNEY | R26: NSW | S26: 2000 | T26: PO Box 123 | V26: SYDNEY | W26: NSW | X26: 2000 | Y26: Bob Smith | Z26: 02 1234 5678 | AA26: bob@auselec.net.au | AI26: CBD | AJ26: Urban | AK26: Short rural | AL26: Long rural | AN26: Australian Transmission Co.
B27: CitiPower | C27: CitiPower | D27: 76064651056 | E27: Vic | F27: Electricity | G27: Distribution | H27: Revenue cap | I27: Calendar | J27: December | K27: 5 | L27: 5 | M27: 2 | N27: 2016-20 Distribution Determination | O27: 40 Market Street | Q27: MELBOURNE | R27: Vic | S27: 3000 | T27: Locked Bag 14090 | V27: MELBOURNE | W27: VIC | X27: 8001 | Y27: Hannah Williams | Z27: 03 9683 4088 | AA27: hwilliams@powercor.com.au | AC27: YES | AD27: YES | AE27: NO | AF27: NO | AG27: NO | AI27: CBD | AJ27: Urban | AK27: Short rural | AL27: Long rural | AN27: CitiPower
B28: Directlink | C28: Directlink | D28: 16779340889 | E28: Qld | F28: Electricity | G28: Transmission | H28: Revenue cap | I28: Financial | J28: June | K28: 9 | L28: 5 | M28: 5 | N28: transmission determination | O28: Level 19, HSBC Building | P28: 580 George Street | Q28: SYDNEY | R28: NSW | S28: 2000 | T28: PO Box R41 | V28: ROYAL EXCHANGE | W28: NSW | X28: 1225 | Y28: Scott Young | Z28: 02 9275 0031 | AA28: scott.young@apa.com.au | AI28: CBD | AJ28: Urban | AK28: Short rural | AL28: Long rural | AN28: Directlink
B29: ElectraNet | C29: ElectraNet | D29: 41094482416 | E29: SA | F29: Electricity | G29: Transmission | H29: Revenue cap | I29: Financial | J29: June | K29: 5 | L29: 5 | M29: 5 | N29: transmission determination | O29: 52-55 East Terrace | P29: Rymill Park | Q29: ADELAIDE | R29: SA | S29: 5000 | T29: PO Box 7096 | U29: Hutt Street Post Office | V29: ADELAIDE | W29: SA | X29: 5000 | Y29: Bill Jackson | Z29: 08 8404 7969 | AA29: jackson.bill@electranet.com.au | AI29: CBD | AJ29: Urban | AK29: Short rural | AL29: Long rural | AN29: ElectraNet
B30: Endeavour Energy | C30: Endeavour Energy | D30: 59253130878 | E30: NSW | F30: Electricity | G30: Distribution | H30: Revenue cap | I30: Financial | J30: June | K30: 5 | L30: 5 | M30: 5 | N30: 2014-19 Distribution Determination | O30: 51 Huntingwood Drive | Q30: HUNTINGWOOD | R30: NSW | S30: 2148 | T30: PO Box 811 | V30: SEVEN HILLS | W30: NSW | X30: 1730 | Y30: Jon Hocking | Z30: 02 9853 4386 / 0407 348 156 | AA30: Jon.Hocking@Endeavourenergy.com.au | AC30: NO | AD30: YES | AE30: YES | AF30: YES | AG30: NO | AI30: CBD | AJ30: Urban | AK30: Short rural | AL30: Long rural | AN30: Endeavour Energy
B31: Energex | C31: Energex | D31: 40078849055 | E31: Qld | F31: Electricity | G31: Distribution | H31: Revenue cap | I31: Financial | J31: June | K31: 5 | L31: 5 | M31: 5 | N31: 2015-20 Distribution Determination | O31: 26 Reddacliff Street | Q31: NEWSTEAD | R31: Qld | S31: 4006 | T31: 26 Reddacliff Street | V31: NEWSTEAD | W31: QLD | X31: 4006 | Y31: Nicola Roscoe | Z31: 07 3664 5891 | AA31: nicolaroscoe@energex.com.au | AC31: YES | AD31: YES | AE31: YES | AF31: NO | AG31: NO | AI31: CBD | AJ31: Urban | AK31: Short rural | AL31: Long rural | AN31: Energex
B32: Ergon Energy | C32: Ergon Energy | D32: 50087646062 | E32: Qld | F32: Electricity | G32: Distribution | H32: Revenue cap | I32: Financial | J32: June | K32: 5 | L32: 5 | M32: 5 | N32: 2015-20 Distribution Determination | O32: 22 Walker Street | Q32: TOWNSVILLE | R32: Qld | S32: 4810 | T32: Po Box 264 | V32: FORTITUDE VALLEY | W32: QLD | X32: 4006 | Y32: Jenny Doyle, Group Manager Regulatory Affairs | Z32: (07) 3851 6416 | AA32: jenny.doyle@ergon.com.au | AC32: NO | AD32: YES | AE32: YES | AF32: YES | AG32: NO | AI32: CBD | AJ32: Urban | AK32: Short rural | AL32: Long rural | AN32: Ergon Energy
B33: Essential Energy | C33: Essential Energy | D33: 37428185226 | E33: NSW | F33: Electricity | G33: Distribution | H33: Revenue cap | I33: Financial | J33: June | K33: 5 | L33: 5 | M33: 5 | N33: 2014-19 Distribution Determination | O33: 8 Buller Street | Q33: PORT MACQUARIE | R33: NSW | S33: 2444 | T33: PO Box 5730 | V33: PORT MACQUARIE | W33: NSW | X33: 2444 | Y33: Catherine Waddell | Z33: 02 6338 3553 | AA33: catherine.waddell@essentialenergy.com.au | AE33: YES | AF33: YES | AG33: NO | AI33: CBD | AJ33: Urban | AK33: Short rural | AL33: Long rural | AN33: Essential Energy
B34: Jemena Electricity | C34: Jemena Electricity | D34: 82064651083 | E34: Vic | F34: Electricity | G34: Distribution | H34: Revenue cap | I34: Calendar | J34: December | K34: 5 | L34: 5 | M34: 2 | N34: 2016-20 Distribution Determination | O34: Level 16 | P34: 567 Collins Street | Q34: MELBOURNE | R34: VIC | S34: 3000 | T34: PO Box 16182 | V34: MELBOURNE | W34: VIC | X34: 8001 | Y34: Matthew Serpell | Z34: 03 9173 8231 | AA34: matthew.serpell@jemena.com.au | AE34: YES | AF34: NO | AG34: NO | AI34: CBD | AJ34: Urban | AK34: Short rural | AL34: Long rural | AN34: Jemena Electricity
B35: JGN | C35: Jemena Gas Networks (NSW) Ltd | D35: 003 004 322 | E35: NSW | F35: Gas | G35: Distribution | H35: Weighted average price cap | I35: Financial | J35: June | K35: 5 | L35: 5 | AN35: JGN
B36: Multinet Gas | C36: Multinet Gas (DB No.1) Pty Ltd (ACN 086 026 986), Multinet Gas (DB No.2) Pty Ltd (ACN 086 230 122) | D36: 086026986 | E36: Vic | F36: Gas | G36: Distribution | H36: Weighted average price cap | I36: Calendar | J36: December | K36: 5 | L36: 5 | M36: x | O36: 6 Nexus Court | Q36: MULGRAVE | R36: Vic | S36: 3149 | Y36: Stephanie McDougall | Z36: 03 8846 9538 | AA36: Stephanie.McDougall@ue.com.au | AN36: Multinet Gas
B37: Murraylink | C37: Murraylink | D37: 79181207909 | E37: SA | F37: Electricity | G37: Transmission | H37: Revenue cap | I37: Financial | J37: June | K37: 5 | L37: 5 | M37: 5 | N37: transmission determination | AI37: CBD | AJ37: Urban | AK37: Short rural | AL37: Long rural | AN37: Murraylink
B38: Power and Water | C38: Power and Water Corporation | D38: 15947352360 | E38: NT | F38: Electricity | G38: Distribution | H38: Revenue cap | I38: Financial | J38: June | K38: 5 | L38: 5 | M38: x | N38: distribution determination | O38: GPO Box 1921 | Q38: DARWIN | R38: NT | S38: 0801 | T38: GPO Box 1921 | V38: DARWIN | W38: NT | X38: 0801 | Y38: Lucy Moon | Z38: 08 8924 5822 | AA38: Lucy.Moon@powerwater.com.au | AC38: YES | AD38: YES | AE38: YES | AF38: YES | AG38: NO
B39: Powercor Australia | C39: Powercor Australia | D39: 89064651109 | E39: Vic | F39: Electricity | G39: Distribution | H39: Revenue cap | I39: Calendar | J39: December | K39: 5 | L39: 5 | M39: 2 | N39: 2016-20 Distribution Determination | O39: 40 Market Street | Q39: MELBOURNE | R39: Vic | S39: 3000 | T39: Locked bag 14090 | V39: MELBOURNE | W39: VIC | X39: 8001 | Y39: Hannah Williams | Z39: 03 9683 4088 | AA39: hwilliams@powercor.com.au | AE39: YES | AF39: YES | AG39: NO | AI39: CBD | AJ39: Urban | AK39: Short rural | AL39: Long rural | AN39: Powercor Australia
B40: Powerlink | C40: Queensland Electricity Transmission Corporation Limited trading as Powerlink Queensland | D40: 82078849233 | E40: Qld | F40: Electricity | G40: Transmission | H40: Revenue cap | I40: Financial | J40: June | K40: 5 | L40: 5 | M40: 5 | N40: transmission determination | O40: 33 Harold St | Q40: VIRGINIA | R40: Qld | S40: 4014 | T40: PO Box 1193 | V40: VIRGINIA | W40: QLD | X40: 4014 | Y40: Jennifer Harris | Z40: 07 3860 2667 | AA40: jharris@powerlink.com.au | AI40: CBD | AJ40: Urban | AK40: Short rural | AL40: Long rural | AN40: Powerlink
B41: Roma to Brisbane Pipeline | C41: APT Petroleum Pipelines Limited t/a Roma to Brisbane Pipeline | D41: 009 737 393 | E41: Qld | F41: Gas | G41: Transmission | H41: Weighted average price cap | I41: Financial | J41: June | K41: 5 | L41: 5 | M41: x | N41: n/a | O41: 580 George Street | Q41: SYDNEY | R41: NSW | S41: 2000 | T41: PO Box R41 | V41: ROYAL EXCHANGE | W41: NSW | X41: 1225 | Y41: Mark Allen | Z41: 02 9275 0010 | AA41: mark.allen@apa.com.au | AI41: CBD | AJ41: Urban | AK41: Short rural | AL41: Long rural | AN41: Roma to Brisbane Pipeline
B42: SA Power Networks | C42: SA Power Networks | D42: 13332330749 | E42: SA | F42: Electricity | G42: Distribution | H42: Revenue cap | I42: Financial | J42: June | K42: 5 | L42: 5 | M42: 5 | N42: 2015-20 Distribution Determination | O42: 1 Anzac Highway | Q42: KESWICK | R42: SA | S42: 5035 | T42: GPO Box 77 | V42: ADELAIDE | W42: SA | X42: 5000 | Y42: Richard Sibly | Z42: 08 8404 5613 | AA42: richard.sibly@sapowernetworks.com.au | AE42: YES | AF42: YES | AG42: NO | AI42: CBD | AJ42: Urban | AK42: Short rural | AL42: Long rural | AN42: SA Power Networks
B43: TasNetworks (D) | C43: TasNetworks (D) | D43: 24167357299 | E43: Tas | F43: Electricity | G43: Distribution | H43: Revenue cap | I43: Financial | J43: June | K43: 5 | L43: 5 | M43: 5 | N43: distribution determination | O43: 1-7 Maria Street | Q43: LENAH VALLEY | R43: Tas | S43: 7008 | T43: PO Box 606 | V43: MOONAH | W43: Tas | X43: 7009 | Y43: John Sayers | Z43: 03 6271 6469 | AA43: john.sayers@tasnetworks.com.au | AE43: YES | AF43: YES | AG43: YES | AI43: Critical Infrastructure | AJ43: High density commercial | AK43: Urban | AL43: High density rural | AM43: Low density rural | AN43: TasNetworks (D)
B44: TasNetworks (T) | C44: TasNetworks (T) | D44: 24167357299 | E44: Tas | F44: Electricity | G44: Transmission | H44: Revenue cap | I44: Financial | J44: June | K44: 5 | L44: 5 | M44: 5 | N44: transmission determination | O44: 1-7 Maria Street | Q44: LENAH VALLEY | R44: Tas | S44: 7008 | T44: PO Box 606 | V44: MOONAH | W44: Tas | X44: 7009 | Y44: John Sayers | Z44: 03 6271 6469 | AA44: john.sayers@tasnetworks.com.au | AI44: CBD | AJ44: Urban | AK44: Short rural | AL44: Long rural | AN44: TasNetworks (T)
B45: TransGrid | C45: NSW Electricity Networks Operations Pty Ltd trading as TransGrid | D45: 609169959 | E45: NSW | F45: Electricity | G45: Transmission | H45: Revenue cap | I45: Financial | J45: June | K45: 5 | L45: 4 | M45: 5 | N45: transmission determination | O45: 180 Thomas Street | Q45: SYDNEY | R45: NSW | S45: 2000 | T45: PO Box A1000 | V45: SYDNEY SOUTH | W45: NSW | X45: 1235 | Y45: Garrie Chubb | Z45: 0408 210 221 | AA45: garrie.chubb@transgrid.com.au | AI45: CBD | AJ45: Urban | AK45: Short rural | AL45: Long rural | AN45: TransGrid
B46: United Energy | C46: United Energy | D46: 70064651029 | E46: Vic | F46: Electricity | G46: Distribution | H46: Revenue cap | I46: Calendar | J46: December | K46: 5 | L46: 5 | M46: 2 | N46: 2016-20 Distribution Determination | O46: Level 3 | P46: 6 Nexus Court | Q46: MULGRAVE | R46: Vic | S46: 3149 | T46: PO Box 449 | V46: MOUNT WAVERLEY | W46: VIC | X46: 3170 | Y46: Mathew Abraham | Z46: 03 8846 9758 | AA46: mathew.abraham@ue.com.au | AE46: YES | AF46: NO | AG46: NO | AI46: CBD | AJ46: Urban | AK46: Short rural | AL46: Long rural | AN46: United Energy
B47: Western Power (D) | C47: Western Power (D) | D47: 18540492861 | E47: WA | F47: Electricity | G47: Distribution | H47: Revenue cap | I47: Financial | J47: June | K47: 12 | L47: 4 | M47: x | N47: distribution determination | O47: 363 Wellington Street | Q47: PERTH | R47: WA | S47: 6000 | T47: GPO Box L921 | V47: PERTH | W47: WA | X47: 6842 | Y47: Judy Hunter | Z47: 08 9326 6239 | AA47: judy.hunter@westernpower.com.au | AE47: YES | AF47: YES | AG47: NO | AH47: NO | AI47: CBD | AJ47: Urban | AK47: Short rural | AL47: Long rural | AN47: Western Power (D)
B48: Western Power (T) | C48: Western Power (T) | D48: 18540492861 | E48: WA | F48: Electricity | G48: Transmission | H48: Revenue cap | I48: Financial | J48: June | K48: 12 | L48: 4 | M48: x | N48: transmission determination | O48: 363 Wellington Street | Q48: PERTH | R48: WA | S48: 6000 | T48: GPO Box L921 | V48: PERTH | W48: WA | X48: 6842 | Y48: Judy Hunter | Z48: 08 9326 6239 | AA48: judy.hunter@westernpower.com.au | AE48: YES | AF48: YES | AG48: NO | AI48: CBD | AJ48: Urban | AK48: Short rural | AL48: Long rural | AN48: Western Power (T)
W51: For EB & Reset RINs only | AC51: For AARs only
B52: The Reg Year Ending (dms_RYE) must be set to the last year of the regulatory period. For forecast data is is usually (FRCP_y5) for actual it is a single year (CRY). For historical actual data the RYE will need to be set manually in the business details sheet by setting the dms_Multiyear_flag to 1 and putting the correct value in 'dms_Specified_FinalYear. See cells C67:C68 | G52: =IF(dms_RPT="financial",VALUE(LEFT(CRCP_y1,4)-1)&"-"&TEXT(VALUE(RIGHT(CRCP_y1,2)-1),"00"),VALUE(LEFT(CRCP_y1,4)-1)) -> 2011-12 | N52: Drop down selector box for CA & Reset RINs. | O52: For CA & Reset RINs only | W52: for DNSP only | AC52: For DNSPs only | AI52: Reason for interruption | AJ52: dms_Reason_Interruption_Detailed | AK52: dms_Reason_Interruption
B53: dms_Model_List | C53: DELETE NR 'CRY' IF NOT AN ANNUAL RIN (EB, CA , ARR) | E53: dms_RYE_Formula_Result | N53: dms_0203_ProjectType | O53: dms_020303_01_UOM | P53: dms_020501_01_UOM | Q53: dms_020501_02_UOM | R53: dms_020501_03_UOM | S53: dms_020501_04_UOM | T53: dms_020603_01_UOM | U53: dms_040102_01_UOM | V53: dms_040102_04_UOM | W53: dms_030601_01_UOM | X53: dms_030601_02_UOM | Y53: dms_030701_01_UOM | Z53: dms_030702_01_UOM | AA53: dms_030703_01_UOM | AC53: dms_030605_UOM | AD53: dms_03060703_UOM | AI53: Animal | AJ53: Animal impact | AK53: Animal
B54: ARR | C54: ANNUAL REPORTING STATEMENT | E54: =LEFT(dms_SingleYear_FinalYear_Result,2)&RIGHT(dms_SingleYear_FinalYear_Result,2) -> 2017 | F54: =LEFT(dms_SingleYear_FinalYear_Result,2)&RIGHT(dms_SingleYear_FinalYear_Result,2) | H54: Formula errors are OK | N54: New line on new route - single circuit | O54: Circuit line length in km | P54: 0's | Q54: 0's | R54: 0's | S54: 0's | T54: 0's | U54: 0's | V54: days | W54: minutes/customer | X54: minutes/customer | Y54: Customer / km | Z54: % | AA54: km | AC54: number | AD54: number | AJ54: Animal nesting/burrowing, etc and other | AK54: Asset failure
B55: CA | C55: CATEGORY ANALYSIS | E55: =LEFT(dms_SingleYear_FinalYear_Result,2)&RIGHT(dms_SingleYear_FinalYear_Result,2) -> 2017 | F55: =LEFT(dms_SingleYear_FinalYear_Result,2)&RIGHT(dms_SingleYear_FinalYear_Result,2) | H55: Formula errors are OK | N55: New line on new route - dual circuit | O55: Circuit line length in km | P55: 0's | Q55: 0's | R55: 0's | S55: 0's | T55: 0's | U55: 0's | V55: 0's | W55: minutes/customer | X55: minutes/customer | Y55: MWh/customer | Z55: Number of spans | AC55: number | AD55: number | AJ55: Other | AK55: Other
B56: CPI | C56: CPI | N56: New line on new route - other | O56: Circuit line length in km | P56: MVA added | Q56: MVA added | R56: MVA added | S56: MVA added | T56: 0's | U56: 0's | V56: $0s | W56: interruptions/customer | X56: interruptions/customer | Y56: kVA / customer | Z56: Number of spans | AC56: number | AD56: number | AI56: Asset failure | AJ56: LV | AK56: Overloads
B57: EB | C57: ECONOMIC BENCHMARKING | E57: =LEFT(dms_SingleYear_FinalYear_Result,2)&RIGHT(dms_SingleYear_FinalYear_Result,2) -> 2017 | F57: =LEFT(dms_SingleYear_FinalYear_Result,2)&RIGHT(dms_SingleYear_FinalYear_Result,2) | H57: Formula errors are OK | N57: Line rebuild over existing route - single circuit | O57: Circuit line length in km | P57: 0's | Q57: 0's | R57: 0's | S57: 0's | T57: 0's | U57: $0s | V57: 0's | W57: interruptions/customer | X57: interruptions/customer | Z57: Number of spans | AC57: number | AD57: number | AJ57: Distribution substation | AK57: Planned
B58: PTRM | C58: POST TAX REVENUE MODEL | E58: =LEFT(dms_MultiYear_FinalYear_Result,2)&RIGHT(dms_MultiYear_FinalYear_Result,2) -> 2022 | F58: =LEFT(dms_MultiYear_FinalYear_Result,2)&RIGHT(dms_MultiYear_FinalYear_Result,2) | N58: Line rebuild over existing route - dual circuit | O58: Number | P58: total spend $0s | Q58: total spend $0s | R58: total spend $0s | S58: total spend $0s | T58: (per cent) | Z58: Number of spans | AC58: number | AD58: (per cent) | AJ58: HV | AK58: Network business
B59: Reset | C59: REGULATORY REPORTING STATEMENT | E59: =LEFT(dms_MultiYear_FinalYear_Result,2)&RIGHT(dms_MultiYear_FinalYear_Result,2) -> 2022 | F59: =LEFT(dms_MultiYear_FinalYear_Result,2)&RIGHT(dms_MultiYear_FinalYear_Result,2) | H59: Formula errors are OK | N59: Reconductor - Single circuit | O59: Number | P59: net circuit km added | Q59: net circuit km added | R59: net circuit km added | S59: net circuit km added | Z59: Years | AC59: number | AJ59: Zone substation | AK59: Third party
B60: RFM | C60: ROLL FORWARD MODEL | E60: =LEFT(dms_CRCP_FinalYear_Result,2)&RIGHT(dms_CRCP_FinalYear_Result,2) -> 2017 | F60: =LEFT(dms_CRCP_FinalYear_Result,2)&RIGHT(dms_CRCP_FinalYear_Result,2) | N60: Reconductor - Dual circuit | O60: Number | P60: total spend $0s | Q60: total spend $0s | R60: total spend $0s | S60: total spend $0s | Z60: Years | AC60: number | AJ60: Subtransmission | AK60: Unknown
B61: WACC | C61: WEIGHTED AVERAGE COST OF CAPITAL | E61: =LEFT(dms_MultiYear_FinalYear_Result,2)&RIGHT(dms_MultiYear_FinalYear_Result,2) -> 2022 | F61: =LEFT(dms_MultiYear_FinalYear_Result,2)&RIGHT(dms_MultiYear_FinalYear_Result,2) | N61: Other | P61: net circuit km added | Q61: net circuit km added | R61: net circuit km added | S61: net circuit km added | Z61: Trees | AC61: number | AI61: Other | AJ61: insert description of 'other' | AK61: Vegetation
P62: total spend $0s | Q62: total spend $0s | R62: total spend $0s | S62: total spend $0s | Z62: Trees | AC62: number | AI62: Overloads | AJ62: - | AK62: Weather
B63: dms_DataQuality_List | P63: 0's | R63: $0s | Z63: Defects | AC63: number | AI63: Planned | AJ63: - | AK63: 2 - STPIS Exclusion (3.3)(a)
B64: Actual | P64: 0's | Z64: Defects | AC64: number | AI64: Network business | AJ64: Network error | AK64: 3 - STPIS Exclusion (3.3)(a)
B65: Estimate | P65: 0's | Z65: Spans | AC65: number | AJ65: Switching and protection error | AK65: 4 - STPIS Exclusion (3.3)(a)
B66: Consolidated | P66: $0s | Z66: km | AC66: (per cent) | AI66: Third party | AJ66: Fire | AK66: 5 - STPIS Exclusion (3.3)(a)
B67: Recast | Z67: Spans | AC67: (per cent) | AJ67: Other | AK67: 6 - STPIS Exclusion (3.3)(a)
B68: Public | AJ68: Dig-in | AK68: 7 - STPIS Exclusion (3.3)(a)
AJ69: Unauthorised access
B70: For all files either AER or business needs to be able to specify the type of submission | C70: For PTRM & RFM templates we must provide a choice in case they change their form of control - otherwise it is drawn from the business specific lookup table above. | O70: For PTRM files - this field set the text for the named range "DMS_Xfactor" which in all cases is simply the text "x factors" - this saves putting in each old gas PTRM file | W70: for TNSP only | AJ70: Vehicle impact
B71: dms_SourceList | C71: dms_FormControl_Choices | O71: DMS_Xfactor | W71: dms_030601_01_UOM | Y71: dms_030701_01_UOM | Z71: dms_030702_01_UOM | AI71: Unknown | AJ71: Unknown
B72: After appeal | C72: Revenue cap | O72: x factors | W72: % | Y72: Number of spans | Z72: km | AI72: Vegetation | AJ72: Blow-in/Fall-in - NSP responsibility
B73: Draft decision | C73: Revenue yield | W73: number | Y73: Years | Z73: % | AJ73: Grow-in - NSP responsibility
B74: Final decision | C74: Weighted average price cap | W74: number | Y74: Trees | Z74: km | AJ74: Blow-in/Fall-in - Other responsible party
B75: PTRM update 1 | W75: % | Y75: Defects | Z75: number | AJ75: Grow-in - Other responsible party
B76: PTRM update 2 | W76: number | Y76: Number of spans | AI76: Weather
B77: PTRM update 3 | W77: number | Y77: km | AI77: 2 - STPIS Exclusion (3.3)(a)
B78: PTRM update 4 | W78: % | Y78: km | AI78: 3 - STPIS Exclusion (3.3)(a)
B79: PTRM update 5 | W79: number | Y79: Number of spans | AI79: 4 - STPIS Exclusion (3.3)(a)
B80: PTRM update 6 | W80: number | AI80: 5 - STPIS Exclusion (3.3)(a)
B81: PTRM update 7 | W81: % | AI81: 6 - STPIS Exclusion (3.3)(a)
B82: Regulatory proposal | W82: number | AI82: 7 - STPIS Exclusion (3.3)(a)
B83: Reporting | W83: %
B84: Revised regulatory proposal | W84: number
W85: %
W86: number
B90: These are indeces and lookup values for various dates. All step from the value placed in FRCP_y1 on the business and other details worksheet | L90: These date tables are currently used in the Recast templates to provide column headings and conditional formatting
B91: dms_FRCPlength_Num_List | C91: dms_FinalYear_List | D91: dms_CRCPlength_Num_List | E91: dms_CFinalYear_List | F91: dms_FRCP_years | H91: dms_CRCP_years | J91: dms_CRCP_index | L91: CRY from input cell on business sheet | M91: CRY - financial | N91: dms_FinYears | O91: CRY calendar | P91: dms_CalYears
B92: 1 | C92: dms_FRCP_y1 | D92: 1 | E92: CRCP_y1 | F92: =FRCP_y1 -> 2017-18 | G92: dms_FRCP_y1 | H92: =IF(dms_RPT="financial",VALUE(LEFT(dms_FRCP_y1,4)-1)&"-"&TEXT(VALUE(MID(dms_FRCP_y1,3,2)),"00"),VALUE(LEFT(dms_FRCP_y1,4)-1)) -> 2016-17 | I92: dms_CRCP_yZ | J92: 1 | L92: =CRY -> 2016-17 | M92: =VALUE(LEFT(CRY,4))&"-"&TEXT(MID(CRY,3,2)+1,"00") -> 2016-17 | N92: dms_CRYf_y1 | O92: =VALUE(LEFT(CRY,4)+1) -> 2017 | P92: dms_CRYc_y1
B93: 2 | C93: dms_FRCP_y2 | D93: 2 | E93: CRCP_y2 | F93: =IF(dms_RPT="financial",VALUE(LEFT(dms_FRCP_y1,4)+1)&"-"&TEXT(VALUE(RIGHT(dms_FRCP_y1,2)+1),"00"),VALUE(LEFT(dms_FRCP_y1,4)+1)) -> 2018-19 | G93: dms_FRCP_y2 | H93: =IF(dms_RPT="financial",VALUE(LEFT(dms_CRCP_yZ,4)-1)&"-"&TEXT(VALUE(MID(dms_CRCP_yZ,3,2)),"00"),VALUE(LEFT(dms_CRCP_yZ,4)-1)) -> 2015-16 | I93: dms_CRCP_yY | J93: 2 | M93: =VALUE(LEFT(dms_CRYf_y1,4)+1)&"-"&TEXT(MID(dms_CRYf_y1,3,2)+2,"00") -> 2017-18 | N93: dms_CRYf_y2 | O93: =VALUE(LEFT(dms_CRYc_y1,4)+1) -> 2018 | P93: dms_CRYc_y2
B94: 3 | C94: dms_FRCP_y3 | D94: 3 | E94: CRCP_y3 | F94: =IF(dms_RPT="financial",VALUE(LEFT(dms_FRCP_y2,4)+1)&"-"&TEXT(VALUE(RIGHT(dms_FRCP_y2,2)+1),"00"),VALUE(LEFT(dms_FRCP_y2,4)+1)) -> 2019-20 | G94: dms_FRCP_y3 | H94: =IF(dms_RPT="financial",VALUE(LEFT(dms_CRCP_yY,4)-1)&"-"&TEXT(VALUE(MID(dms_CRCP_yY,3,2)),"00"),VALUE(LEFT(dms_CRCP_yY,4)-1)) -> 2014-15 | I94: dms_CRCP_yX | J94: 3 | M94: =VALUE(LEFT(dms_CRYf_y2,4)+1)&"-"&TEXT(MID(dms_CRYf_y2,3,2)+2,"00") -> 2018-19 | N94: dms_CRYf_y3 | O94: =VALUE(LEFT(dms_CRYc_y2,4)+1) -> 2019 | P94: dms_CRYc_y3
B95: 4 | C95: dms_FRCP_y4 | D95: 4 | E95: CRCP_y4 | F95: =IF(dms_RPT="financial",VALUE(LEFT(dms_FRCP_y3,4)+1)&"-"&TEXT(VALUE(RIGHT(dms_FRCP_y3,2)+1),"00"),VALUE(LEFT(dms_FRCP_y3,4)+1)) -> 2020-21 | G95: dms_FRCP_y4 | H95: =IF(dms_RPT="financial",VALUE(LEFT(dms_CRCP_yX,4)-1)&"-"&TEXT(VALUE(MID(dms_CRCP_yX,3,2)),"00"),VALUE(LEFT(dms_CRCP_yX,4)-1)) -> 2013-14 | I95: dms_CRCP_yW | J95: 4 | M95: =VALUE(LEFT(dms_CRYf_y3,4)+1)&"-"&TEXT(MID(dms_CRYf_y3,3,2)+2,"00") -> 2019-20 | N95: dms_CRYf_y4 | O95: =VALUE(LEFT(dms_CRYc_y3,4)+1) -> 2020 | P95: dms_CRYc_y4
B96: 5 | C96: dms_FRCP_y5 | D96: 5 | E96: CRCP_y5 | F96: =IF(dms_RPT="financial",VALUE(LEFT(dms_FRCP_y4,4)+1)&"-"&TEXT(VALUE(RIGHT(dms_FRCP_y4,2)+1),"00"),VALUE(LEFT(dms_FRCP_y4,4)+1)) -> 2021-22 | G96: dms_FRCP_y5 | H96: =IF(dms_RPT="financial",VALUE(LEFT(dms_CRCP_yW,4)-1)&"-"&TEXT(VALUE(MID(dms_CRCP_yW,3,2)),"00"),VALUE(LEFT(dms_CRCP_yW,4)-1)) -> 2012-13 | I96: dms_CRCP_yV | J96: 5 | M96: =VALUE(LEFT(dms_CRYf_y4,4)+1)&"-"&TEXT(MID(dms_CRYf_y4,3,2)+2,"00") -> 2020-21 | N96: dms_CRYf_y5 | O96: =VALUE(LEFT(dms_CRYc_y4,4)+1) -> 2021 | P96: dms_CRYc_y5
B97: 6 | C97: dms_FRCP_y6 | D97: 6 | E97: CRCP_y6 | F97: =IF(dms_RPT="financial",VALUE(LEFT(dms_FRCP_y5,4)+1)&"-"&TEXT(VALUE(RIGHT(dms_FRCP_y5,2)+1),"00"),VALUE(LEFT(dms_FRCP_y5,4)+1)) -> 2022-23 | G97: dms_FRCP_y6 | H97: =IF(dms_RPT="financial",VALUE(LEFT(dms_CRCP_yV,4)-1)&"-"&TEXT(VALUE(MID(dms_CRCP_yV,3,2)),"00"),VALUE(LEFT(dms_CRCP_yV,4)-1)) -> 2011-12 | I97: dms_CRCP_yU | J97: 6 | M97: =VALUE(LEFT(dms_CRYf_y5,4)+1)&"-"&TEXT(MID(dms_CRYf_y5,3,2)+2,"00") -> 2021-22 | N97: dms_CRYf_y6 | O97: =VALUE(LEFT(dms_CRYc_y5,4)+1) -> 2022 | P97: dms_CRYc_y6
B98: 7 | C98: dms_FRCP_y7 | D98: 7 | E98: CRCP_y7 | F98: =IF(dms_RPT="financial",VALUE(LEFT(dms_FRCP_y6,4)+1)&"-"&TEXT(VALUE(RIGHT(dms_FRCP_y6,2)+1),"00"),VALUE(LEFT(dms_FRCP_y6,4)+1)) -> 2023-24 | G98: dms_FRCP_y7 | H98: =IF(dms_RPT="financial",VALUE(LEFT(dms_CRCP_yU,4)-1)&"-"&TEXT(VALUE(MID(dms_CRCP_yU,3,2)),"00"),VALUE(LEFT(dms_CRCP_yU,4)-1)) -> 2010-11 | I98: dms_CRCP_yT | J98: 7 | M98: =VALUE(LEFT(dms_CRYf_y6,4)+1)&"-"&TEXT(MID(dms_CRYf_y6,3,2)+2,"00") -> 2022-23 | N98: dms_CRYf_y7 | O98: =VALUE(LEFT(dms_CRYc_y6,4)+1) -> 2023 | P98: dms_CRYc_y7
B99: 8 | C99: dms_FRCP_y8 | D99: 8 | E99: CRCP_y8 | F99: =IF(dms_RPT="financial",VALUE(LEFT(dms_FRCP_y7,4)+1)&"-"&TEXT(VALUE(RIGHT(dms_FRCP_y7,2)+1),"00"),VALUE(LEFT(dms_FRCP_y7,4)+1)) -> 2024-25 | G99: dms_FRCP_y8 | H99: =IF(dms_RPT="financial",VALUE(LEFT(dms_CRCP_yT,4)-1)&"-"&TEXT(VALUE(MID(dms_CRCP_yT,3,2)),"00"),VALUE(LEFT(dms_CRCP_yT,4)-1)) -> 2009-10 | I99: dms_CRCP_yS | J99: 8 | M99: =VALUE(LEFT(dms_CRYf_y7,4)+1)&"-"&TEXT(MID(dms_CRYf_y7,3,2)+2,"00") -> 2023-24 | N99: dms_CRYf_y8 | O99: =VALUE(LEFT(dms_CRYc_y7,4)+1) -> 2024 | P99: dms_CRYc_y8
B100: 9 | C100: dms_FRCP_y9 | D100: 9 | E100: CRCP_y9 | F100: =IF(dms_RPT="financial",VALUE(LEFT(dms_FRCP_y8,4)+1)&"-"&TEXT(VALUE(RIGHT(dms_FRCP_y8,2)+1),"00"),VALUE(LEFT(dms_FRCP_y8,4)+1)) -> 2025-26 | G100: dms_FRCP_y9 | H100: =IF(dms_RPT="financial",VALUE(LEFT(dms_CRCP_yS,4)-1)&"-"&TEXT(VALUE(MID(dms_CRCP_yS,3,2)),"00"),VALUE(LEFT(dms_CRCP_yS,4)-1)) -> 2008-09 | I100: dms_CRCP_yR | J100: 9 | M100: =VALUE(LEFT(dms_CRYf_y8,4)+1)&"-"&TEXT(MID(dms_CRYf_y8,3,2)+2,"00") -> 2024-25 | N100: dms_CRYf_y9 | O100: =VALUE(LEFT(dms_CRYc_y8,4)+1) -> 2025 | P100: dms_CRYc_y9
B101: 10 | C101: dms_FRCP_y10 | D101: 10 | E101: CRCP_y10 | F101: =IF(dms_RPT="financial",VALUE(LEFT(dms_FRCP_y9,4)+1)&"-"&TEXT(VALUE(RIGHT(dms_FRCP_y9,2)+1),"00"),VALUE(LEFT(dms_FRCP_y9,4)+1)) -> 2026-27 | G101: dms_FRCP_y10 | H101: =IF(dms_RPT="financial",VALUE(LEFT(dms_CRCP_yR,4)-1)&"-"&TEXT(VALUE(MID(dms_CRCP_yR,3,2)),"00"),VALUE(LEFT(dms_CRCP_yR,4)-1)) -> 2007-08 | I101: dms_CRCP_yQ | J101: 10 | M101: =VALUE(LEFT(dms_CRYf_y9,4)+1)&"-"&TEXT(MID(dms_CRYf_y9,3,2)+2,"00") -> 2025-26 | N101: dms_CRYf_y10 | O101: =VALUE(LEFT(dms_CRYc_y9,4)+1) -> 2026 | P101: dms_CRYc_y10
B102: 11 | C102: dms_FRCP_y11 | D102: 11 | E102: CRCP_y11 | F102: =IF(dms_RPT="financial",VALUE(LEFT(dms_FRCP_y10,4)+1)&"-"&TEXT(VALUE(RIGHT(dms_FRCP_y10,2)+1),"00"),VALUE(LEFT(dms_FRCP_y10,4)+1)) -> 2027-28 | G102: dms_FRCP_y11 | H102: =IF(dms_RPT="financial",VALUE(LEFT(dms_CRCP_yQ,4)-1)&"-"&TEXT(VALUE(MID(dms_CRCP_yQ,3,2)),"00"),VALUE(LEFT(dms_CRCP_yQ,4)-1)) -> 2006-07 | I102: dms_CRCP_yP | J102: 11 | M102: =VALUE(LEFT(dms_CRYf_y10,4)+1)&"-"&TEXT(MID(dms_CRYf_y10,3,2)+2,"00") -> 2026-27 | N102: dms_CRYf_y11 | O102: =VALUE(LEFT(dms_CRYc_y10,4)+1) -> 2027 | P102: dms_CRYc_y11
B103: 12 | C103: dms_FRCP_y12 | D103: 12 | E103: CRCP_y12 | F103: =IF(dms_RPT="financial",VALUE(LEFT(dms_FRCP_y11,4)+1)&"-"&TEXT(VALUE(RIGHT(dms_FRCP_y11,2)+1),"00"),VALUE(LEFT(dms_FRCP_y11,4)+1)) -> 2028-29 | G103: dms_FRCP_y12 | H103: =IF(dms_RPT="financial",VALUE(LEFT(dms_CRCP_yP,4)-1)&"-"&TEXT(VALUE(MID(dms_CRCP_yP,3,2)),"00"),VALUE(LEFT(dms_CRCP_yP,4)-1)) -> 2005-06 | I103: dms_CRCP_yO | J103: 12 | M103: =VALUE(LEFT(dms_CRYf_y11,4)+1)&"-"&TEXT(MID(dms_CRYf_y11,3,2)+2,"00") -> 2027-28 | N103: dms_CRYf_y12 | O103: =VALUE(LEFT(dms_CRYc_y11,4)+1) -> 2028 | P103: dms_CRYc_y12
B104: 13 | C104: dms_FRCP_y13 | D104: 13 | E104: CRCP_y13 | F104: =IF(dms_RPT="financial",VALUE(LEFT(dms_FRCP_y12,4)+1)&"-"&TEXT(VALUE(RIGHT(dms_FRCP_y12,2)+1),"00"),VALUE(LEFT(dms_FRCP_y12,4)+1)) -> 2029-30 | G104: dms_FRCP_y13 | H104: =IF(dms_RPT="financial",VALUE(LEFT(dms_CRCP_yO,4)-1)&"-"&TEXT(VALUE(MID(dms_CRCP_yO,3,2)),"00"),VALUE(LEFT(dms_CRCP_yO,4)-1)) -> 2004-05 | I104: dms_CRCP_yN | J104: 13 | M104: =VALUE(LEFT(dms_CRYf_y12,4)+1)&"-"&TEXT(MID(dms_CRYf_y12,3,2)+2,"00") -> 2028-29 | N104: dms_CRYf_y13 | O104: =VALUE(LEFT(dms_CRYc_y12,4)+1) -> 2029 | P104: dms_CRYc_y13
B105: 14 | C105: dms_FRCP_y14 | D105: 14 | E105: CRCP_y14 | F105: =IF(dms_RPT="financial",VALUE(LEFT(dms_FRCP_y13,4)+1)&"-"&TEXT(VALUE(RIGHT(dms_FRCP_y13,2)+1),"00"),VALUE(LEFT(dms_FRCP_y13,4)+1)) -> 2030-31 | G105: dms_FRCP_y14 | H105: =IF(dms_RPT="financial",VALUE(LEFT(dms_CRCP_yN,4)-1)&"-"&TEXT(VALUE(MID(dms_CRCP_yN,3,2)),"00"),VALUE(LEFT(dms_CRCP_yN,4)-1)) -> 2003-04 | I105: dms_CRCP_yM | J105: 14 | M105: =VALUE(LEFT(dms_CRYf_y13,4)+1)&"-"&TEXT(MID(dms_CRYf_y13,3,2)+2,"00") -> 2029-30 | N105: dms_CRYf_y14 | O105: =VALUE(LEFT(dms_CRYc_y13,4)+1) -> 2030 | P105: dms_CRYc_y14
B106: 15 | C106: dms_FRCP_y15 | D106: 15 | E106: CRCP_y15 | F106: =IF(dms_RPT="financial",VALUE(LEFT(dms_FRCP_y14,4)+1)&"-"&TEXT(VALUE(RIGHT(dms_FRCP_y14,2)+1),"00"),VALUE(LEFT(dms_FRCP_y14,4)+1)) -> 2031-32 | G106: dms_FRCP_y15 | H106: =IF(dms_RPT="financial",VALUE(LEFT(dms_CRCP_yM,4)-1)&"-"&TEXT(VALUE(MID(dms_CRCP_yM,3,2)),"00"),VALUE(LEFT(dms_CRCP_yM,4)-1)) -> 2002-03 | I106: dms_CRCP_yL | J106: 15 | M106: =VALUE(LEFT(dms_CRYf_y14,4)+1)&"-"&TEXT(MID(dms_CRYf_y14,3,2)+2,"00") -> 2030-31 | N106: dms_CRYf_y15 | O106: =VALUE(LEFT(dms_CRYc_y14,4)+1) -> 2031 | P106: dms_CRYc_y15
M107: =VALUE(LEFT(dms_CRYf_y15,4)+1)&"-"&TEXT(MID(dms_CRYf_y15,3,2)+2,"00") -> 2031-32 | N107: dms_CRYf_y16 | O107: =VALUE(LEFT(dms_CRYc_y15,4)+1) -> 2032 | P107: dms_CRYc_y16
B108: These are drop down lists for businesses to select the correct FRCP_y1 on the business and other details worksheet. This also populates the column headings in the worksheets | M108: =VALUE(LEFT(dms_CRYf_y16,4)+1)&"-"&TEXT(MID(dms_CRYf_y16,3,2)+2,"00") -> 2032-33 | N108: dms_CRYf_y17 | O108: =VALUE(LEFT(dms_CRYc_y16,4)+1) -> 2033 | P108: dms_CRYc_y17
B109: dms_RCP_fyear_list | C109: dms_CRY_ListF | D109: dms_CRY_ListC | E109: dms_RCP_cyear_list | F109: dms_FRCP_fyear_list | G109: dms_FRCP_ListF | H109: dms_FRCP_ListC | I109: dms_FRCP_cyear_list | M109: =VALUE(LEFT(dms_CRYf_y17,4)+1)&"-"&TEXT(MID(dms_CRYf_y17,3,2)+2,"00") -> 2033-34 | N109: dms_CRYf_y18 | O109: =VALUE(LEFT(dms_CRYc_y17,4)+1) -> 2034 | P109: dms_CRYc_y18
B110: dms_fy1 | C110: 2006-07 | D110: 2007 | E110: dms_cy1 | F110: dms_frcp_fy1 | G110: 2015-16 | H110: 2016 | I110: dms_crcp_cy1 | M110: =VALUE(LEFT(dms_CRYf_y18,4)+1)&"-"&TEXT(MID(dms_CRYf_y18,3,2)+2,"00") -> 2034-35 | N110: dms_CRYf_y19 | O110: =VALUE(LEFT(dms_CRYc_y18,4)+1) -> 2035 | P110: dms_CRYc_y19
B111: dms_fy2 | C111: 2007-08 | D111: 2008 | E111: dms_cy2 | F111: dms_frcp_fy2 | G111: 2016-17 | H111: 2017 | I111: dms_crcp_cy2 | M111: =VALUE(LEFT(dms_CRYf_y19,4)+1)&"-"&TEXT(MID(dms_CRYf_y19,3,2)+2,"00") -> 2035-36 | N111: dms_CRYf_y20 | O111: =VALUE(LEFT(dms_CRYc_y19,4)+1) -> 2036 | P111: dms_CRYc_y20
B112: dms_fy3 | C112: 2008-09 | D112: 2009 | E112: dms_cy3 | F112: dms_frcp_fy3 | G112: 2017-18 | H112: 2018 | I112: dms_crcp_cy3
B113: dms_fy4 | C113: 2009-10 | D113: 2010 | E113: dms_cy4 | F113: dms_frcp_fy4 | G113: 2018-19 | H113: 2019 | I113: dms_crcp_cy4
B114: dms_fy5 | C114: 2010-11 | D114: 2011 | E114: dms_cy5 | F114: dms_frcp_fy5 | G114: 2019-20 | H114: 2020 | I114: dms_crcp_cy5
B115: dms_fy6 | C115: 2011-12 | D115: 2012 | E115: dms_cy6 | F115: dms_frcp_fy6 | G115: 2020-21 | H115: 2021 | I115: dms_crcp_cy6
B116: dms_fy7 | C116: 2012-13 | D116: 2013 | E116: dms_cy7 | F116: dms_frcp_fy7 | G116: 2021-22 | H116: 2022 | I116: dms_crcp_cy7
B117: dms_fy8 | C117: 2013-14 | D117: 2014 | E117: dms_cy8 | F117: dms_frcp_fy8 | G117: 2022-23 | H117: 2023 | I117: dms_crcp_cy8 | L117: 2005-06 | M117: 2006
B118: dms_fy9 | C118: 2014-15 | D118: 2015 | E118: dms_cy9 | F118: dms_frcp_fy9 | G118: 2023-24 | H118: 2024 | I118: dms_crcp_cy9 | L118: 2006-07 | M118: 2007
B119: dms_fy10 | C119: 2015-16 | D119: 2016 | E119: dms_cy10 | F119: dms_frcp_fy10 | G119: 2024-25 | H119: 2025 | I119: dms_crcp_cy10 | L119: 2007-08 | M119: 2008
B120: dms_fy11 | C120: 2016-17 | D120: 2017 | E120: dms_cy11 | F120: dms_frcp_fy11 | G120: 2025-26 | H120: 2026 | I120: dms_crcp_cy11 | L120: 2008-09 | M120: 2009
B121: dms_fy12 | C121: 2017-18 | D121: 2018 | E121: dms_cy12 | F121: dms_frcp_fy12 | G121: 2026-27 | H121: 2027 | I121: dms_crcp_cy12 | L121: 2009-10 | M121: 2010
B122: dms_fy13 | C122: 2018-19 | D122: 2019 | E122: dms_cy13 | F122: dms_frcp_fy13 | G122: 2027-28 | H122: 2028 | I122: dms_crcp_cy13 | L122: 2010-11 | M122: 2011
B123: dms_fy14 | C123: 2019-20 | D123: 2020 | E123: dms_cy14 | F123: dms_frcp_fy14 | G123: 2028-29 | H123: 2029 | I123: dms_crcp_cy14 | L123: 2011-12 | M123: 2012
B124: dms_fy15 | C124: 2019-20 | D124: 2020 | E124: dms_cy15 | F124: dms_frcp_fy15 | G124: 2029-30 | H124: 2030 | I124: dms_crcp_cy15 | L124: 2012-13 | M124: 2013
B125: dms_fy16 | C125: 2020-21 | D125: 2021 | E125: dms_cy16 | L125: 2013-14 | M125: 2014
B126: dms_fy17 | C126: 2021-22 | D126: 2022 | E126: dms_cy17 | L126: 2014-15 | M126: 2015
B127: dms_fy18 | C127: 2022-23 | D127: 2023 | E127: dms_cy18 | L127: 2015-16 | M127: 2016
B128: dms_fy19 | C128: 2023-24 | D128: 2024 | E128: dms_cy19 | L128: 2016-17 | M128: 2017
B129: dms_fy20 | C129: 2024-25 | D129: 2025 | E129: dms_cy20 | L129: 2017-18 | M129: 2018
L130: 2018-19 | M130: 2019
L131: 2019-20 | M131: 2020
L132: 2020-21 | M132: 2021
L133: 2021-22 | M133: 2022
L134: 2022-23 | M134: 2023
L135: 2023-24 | M135: 2024
L136: 2024-25 | M136: 2025
L137: 2025-26 | M137: 2026
L138: 2026-27 | M138: 2027
L139: 2027-28 | M139: 2028
L140: 2028-29 | M140: 2029
L141: 2029-30 | M141: 2030
L142: 2030-31 | M142: 2031
L143: 2031-32 | M143: 2032
L144: 2032-33 | M144: 2033
L145: 2033-34 | M145: 2034
L146: 2034-35 | M146: 2035
L147: 2035-36 | M147: 2036

Sheet Instructions
B2: =CONCATENATE(dms_Segment," Network Service Provider") -> Distribution Network Service Provider
B3: Annual Reporting RIN Template
C4: =CONCATENATE("This template is to be used by ",dms_TradingName," to fulfil its reporting obligations to the AER.") -> This template is to be used by Ausgrid to fulfil its reporting obligations to the AER.
C5: INSTRUCTIONS
C6: Complete the Business & other details worksheet before entering data or values in any other worksheets. The Business & other details worksheet is linked to other worksheets within the workbook and automatically generates certain column headings and conditional formatting.
C8: Identifying CONFIDENTIAL INFORMATION: Please use the macro at the top of each worksheet to identify confidential information.
C9: -Do this by selecting the cell or cells that contain confidential information and then run the Mark selection as CONFIDENTIAL macro. This will format the cells a specific colour that is identified by the AER's database which in turn marks that information as confidential. -To reverse this, select the cell or cells and run the Return selection to NON-CONFIDENTIAL macro
C11: UNITS OF MEASURE All amounts are to be unrounded and reported in nominal terms on a one for one basis: that is 1000 is to be entered as '1000'.
C13: COLOUR CODING OF INPUT / NON-INPUT CELLS:
D14: Yellow = Input cell (mandatory)
D15: Darker yellow = input cell (mandatory)
D16: Orange = input cell (if data available)
D17: Grey = Not applicable/No inputs required
D18: Leave coloured cells blank if no information exists. PLEASE DO NOT ENTER TEXT into cells that are to contain numeric data.
C21: WORKSHEET NAVIGATION Many tables in the worksheets have been "grouped" to allow for easy navigation. To ungroup or group data use the outline symbols in the left margin of excel (for Row groupings) or above the columns (for column groupings).
C23: RETURNING COMPLETED RESPONSES Please return four (4) files to the AER: 1. A confidential version which must contain a complete set of all responses with confidential information marked using the Mark selected cells CONFIDENTIAL macro and which has been completed using the locked template file provided by the AER. 2. An actual and an estimate version with confidential information marked using the Mark selected cells CONFIDENTIAL macro and which has been completed using the locked template file provided by the AER. 3. A public version with confidential information either removed completely or aggregated in some form together with writtten consent to disclose the public version of the response. Use the drop down box on the Business and other details worksheet to identify the file as either confidential ('consolidated') or public.
C25: SUBMITTING AMENDED DATA TO THE AER If an NSP wishes to correct data previously submitted to the AER it should resubmit that data using the original completed submission as the starting point. Please make any necessary changes to the data. Data that is not being amended should be left unchanged. NSPs must identify the reason for the amendments in the Amendment Reason box on the Business and other details worksheet. NSPs may provide further details regarding any amendments in the Amendments worksheet. .
C26: NSP may use Amended Data macro to highlight cells that contain amended data. NB: if data is also CONFIDENTIAL, re-apply the Confidentiality macro after applying the Amended macro
C27: Please resubmit two (2) files - a confidential version and a public version of the amended submission to the AER

Sheet Contents
B1: REGULATORY REPORTING STATEMENT
B2: =INDEX(dms_TradingNameFull_List,MATCH(dms_TradingName,dms_TradingName_List)) -> Ausgrid
B3: =CONCATENATE((LOOKUP(dms_Model,dms_Model_List,dms_Worksheet_List))&" "&CRY) -> CATEGORY ANALYSIS 2016-17
B4: CONTENTS
E7: 1. Business details | L7: 2. Expenditure
E27: 4. Alternative control services | L27: 5. Network information | S27: 6. Service & quality

Sheet Business & other details
B1: =IF(dms_DataQuality="backcast",INDEX(dms_Worksheet_List,MATCH(dms_Model,dms_Model_List))&" BACKCAST",INDEX(dms_Worksheet_List,MATCH(dms_Model,dms_Model_List))) -> CATEGORY ANALYSIS
B2: =INDEX(dms_TradingNameFull_List,MATCH(dms_TradingName,dms_TradingName_List)) -> Ausgrid
B3: =CONCATENATE((LOOKUP(dms_Model,dms_Model_List,dms_Worksheet_List))&" "&CRY) -> CATEGORY ANALYSIS 2016-17
B4: BUSINESS & OTHER DETAILS
B7: Instructions
B8: Complete the following business details regulatory template before entering data or values in any other regulatory template. This regulatory template is linked to other cells within the spreadsheet and automatically generates column headings and conditional formatting to distinguish business specific input and non-input cells.
B10: SUBMISSION PARTICULARS INPUT SHEETS
B12: ENTITY DETAILS
B14: Short name | C14: Ausgrid | F14: Select business name from drop down list first
B15: ACN / ABN | C15: =INDEX(dms_ABN_List,MATCH(dms_TradingName,dms_TradingName_List)) -> 78508211731
B18: Business address | C18: Address 1 | E18: =INDEX(dms_Addr1_List,MATCH(dms_TradingName,dms_TradingName_List)) -> 570 George St
D19: Address 2 | E19: =IF(ISBLANK(INDEX(dms_Addr2_List,MATCH(dms_TradingName,dms_TradingName_List))),"",INDEX(dms_Addr2_List,MATCH(dms_TradingName,dms_TradingName_List))) -> 
C20: Suburb | E20: =INDEX(dms_Suburb_List,MATCH(dms_TradingName,dms_TradingName_List)) -> SYDNEY
D21: State | E21: =INDEX(dms_State_List,MATCH(dms_TradingName,dms_TradingName_List)) -> NSW | F21: p/code | G21: =INDEX(dms_PostCode_List,MATCH(dms_TradingName,dms_TradingName_List)) -> 2000
B23: Postal address | C23: Address 1 | E23: =INDEX(dms_PAddr1_List,MATCH(dms_TradingName,dms_TradingName_List)) -> GPO Box 4009
D24: Address 2 | E24: =IF(ISBLANK(INDEX(dms_PAddr2_List,MATCH(dms_TradingName,dms_TradingName_List))),"",INDEX(dms_PAddr2_List,MATCH(dms_TradingName,dms_TradingName_List))) -> 
C25: Suburb | E25: =INDEX(dms_PSuburb_List,MATCH(dms_TradingName,dms_TradingName_List)) -> SYDNEY
D26: State | E26: =INDEX(dms_PState_List,MATCH(dms_TradingName,dms_TradingName_List)) -> NSW | F26: p/code | G26: =INDEX(dms_PPostCode_List,MATCH(dms_TradingName,dms_TradingName_List)) -> 2001
B29: Contact name/s | C29: =INDEX(dms_ContactName1_List,MATCH(dms_TradingName,dms_TradingName_List)) -> John Thomson
B30: Contact phone/s | C30: =INDEX(dms_ContactPh1_List,MATCH(dms_TradingName,dms_TradingName_List)) -> (02) 9269 2312
B31: Contact email address/s | C31: =INDEX(dms_ContactEmail_List,MATCH(dms_TradingName,dms_TradingName_List)) -> john.thomson@ausgrid.com.au
B33: REGULATORY CONTROL PERIODS
B35: Forthcoming regulatory control period | C35: 2017-18 | D35: =dms_FRCP_y2 -> 2018-19 | E35: =dms_FRCP_y3 -> 2019-20 | F35: =dms_FRCP_y4 -> 2020-21 | G35: =dms_FRCP_y5 -> 2021-22 | H35: =dms_FRCP_y6 -> 2022-23 | I35: =dms_FRCP_y7 -> 2023-24 | J35: =dms_FRCP_y8 -> 2024-25 | K35: =dms_FRCP_y9 -> 2025-26 | L35: =dms_FRCP_y10 -> 2026-27
B38: Current regulatory control period | C38: =dms_CRCP_FirstYear_Result -> 2012-13 | D38: =IF(dms_RPT="financial",VALUE(LEFT(CRCP_y1,4)+1)&"-"&TEXT(MID(CRCP_y1,3,2)+2,"00"),VALUE(LEFT(CRCP_y1,4)+1)) -> 2013-14 | E38: =IF(dms_RPT="financial",VALUE(LEFT(CRCP_y2,4)+1)&"-"&TEXT(VALUE(MID(CRCP_y2,3,2)+2),"00"),VALUE(LEFT(CRCP_y2,4)+1)) -> 2014-15 | F38: =IF(dms_RPT="financial",VALUE(LEFT(CRCP_y3,4)+1)&"-"&TEXT(VALUE(MID(CRCP_y3,3,2)+2),"00"),VALUE(LEFT(CRCP_y3,4)+1)) -> 2015-16 | G38: =IF(dms_RPT="financial",VALUE(LEFT(CRCP_y4,4)+1)&"-"&TEXT(VALUE(MID(CRCP_y4,3,2)+2),"00"),VALUE(LEFT(CRCP_y4,4)+1)) -> 2016-17 | H38: =IF(dms_RPT="financial",VALUE(LEFT(CRCP_y5,4)+1)&"-"&TEXT(VALUE(MID(CRCP_y5,3,2)+2),"00"),VALUE(LEFT(CRCP_y5,4)+1)) -> 2017-18 | I38: =IF(dms_RPT="financial",VALUE(LEFT(CRCP_y6,4)+1)&"-"&TEXT(VALUE(MID(CRCP_y6,3,2)+2),"00"),VALUE(LEFT(CRCP_y6,4)+1)) -> 2018-19 | J38: =IF(dms_RPT="financial",VALUE(LEFT(CRCP_y7,4)+1)&"-"&TEXT(VALUE(MID(CRCP_y7,3,2)+2),"00"),VALUE(LEFT(CRCP_y7,4)+1)) -> 2019-20 | K38: =IF(dms_RPT="financial",VALUE(LEFT(CRCP_y8,4)+1)&"-"&TEXT(VALUE(MID(CRCP_y8,3,2)+2),"00"),VALUE(LEFT(CRCP_y8,4)+1)) -> 2020-21 | L38: =IF(dms_RPT="financial",VALUE(LEFT(CRCP_y9,4)+1)&"-"&TEXT(VALUE(MID(CRCP_y9,3,2)+2),"00"),VALUE(LEFT(CRCP_y9,4)+1)) -> 2021-22
B41: Previous regulatory control period | C41: =IF(dms_RPT="financial",VALUE(LEFT(PRCP_y2,4)-1)&"-"&TEXT(VALUE(MID(PRCP_y2,3,2)),"00"),VALUE(LEFT(PRCP_y2,4)-1)) -> 2007-08 | D41: =IF(dms_RPT="financial",VALUE(LEFT(PRCP_y3,4)-1)&"-"&TEXT(VALUE(MID(PRCP_y3,3,2)),"00"),VALUE(LEFT(PRCP_y3,4)-1)) -> 2008-09 | E41: =IF(dms_RPT="financial",VALUE(LEFT(PRCP_y4,4)-1)&"-"&TEXT(VALUE(MID(PRCP_y4,3,2)),"00"),VALUE(LEFT(PRCP_y4,4)-1)) -> 2009-10 | F41: =IF(dms_RPT="financial",VALUE(LEFT(PRCP_y5,4)-1)&"-"&TEXT(VALUE(RIGHT(PRCP_y5,2)-1),"00"),VALUE(LEFT(PRCP_y5,4)-1)) -> 2010-11 | G41: =IF(dms_RPT="financial",VALUE(LEFT(CRCP_y1,4)-1)&"-"&TEXT(VALUE(RIGHT(CRCP_y1,2)-1),"00"),VALUE(LEFT(CRCP_y1,4)-1)) -> 2011-12
B44: Commencing regulatory year | C44: 2016-17 | D44: CRY
B46: Last completed regulatory year | C46: 2021-22 | D46: dms_FinalYear
C49: DELETE NR 'CRY' IF NOT AN ANNUAL RIN (EB, CA , ARR)
C50: APPLY NR 'CRY' IF AN ANNUAL RIN (EB, CA , ARR) - including multi year annual RINs eg. Recast CA. EB
B52: Source | C52: Reporting | E52: Please select the correct submission type from the dropdown list.
B53: Data quality (actual, estimate, public, consolidated) | C53: Consolidated
B54: Amended RIN submission - amendment reason | C54: Recast historical CA RIN data - Revised tab 2.2 repex – see D18/83676 & D18/83677 – 31 May 2018
B55: Submission Date | C55: dd/mm/yyyy | D55: dms_SubmissionDate | E55: Please enter date this file submitted to AER (dd/mm/yyyy)
B56: EBSS - First application of scheme in forthcoming period? | C56: No
B57: Sector | C57: =INDEX(dms_Sector_List,MATCH(dms_TradingName,dms_TradingName_List)) -> Electricity | D57: dms_Sector | E57: =INDEX(dms_Sector_List,MATCH(dms_TradingName,dms_TradingName_List))
B58: Segment | C58: =INDEX(dms_Segment_List,MATCH(dms_TradingName,dms_TradingName_List)) -> Distribution | D58: dms_Segment | E58: =INDEX(dms_Segment_List,MATCH(dms_TradingName,dms_TradingName_List))
B59: Regulatory Year Ending | C59: =IF(dms_MultiYear_Flag=1,LEFT(dms_Specified_FinalYear,2)&RIGHT(dms_Specified_FinalYear,2),INDEX(dms_RYE_Formula_Result,MATCH(dms_Model,dms_Model_List))) -> 2017 | D59: dms_RYE | E59: =IF(dms_MultiYear_Flag=1,LEFT(dms_Specified_FinalYear,2)&RIGHT(dms_Specified_FinalYear,2),INDEX(dms_RYE_Formula_Result,MATCH(dms_Model,dms_Model_List)))
B60: Reporting Period Type | C60: =INDEX(dms_RPT_List,MATCH(dms_TradingName,dms_TradingName_List)) -> Financial | D60: dms_RPT | E60: =INDEX(dms_RPT_List,MATCH(dms_TradingName,dms_TradingName_List))
B61: Model or RIN Type | C61: CA | D61: dms_Model | E61: Drop down selection
B62: Security Classification | C62: Public | D62: dms_Classification | E62: Always Public
B63: Template - version no. | C63: 5 | D63: dms_TemplateNumber
B64: Dollar $ real month | C64: =INDEX(dms_RPTMonth_List,MATCH(dms_TradingName,dms_TradingName_List)) -> June | D64: dms_RPTMonth | E64: =INDEX(dms_RPTMonth_List,MATCH(dms_TradingName,dms_TradingName_List))
B65: Dollar $ real (the last month before the FRCP_y1) | C65: =CONCATENATE(dms_RPTMonth)&" "&VALUE((LEFT(dms_CRCP_FinalYear_Result,2)&RIGHT(dms_CRCP_FinalYear_Result,2))) -> June 2017 | D65: dms_DollarReal | E65: =IF(SUM(dms_SingleYear_Model)>0,CONCATENATE(dms_RPTMonth)&" "&VALUE((LEFT(CRY,2))&RIGHT(CRY,2)),CONCATENATE(dms_RPTMonth)&" "&VALUE((LEFT(dms_CRCP_FinalYear_Result,2)&RIGHT(dms_CRCP_FinalYear_Result,2))))
B66: Form of control | C66: =INDEX(dms_FormControl_List,MATCH(dms_TradingName,dms_TradingName_List)) -> Revenue cap | D66: dms_FormControl | E66: =INDEX(dms_FormControl_List,MATCH(dms_TradingName,dms_TradingName_List))
B67: RIN response - version no. | C67: 1 | D67: dms_RINversion
B68: Jurisdiction | C68: =INDEX(dms_JurisdictionList,MATCH(dms_TradingName,dms_TradingName_List)) -> NSW | D68: dms_Jurisdiction | E68: =INDEX(dms_JurisdictionList,MATCH(dms_TradingName,dms_TradingName_List))
B69: Backcast Multiyear EB, CA or ARR? | C69: 0 | D69: dms_MultiYear_Flag | E69: 1=y, 0-n
C70: 2013 | D70: dms_Specified_FinalYear | E70: The result here is returned to dms_CRCP_FinalYear_Result if dms_MultiYear_Flag is set to 1
B71: Single Year Model T/F | C71: =IF(dms_Model="EB",1,0) -> 0 | D71: dms_EB
C72: =IF(dms_Model="CA",1,0) -> 1 | D72: dms_CA | E72: =dms_SingleYear_Model
C73: =IF(dms_Model="ARR",1,0) -> 0 | D73: dms_ARR
B74: Single Year Final Year Reference | C74: CRY | D74: dms_SingleYear_FinalYear_Ref | E74: This is the reference for EB, CA & ARR RINs
B75: Single Year Final Year Result | C75: =INDIRECT(dms_SingleYear_FinalYear_Ref) -> 2016-17 | D75: dms_SingleYear_FinalYear_Result | E75: =INDIRECT(dms_SingleYear_FinalYear_Ref) | I75: Formula errors OK
B76: FRCP length in years | C76: =INDEX(dms_FRCPlength_List,MATCH(dms_TradingName,dms_TradingName_List)) -> 5 | D76: dms_FRCPlength_Num | E76: =INDEX(dms_FRCPlength_List,MATCH(dms_TradingName,dms_TradingName_List))
B77: Multi Year Final Year Reference | C77: =INDEX(dms_FinalYear_List,MATCH(dms_FRCPlength_Num,dms_FRCPlength_Num_List)) -> dms_FRCP_y5 | D77: dms_MultiYear_FinalYear_Ref | E77: =INDEX(dms_FinalYear_List,MATCH(dms_FRCPlength_Num,dms_FRCPlength_Num_List))
B78: Multi Year Final Year Result | C78: =IF(dms_MultiYear_Flag=0,INDIRECT(dms_MultiYear_FinalYear_Ref),dms_Specified_FinalYear) -> 2021-22 | D78: dms_MultiYear_FinalYear_Result | E78: =IF(dms_MultiYear_Flag=0,INDIRECT(dms_MultiYear_FinalYear_Ref),dms_Specified_FinalYear) | I78: Formula errors OK
B79: CRCP length in years | C79: =INDEX(dms_CRCPlength_List,MATCH(dms_TradingName,dms_TradingName_List)) -> 5 | D79: dms_CRCPlength_Num | E79: =INDEX(dms_CRCPlength_List,MATCH(dms_TradingName,dms_TradingName_List))
B80: CRCP Final Year Reference | C80: =INDEX(dms_CFinalYear_List,MATCH(dms_CRCPlength_Num,dms_CRCPlength_Num_List)) -> CRCP_y5 | D80: dms_CRCP_FinalYear_Ref | E80: =INDEX(dms_CFinalYear_List,MATCH(dms_CRCPlength_Num,dms_CRCPlength_Num_List))
B81: CRCP First Year Result | C81: =INDEX(dms_CRCP_years,MATCH(dms_CRCPlength_Num,dms_CRCP_index)) -> 2012-13 | D81: dms_CRCP_FirstYear_Result | E81: =INDEX(dms_CRCP_years,MATCH(dms_CRCPlength_Num,dms_CRCP_index))
B82: CRCP Final Year Result | C82: =IF(dms_MultiYear_Flag=0,(IF(SUM(dms_SingleYear_Model)>0,CRY,dms_CRCP_yZ)),dms_Specified_FinalYear) -> 2016-17 | D82: dms_CRCP_FinalYear_Result | E82: =IF(dms_MultiYear_Flag=0,(IF(SUM(dms_SingleYear_Model)>0,CRY,dms_CRCP_yZ)),dms_Specified_FinalYear)
B83: Table 6.6.3 - Public lighting repair - no. business days | C83: =INDEX(dms_663_List,MATCH(dms_TradingName,dms_TradingName_List)) -> 5 | D83: dms_663
B84: Distribution Determination Reference | C84: =INDEX(dms_DeterminationRef_List,MATCH(dms_TradingName,dms_TradingName_List)) -> 2014-19 Distribution Determination
B85: Backcast templates only - unit of measure | C85: $0s | D85: dms_Backcast_UOM | E85: If the cover sheet is for Backcast data ensure to apply dms_Backcast_UOM named range to this field. Otherwise, do not apply this named range.
B86: EB/CA Unit of Measure for Monetary Values | C86: $0s | D86: dms_dollar_nom_UOM | E86: If the cover sheet is attached to an EB files make sure this field is set
B88: discard this record? | C88: NO | D88: dms_DISCARD | E88: If record is to be discarded from DB set this flag to YES
B90: USES NAMED RANGES FLAG | C90: yes | D90: dms_Defined_Names_Used

Sheet 2.1 Expenditure summary
B1: REGULATORY REPORTING STATEMENT
B2: =INDEX(dms_TradingNameFull_List,MATCH(dms_TradingName,dms_TradingName_List)) -> Ausgrid
B3: =CONCATENATE((LOOKUP(dms_Model,dms_Model_List,dms_Worksheet_List))&" "&CRY) -> CATEGORY ANALYSIS 2016-17
B4: 2.1 EXPENDITURE SUMMARY & RECONCILIATION
B6: There are SIX tables on this worksheet. Each has been grouped for ease of navigation. See the Instructions sheet on how to group or ungroup tables.
B8: 2.1.1 - STANDARD CONTROL SERVICES CAPEX
C9: EXPENDITURE ($0's)
C10: =CRY -> 2016-17
B11: Replacement expenditure | C11: 205058795.7
B12: Connections | C12: 7788341.37
B13: Augmentation Expenditure | C13: 9797568.4
B14: Non-network | C14: 34954368.14
B15: capitalised network overheads | C15: 107667426.2
B16: capitalised corporate overheads | C16: 3297479.12
B17: Metering
B18: Public Lighting
B19: Captial Contributions | C19: 115937401.9
B26: balancing item
B27: capcons (included in the above)
B28: TOTAL GROSS CAPEX (including capcons) | C28: =+SUM(C11:C26) -> 484501380.7
B30: 2.1.2 - STANDARD CONTROL SERVICES OPEX
C31: EXPENDITURE ($0's)
C32: =CRY -> 2016-17
B33: Vegetation management | C33: 46969401.36
B34: Maintenance | C34: 44342650.99
B35: Emergency response | C35: 27572563.08
B36: Non-network | C36: 115137651.8
B37: network overheads | C37: 125230333.8
B38: corporate overheads | C38: 133791122.9
B39: Metering | C39: 1470767.8
B40: Public Lighting
B48: balancing item
B49: TOTAL OPEX | C49: =+SUM(C33:C48) -> 494514491.8
B51: 2.1.3 - ALTERNATIVE CONTROL SERVICES CAPEX
C52: EXPENDITURE ($0's)
C53: =CRY -> 2016-17
B54: Connections
B55: capitalised network overheads | C55: 7484733.45
B56: capitalised corporate overheads | C56: 492326.65
B57: Metering | C57: 14269325.33
B58: Public lighting | C58: 9817376.51
B59: Fee and quoted | C59: 9826108.43
B67: balancing item | C67: -7977060.1
B68: TOTAL CAPEX | C68: =+SUM(C54:C67) -> 33912810.27
B70: 2.1.4 - ALTERNATIVE CONTROL SERVICES OPEX
C71: EXPENDITURE ($0's)
C72: =CRY -> 2016-17
B73: Connections
B74: network overheads | C74: 31981794.11
B75: corporate overheads | C75: 17603072.8
B76: Metering | C76: 24433492.05
B77: Public lighting | C77: 21032475.73
B78: Fee and quoted | C78: 45962897.1
B86: balancing item | C86: -49584866.92
B87: TOTAL OPEX | C87: =+SUM(C73:C86) -> 91428864.88
B89: 2.1.5 - DUAL FUNCTION ASSETS CAPEX
C90: EXPENDITURE ($0's)
C91: =CRY -> 2016-17
B92: Replacement expenditure | C92: 69288701
B93: Connections | C93: 277395.14
B94: Augmentation Expenditure | C94: 5900979.19
B95: Non-network | C95: 3217917.17
B96: Capitalised network overheads | C96: 10520695.88
B97: Capitalised corporate overheads | C97: 311804.44
B105: balancing item
B106: capcons (included in the above)
B107: TOTAL GROSS CAPEX (including capcons) | C107: =SUM(C92:C105) -> 89517492.82
B109: 2.1.6 - DUAL FUNCTION ASSETS OPEX
C110: EXPENDITURE ($0's)
C111: =CRY -> 2016-17
B112: Vegetation management | C112: 3488834.656
B113: Maintenance | C113: 3293722.573
B114: Emergency response | C114: 2048059.18
B115: Non-network | C115: 8552296.138
B116: Network overheads | C116: 9301969.281
B117: Corporate overheads | C117: 9937855.13
B125: balancing item
B126: TOTAL OPEX | C126: =SUM(C112:C125) -> 36622736.96

Sheet 2.2 Repex
B1: REGULATORY REPORTING STATEMENT
B2: =INDEX(dms_TradingNameFull_List,MATCH(dms_TradingName,dms_TradingName_List)) -> Ausgrid
B3: =CONCATENATE((LOOKUP(dms_Model,dms_Model_List,dms_Worksheet_List))&" "&CRY) -> CATEGORY ANALYSIS 2016-17
B4: 2.2 REPEX
B6: There are TWO tables on this worksheet. Each has been grouped for ease of navigation. See the Instructions sheet on how to group or ungroup tables.
B8: 2.2.1 - REPLACEMENT EXPENDITURE, VOLUMES AND ASSET FAILURES BY ASSET CATEGORY
E9: EXPENDITURE ($0's) | F9: ASSET REPLACEMENTS (0's) | G9: ASSET FAILURES (0's)
B10: ASSET GROUP | C10: ASSET CATEGORY | E10: 2016-17 | F10: 2016-17 | G10: 2016-17
B11: POLES BY: HIGHEST OPERATING VOLTAGE ; MATERIAL TYPE; STAKING (IF WOOD) | C11: ˂ = 1 kV; Concrete | E11: 23675 | F11: 2.43 | G11: 0
C12: ˂ = 1 kV; Steel | E12: 301022 | F12: 30.95 | G12: 0
C13: ˂ = 1 kV; Wood | E13: 12998920 | F13: 1328.55 | G13: 166
C14: ˃ 11 kV & < = 22 kV; Concrete | E14: 0 | F14: 0 | G14: 0
C15: ˃ 11 kV & < = 22 kV; Steel | E15: 324 | F15: 0.03 | G15: 0
C16: ˃ 11 kV & < = 22 kV; Wood | E16: 45202 | F16: 12.17 | G16: 0
C17: > 1 kV & < = 11 kV; Concrete | E17: 11737 | F17: 1.21 | G17: 0
C18: > 1 kV & < = 11 kV; Steel | E18: 1781 | F18: 0.18 | G18: 0
C19: > 1 kV & < = 11 kV; Wood | E19: 6512567 | F19: 831.08 | G19: 0
C20: > 132 kV; Concrete | E20: 0 | F20: 0 | G20: 0
C21: > 132 kV; Steel | E21: 0 | F21: 0 | G21: 0
C22: > 132 kV; Wood | E22: 0 | G22: 0
C23: > 22 kV & < = 66 kV; Concrete | E23: 348486 | F23: 15.69 | G23: 0
C24: > 22 kV & < = 66 kV; Steel | E24: 22840 | F24: 1.03 | G24: 0
C25: > 22 kV & < = 66 kV; Wood | E25: 1644046 | F25: 74.9 | G25: 11
C26: > 66 kV & < = 132 kV; Concrete | E26: 256353 | F26: 11.54 | G26: 1
C27: > 66 kV & < = 132 kV; Steel | E27: 57351 | F27: 1.22 | G27: 0
C28: > 66 kV & < = 132 kV; Wood | E28: 435704 | F28: 19.61 | G28: 0
C29: Other | E29: 0 | F29: 0 | G29: 0
C30: Staking of a wooden pole | E30: 611515 | F30: 1081 | G30: 0
B31: POLE TOP STRUCTURES BY: HIGHEST OPERATING VOLTAGE | C31: ˂ = 1 kV | E31: 811575 | F31: 515.45 | G31: 31
C32: ˃ 11 kV & < = 22 kV | E32: 49943 | F32: 31.72 | G32: 1
C33: > 1 kV & < = 11 kV | E33: 387059 | F33: 245.83 | G33: 1
C34: > 132 kV | E34: 0 | F34: 0 | G34: 0
C35: > 22 kV & < = 66 kV | E35: 594028 | F35: 134 | G35: 1
C36: > 66 kV & < = 132 kV | E36: 537454 | F36: 179 | G36: 0
C37: Other | E37: 528126 | F37: 130 | G37: 0
B38: OVERHEAD CONDUCTORS BY: HIGHEST OPERATING VOLTAGE; NUMBER OF PHASES (AT HV) | C38: ˂ = 1 kV | E38: 4294908 | F38: 38.4 | G38: 1432
C39: ˃ 11 kV & < = 22 kV ; SWER | E39: 0 | F39: 0 | G39: 0
C40: ˃ 11 kV & < = 22 kV ; Multiple-Phase | E40: 0 | F40: 0 | G40: 0
C41: ˃ 11 kV & < = 22 kV ; Single-Phase | G41: 0
C42: > 1 kV & < = 11 kV | E42: 7514601 | F42: 159.3 | G42: 280
C43: > 132 kV | E43: 0 | F43: 0 | G43: 0
C44: > 22 kV & < = 66 kV | E44: 1858336 | F44: 13.71 | G44: 65
C45: > 66 kV & < = 132 kV | E45: 6 | F45: 0 | G45: 7
C46: Other | E46: 25171 | F46: 107 | G46: 19
B47: UNDERGROUND CABLES BY: HIGHEST OPERATING VOLTAGE | C47: ˂ = 1 kV | E47: 19159608 | F47: 23.08 | G47: 489
C48: > 132 kV | E48: 7242800 | F48: 4.79 | G48: 0
C49: > 1 kV & < = 11 kV | E49: 0 | F49: 0 | G49: 313
C50: > 11 kV & < = 22 kV | G50: 0
C51: > 22 kV & < = 33 kV | E51: 22840977 | F51: 21.43 | G51: 15
C52: > 33 kV & < = 66 kV | E52: 0 | F52: 0 | G52: 0
C53: > 66 kV & < = 132 kV | E53: 29806075 | F53: 14.1 | G53: 5
C54: Other | E54: 3276701 | F54: 162.93 | G54: 114
B55: SERVICE LINES BY: CONNECTION VOLTAGE; CUSTOMER TYPE; CONNECTION COMPLEXITY | C55: ˂ = 11 kV ; Commercial & Industrial ; Complex Type | G55: 0
C56: ˂ = 11 kV ; Commercial & Industrial ; Simple Type | E56: 387825 | F56: 1161.31 | G56: 1
C57: ˂ = 11 kV ; Residential ; Complex Type | E57: 115384 | F57: 10 | G57: 0
C58: ˂ = 11 kV ; Residential ; Simple Type | E58: 5400608 | F58: 16171.69 | G58: 2737
C59: ˂ = 11 kV ; Subdivision ; Complex Type | E59: 0 | F59: 0 | G59: 0
C60: > 11 kV & < = 22 kV ; Commercial & Industrial | G60: 1
C61: > 11 kV & < = 22 kV ; Subdivision | G61: 0
C62: > 132 kV ; Commercial & Industrial | G62: 0
C63: > 132 kV ; Subdivision | G63: 0
C64: > 22 kV & < = 33 kV ; Commercial & Industrial | G64: 0
C65: > 22 kV & < = 33 kV ; Subdivision | G65: 0
C66: > 33 kV & < = 66 kV ; Commercial & Industrial | G66: 0
C67: > 33 kV & < = 66 kV ; Subdivision | G67: 0
C68: > 66 kV & < = 132 kV ; Commercial & Industrial | G68: 0
C69: > 66 kV & < = 132 kV ; Subdivision | G69: 0
C70: Other | G70: 23
B71: TRANSFORMERS BY: MOUNTING TYPE; HIGHEST OPERATING VOLTAGE ; AMPERE RATING; NUMBER OF PHASES (AT LV) | C71: Ground Outdoor / Indoor Chamber Mounted; ˂ 22 kV ; < = 60 kVA ; Multiple Phase | E71: 0 | F71: 0 | G71: 0
C72: Ground Outdoor / Indoor Chamber Mounted; ˂ 22 kV ; > 600 kVA ; Multiple Phase | E72: 0 | F72: 0 | G72: 13
C73: Ground Outdoor / Indoor Chamber Mounted; ˂ 22 kV ; > 600 kVA ; Single Phase | E73: 410321 | F73: 2.13 | G73: 0
C74: Ground Outdoor / Indoor Chamber Mounted; ˂ 22 kV ; > 60 kVA and < = 600 kVA ; Multiple Phase | E74: 0 | F74: 0 | G74: 1
C75: Ground Outdoor / Indoor Chamber Mounted; ˂ 22 kV ; > 60 kVA and < = 600 kVA ; Single Phase | E75: 503842 | F75: 5.87 | G75: 0
C76: Ground Outdoor / Indoor Chamber Mounted; ˂ 22 kV ; < = 60 kVA ; Single Phase | E76: 0 | F76: 0 | G76: 1
C77: Ground Outdoor / Indoor Chamber Mounted; > = 22 kV & < = 33 kV ; < = 15 MVA | E77: 277312 | F77: 0.58 | G77: 14
C78: Ground Outdoor / Indoor Chamber Mounted; > = 22 kV & < = 33 kV ; > 15 MVA and < = 40 MVA | E78: 6415494 | F78: 6.68 | G78: 5
C79: Ground Outdoor / Indoor Chamber Mounted; > = 22 kV & < = 33 kV ; > 40 MVA | E79: 0 | F79: 0 | G79: 0
C80: Ground Outdoor / Indoor Chamber Mounted; > 132 kV ; < = 100 MVA | E80: 7257243 | F80: 0.62 | G80: 2
C81: Ground Outdoor / Indoor Chamber Mounted; > 132 kV ; > 100 MVA | E81: 0 | F81: 0 | G81: 0
C82: Ground Outdoor / Indoor Chamber Mounted; > 33 kV & < = 66 kV ; < = 15 MVA | E82: 50775 | F82: 0.11 | G82: 4
C83: Ground Outdoor / Indoor Chamber Mounted; > 33 kV & < = 66 kV ; > 15 MVA and < = 40 MVA | E83: 146373 | F83: 0.29 | G83: 2
C84: Ground Outdoor / Indoor Chamber Mounted; > 33 kV & < = 66 kV ; > 40 MVA | E84: 0 | F84: 0 | G84: 0
C85: Ground Outdoor / Indoor Chamber Mounted; > 66 kV & < = 132 kV ; < = 100 MVA | E85: 4573348 | F85: 2.43 | G85: 17
C86: Ground Outdoor / Indoor Chamber Mounted; > 66 kV & < = 132 kV ; > 100 MVA | E86: 1418989 | F86: 0.51 | G86: 0
C87: Kiosk Mounted ; < = 22kV ; < = 60 kVA ; Multiple Phase | E87: 0 | F87: 0 | G87: 0
C88: Kiosk Mounted ; < = 22kV ; < = 60 kVA ; Single Phase | E88: 0 | F88: 0 | G88: 0
C89: Kiosk Mounted ; < = 22kV ; > 60 kVA and < = 600 kVA ; Multiple Phase | E89: 506150 | F89: 10.65 | G89: 12
C90: Kiosk Mounted ; < = 22kV ; > 60 kVA and < = 600 kVA ; Single Phase | E90: 0 | F90: 0 | G90: 0
C91: Kiosk Mounted ; < = 22kV ; > 600 kVA ; Multiple Phase | E91: 61692 | F91: 1.35 | G91: 6
C92: Kiosk Mounted ; < = 22kV ; > 600 kVA ; Single Phase | E92: 0 | F92: 0 | G92: 0
C93: Other | E93: 599119 | F93: 15.08 | G93: 2
C94: Pole Mounted ; < = 22kV ; < = 60 kVA ; Multiple Phase | E94: 216717 | F94: 12.96 | G94: 9
C95: Pole Mounted ; < = 22kV ; < = 60 kVA ; Single Phase | E95: 120398 | F95: 7.2 | G95: 8
C96: Pole Mounted ; < = 22kV ; > 60 kVA and < = 600 kVA ; Multiple Phase | E96: 1072522 | F96: 43.88 | G96: 28
C97: Pole Mounted ; < = 22kV ; > 60 kVA and < = 600 kVA ; Single Phase | E97: 24712 | F97: 0.96 | G97: 4
C98: Pole Mounted ; < = 22kV ; > 600 kVA ; Multiple Phase | E98: 0 | F98: 0 | G98: 9
C99: Pole Mounted ; < = 22kV ; > 600 kVA ; Single Phase | E99: 0 | F99: 0 | G99: 0
B100: SWITCHGEAR BY: HIGHEST OPERATING VOLTAGE ; SWITCH FUNCTION | C100: ˂ = 11 kV ; Circuit Breaker | E100: 15771036 | F100: 187.86 | G100: 144
C101: ˂ = 11 kV ; FUSE | E101: 3252976 | F101: 699 | G101: 448
C102: ˂ = 11 kV ; Switch | E102: 5627030 | F102: 350 | G102: 427
C103: > 11 kV & < = 22 kV ; Circuit Breaker | E103: 0 | F103: 0 | G103: 0
C104: > 11 kV & < = 22 kV ; Switch | E104: 0 | F104: 0 | G104: 0
C105: > 132 kV ; Circuit Breaker | E105: 0 | F105: 0 | G105: 0
C106: > 132 kV ; Switch | E106: 0 | F106: 0 | G106: 0
C107: > 22 kV & < = 33 kV ; Circuit Breaker | E107: 13306394 | F107: 42.55 | G107: 33
C108: > 22 kV & < = 33 kV ; Switch | E108: 1166617 | F108: 28 | G108: 22
C109: > 33 kV & < = 66 kV ; Circuit Breaker | E109: 1269379 | F109: 3.03 | G109: 0
C110: > 33 kV & < = 66 kV ; Switch | E110: 0 | F110: 0 | G110: 4
C111: > 66 kV & < = 132 kV ; Circuit Breaker | E111: 1741137 | F111: 12.14 | G111: 17
C112: > 66 kV & < = 132 kV ; Switch | E112: 1565651 | F112: 9 | G112: 11
C113: Other | E113: 3305013 | F113: 114.52 | G113: 0
B114: PUBLIC LIGHTING BY: ASSET TYPE ; LIGHTING OBLIGATION | C114: Brackets ; Major Road | E114: 0 | F114: 1000 | G114: 0
C115: Brackets ; Minor Road | E115: 912231.4975 | F115: 7616.448 | G115: 0
C116: Lamps ; Major Road | E116: 5985317.757 | F116: 31000 | G116: 0
C117: Lamps ; Minor Road | E117: 14673682.24 | F117: 76000 | G117: 0
C118: Luminaires ; Major Road | E118: 550 | F118: 640 | G118: 0
C119: Luminaires ; Minor Road | E119: 7957838.502 | F119: 16405 | G119: 0
C120: Other | E120: 0 | F120: 0 | G120: 0
C121: Poles / Columns ; Major Road | E121: 1620260.344 | F121: 145.92 | G121: 0
C122: Poles / Columns ; Minor Road | E122: 3443053.23 | F122: 310.08 | G122: 0
B123: SCADA, NETWORK CONTROL AND PROTECTION SYSTEMS BY: FUNCTION | C123: AFLC | E123: 1288451 | F123: 3.94 | G123: 67
C124: Communications Linear Assets | E124: 36887 | F124: 2 | G124: 26
C125: Communications Network Assets | E125: 1529115 | F125: 1.88 | G125: 76
C126: Communications Site Infrastructure | E126: 0 | F126: 0 | G126: 2
C127: Field Devices | E127: 431095 | F127: 11 | G127: 347
C128: Local Network Wiring Assets | E128: 0 | F128: 0 | G128: 0
C129: Master Station Assets | E129: 0 | F129: 0 | G129: 0
C130: Other | E130: 169544514 | F130: 802.42 | G130: 90
B131: OTHER BY: DNSP DEFINED | C131: balancing item (i.e. multi-node discrepancy)
C132: buildings
C133: distribution substations - not age related | E133: 4007905 | F133: 1047 | G133: 19
C134: distribution substations - other | E134: 5066361 | F134: 1165 | G134: 29
C135: distribution voltage regulation | E135: 370963 | F135: 3
C136: field devices - not age related | E136: 1752253 | F136: 63
C137: land (i.e. strategic system property) | E137: 332994 | F137: 0
C138: not coded
C139: other
C140: overhead conductors - not age related | E140: 1336734 | F140: 286.1 | G140: 39
C141: overhead conductors - other | E141: 2349038 | F141: 120.96
C142: sts building (incl sw. stns)
C143: sts communications
C144: sts dc systems
C145: sts general (including spares)
C146: sts protection & control (electronic)
C147: sts reactors and capacitors
C148: sub-transmission main oh easement
C149: suburban
C150: support costs (i.e. gis data capture and switching) | E150: 0 | F150: 0
C151: switchgear - not age related | E151: 0 | F151: 0
C152: towers - > = 33 kv ; anti-climb devices
C153: towers - > = 33 kv ; refurbishment | E153: 3893177 | F153: 46
C154: towers - > = 33 kv tower footings
C155: towers - > = 33 kv tower refurbishment
C156: transformers - not age related | E156: 0 | F156: 0
C157: transformers - other | E157: 1635881 | F157: 39
C158: underground cables - not age related | E158: 851553 | F158: 23
C159: underground cables - other | E159: 2063645 | F159: 8.55
C160: zone & subtransmision substations - other
C161: zone & subtransmission substations - not age related | E161: 3080986 | F161: 30 | G161: 1
C162: zone & subtransmission substations - other | E162: 22615725 | F162: 76.15 | G162: 48
B168: 2.2.2 - SELECTED ASSET CHARACTERISTICS
E169: ASSET VOLUMES CURRENTLY IN COMMISSION | F169: ASSET REPLACEMENTS (0's)
B170: ASSET GROUP | C170: METRIC | D170: UNITS | E170: 2016-17 | F170: 2016-17
B171: TOTAL POLES BY: FEEDER TYPE | C171: Total CBD poles | D171: Number | E171: 63 | F171: 0.475930953
C172: Total urban poles | D172: Number | E172: 312711 | F172: 2362.362607
C173: Total rural long poles | D173: Number | E173: 8919 | F173: 67.37822492
C174: Total rural short poles | D174: Number | E174: 112620 | F174: 850.783237
B175: OVERHEAD CONDUCTORS BY: CONDUCTOR LENGTH BY FEEDER TYPE | C175: Conductors CBD | D175: KM | E175: 2.019294187 | F175: 0.03407038771
C176: Conductors urban | D176: KM | E176: 12103.36199 | F176: 204.2130554
C177: Conductors rural long | D177: KM | E177: 1273.065294 | F177: 21.47969743
C178: Conductors rural short | D178: KM | E178: 9736.193016 | F178: 164.2731768
B179: OVERHEAD CONDUCTORS BY: CONDUCTOR LENGTH MATERIAL TYPE | C179: OH conductor LV ABC | D179: KM | E179: 1434.348093 | F179: 18.60122536
C180: OH conductor steel | D180: KM | E180: 598.3353668 | F180: 90.518
C181: OH conductor ACSR | D181: KM | E181: 4840.266317 | F181: 33.308
C182: OH conductor AAAC | D182: KM | E182: 779.2250597 | F182: 10.10531614
C183: OH conductor AAC | D183: KM | E183: 9298.810474 | F183: 120.5908594
C184: OH conductor HDBC | D184: KM | E184: 7978.817141 | F184: 103.4726343
C185: Other | D185: KM | E185: 1033.585204 | F185: 13.40396477
B186: UNDERGROUND CABLES BY: CABLE LENGTH BY FEEDER TYPE | C186: Cable CBD | D186: KM | E186: 417.5903566 | F186: 3.142426424
C187: Cable urban | D187: KM | E187: 11376.54176 | F187: 85.61008383
C188: Cable rural long | D188: KM | E188: 16.87385396 | F188: 0.1269781347
C189: Cable rural short | D189: KM | E189: 2673.771947 | F189: 20.12051161
B190: TRANSFORMERS BY: TOTAL MVA | C190: Total MVA replaced | D190: MVA | E190: 37020.256 | F190: 676.18
C191: Total MVA disposed of | D191: MVA | E191: 0 | F191: 582.738

Sheet 2.3(a) Augex
B1: REGULATORY REPORTING STATEMENT
B2: =INDEX(dms_TradingNameFull_List,MATCH(dms_TradingName,dms_TradingName_List)) -> Ausgrid
B3: =CONCATENATE((LOOKUP(dms_Model,dms_Model_List,dms_Worksheet_List))&" "&CRY) -> CATEGORY ANALYSIS 2016-17
B4: 2.3 AUGEX PROJECT DATA
B7: There are TWO tables on this worksheet - each has been 'grouped' for easy navigation. Both ROWS and COLUMNS have been grouped. See the Instructions sheet on how to group or ungroup tables.
B9: 2.3.1 - AUGEX ASSET DATA - SUBTRANSMISSION SUBSTATIONS, SWITCHING STATIONS AND ZONE SUBSTATIONS
B10: NOTE: DNSP MUST PROVIDE EXPENDITURE INFORMATION ON A PROJECT CLOSE BASIS.
B11: PROJECT DESCRIPTION AND CHANGES | L11: PLANT AND EQUIPMENT EXPENDITURE AND VOLUME | X11: OTHER EXPENDITURE | Z11: TOTAL DIRECT EXPENDITURE ($0's) | AA11: YEARS INCURRED | AB11: ALL RELATED PARTY CONTRACTS | AD11: ALL NON RELATED PARTY CONTRACTS | AE11: LAND AND EASEMENTS
B12: SUBSTATION ID | C12: SUBSTATION TYPE (drop down) | D12: PROJECT ID | E12: PROJECT TYPE (drop down) | F12: PROJECT TRIGGER (drop down) | G12: VOLTAGE (KV) | H12: SUBSTATION RATING NORMAL CYCLIC (MVA) | J12: SUBSTATION RATING N-1 EMERGENCY (MVA) | L12: TRANSFORMERS | O12: SWITCHGEAR | Q12: CAPACITORS | U12: OTHER PLANT ITEM | V12: INSTALLATION (LABOUR) | X12: CIVIL WORKS | Y12: OTHER DIRECT | AB12: RELATED PARTY MARGINS | AC12: TOTAL | AE12: LAND PURCHASE | AF12: EASEMENTS
H13: PRE | I13: POST | J13: PRE | K13: POST | L13: UNITS ADDED | M13: MVA ADDED | N13: EXPENDITURE ($0's) | O13: UNITS ADDED | P13: EXPENDITURE ($0's) | Q13: MVAR ADDED | R13: EXPENDITURE ($0's) | U13: EXPENDITURE ($0's) | V13: VOLUME | W13: EXPENDITURE ($0's) | X13: EXPENDITURE ($0's) | AB13: EXPENDITURE ($0's) | AE13: EXPENDITURE ($0's)
B14: NEW ALEXANDRIA 132/33KV STS (SJ-00091 & SJ-00175) | C14: Subtransmission substation | D14: ARA_03.1A.0028A | E14: New substation establishment | F14: Other | G14: 132/33 | H14: 0 | I14: 280 | J14: 0 | K14: 140 | L14: 2 | M14: 280 | N14: 4263355.12 | O14: 32 | P14: 5652447.11 | Q14: 0 | R14: 0 | U14: 284294.47 | V14: 21932.64 | W14: 2267834.98 | X14: 16379333.43 | Y14: 157019.1 | Z14: =SUM(N14,P14,R14,U14,W14,X14,Y14) -> 29004284.21 | AA14: FY2012-2018 | AE14: 14220957.51 | AF14: 0
B15: NEW ROCKDALE 132/11KV ZN (SJ-05993) | C15: Zone substation | D15: ARA_04.1.0008 | E15: New substation establishment | F15: Other | G15: 132/11 | H15: 58 | I15: 75 | J15: 27.1 | K15: 65 | L15: 2 | M15: 75 | N15: 2254444.03 | O15: 37 | P15: 3166050.93 | Q15: 0 | R15: 0 | U15: 2991633.06 | V15: 30733.7 | W15: 2641221.56 | X15: 7984020.3 | Y15: 1175101.7 | Z15: 20212471.58 | AA15: FY2010-2019 | AE15: 1541377.29 | AF15: 0
B16: ENGADINE ZN 132KV CONVERSION (SJ-04726 & SJ-05749) | C16: Zone substation | D16: ARA_04.2.0015 | E16: Substation upgrade - capacity | F16: Other | G16: 132/11 | H16: 48 | I16: 75 | J16: 31.7 | K16: 60.1 | L16: 2 | M16: 75 | N16: 1215481.37 | O16: 6 | P16: 1717765.35 | Q16: 0 | R16: 0 | U16: 2359716.68 | V16: 30182.86 | W16: 3090132.14 | X16: 12475506.46 | Y16: 3010830.1 | Z16: 23869432.1 | AA16: FY2009-2017 | AE16: 0 | AF16: 0
B17: CROWS NEST ZN 132KV CONVERSION (SJ-05651) | C17: Zone substation | D17: ARA_05.1.0006 | E17: Substation upgrade - capacity | F17: Other | G17: 132/11 | H17: 94.46 | I17: 114.3 | J17: 50.8 | K17: 57.1 | L17: 2 | M17: 114.3 | N17: 1151214.58 | O17: 6 | P17: 3992573.24 | Q17: 12 | R17: 573844.16 | U17: 3812832.88 | V17: 33186.77 | W17: 3698404.93 | X17: 2097437.64 | Y17: 417920.08 | Z17: 15744227.51 | AA17: FY2009-2018 | AE17: 6319599.8 | AF17: 0
B18: NEW BROADMEADOW 132/11KV ZN (SJ-04866 & SJ-00008) | C18: Zone substation | D18: ARA_07.1.0006 | E18: New substation establishment | F18: Other | G18: 132/11 | H18: 38 | I18: 81.32 | J18: 22.9 | K18: 40.66 | L18: 2 | M18: 81.32 | N18: 3149681.49 | O18: 28 | P18: 4415553.19 | Q18: 12 | R18: 549967.49 | U18: 5579466.53 | V18: 68384.59 | W18: 7046160.72 | X18: 7852139.51 | Y18: 974987.88 | Z18: 29567956.81 | AA18: FY2009-2017 | AE18: 791818.59 | AF18: 0
B19: NEW KOORAGANG 132/33KV STS (SJ-04087 & SJ-05642) | C19: Subtransmission substation | D19: ARA_07.2.0007C | E19: New substation establishment | F19: Demand growth | G19: 132/33 | H19: 0 | I19: 285.8 | J19: 0 | K19: 142.9 | L19: 2 | M19: 285.8 | N19: 3857136.219 | O19: 26 | P19: 1337699.008 | Q19: 0 | R19: 0 | U19: 11195560.88 | V19: 139390.274 | W19: 9074108.064 | X19: 13452789.98 | Y19: 1392308.169 | Z19: 40309602.32 | AA19: FY2008-2017 | AE19: 2247799.1 | AF19: 0
B20: NEW RATHMINES 132/11KV ZN (SJ-03278 & SJ-00039) | C20: Zone substation | D20: ARA_07.4.0010 | E20: New substation establishment | F20: Demand growth | G20: 132/11 | H20: 37.5 | I20: 76.21 | J20: 0 | K20: 38.11 | L20: 2 | M20: 76.21 | N20: 2133338.886 | O20: 20 | P20: 1097124 | Q20: 0 | R20: 0 | U20: 4843766.916 | V20: 78433.185 | W20: 7377150.702 | X20: 8859847.411 | Y20: 1870469.425 | Z20: 26181697.34 | AA20: FY2008-2017 | AE20: 412244 | AF20: 491970
B21: NEW CHARLESTOWN 132/11KV ZN (SJ-05319 & SJ-06071) | C21: Zone substation | D21: ARA_07.5.0005 | E21: New substation establishment | F21: Other | G21: 132/11 | H21: 75 | I21: 113 | J21: 36.1 | K21: 60.17 | L21: 2 | M21: 113 | N21: 3363771.76 | O21: 28 | P21: 4634442.08 | Q21: 12 | R21: 589226.6 | U21: 3393630.44 | V21: 57009.28 | W21: 5990055.42 | X21: 8468799.56 | Y21: 1041261.63 | Z21: 27481187.49 | AA21: FY2008-2017 | AE21: 1216739.73 | AF21: 0
B22: NEW BRANDY HILL 132/11KV ZN (SJ-05807 & SJ-00006) | C22: Zone substation | D22: ARA_07.6.0008 | E22: New substation establishment | F22: Demand growth | G22: 132/11 | H22: 4.8 | I22: 76.21 | J22: 0 | K22: 38.11 | L22: 2 | M22: 76.21 | N22: 2035375.974 | O22: 19 | P22: 907902.7369 | Q22: 0 | R22: 0 | U22: 3755589.379 | V22: 39507.056 | W22: 3468475.616 | X22: 13709517.2 | Y22: 355912.6517 | Z22: 24232773.56 | AA22: FY2009-2017 | AE22: 296514.0422 | AF22: 0
B23: NEW MAITLAND 33/11KV ZN (SJ-5126 & SJ-00051) | C23: Zone substation | D23: ARA_07.6.0009 | E23: New substation establishment | F23: Demand growth | G23: 33/11 | H23: 38.4 | I23: 73.26 | J23: 23.8 | K23: 36.66 | L23: 2 | M23: 73.26 | N23: 1307191.825 | O23: 20 | P23: 1687923.143 | Q23: 0 | R23: 0 | U23: 1427118.921 | V23: 48783.307 | W23: 3696936.8 | X23: 9235128.905 | Y23: 377091.1681 | Z23: 17731390.76 | AA23: FY2010-2017 | AE23: 0 | AF23: 0
B24: TANILBA BAY 33/11KV ZN UPRATE (SJ-05537) | C24: Zone substation | D24: ARA_07.8.0003 | E24: Substation upgrade - capacity | F24: Demand growth | G24: 33/11 | H24: 10 | I24: 38.75 | J24: 0 | K24: 18.73 | L24: 1 | M24: 38.75 | N24: 451852.9185 | O24: 7 | P24: 12212.20679 | Q24: 0 | R24: 0 | U24: 2602396.895 | V24: 54983.209 | W24: 4394386.056 | X24: 3547618.24 | Y24: 750867.4141 | Z24: 11759333.73 | AA24: FY2009-2017 | AE24: 0 | AF24: 0
B25: NEW MEDOWIE 33/11KV ZN (SJ-00041) | C25: Zone substation | D25: ARA_07.8.0032A | E25: New substation establishment | F25: Demand growth | G25: 33/11 | H25: 0 | I25: 73.03 | J25: 0 | K25: 38.11 | L25: 2 | M25: 73.03 | N25: 1178862.32 | O25: 19 | P25: 854690.56 | Q25: 0 | R25: 0 | U25: 3074638.04 | V25: 49091.81 | W25: 4700891.32 | X25: 7161533.38 | Y25: 626399.86 | Z25: 17597015.48 | AA25: FY2010-2017 | AE25: 461444.68 | AF25: 0
B26: NEW SCONE 66/11KV ZN (SJ-05132 & SJ-05702) | C26: Zone substation | D26: ARA_08.2.0013C | E26: New substation establishment | F26: Demand growth | G26: 66/11 | H26: 23.7 | I26: 76.21 | J26: 14.2 | K26: 38.11 | L26: 2 | M26: 76.21 | N26: 2090373.354 | O26: 20 | P26: 729710.3098 | Q26: 12 | R26: 517564.2874 | U26: 3492707.614 | V26: 102038.203 | W26: 3892821.768 | X26: 8449674.046 | Y26: 268261.2666 | Z26: 19441112.65 | AA26: FY2008-2017 | AE26: 789112.82 | AF26: 0
B27: NEW ABERDEEN 66/11KV ZN (SJ-05634 & SJ-06031) | C27: Zone substation | D27: ARA_08.2.0014 | E27: New substation establishment | F27: Other | G27: 66/11 | H27: 12.5 | I27: 46.41 | J27: 6.25 | K27: 25.53 | L27: 2 | M27: 46.41 | N27: 2550397.02 | O27: 9 | P27: 2390186.46 | Q27: 0 | R27: 0 | U27: 1473299.15 | V27: 56894.69 | W27: 5945683.38 | X27: 5147022.94 | Y27: 491099.72 | Z27: 17997688.67 | AA27: FY2008-2016 | AE27: 1158496.96 | AF27: 0
Z28: 0
Z29: 0
Z30: 0
Z31: 0
Z32: 0
Z33: 0
Z34: 0
Z35: 0
Z36: 0
Z37: 0
Z38: 0
Z39: 0
Z40: 0
Z41: 0
Z42: 0
Z43: 0
Z44: 0
Z45: 0
Z46: =SUM(N46,P46,R46,U46,W46,X46,Y46) -> 0
Z47: 0
Z48: 0
Z49: 0
Z50: 0
Z51: 0
Z52: 0
Z53: 0
Z54: 0
Z55: 0
Z56: 0
Z57: 0
Z58: 0
Z59: 0
Z60: 0
Z61: 0
Z62: 0
Z63: 0
Z64: 0
Z65: 0
D66: Non material projects - [actual]
B69: AUG232_1 | C69: AUG232_2 | D69: AUG232_3 | E69: AUG232_4 | F69: AUG232_5 | G69: AUG232_6 | H69: ED_AUG232_00001 | I69: ED_AUG232_00002 | J69: ED_AUG232_00003 | K69: ED_AUG232_00004 | L69: ED_AUG232_00005 | M69: ED_AUG232_00006 | N69: ED_AUG232_00007 | O69: ED_AUG232_00008 | P69: ED_AUG232_00009 | Q69: ED_AUG232_00010 | R69: ED_AUG232_00011 | S69: ED_AUG232_00012 | T69: ED_AUG232_00013 | U69: ED_AUG232_00014 | V69: ED_AUG232_00015 | W69: ED_AUG232_00016 | X69: ED_AUG232_00017 | Y69: ED_AUG232_00018 | Z69: ED_AUG232_00019 | AA69: ED_AUG232_00020 | AB69: ED_AUG232_00021
B70: 2.3.2 - AUGEX ASSET DATA - SUBTRANSMISSION LINES
B71: NOTE: DNSP MUST PROVIDE EXPENDITURE INFORMATION ON A PROJECT CLOSE BASIS.
B72: PROJECT DESCRIPTION AND CHANGES | L72: PLANT AND EQUIPMENT EXPENDITURE AND VOLUME | X72: OTHER EXPENDITURE | Z72: TOTAL DIRECT EXPENDITURE ($0's) | AA72: YEARS INCURRED | AB72: ALL RELATED PARTY CONTRACTS | AD72: ALL NON RELATED PARTY CONTRACTS | AE72: LAND AND EASEMENTS
B73: LINE ID | C73: PROJECT ID | D73: PROJECT TYPE | E73: PROJECT TRIGGER | G73: VOLTAGE (KV) | H73: ROUTE LINE LENGTH ADDED | L73: POLES/TOWERS (INCLUDING STRUCTURES, AND CIVIL WORKS) | O73: OVERHEAD LINES | R73: UNDERGROUND CABLES | U73: OTHER PLANT ITEM | V73: INSTALLATION (LABOUR) | X73: CIVIL WORKS | Y73: OTHER DIRECT | AB73: RELATED PARTY MARGINS | AC73: TOTAL | AE73: LAND PURCHASE | AF73: EASEMENTS
H74: KM ADDED | L74: POLES/TOWERS ADDED | M74: POLES/TOWERS UPGRADED | N74: EXPENDITURE ($0's) | O74: CIRCUIT KM ADDED | P74: CIRCUIT KM UPGRADED | Q74: EXPENDITURE ($0's) | R74: CIRCUIT KM ADDED | S74: CIRCUIT KM UPGRADED | T74: EXPENDITURE ($0's) | U74: EXPENDITURE ($0's) | V74: VOLUME | W74: EXPENDITURE ($0's) | X74: EXPENDITURE ($0's) | AB74: EXPENDITURE ($0's) | AE74: EXPENDITURE ($0's)
B75: ROOKWOOD ROAD BSP 132KV CONNECTIONS (SJ-05197) | C75: ARA_01.1.0008 | D75: New line on new route - other | F75: Demand growth | G75: 132 | I75: 2.6 | L75: 22 | M75: 7 | N75: 210160.1184 | O75: 2.6 | P75: 0.4 | Q75: 210160.1184 | R75: 0 | S75: 0 | T75: 80716.08199 | U75: 1287679.775 | V75: 35336.154 | W75: 3280488.925 | X75: 2548031.239 | Y75: 305027.1894 | Z75: =SUM(N75,Q75,T75,U75,W75,X75,Y75) -> 7922263.447 | AA75: FY2009-2017 | AE75: 0 | AF75: 0 | AH75: New line on new route - single circuit
B76: NEW ALEXANDRIA STS 132KV CONNECTION WORKS (SJ-000172) | C76: ARA_03.1A.0028A | D76: New line on new route - single circuit | F76: Other | G76: 132 | I76: 0.1 | L76: 0 | M76: 0 | N76: 0 | O76: 0 | P76: 0 | Q76: 0 | R76: 0.1 | S76: 0 | T76: 136585.2 | U76: 0 | V76: 358.27 | W76: 33849.3 | X76: 510458.7 | Y76: 0 | Z76: 680893.2 | AA76: FY2016-2018 | AE76: 0 | AF76: 366808.4 | AH76: New line on new route - dual circuit
B77: NEW ROCKDALE 132KV CONNECTION WORKS (SJ-06161) | C77: ARA_04.1.0008 | D77: New line on new route - dual circuit | F77: Other | G77: 132 | I77: 0.1 | L77: 0 | M77: 0 | N77: 0 | O77: 0 | P77: 0 | Q77: 0 | R77: 0.1 | S77: 0 | T77: 398094.51 | U77: 0 | V77: 1525.69 | W77: 138965.94 | X77: 548535.17 | Y77: 0 | Z77: 1085595.62 | AA77: FY2011-2019 | AE77: 0 | AF77: 0 | AH77: New line on new route - other
B78: ENGADINE ZN NEW 132KV FEEDERS 285, 286 & 289 (SI-05747) | C78: ARA_04.2.0013 | D78: New line on new route - other | F78: Other | G78: 132 | I78: 5.75 | L78: 3 | M78: 0 | N78: 0 | O78: 0 | P78: 0 | Q78: 0 | R78: 5.75 | S78: 0 | T78: 3867270.71 | U78: 0 | V78: 4789.6 | W78: 471474.83 | X78: 8937679.01 | Y78: 184337.71 | Z78: 13460762.26 | AA78: FY2009-2017 | AE78: 0 | AF78: 0 | AH78: Line rebuild over existing route - single circuit
B79: CROWS NEST ZN 132KV CONNECTION WORKS (SJ-05651) | C79: ARA_05.1.0006 | D79: Other | F79: Other | G79: 132 | I79: 0.1 | L79: 0 | M79: 0 | N79: 0 | O79: 0 | P79: 0 | Q79: 0 | R79: 0.1 | S79: 0 | T79: 2281851.43 | U79: 0 | V79: 6541.54 | W79: 667036.89 | X79: 0 | Y79: 0 | Z79: 2948888.32 | AA79: FY2009-2017 | AE79: 0 | AF79: 0 | AH79: Line rebuild over existing route - dual circuit
B80: 132KV FEEDERS 9E3 & 9E4/2 LINDFIELD - WILLOUGHBY STS REPLACEMENT (SJ-06046) | C80: ARA_05.1.0008 | D80: New line on new route - dual circuit | F80: Other | G80: 132 | I80: 8.885 | L80: 0 | M80: 0 | N80: 0 | O80: 0 | P80: 0 | Q80: 0 | R80: 8.885 | S80: 0 | T80: 10126198.57 | U80: 0 | V80: 20307.16 | W80: 2236232.9 | X80: 21356361.27 | Y80: 67653.85 | Z80: 33786446.59 | AA80: FY2010-2017 | AE80: 0 | AF80: 0 | AH80: Reconductor - Single circuit
B81: EMPIRE BAY ZN 66KV FEEDERS 883 & 884 (SI-05733) | C81: ARA_06.1.0025 | D81: New line on new route - single circuit | F81: Demand growth | G81: 66 | I81: 15.9 | L81: 85 | M81: 26 | N81: 172175.9948 | O81: 8.2 | P81: 0 | Q81: 172175.9948 | R81: 7.7 | S81: 0 | T81: 3873.831975 | U81: 1470694.79 | V81: 55106.825 | W81: 5465743.024 | X81: 23754278.18 | Y81: 1009642.543 | Z81: 32048584.36 | AA81: FY2010-2017 | AE81: 0 | AF81: 141587.3992 | AH81: Reconductor - Dual circuit
B82: NEW BROADMEADOW ZN 132KV CONNECTION WORKS (SJ-04866) | C82: ARA_07.1.0006 | D82: New line on new route - single circuit | F82: Other | G82: 132 | I82: 0.3 | L82: 0 | M82: 0 | N82: 0 | O82: 0 | P82: 0.1 | Q82: 255386.35 | R82: 0.3 | S82: 0 | T82: 1382168.56 | U82: 0 | V82: 1777.09 | W82: 182971.78 | X82: 4648945.92 | Y82: 0 | Z82: 6469472.61 | AA82: FY2009-2017 | AE82: 0 | AF82: 0 | AH82: Reconductor - Other
B83: NEW KOORAGANG STS 132KV FEEDERS 96X & 97M (SJ-04087) | C83: ARA_07.2.0007C | D83: New line on new route - single circuit | F83: Demand growth | G83: 132 | I83: 16 | L83: 150 | M83: 0 | N83: 1587.290199 | O83: 16 | P83: 0 | Q83: 1587.290199 | R83: 0 | S83: 0 | T83: 2367.964272 | U83: 155327.6989 | V83: 139040.274 | W83: 990732.3306 | X83: 380913.9814 | Y83: 22312.30202 | Z83: 1554828.858 | AA83: FY2008-2014 | AE83: 0 | AF83: 153.9557129 | AH83: Line upgrade - raising/retensoring
B84: NEW CHARLESTOWN ZN 132KV CONNEXTION WORKS (SJ-05319) | C84: ARA_07.5.0005 | D84: New line on new route - dual circuit | F84: Other | G84: 132 | I84: 0.1 | L84: 2 | M84: 0 | N84: 0 | O84: 0 | P84: 2.8 | Q84: 235754.17 | R84: 0.1 | S84: 0 | T84: 1907465.59 | U84: 0 | V84: 4944.44 | W84: 516675.17 | X84: 3191518.41 | Y84: 0 | Z84: 5851413.34 | AA84: FY2008-2016 | AE84: 0 | AF84: 0 | AH84: Line upgrade - voltage upgrade
B85: NEW MAITLAND ZN 33KV CONNECTION WORKS (SJ-5126) | C85: ARA_07.6.0009 | D85: New line on new route - single circuit | F85: Demand growth | G85: Other | I85: 0.1 | L85: 2 | M85: 0 | N85: 0 | O85: 0 | P85: 0 | R85: 0.1 | S85: 0 | T85: 466420.03 | U85: 0 | V85: 1587.64 | W85: 153013.55 | X85: 1601105.59 | Y85: 0 | Z85: 2220539.17 | AA85: FY2010-2016 | AE85: 0 | AF85: 0 | AH85: Line upgrade - capacity
B86: TANILBA BAY ZN 33KV FEEDERS 81401(1) & 3300(3) (SJ-05573) | C86: ARA_07.8.0003 | D86: New line on new route - single circuit | F86: Demand growth | G86: Other | I86: 5 | L86: 50 | M86: 0 | N86: 1167564.49 | O86: 5 | P86: 0 | Q86: 1167564.49 | R86: 0 | S86: 0 | T86: 0 | U86: 0 | V86: 16045.72 | W86: 1592957.08 | X86: 1150068.16 | Y86: 0 | Z86: 5078154.22 | AA86: FY2009-2016 | AE86: 0 | AF86: 0 | AH86: String spare circuit
B87: NEW MEDOWIE ZN 33KV FEEDERS TM13, TM4, 81401(3) (SJ-00166) | C87: ARA_07.8.0032A | D87: New line on new route - single circuit | F87: Demand growth | G87: Other | I87: 12 | L87: 130 | M87: 0 | N87: 407054.0407 | O87: 12 | P87: 0 | Q87: 407054.0407 | R87: 0 | S87: 0 | T87: 36542.35994 | U87: 1664048.483 | V87: 60264.205 | W87: 3982439.71 | X87: 3054798.39 | Y87: 398540.6912 | Z87: 9950477.716 | AA87: FY2010-2017 | AE87: 0 | AF87: 46914.88527 | AH87: Other
B88: NEW SCONE ZN 66KV FEEDERS 6028(7) & 82244 (SJ-05702) | C88: ARA_08.2.0013C | D88: Line upgrade - voltage upgrade | F88: Voltage issues | G88: 66 | I88: 37.5 | L88: 270 | M88: 0 | N88: 432.2361315 | O88: 37.5 | P88: 0 | Q88: 432.2361315 | R88: 0 | S88: 0 | T88: 38.46299458 | U88: 3150505.288 | V88: 102038.203 | W88: 3354698.413 | X88: 2379737.059 | Y88: 1191462.499 | Z88: 10077306.19 | AA88: FY2009-2017 | AE88: 0 | AF88: 1175.03918
B89: NEW ABERDEEN ZN 66KV FEEDERS 82257 & 82244 (SJ-05634) | C89: ARA_08.2.0014 | D89: Line rebuild over existing route - single circuit | F89: Other | G89: 66 | I89: 30.77 | L89: 10 | M89: 191 | N89: 184123.38 | O89: 0.5 | P89: 30.77 | Q89: 184123.38 | R89: 0 | S89: 0 | T89: 0 | U89: 0 | V89: 2400.465 | W89: 273495.56 | X89: 290011.37 | Y89: 0 | Z89: 931753.69 | AA89: FY2008-2017 | AE89: 0 | AF89: 0
Z90: 0
Z91: 0
Z92: 0
Z93: 0
Z94: 0
Z95: 0
Z96: 0
Z97: 0
Z98: 0
Z99: 0
Z100: 0
Z101: 0
Z102: 0
Z103: 0
Z104: 0
Z105: 0
Z106: 0
Z107: =SUM(N107,Q107,T107,U107,W107,X107,Y107) -> 0
Z108: 0
Z109: 0
Z110: 0
Z111: 0
Z112: 0
Z113: 0
Z114: 0
Z115: 0
Z116: 0
Z117: 0
Z118: 0
Z119: 0
Z120: 0
Z121: 0
Z122: 0
Z123: 0
Z124: 0
Z125: 0
Z126: 0
Z127: 0
Z128: 0
C129: Non material projects - [actual]

Sheet 2.3(b) Augex
B1: REGULATORY REPORTING STATEMENT
B2: =INDEX(dms_TradingNameFull_List,MATCH(dms_TradingName,dms_TradingName_List)) -> Ausgrid
B3: =CONCATENATE((LOOKUP(dms_Model,dms_Model_List,dms_Worksheet_List))&" "&CRY) -> CATEGORY ANALYSIS 2016-17
B4: 2.3 AUGEX DATA
B6: There are TWO tables on this worksheet. Each has been grouped for ease of navigation. See the Instructions sheet on how to group or ungroup tables.
B8: 2.3.3 - AUGEX DATA - HV/LV FEEDERS AND DISTRIBUTION SUBSTATIONS
B9: NOTE: DNSP MUST PROVIDE EXPENDITURE INFORMATION ON AN AS INCURRED BASIS.
B10: DESCRIPTOR METRICS
B11: PROJECT TYPE | D11: UNITS ADDED (0's) | E11: UNITS UPGRADED (0's)
C12: UNITS | D12: =CRY -> 2016-17 | E12: =CRY -> 2016-17
B13: HV Feeder Augmentations - Overhead Lines | C13: Circuit line length in km | D13: 5
B14: HV Feeder Augmentations - Underground Cables | C14: Circuit line length in km | D14: 11
B15: LV Feeder Augmentations - Overhead Lines | C15: Circuit line length in km | D15: 3
B16: LV Feeder Augmentations - Underground Cables | C16: Circuit line length in km | D16: 6
B17: Distribution Substation Augmentations - Pole Mounted | C17: Number | D17: 4
B18: Distribution Substation Augmentations - Ground Mounted | C18: Number | D18: 4
B19: Distribution Substation Augmentations - Indoor | C19: Number
B21: COST METRICS
B22: TOTAL DIRECT EXPENDITURE - Project Type | D22: EXPENDITURE ($0's)
D23: =CRY -> 2016-17
B24: HV Feeder Augmentations - Overhead Lines | D24: 580849.95
B25: HV Feeder Augmentations - Underground Cables | D25: 1806909.87
B26: HV Feeder Non-Material Projects | D26: 1506635.38
B27: LV Feeder Augmentations - Overhead Lines | D27: 320535.45
B28: LV Feeder Augmentations - Underground Cables | D28: 1272569.55
B29: LV Feeder Non-Material Projects | D29: 1132626.81
B30: Distribution Substation Augmentations - Pole Mounted | D30: 299728.26
B31: Distribution Substation Augmentations - Ground Mounted | D31: 369928.34
B32: Distribution Substation Augmentations - Indoor | D32: 62979.22
B35: 2.3.4 - AUGEX DATA - TOTAL EXPENDITURE
B36: AUGMENTATION CAPEX (As incurred) | D36: EXPENDITURE ($0's)
D37: =CRY -> 2016-17
B38: Subtransmission Substations, Switching Stations, Zone Substations | D38: 2654903.91
B39: Subtransmission Lines | D39: 5647861.71
B40: HV Feeders | D40: 3894395.2
B41: HV Feeders - Land Purchases and Easements
B42: Distribution Substations | D42: 732635.82
B43: Distribution Substations - Land Purchases And Easements
B44: LV Feeders | D44: 2725731.81
B45: LV Feeders - Land Purchases And Easements
B46: Other Assets | D46: 43019.14

Sheet 2.5 Connections
B1: REGULATORY REPORTING STATEMENT
B2: =INDEX(dms_TradingNameFull_List,MATCH(dms_TradingName,dms_TradingName_List)) -> Ausgrid
B3: =CONCATENATE((LOOKUP(dms_Model,dms_Model_List,dms_Worksheet_List))&" "&CRY) -> CATEGORY ANALYSIS 2016-17
B4: 2.5 CONNECTIONS
B6: There are TWO tables on this worksheet. Each has been grouped for ease of navigation. See the Instructions sheet on how to group or ungroup tables.
B8: 2.5.1 - DESCRIPTOR METRICS
B9: <<<GROUP-ROW>>>
E11: VOLUMES AND EXPENDITURE
B12: CONNECTION SUBCATEGORY | C12: DESCRIPTOR METRIC | D12: UNITS | E12: =CRY -> 2016-17
B13: RESIDENTIAL | C13: Underground connections | D13: 0's | E13: 55
C14: Overhead connections | D14: 0's | E14: 52
C15: Distribution substation installed | D15: MVA added | E15: 88.50265068
C16: Distribution substations installed | D16: 0's | E16: 90
C17: Distribution substation installed | D17: total spend $0s | E17: 1532258.597
C18: Augmentation HV | D18: net circuit km added | E18: 0.5013
C19: Augmentation HV | D19: total spend $0s | E19: 4386.412589
C20: Augmentation LV | D20: net circuit km added | E20: 1.723
C21: Augmentation LV | D21: total spend $0s | E21: 331661.9702
C22: Mean days to connect residential customer with LV single phase connection | D22: 0's | E22: 0
C23: Volume of GSL breaches for residential customers | D23: 0's | E23: 0
C24: Volume of customer complaints relating to connection services | D24: 0's | E24: 0
C25: GSL payments | D25: $0s | E25: 0
B26: COMMERCIAL/INDUSTRIAL | C26: Underground connections | D26: 0's | E26: 32
C27: Overhead connections | D27: 0's | E27: 31
C28: Distribution substation installed | D28: MVA added | E28: 45.89217877
C29: Distribution substations installed | D29: 0's | E29: 42
C30: Distribution substation installed | D30: total spend $0s | E30: 1736540.293
C31: Augmentation HV | D31: net circuit km added | E31: 5.7745
C32: Augmentation HV | D32: total spend $0s | E32: 3702748.054
C33: Augmentation LV | D33: net circuit km added | E33: 2.9866
C34: Augmentation LV | D34: total spend $0s | E34: 330752.8739
B35: SUBDIVISION | C35: Underground connections | D35: 0's | E35: 0
C36: Overhead connections | D36: 0's | E36: 4
C37: Distribution substation installed | D37: MVA added | E37: 0.6224817397
C38: Distribution substations installed | D38: 0's | E38: 1
C39: Distribution substation installed | D39: total spend $0s | E39: 85218.18
C40: Augmentation HV | D40: net circuit km added | E40: 1.9076
C41: Augmentation HV | D41: total spend $0s | E41: 12436.36
C42: Augmentation LV | D42: net circuit km added | E42: 0
C43: Augmentation LV | D43: total spend $0s | E43: 0
C44: Cost per lot ($) | D44: $0s | E44: 0
B45: EMBEDDED GENERATION | C45: Underground connections | D45: 0's | E45: 2
C46: Overhead connections | D46: 0's | E46: 0
C47: Distribution substation installed | D47: MVA added | E47: 3.245036058
C48: Distribution substations installed | D48: 0's | E48: 4
C49: Distribution substation installed | D49: total spend $0s | E49: 0
C50: Augmentation HV | D50: net circuit km added | E50: 0
C51: Augmentation HV | D51: total spend $0s | E51: 329733.77
C52: Augmentation LV | D52: net circuit km added | E52: 0
C53: Augmentation LV | D53: total spend $0s | E53: 0
B57: 2.5.2 - COST METRICS BY CONNECTION CLASSIFICATION
D58: EXPENDITURE ($0's) | E58: VOLUMES (0's)
B59: CONNECTION SUBCATEGORY | C59: CONNECTION CLASSIFICATION | D59: =CRY -> 2016-17 | E59: =CRY -> 2016-17
B60: RESIDENTIAL | C60: Simple connection LV | D60: 310149.0406 | E60: 6.056603774
C61: Complex connection LV | E61: 0
C62: Complex connection HV | D62: 1558157.939 | E62: 100.9433962
B63: COMMERCIAL/INDUSTRIAL | C63: Simple connection LV | D63: 364150.0803 | E63: 9.163636364
C64: Complex connection HV (customer connected at LV, minor HV works) | D64: 433934.8944 | E64: 1.145454545
C65: Complex connection HV (customer connected at LV, upstream asset works) | D65: 4280142.761 | E65: 49.25454545
C66: Complex connection HV (customer connected at HV) | D66: -61752.81662 | E66: 2.290909091
C67: Complex connection sub-transmission | D67: 753566.301 | E67: 1.145454545
B68: SUBDIVISION | C68: Complex connection LV | E68: 0
C69: Complex connection HV (no upstream asset works) | E69: 0
C70: Complex connection HV (with upstream asset works) | D70: 97654.54 | E70: 4
B71: EMBEDDED GENERATION | C71: Simple connection LV | D71: 288501.52 | E71: 1
C72: Complex connection HV (small capacity) | E72: 0
C73: Complex connection HV (large capacity) | D73: 41232.25 | E73: 1

Sheet 2.6 Non-network
B1: REGULATORY REPORTING STATEMENT
B2: =INDEX(dms_TradingNameFull_List,MATCH(dms_TradingName,dms_TradingName_List)) -> Ausgrid
B3: =CONCATENATE((LOOKUP(dms_Model,dms_Model_List,dms_Worksheet_List))&" "&CRY) -> CATEGORY ANALYSIS 2016-17
B4: 2.6 NON NETWORK EXPENDITURE
B6: There are THREE tables on this worksheet. Each has been grouped (and sub-grouped) for ease of navigation. See the Instructions sheet on how to group or ungroup tables.
B8: 2.6.1 - NON-NETWORK EXPENDITURE
F9: EXPENDITURE ($0's)
B10: SERVICE SUBCATEGORY | C10: ASSET CATEGORY | F10: =CRY -> 2016-17
B11: OPEX
B12: IT & COMMUNICATIONS | C12: Client device expenditure | F12: 4671229.594
C13: Recurrent expenditure | F13: 46396136.67
C14: Non-recurrent expenditure | F14: 6161347.18
B15: MOTOR VEHICLES | C15: Car | F15: 3232623.356
C16: Light commercial vehicle | F16: 9452115.075
C17: Elevated work platform (LCV) | F17: 0
C18: Elevated work platform (HCV) | F18: 1890423.015
C19: Heavy commercial vehicle | F19: 3109745.86
B20: BUILDINGS AND PROPERTY | C20: Total buildings and property expenditure | F20: 48776327.2
B21: OTHER | C21: Other expenditure
B22: OTHER - DNSP nominated
B33: CAPEX
B34: IT & COMMUNICATIONS | C34: Client device expenditure | F34: 1012636.21
C35: Recurrent expenditure | F35: 9976830.9
C36: Non-recurrent expenditure | F36: 12634583.98
B37: MOTOR VEHICLES | C37: Car
C38: Light commercial vehicle | F38: 1894134.57
C39: Elevated work platform (LCV)
C40: Elevated work platform (HCV)
C41: Heavy commercial vehicle | F41: 167693.69
B42: BUILDINGS AND PROPERTY | C42: Total buildings and property expenditure | F42: 11185038.58
B43: OTHER | C43: Other expenditure | F43: 1301367.38
B44: OTHER - DNSP nominated | C44: =IF(ISBLANK(C22),"",C22) -> 
C45: =IF(ISBLANK(C23),"",C23) -> 
B58: 2.6.2 - ANNUAL DESCRIPTOR METRICS - IT & COMMUNICATIONS EXPENDITURE
F59: VOLUMES (0's)
B61: NON-NETWORK CATEGORY | C61: DESCRIPTOR METRIC | F61: =CRY -> 2016-17
B62: IT & COMMUNICATIONS | C62: Employee numbers | F62: 3176.038116
C63: User numbers | F63: 4248.9916
C64: Number of devices | F64: 6301.463369
B67: 2.6.3 - ANNUAL DESCRIPTOR METRICS - MOTOR VEHICLES
F68: VOLUMES / %
B69: NON-NETWORK CATEGORY | C69: ASSET CATEGORY | D69: DESCRIPTOR METRIC | E69: UNITS | F69: =CRY -> 2016-17
B70: MOTOR VEHICLES | C70: CAR | D70: Average kilometres travelled | E70: 0's | F70: 5368577
D71: Number purchased | E71: 0's | F71: 0
D72: Number leased | E72: 0's | F72: 289
D73: Number in fleet | E73: 0's | F73: 342
D74: Proportion of total fleet expenditure allocated as regulatory expenditure | E74: (per cent) | F74: 1
C75: LIGHT COMMERCIAL VEHICLE | D75: Average kilometres travelled | E75: 0's | F75: 14053242
D76: Number purchased | E76: 0's | F76: 66
D77: Number leased | E77: 0's | F77: 149
D78: Number in fleet | E78: 0's | F78: 1000
D79: Proportion of total fleet expenditure allocated as regulatory expenditure | E79: (per cent) | F79: 1
C80: ELEVATED WORK PLATFORM (LCV) | D80: Average kilometres travelled | E80: 0's | F80: 0
D81: Number purchased | E81: 0's | F81: 0
D82: Number leased | E82: 0's | F82: 0
D83: Number in fleet | E83: 0's | F83: 0
D84: Proportion of total fleet expenditure allocated as regulatory expenditure | E84: (per cent) | F84: 0
C85: ELEVATED WORK PLATFORM (HCV) | D85: Average kilometres travelled | E85: 0's | F85: 1706566
D86: Number purchased | E86: 0's | F86: 0
D87: Number leased | E87: 0's | F87: 0
D88: Number in fleet | E88: 0's | F88: 200
D89: Proportion of total fleet expenditure allocated as regulatory expenditure | E89: (per cent) | F89: 1
C90: HEAVY COMMERCIAL VEHICLE | D90: Average kilometres travelled | E90: 0's | F90: 2403934
D91: Number purchased | E91: 0's | F91: 3
D92: Number leased | E92: 0's | F92: 0
D93: Number in fleet | E93: 0's | F93: 329
D94: Proportion of total fleet expenditure allocated as regulatory expenditure | E94: (per cent) | F94: 1

Sheet 2.7 Vegetation management
B1: REGULATORY REPORTING STATEMENT
B2: =INDEX(dms_TradingNameFull_List,MATCH(dms_TradingName,dms_TradingName_List)) -> Ausgrid
B3: =CONCATENATE((LOOKUP(dms_Model,dms_Model_List,dms_Worksheet_List))&" "&CRY) -> CATEGORY ANALYSIS 2016-17
B4: 2.7 VEGETATION MANAGEMENT
B6: There are THREE tables on this worksheet. Each has been grouped (and sub-grouped) for ease of navigation. See the Instructions sheet on how to group or ungroup tables.
B8: Please enter a description for each Zone in table 2.7.1 - Urban and CBD. The zone description will then autopopulate in tables 2.7.1 - Rural and 2.7.2.
A11: ` | B11: 2.7.1 - DESCRIPTOR METRICS BY ZONE
B12: URBAN AND CBD
E13: =CRY -> 2016-17
B14: ZONES | C14: ASSET | D14: UNITS
B15: ZONE 1 | C15: Route line length within zone | D15: km | E15: 9963.36
C16: Number of maintenance spans | D16: 0's | E16: 894932
C17: Total length of maintenance spans | D17: km | E17: 9963.36
C18: Length of vegetation corridors | D18: km
C19: Average number of trees per maintenance span | D19: 0's | E19: 0.92
C20: Average frequency of cutting cycle | D20: years | E20: 1
B21: ZONE 2 | C21: Route line length within zone | D21: km
C22: Number of maintenance spans | D22: 0's
C23: Total length of maintenance spans | D23: km
C24: Length of vegetation corridors | D24: km
C25: Average number of trees per maintenance span | D25: 0's
C26: Average frequency of cutting cycle | D26: years
B27: ZONE 3 | C27: Route line length within zone | D27: km
C28: Number of maintenance spans | D28: 0's
C29: Total length of maintenance spans | D29: km
C30: Length of vegetation corridors | D30: km
C31: Average number of trees per maintenance span | D31: 0's
C32: Average frequency of cutting cycle | D32: years
B33: ZONE 4 | C33: Route line length within zone | D33: km
C34: Number of maintenance spans | D34: 0's
C35: Total length of maintenance spans | D35: km
C36: Length of vegetation corridors | D36: km
C37: Average number of trees per maintenance span | D37: 0's
C38: Average frequency of cutting cycle | D38: years
B39: ZONE 5 | C39: Route line length within zone | D39: km
C40: Number of maintenance spans | D40: 0's
C41: Total length of maintenance spans | D41: km
C42: Length of vegetation corridors | D42: km
C43: Average number of trees per maintenance span | D43: 0's
C44: Average frequency of cutting cycle | D44: years
B45: ZONE 6 | C45: Route line length within zone | D45: km
C46: Number of maintenance spans | D46: 0's
C47: Total length of maintenance spans | D47: km
C48: Length of vegetation corridors | D48: km
C49: Average number of trees per maintenance span | D49: 0's
C50: Average frequency of cutting cycle | D50: years
B51: ZONE 7 | C51: Route line length within zone | D51: km
C52: Number of maintenance spans | D52: 0's
C53: Total length of maintenance spans | D53: km
C54: Length of vegetation corridors | D54: km
C55: Average number of trees per maintenance span | D55: 0's
C56: Average frequency of cutting cycle | D56: years
B57: ZONE 8 | C57: Route line length within zone | D57: km
C58: Number of maintenance spans | D58: 0's
C59: Total length of maintenance spans | D59: km
C60: Length of vegetation corridors | D60: km
C61: Average number of trees per maintenance span | D61: 0's
C62: Average frequency of cutting cycle | D62: years
B63: ZONE 9 | C63: Route line length within zone | D63: km
C64: Number of maintenance spans | D64: 0's
C65: Total length of maintenance spans | D65: km
C66: Length of vegetation corridors | D66: km
C67: Average number of trees per maintenance span | D67: 0's
C68: Average frequency of cutting cycle | D68: years
B69: ZONE 10 | C69: Route line length within zone | D69: km
C70: Number of maintenance spans | D70: 0's
C71: Total length of maintenance spans | D71: km
C72: Length of vegetation corridors | D72: km
C73: Average number of trees per maintenance span | D73: 0's
C74: Average frequency of cutting cycle | D74: years
B75: ZONE 11 | C75: Route line length within zone | D75: km
C76: Number of maintenance spans | D76: 0's
C77: Total length of maintenance spans | D77: km
C78: Length of vegetation corridors | D78: km
C79: Average number of trees per maintenance span | D79: 0's
C80: Average frequency of cutting cycle | D80: years
B81: ZONE 12 | C81: Route line length within zone | D81: km
C82: Number of maintenance spans | D82: 0's
C83: Total length of maintenance spans | D83: km
C84: Length of vegetation corridors | D84: km
C85: Average number of trees per maintenance span | D85: 0's
C86: Average frequency of cutting cycle | D86: years
B87: ZONE 13 | C87: Route line length within zone | D87: km
C88: Number of maintenance spans | D88: 0's
C89: Total length of maintenance spans | D89: km
C90: Length of vegetation corridors | D90: km
C91: Average number of trees per maintenance span | D91: 0's
C92: Average frequency of cutting cycle | D92: years
B93: ZONE 14 | C93: Route line length within zone | D93: km
C94: Number of maintenance spans | D94: 0's
C95: Total length of maintenance spans | D95: km
C96: Length of vegetation corridors | D96: km
C97: Average number of trees per maintenance span | D97: 0's
C98: Average frequency of cutting cycle | D98: years
B99: ZONE 15 | C99: Route line length within zone | D99: km
C100: Number of maintenance spans | D100: 0's
C101: Total length of maintenance spans | D101: km
C102: Length of vegetation corridors | D102: km
C103: Average number of trees per maintenance span | D103: 0's
C104: Average frequency of cutting cycle | D104: years
B105: ZONE 16 | C105: Route line length within zone | D105: km
C106: Number of maintenance spans | D106: 0's
C107: Total length of maintenance spans | D107: km
C108: Length of vegetation corridors | D108: km
C109: Average number of trees per maintenance span | D109: 0's
C110: Average frequency of cutting cycle | D110: years
B111: ZONE 17 | C111: Route line length within zone | D111: km
C112: Number of maintenance spans | D112: 0's
C113: Total length of maintenance spans | D113: km
C114: Length of vegetation corridors | D114: km
C115: Average number of trees per maintenance span | D115: 0's
C116: Average frequency of cutting cycle | D116: years
B117: ZONE 18 | C117: Route line length within zone | D117: km
C118: Number of maintenance spans | D118: 0's
C119: Total length of maintenance spans | D119: km
C120: Length of vegetation corridors | D120: km
C121: Average number of trees per maintenance span | D121: 0's
C122: Average frequency of cutting cycle | D122: years
B124: RURAL
E125: =CRY -> 2016-17
B126: ZONES | C126: ASSET | D126: UNITS
B127: =B15 -> ZONE 1 | C127: Route line length within zone | D127: km | E127: 9255.314
C128: Number of maintenance spans | D128: 0's | E128: 243103
C129: Total length of maintenance spans | D129: km | E129: 9255.314
C130: Length of vegetation corridors | D130: km | E130: 1906
C131: Average number of trees per maintenance span | D131: 0's | E131: 2.66
C132: Average frequency of cutting cycle | D132: years | E132: 1
B133: =B21 -> ZONE 2 | C133: Route line length within zone | D133: km
C134: Number of maintenance spans | D134: 0's
C135: Total length of maintenance spans | D135: km
C136: Length of vegetation corridors | D136: km
C137: Average number of trees per maintenance span | D137: 0's
C138: Average frequency of cutting cycle | D138: years
B139: =B27 -> ZONE 3 | C139: Route line length within zone | D139: km
C140: Number of maintenance spans | D140: 0's
C141: Total length of maintenance spans | D141: km
C142: Length of vegetation corridors | D142: km
C143: Average number of trees per maintenance span | D143: 0's
C144: Average frequency of cutting cycle | D144: years
B145: =B33 -> ZONE 4 | C145: Route line length within zone | D145: km
C146: Number of maintenance spans | D146: 0's
C147: Total length of maintenance spans | D147: km
C148: Length of vegetation corridors | D148: km
C149: Average number of trees per maintenance span | D149: 0's
C150: Average frequency of cutting cycle | D150: years
B151: =B39 -> ZONE 5 | C151: Route line length within zone | D151: km
C152: Number of maintenance spans | D152: 0's
C153: Total length of maintenance spans | D153: km
C154: Length of vegetation corridors | D154: km
C155: Average number of trees per maintenance span | D155: 0's
C156: Average frequency of cutting cycle | D156: years
B157: =B45 -> ZONE 6 | C157: Route line length within zone | D157: km
C158: Number of maintenance spans | D158: 0's
C159: Total length of maintenance spans | D159: km
C160: Length of vegetation corridors | D160: km
C161: Average number of trees per maintenance span | D161: 0's
C162: Average frequency of cutting cycle | D162: years
B163: =B51 -> ZONE 7 | C163: Route line length within zone | D163: km
C164: Number of maintenance spans | D164: 0's
C165: Total length of maintenance spans | D165: km
C166: Length of vegetation corridors | D166: km
C167: Average number of trees per maintenance span | D167: 0's
C168: Average frequency of cutting cycle | D168: years
B169: =B57 -> ZONE 8 | C169: Route line length within zone | D169: km
C170: Number of maintenance spans | D170: 0's
C171: Total length of maintenance spans | D171: km
C172: Length of vegetation corridors | D172: km
C173: Average number of trees per maintenance span | D173: 0's
C174: Average frequency of cutting cycle | D174: years
B175: =B63 -> ZONE 9 | C175: Route line length within zone | D175: km
C176: Number of maintenance spans | D176: 0's
C177: Total length of maintenance spans | D177: km
C178: Length of vegetation corridors | D178: km
C179: Average number of trees per maintenance span | D179: 0's
C180: Average frequency of cutting cycle | D180: years
B181: =B69 -> ZONE 10 | C181: Route line length within zone | D181: km
C182: Number of maintenance spans | D182: 0's
C183: Total length of maintenance spans | D183: km
C184: Length of vegetation corridors | D184: km
C185: Average number of trees per maintenance span | D185: 0's
C186: Average frequency of cutting cycle | D186: years
B187: =B75 -> ZONE 11 | C187: Route line length within zone | D187: km
C188: Number of maintenance spans | D188: 0's
C189: Total length of maintenance spans | D189: km
C190: Length of vegetation corridors | D190: km
C191: Average number of trees per maintenance span | D191: 0's
C192: Average frequency of cutting cycle | D192: years
B193: =B81 -> ZONE 12 | C193: Route line length within zone | D193: km
C194: Number of maintenance spans | D194: 0's
C195: Total length of maintenance spans | D195: km
C196: Length of vegetation corridors | D196: km
C197: Average number of trees per maintenance span | D197: 0's
C198: Average frequency of cutting cycle | D198: years
B199: =B87 -> ZONE 13 | C199: Route line length within zone | D199: km
C200: Number of maintenance spans | D200: 0's
C201: Total length of maintenance spans | D201: km
C202: Length of vegetation corridors | D202: km
C203: Average number of trees per maintenance span | D203: 0's
C204: Average frequency of cutting cycle | D204: years
B205: =B93 -> ZONE 14 | C205: Route line length within zone | D205: km
... 201 more rows

Sheet 2.8 Maintenance
B1: REGULATORY REPORTING STATEMENT
B2: =INDEX(dms_TradingNameFull_List,MATCH(dms_TradingName,dms_TradingName_List)) -> Ausgrid
B3: =CONCATENATE((LOOKUP(dms_Model,dms_Model_List,dms_Worksheet_List))&" "&CRY) -> CATEGORY ANALYSIS 2016-17
B4: 2.8 MAINTENANCE
B6: There are TWO tables on this worksheet. Each has been grouped for ease of navigation. See the Instructions sheet on how to group or ungroup tables.
B8: 2.8.1 - DESCRIPTOR METRICS FOR ROUTINE AND NON-ROUTINE MAINTENANCE
F9: ASSET QUANTITY (0's) | H9: AVERAGE AGE OF ASSET GROUP | I9: INSPECTION CYCLE (YEARS) | J9: MAINTENANCE CYCLE (YEARS)
F10: AT YEAR END | G10: INSPECTED / MAINTAINED
B11: MAINTENANCE ACTIVITY | C11: MAINTENANCE ASSET CATEGORY | D11: ASSET QUANTITY | E11: Units | F11: =CRY -> 2016-17 | G11: =CRY -> 2016-17 | H11: =CRY -> 2016-17
B12: Pole top, overhead line & service line maintenance | C12: Pole tops and overhead lines | D12: Number of poles | E12: Number | F12: 504013 | G12: 1379 | H12: 34.52091514 | I12: 5 | J12: 0
C13: Service lines | D13: Number of customers | E13: Number | F13: 720016 | G13: 0 | H13: 28.35296716 | I13: 0 | J13: 0
B14: Pole inspection and treatment | C14: All poles | D14: Number of poles | E14: Number | F14: 509257 | G14: 110880 | H14: 34.45745665 | I14: 5 | J14: 0
B15: Overhead asset inspection | C15: All overhead assets | D15: Line patrolled (route KM) | E15: KM | F15: 22013.833 | G15: 4793.049095 | H15: 40 | I15: 5 | J15: 0
B16: Network underground cable maintenance: by voltage | C16: LV - 11 to 22 KV | D16: Length (KM) | E16: KM | F16: 14484.77792 | G16: 20041 | H16: 31.0952998 | I16: 0 | J16: 0
C17: 33 KV and above | D17: Length (KM) | E17: KM | F17: 1036.537816 | G17: 337 | H17: 37.92932838 | I17: 5 | J17: 0
B18: Network underground cable maintenance: by location | C18: Cbd | D18: Length (KM) | E18: KM | F18: 399.5872858 | G18: 525.1385131 | H18: 40.18883889 | I18: 0 | J18: 0
C19: Non-CBD | D19: Length (KM) | E19: KM | F19: 15121.72845 | G19: 19852.86149 | H19: 30.5952998 | I19: 0 | J19: 0
B20: Distribution substation equipment & property maintenance | C20: Distribution substation transformers | D20: Number of installed transformers | E20: Number | F20: 33524 | G20: 0 | H20: 25.19224288 | I20: 0 | J20: 0
C21: Distribution substation switchgear (within-substations and stand-alone switchgear) | D21: Number of switches | E21: Number | F21: 22664 | G21: 3838 | H21: 24.76666697 | I21: 10 | J21: 20
C22: Distribution substation - other equipment | D22: Earth mat | E22: Number | F22: 31778 | G22: 10114 | H22: 28.17798546 | I22: 10 | J22: 0
C23: Distribution substation - property | D23: Number of distribution substation properties maintained | E23: Number | F23: 2889 | G23: 14058 | H23: 36.20065916 | I23: 0 | J23: 0
B24: Zone substation equipment maintenance | C24: Transformers - zone substation | D24: Number | E24: Number | F24: 504 | G24: 2245 | H24: 26.90985192 | I24: 6 | J24: 0
C25: Transformers - distribution | D25: Number of distribution transformers within zone substation | E25: Number | F25: 41 | G25: 0 | H25: 41.43503447 | I25: 3 | J25: 0
C26: Transformers - HV | D26: Number of HV transformers | E26: Number | G26: 0 | I26: 0 | J26: 0
C27: Zone substation - other equipment | D27: <DNSP to nominate> | E27: =D27 -> <DNSP to nominate> | F27: 208 | G27: 18468 | H27: 37.67620966 | I27: 0.5 | J27: 0
B28: Zone substation property maintenance | C28: All zone substation properties | D28: Number of zone substation properties maintained | E28: Number | F28: 208 | G28: 16548 | H28: 37.67620966 | I28: 0.08333333333 | J28: 0
B29: Public lighting maintenance | C29: Minor roads | D29: Number of public lights maintained | E29: Number | F29: 196237 | G29: 17720.22542 | H29: 11.56983657 | I29: 2.5 | J29: 2.5
C30: Major roads | D30: Number of public lights maintained | E30: Number | F30: 54979 | G30: 42586.77458 | H30: 18.09446446 | I30: 2.5 | J30: 2.5
B31: SCADA & network control maintenance | C31: SCADA & network control | D31: Number of systems | E31: Number | F31: 864 | G31: 0 | H31: 28.90822179 | I31: 0 | J31: 0
B32: Protection systems maintenance | C32: Protection systems | D32: Number of systems | E32: Number | F32: 23415 | G32: 0 | H32: 30.14563279 | I32: 0 | J32: 0
B33: Subtransmission asset maintenance | C33: Subtransmission asset maintenance - for DNSPs with dual function assets | D33: <DNSP to nominate> | E33: =D33 -> <DNSP to nominate> | F33: 933.039 | G33: 7223 | H33: 34.50067019 | I33: 6 | J33: 0
B34: Various assets | C34: includes rates, electricity, communications equip, metering | D34: Various | E34: Number
B35: Ground clearance - access tracks | C35: Access tracks | D35: Number | E35: Number
B36: Other | C36: < DNSP to nominate > | D36: < DNSP to nominate >
B48: 2.8.2 - COST METRICS FOR ROUTINE AND NON-ROUTINE MAINTENANCE
F49: EXPENDITURE ($0'S)
F50: ROUTINE MAINTENANCE | G50: NON-ROUTINE MAINTENANCE
B51: MAINTENANCE ACTIVITY | C51: MAINTENANCE ASSET CATEGORY | D51: ASSET QUANTITY | E51: Units | F51: =CRY -> 2016-17 | G51: =CRY -> 2016-17
B52: Pole top, overhead line & service line maintenance | C52: Pole tops and overhead lines | D52: Number of poles | E52: Number | F52: 1296648.495 | G52: 5598876.47
C53: Service lines | D53: Number of customers | E53: Number | F53: 23814.2 | G53: 104746.26
B54: Pole inspection and treatment | C54: All poles | D54: Number of poles | E54: Number | F54: 8014295.22 | G54: 522789.91
B55: Overhead asset inspection | C55: All overhead assets | D55: Line patrolled (route KM) | E55: KM | F55: 700810.45 | G55: 0
B56: Network underground cable maintenance: by voltage | C56: LV - 11 to 22 KV | D56: Length (KM) | E56: KM | F56: 403158.85 | G56: 1455288.69
C57: 33 KV and above | D57: Length (KM) | E57: KM | F57: 729081.67 | G57: 1886853.35
B58: Network underground cable maintenance: by location | C58: Cbd | D58: Length (KM) | E58: KM | F58: 29178 | G58: 86126.58
C59: Non-CBD | D59: Length (KM) | E59: KM | F59: 1103063 | G59: 3256015.46
B60: Distribution substation equipment & property maintenance | C60: Distribution substation transformers | D60: Number of installed transformers | E60: Number | F60: 0 | G60: 598913.91
C61: Distribution substation switchgear (within-substations and stand-alone switchgear) | D61: Number of switches | E61: Number | F61: 1300822.52 | G61: 1485152.89
C62: Distribution substation - other equipment | D62: Earth mat | E62: Number | F62: 8221535.5 | G62: 2000785.3
C63: Distribution substation - property | D63: Number of distribution substation properties maintained | E63: Number | F63: 20515 | G63: 555899.05
B64: Zone substation equipment maintenance | C64: Transformers - zone substation | D64: Number | E64: Number | F64: 926720.58 | G64: 533493.37
C65: Transformers - distribution | D65: Number of distribution transformers within zone substation | E65: Number | F65: 0 | G65: 0
C66: Transformers - HV | D66: Number of HV transformers | E66: Number | F66: 0 | G66: 0
C67: Zone substation - other equipment | D67: =IF(ISBLANK(D27),"",D27) -> <DNSP to nominate> | E67: =IF(ISBLANK(E27),"",E27) -> <DNSP to nominate> | F67: 3600765.11 | G67: 1830556.79
B68: Zone substation property maintenance | C68: All zone substation properties | D68: Number of zone substation properties maintained | E68: Number | F68: 1853676.85 | G68: 848581.21
B69: Public lighting maintenance | C69: Minor roads | D69: Number of public lights maintained | E69: Number | F69: 1346863 | G69: 43702.87
C70: Major roads | D70: Number of public lights maintained | E70: Number | F70: 3236898 | G70: 105030.5
B71: SCADA & network control maintenance | C71: SCADA & network control | D71: Number of systems | E71: Number | F71: 22191.11 | G71: 41017.41
B72: Protection systems maintenance | C72: Protection systems | D72: Number of systems | E72: Number | F72: 39275.31 | G72: 198546.97
B73: Subtransmission asset maintenance | C73: Subtransmission asset maintenance - for DNSPs with dual function assets | D73: =IF(ISBLANK(D33),"",D33) -> <DNSP to nominate> | E73: =IF(ISBLANK(E33),"",E33) -> <DNSP to nominate> | F73: 1711410.04 | G73: 1110151.08
B74: Various assets | C74: includes rates, electricity, communications equip, metering | D74: Various | E74: Number
B75: Ground clearance - access tracks | C75: Access tracks | D75: Number | E75: Number
B76: Other | C76: =IF(ISBLANK(C36),"",C36) -> < DNSP to nominate > | D76: < DNSP to nominate >

Sheet 2.9 Emergency Response
B1: REGULATORY REPORTING STATEMENT
B2: =INDEX(dms_TradingNameFull_List,MATCH(dms_TradingName,dms_TradingName_List)) -> Ausgrid
B3: =CONCATENATE((LOOKUP(dms_Model,dms_Model_List,dms_Worksheet_List))&" "&CRY) -> CATEGORY ANALYSIS 2016-17
B4: 2.9 EMERGENCY RESPONSE
B7: There is ONE table on this worksheet. It has been sub-grouped for ease of navigation. See the Instructions sheet on how to group or ungroup tables.
B9: 2.9.1 - EMERGENCY RESPONSE EXPENDITURE (OPEX)
D10: EXPENDITURE ($0's)
D11: =CRY -> 2016-17
B12: (A) TOTAL EMERGENCY RESPONSE EXPENDITURE | C12: Total Expenditure | D12: 29620622.26
B13: (B) MAJOR EVENTS O&M EXPENDITURE
B56: (C) MAJOR EVENT DAYS O&M EXPENDITURE | C56: 2017-02-17 | D56: 401590.14
C57: 2017-05-26 | D57: 244735.85

Sheet 2.10 Overheads
B1: REGULATORY REPORTING STATEMENT
B2: =INDEX(dms_TradingNameFull_List,MATCH(dms_TradingName,dms_TradingName_List)) -> Ausgrid
B3: =CONCATENATE((LOOKUP(dms_Model,dms_Model_List,dms_Worksheet_List))&" "&CRY) -> CATEGORY ANALYSIS 2016-17
B4: 2.10 OVERHEADS
B6: =CONCATENATE("Please note. This worksheet 2.10 Overheads is the original worksheet. We have also included a different version of the Overheads template (worksheet 2.10A Overheads) which collects the information in a different way. ",dms_TradingName, " is not obliged to complete worksheet 2.10A. However, the AER would prefer to collect Overheads information as presented in the revised worksheet 2.10A Overheads. If ",dms_TradingName," is prepared to complete worksheet 2.10A in lieu of the original worksheet 2.10 Overheads, please indicate that choice by selecting from the drop down list at the right. ",dms_TradingName, " is only required to complete one version of the Overheads worksheet in order to comply with the Category Analysis RIN.") -> Please note. This worksheet 2.10 Overheads is the original worksheet. We have also included a different version of the Overheads template (worksheet 2.10A Overheads) which collects the information in a different way. Ausgrid is not obliged to complete worksheet 2.10A. However, the AER would prefer to collect Overheads information as presented in the revised worksheet 2.10A Overheads. If Ausgrid is prepared to complete worksheet 2.10A in lieu of the original worksheet 2.10 Overheads, please indicate that choice by selecting from the drop down list at the right. Ausgrid is only required to complete one version of the Overheads worksheet in order to comply with the Category Analysis RIN. | D6: Choose Response drop down selection
D7: Worksheet 2.10A
B11: There are TWO tables on this worksheet. Each has been grouped (and sub-grouped) for ease of navigation. See the Instructions sheet on how to group or ungroup tables.
B13: =CONCATENATE("Instructions Please enter a description for each expenditure category as currently reported under ",dms_TradingName,"'s annual RIN.") -> Instructions Please enter a description for each expenditure category as currently reported under Ausgrid's annual RIN.
B15: 2.10.1 - NETWORK OVERHEADS EXPENDITURE
D16: EXPENDITURE ($0's)
D17: =CRY -> 2016-17
B18: NETWORK OVERHEADS
B19: Standard Control Services
B47: Alternative Control Services
B75: Negotiated Services | C75: Total
B76: Unregulated Services | C76: Total
B79: CAPITALISED NETWORK OVERHEADS
B80: Standard Control Services
B104: 2.10.2 - CORPORATE OVERHEADS EXPENDITURE
D105: EXPENDITURE ($0's)
D106: =CRY -> 2016-17
B107: CORPORATE OVERHEADS
B108: Standard Control Services
B129: Alternative Control Services
B150: Negotiated Services | C150: Total
B151: Unregulated Services | C151: Total
B153: CAPITALISED CORPORATE OVERHEADS
B154: Standard Control Services

Sheet 2.10(A) Overheads
B1: REGULATORY REPORTING STATEMENT
B2: =INDEX(dms_TradingNameFull_List,MATCH(dms_TradingName,dms_TradingName_List)) -> Ausgrid
B3: =CONCATENATE((LOOKUP(dms_Model,dms_Model_List,dms_Worksheet_List))&" "&CRY) -> CATEGORY ANALYSIS 2016-17
B4: 2.10(A) OVERHEADS
B6: This worksheet may be completed on a voluntary basis. Please see worksheet 2.10 for an explanation of Overheads reporting options.
B9: There are TWO tables on this worksheet. Each has been grouped (and sub-grouped) for ease of navigation. See the Instructions sheet on how to group or ungroup tables.
B11: 2.10.1 - NETWORK OVERHEADS EXPENDITURE
D12: EXPENDITURE ($0's)
D13: =CRY -> 2016-17
B14: OPEX
B15: Standard Control Services | C15: Total | D15: 134532303.1
B16: Alternative Control Services | C16: Total | D16: 31981794.11
B17: CAPEX
B18: Standard Control Services | C18: Total | D18: 118188122
B19: Alternative Control Services | C19: Total | D19: 7484733.45
B20: OTHER DISTRIBUTION SERVICES
B21: Negotiated Services | C21: Total
B22: Unregulated Services | C22: Total | D22: 3531796.062
B26: 2.10.2 - CORPORATE OVERHEADS EXPENDITURE
D27: EXPENDITURE ($0's)
D28: =CRY -> 2016-17
B29: OPEX
B30: Standard Control Services | C30: Total | D30: 143728978
B31: Alternative Control Services | C31: Total | D31: 17603072.8
B32: CAPEX
B33: Standard Control Services | C33: Total | D33: 3609283.56
B34: Alternative Control Services | C34: Total | D34: 492326.65
B35: OTHER DISTRIBUTION SERVICES
B36: Negotiated Services | C36: Total
B37: Unregulated Services | C37: Total | D37: 2573922.207

Sheet 2.11 Labour
B1: REGULATORY REPORTING STATEMENT
B2: =INDEX(dms_TradingNameFull_List,MATCH(dms_TradingName,dms_TradingName_List)) -> Ausgrid
B3: =CONCATENATE((LOOKUP(dms_Model,dms_Model_List,dms_Worksheet_List))&" "&CRY) -> CATEGORY ANALYSIS 2016-17
B4: 2.11 LABOUR
B6: There are TWO tables on this worksheet. Each has been grouped for ease of navigation. See the Instructions sheet on how to group or ungroup tables.
B8: 2.11.1 - COST METRICS PER ANNUM
D9: ASL (0's) | E9: TOTAL LABOUR EXPENDITURE ($0's) | F9: AVERAGE PRODUCTIVE WORK HOURS PER ASL (0's) | G9: STAND-DOWN OCCURENCES PER ASL (0's)
D11: =CRY -> 2016-17 | E11: =CRY -> 2016-17 | F11: =CRY -> 2016-17 | G11: =CRY -> 2016-17
B12: INTERNAL LABOUR EXPENDITURE
B13: CORPORATE OVERHEADS | C13: Executive manager | D13: 5.915346379 | E13: 2780678.975 | F13: 1466.984679 | G13: 0
C14: Senior manager | D14: 15.34648468 | E14: 4196303.177 | F14: 2769.072153 | G14: 0
C15: Manager | D15: 121.2126363 | E15: 27346390.96 | F15: 2861.434819 | G15: 0.05328056021
C16: Professional | D16: 291.7019272 | E16: 52590733.81 | F16: 2745.404029 | G16: 0.01820830299
C17: Semi professional | D17: 136.5539889 | E17: 17753012.88 | F17: 2585.607476 | G17: 0.02084925985
C18: Support staff | D18: 197.0272018 | E18: 22600851.57 | F18: 2762.951752 | G18: 0.07706255666
C19: Intern, junior staff, apprentice | D19: 1.98598805 | E19: 167681.1669 | F19: 1311.895659 | G19: 0
B20: NETWORK OVERHEADS | C20: Executive manager | D20: 0.8012140629 | E20: 657801.4831 | F20: 1586.469131 | G20: 0
C21: Senior manager | D21: 11.95002251 | E21: 2722456.871 | F21: 1411.322996 | G21: 0
C22: Manager | D22: 247.7017146 | E22: 58129176.97 | F22: 2977.023443 | G22: 2.989489803
C23: Professional | D23: 421.2854083 | E23: 85337847.38 | F23: 2998.399464 | G23: 0.07828594973
C24: Semi professional | D24: 376.6611088 | E24: 68323344.11 | F24: 2999.016403 | G24: 0.4792004199
C25: Support staff | D25: 154.5044711 | E25: 20552090.46 | F25: 3059.723114 | G25: 0.1012487344
C26: Intern, junior staff, apprentice | D26: 37.14564772 | E26: 6096663.138 | F26: 1504.017849 | G26: 0.4130335016
B27: TOTAL DIRECT NETWORK LABOUR | C27: Skilled electrical worker | D27: 1073.192143 | E27: 149022253 | F27: 1454.37942 | G27: 4.070400051
C28: Skilled non electical worker | D28: 36.88994111 | E28: 4504952.86 | F28: 1417.552873 | G28: 4.621072089
C29: Apprentice | D29: 29.20169553 | E29: 2366743.117 | F29: 1386.418731 | G29: 0.2335084647
C30: Unskilled worker | D30: 172.977002 | E30: 18240332.43 | F30: 2925.735061 | G30: 5.947311082
B33: 2.11.2 - DESCRIPTOR METRICS
D34: ORDINARY TIME (0's) | F34: OVERTIME (0's)
D35: PER ASL | E35: HOURLY RATE PER ASL | F35: PER ASL | G35: HOURLY RATE PER ASL
D36: =CRY -> 2016-17 | E36: =CRY -> 2016-17 | F36: =CRY -> 2016-17 | G36: =CRY -> 2016-17
B37: AVERAGE PRODUCTIVE WORK HOURS PER ASL
B38: CORPORATE OVERHEADS | C38: Executive manager | D38: 1466.984679 | E38: 311.1895338 | F38: 0 | G38: 0
C39: Senior manager | D39: 2769.072153 | E39: 169.6377262 | F39: 0 | G39: 0
C40: Manager | D40: 2855.307241 | E40: 104.138071 | F40: 6.127577551 | G40: 96.10614939
C41: Professional | D41: 2742.850765 | E41: 85.65929406 | F41: 2.553263772 | G41: 84.16112473
C42: Semi professional | D42: 2576.565839 | E42: 75.92890739 | F42: 9.041637133 | G42: 85.91316326
C43: Support staff | D43: 2751.216874 | E43: 60.75892589 | F43: 11.73487812 | G43: 69.53264472
C44: Intern, junior staff, apprentice | D44: 1311.895659 | E44: 42.50348495 | F44: 0 | G44: 0
B45: NETWORK OVERHEADS | C45: Executive manager | D45: 1586.469131 | E45: 277.9963571 | F45: 0 | G45: 0
C46: Senior manager | D46: 1411.322996 | E46: 168.2217038 | F46: 0 | G46: 0
C47: Manager | D47: 2923.248432 | E47: 97.74583391 | F47: 53.77501054 | G47: 94.06928339
C48: Professional | D48: 2964.331746 | E48: 91.37058584 | F48: 34.06771762 | G48: 121.7602931
C49: Semi professional | D49: 2975.665176 | E49: 81.32233503 | F49: 23.3512272 | G49: 97.13565597
C50: Support staff | D50: 3032.098754 | E50: 58.77053703 | F50: 27.62435958 | G50: 72.09748276
C51: Intern, junior staff, apprentice | D51: 1364.559755 | E51: 65.79837158 | F51: 139.4580932 | G51: 73.52327208
B52: TOTAL DIRECT NETWORK LABOUR | C52: Skilled electrical worker | D52: 1320.78864 | E52: 62.98262593 | F52: 133.5907796 | G52: 78.963787
C53: Skilled non electical worker | D53: 1350.212465 | E53: 57.65869663 | F53: 67.34040817 | G53: 68.32381703
C54: Apprentice | D54: 1357.160749 | E54: 38.39692216 | F54: 29.25798183 | G54: 48.34644753
C55: Unskilled worker | D55: 2822.492766 | E55: 50.90710721 | F55: 103.2422953 | G55: 65.30128791

Sheet 2.12 Input tables
B1: REGULATORY REPORTING STATEMENT
B2: =INDEX(dms_TradingNameFull_List,MATCH(dms_TradingName,dms_TradingName_List)) -> Ausgrid
B3: =CONCATENATE((LOOKUP(dms_Model,dms_Model_List,dms_Worksheet_List))&" "&CRY) -> CATEGORY ANALYSIS 2016-17
B4: 2.12 INPUT TABLES
B6: There is ONE table on this worksheet. It has been sub-grouped for ease of navigation. See the Instructions sheet on how to group or ungroup tables.
B8: 2.12.1 - INPUT TABLES
D9: DIRECT MATERIAL EXPENDITURE | E9: DIRECT LABOUR EXPENDITURE | F9: CONTRACT EXPENDITURE | G9: OTHER EXPENDITURE | H9: RELATED PARTY CONTRACT EXPENDITURE | I9: RELATED PARTY CONTRACT MARGIN EXPENDITURE
D10: EXPENDITURE ($0's)
D11: =CRY -> 2016-17 | E11: 2016-17 | F11: 2016-17 | G11: 2016-17 | H11: 2016-17 | I11: 2016-17
B12: VEGETATION MANAGEMENT | C12: ='2.7 Vegetation management'!B15 -> ZONE 1 | D12: 38272.37 | E12: 3027795.43 | F12: 47391428.69 | G12: 739.53
C13: ='2.7 Vegetation management'!B21 -> ZONE 2
C14: ='2.7 Vegetation management'!B27 -> ZONE 3
C15: ='2.7 Vegetation management'!B33 -> ZONE 4
C16: ='2.7 Vegetation management'!B39 -> ZONE 5
C17: ='2.7 Vegetation management'!B45 -> ZONE 6
C18: ='2.7 Vegetation management'!B51 -> ZONE 7
C19: ='2.7 Vegetation management'!B57 -> ZONE 8
C20: ='2.7 Vegetation management'!B63 -> ZONE 9
C21: ='2.7 Vegetation management'!B69 -> ZONE 10
C22: ='2.7 Vegetation management'!B75 -> ZONE 11
C23: ='2.7 Vegetation management'!B81 -> ZONE 12
C24: ='2.7 Vegetation management'!B87 -> ZONE 13
C25: ='2.7 Vegetation management'!B93 -> ZONE 14
C26: ='2.7 Vegetation management'!B99 -> ZONE 15
C27: ='2.7 Vegetation management'!B105 -> ZONE 16
C28: ='2.7 Vegetation management'!B111 -> ZONE 17
C29: ='2.7 Vegetation management'!B117 -> ZONE 18
B30: ROUTINE MAINTENANCE | C30: Pole top, overhead line & service line maintenance | D30: 501.74 | E30: 442497.53 | F30: 877463.425 | G30: 0
C31: Pole inspection and treatment | D31: 1272591.72 | E31: 710486.48 | F31: 6031217.02 | G31: 0
C32: Overhead asset inspection | D32: 0 | E32: 680877.11 | F32: 19933.34 | G32: 0
C33: Network underground cable maintenance | D33: 7584.52 | E33: 910656.14 | F33: 213999.86 | G33: 0
C34: Distribution substation equipment & property maintenance | D34: 70267.09 | E34: 5977770.03 | F34: 3492740.39 | G34: 2095.51
C35: Zone substation equipment maintenance | D35: 133869.89 | E35: 3644786.69 | F35: 748685.27 | G35: 143.84
C36: Zone substation property maintenance | D36: 10041.66 | E36: 664244.99 | F36: 1179390.2 | G36: 0
C37: Public lighting maintenance | D37: 730236 | E37: 304128 | F37: 3549397 | G37: 0
C38: Scada & network control maintenance | D38: 0 | E38: 21394.44 | F38: 796.67 | G38: 0
C39: Protection systems maintenance | D39: 0 | E39: 39275.31 | F39: 0 | G39: 0
C40: Subtransmission asset maintenance - for dnsps with dual function assets | D40: 22656.17 | E40: 1326960.03 | F40: 361793.84 | G40: 0
C41: Other
B42: NON-ROUTINE MAINTENANCE | C42: Pole top, overhead line & service line maintenance | D42: 129071.52 | E42: 4811372.86 | F42: 762944.35 | G42: 234
C43: Pole inspection and treatment | D43: 56147.85 | E43: 20360.17 | F43: 446281.89 | G43: 0
C44: Overhead asset inspection | D44: 0 | E44: 0 | F44: 0 | G44: 0
C45: Network underground cable maintenance | D45: 493089.54 | E45: 1568526.13 | F45: 1266095.47 | G45: 14430.9
C46: Distribution substation equipment & property maintenance | D46: 376334.19 | E46: 2957051.91 | F46: 1307231.17 | G46: 133.88
C47: Zone substation equipment maintenance | D47: 243675.88 | E47: 1435065.59 | F47: 683263.21 | G47: 2045.48
C48: Zone substation property maintenance | D48: 19710.31 | E48: 200833.79 | F48: 628037.11 | G48: 0
C49: Public lighting maintenance | D49: 5267.37 | E49: 98697.51 | F49: 44768.49 | G49: 0
C50: SCADA & network control maintenance | D50: 3878.15 | E50: 27382.78 | F50: 9756.48 | G50: 0
C51: Protection systems maintenance | D51: 15068.98 | E51: 180039.57 | F51: 3438.42 | G51: 0
C52: Subtransmission asset maintenance - for DNSP with dual function assets | D52: 66647.68 | E52: 681640.98 | F52: 361862.42 | G52: 0
C53: Other
B54: OVERHEADS | C54: Network overheads | D54: 20781816.96 | E54: 172509531.8 | F54: 53077262.25 | G54: 45818341.67
C55: Corporate overheads | D55: 2861979.224 | E55: 114160507.5 | F55: 15445024.44 | G55: 32966149.84
B56: AUGMENTATION | C56: Subtransmission substations, switching stations, zone substations | D56: 962574.33 | E56: 14190.75 | F56: 1444345.01 | G56: 233793.82
C57: Subtransmission lines | D57: 100905.96 | E57: 1403283.96 | F57: 4072213.78 | G57: 71458.01
C58: HV feeders | D58: 621986.16 | E58: 2637481.99 | F58: 199863 | G58: 435064.05
C59: Distribution substations | D59: 145303.3 | E59: 364419.31 | F59: 101004.2 | G59: 121909.01
C60: LV feeders | D60: 87386.11 | E60: 1987791.9 | F60: 387721.16 | G60: 262832.64
C61: Other assets | D61: 3304.73 | E61: 25364.29 | F61: 13269.64 | G61: 1080.48
B62: CONNECTIONS | C62: Simple and complex customer connections | D62: 1546546.17 | E62: 3601837.2 | F62: 2362445.82 | G62: 554907.32
B63: EMERGENCY RESPONSE | C63: Major storms | D63: 8603.62 | E63: 477089.8 | F63: 158354.8 | G63: 2277.77
C64: Major event days
B65: PUBLIC LIGHTING | C65: All public lighting services | D65: 3991435.569 | E65: 8968857.262 | F65: 9088618.156 | G65: 8800941.255
B66: METERING | C66: All metering services | D66: 4880453.81 | E66: 18052690.17 | F66: 12963622.31 | G66: 2806051.17
B67: FEE-BASED SERVICES | C67: All fee-based services | D67: 251558.5999 | E67: 19077628.15 | F67: 3923870.206 | G67: 6223659.421
B68: QUOTED SERVICES | C68: All quoted services | D68: 1131855.024 | E68: 21539103.06 | F68: 568158.925 | G68: 3073172.139
B69: REPLACEMENT | C69: Poles | D69: 2861901.389 | E69: 12112372.4 | F69: 14969954.6 | G69: 189743.2773
C70: Pole top structures | D70: 295811.862 | E70: 2111744.779 | F70: 474746.531 | G70: 47132.398
C71: Overhead conductors | D71: 1842408.368 | E71: 6453394.137 | F71: 1087360.574 | G71: 99764.552
C72: Underground cables | D72: 7518674.8 | E72: 24332672.15 | F72: 47215447.45 | G72: 1489777.8
C73: Service lines | D73: 1751022.89 | E73: 4657226.518 | F73: 58454.13 | G73: 4002.41
C74: Transformers | D74: 3462238.536 | E74: 4082139.235 | F74: 2301663.99 | G74: 366448.3807
C75: Switchgear | D75: 19886900.16 | E75: 25477875.77 | F75: 16569115.35 | G75: 625753.3849
C76: Public lighting
C77: SCADA network control and protection systems | D77: 3941582.581 | E77: 2776144.824 | F77: 4087462.23 | G77: 67222.51408
C78: Other | D78: 15058138.96 | E78: 24089635.03 | F78: 20934967.42 | G78: 1046595.313
B79: NON-NETWORK EXPENDITURE | C79: IT and communications | D79: 200609.07 | E79: 24934266.36 | F79: 21996302.78 | G79: 33721586.88
C80: Motor vehicles | D80: 1910892.19 | E80: 3913837.79 | F80: 5071037.53 | G80: 8850967.75
C81: Buildings and property | D81: 322432.33 | E81: 5851256.43 | F81: 11859930.31 | G81: 41927746.5
C82: Other | D82: 782766.08 | E82: 11300.41 | F82: 6284.04 | G82: 501016.85

Sheet 4.1 Public lighting
B1: REGULATORY REPORTING STATEMENT
B2: =INDEX(dms_TradingNameFull_List,MATCH(dms_TradingName,dms_TradingName_List)) -> Ausgrid
B3: =CONCATENATE((LOOKUP(dms_Model,dms_Model_List,dms_Worksheet_List))&" "&CRY) -> CATEGORY ANALYSIS 2016-17
B4: 4.1 PUBLIC LIGHTING
B7: There are THREE tables on this worksheet. Each has been grouped for ease of navigation. See the Instructions sheet on how to group or ungroup tables.
B9: 4.1.1 - DESCRIPTOR METRICS OVER YEAR
C10: LIGHT TYPE | E10: VOLUME (0's)
E11: =CRY -> 2016-17
B12: POPULATION OF LIGHTS | C12: DNSP to enter description for type of light
C13: 1000W/1500W MBI FLOODLIG | E13: 14
C14: 1000W MBF | E14: 8
C15: 1000W SON | E15: 40
C16: 1000W SON FLOODLIGHT | E16: 8
C17: 100W LED ALD | E17: 10
C18: 100W MBI | E18: 26
C19: 100W MBI FLOODLIGHT | E19: 6
C20: 100W SON | E20: 952
C21: 100W SON FLOODLIGHT | E21: 8
C22: 100W SON - PARKVILLE | E22: 14
C23: 100W SON -PLAIN | E23: 454
C24: 1*17W LED | E24: 1257
C25: 1*22W LED | E25: 14099
C26: 125W/250W MBF FLOODLIGHT | E26: 49
C27: 1*25W LED GE | E27: 3389
C28: 125W MBF | E28: 3638
C29: 125W MBF - BOURKE HILL | E29: 26
C30: 125W MBF - HYDE PARK | E30: 13
C31: 125W MBF - PARKVILLE | E31: 5
C32: 125W MBF -PLAIN | E32: 809
C33: 1*29W LED | E33: 15570
C34: 135W SOX | E34: 28
C35: 1*40W TF | E35: 313
C36: 150W/250W MBI FLOODLIGHT | E36: 38
C37: 150W SON | E37: 19369
C38: 150W SON ACTIVE REACTOR | E38: 2513
C39: 150W SON FLOODLIGHT | E39: 181
C40: 150W SON GEC 'BOSTON 3' | E40: 81
C41: 150W SON - HYDE PARK | E41: 6
C42: 150W SON - PARKVILLE | E42: 25
C43: 150W SON - PARKWAY 1 | E43: 238
C44: 17W LED SY RRW | E44: 47
C45: 180W SOX | E45: 1
C46: 1*80W TF | E46: 97
C47: 200W LED ALD | E47: 14
C48: 2*14W TF - T5 PIERLITE M | E48: 134
C49: 2*20W TF | E49: 10411
C50: 2*250W SON FLOODLIGHT | E50: 24
C51: 2*26W TF MACQUARIE DEC. | E51: 14
C52: 2*400W SON FLOODLIGHT | E52: 4
C53: 2*40W TF | E53: 14
C54: 250W MBF | E54: 14506
C55: 250W MBF - PARKWAY 1 | E55: 727
C56: 250W MBI - SMARTPOLE | E56: 18
C57: 250W SON | E57: 23072
C58: 250W SON ACTIVE REACTOR | E58: 3028
C59: 250W SON FLOODLIGHT | E59: 1548
C60: 250W SON GEC 'BOSTON 3' | E60: 93
C61: 250W SON - PARKVILLE | E61: 13
C62: 250W SON - PARKWAY 1 | E62: 55
C63: 2*80W MBF - BOURKE HILL | E63: 15
C64: 2X14W TF - T5 PIERLIGHT | E64: 91
C65: 400W MBF | E65: 5148
C66: 400W MBF - B2229 | E66: 123
C67: 400W MBF FLOODLIGHT | E67: 87
C68: 400W MBF - PARKWAY 1 | E68: 211
C69: 400W MBI | E69: 25
C70: 400W MBI FLOODLIGHT | E70: 86
C71: 400W MBI - SMARTPOLE | E71: 15
C72: 400W SON | E72: 1652
C73: 400W SON ACTIVE REACTOR | E73: 315
C74: 400W SON FLOODLIGHT | E74: 465
C75: 400W SON - PARKWAY 1 | E75: 16
C76: 4*20W TF | E76: 2
C77: 4*20W TF - WAVERLEY | E77: 10
C78: 4*250W SON | E78: 5
C79: 42W MBF SYLVANIA SUB ECO | E79: 42382
C80: 4*40W TF - WAVERLEY | E80: 2
C81: 4*600W SON | E81: 2
C82: 500W MBI FLOODLIGHT | E82: 1
C83: 50W MBF | E83: 9298
C84: 50W MBF - BOURKE HILL | E84: 18
C85: 50W MBF - NOSTALGIA | E85: 101
C86: 50W MBF - PLAIN | E86: 135
C87: 50W SON | E87: 463
C88: 50W SON - NOSTALGIA | E88: 3
C89: 50W SON -PLAIN | E89: 2
C90: 600W SON | E90: 1
C91: 700W MBF | E91: 1
C92: 700W MBF FLOODLIGHT | E92: 1
C93: 70W MBI | E93: 178
C94: 70W MBI II | E94: 368
C95: 70W MBI II AERO | E95: 17
C96: 70W MBI - MACQUARIE DEC. | E96: 119
C97: 70W SON | E97: 1662
C98: 70W SON BOLLARD | E98: 10
C99: 70W SON - BOURKE HILL | E99: 7
C100: 70W SON FLOODLIGHT | E100: 36
C101: 70W SON - GEC BOSTON 2 | E101: 1
C102: 70W SON - NOSTALGIA | E102: 112
C103: 70W SON - PARKVILLE | E103: 7
C104: 70W SON -PLAIN | E104: 179
C105: 70W SON - REGAL/FLINDERS | E105: 5
C106: 80W MBF | E106: 16658
C107: 80W MBF - BEGA+CURVE BRA | E107: 59
C108: 80W MBF BOLLARD | E108: 69
C109: 80W MBF - BOURKE HILL | E109: 1245
C110: 80W MBF - GEC BOSTON 2 | E110: 12
C111: 80W MBF - NOSTALGIA | E111: 613
C112: 80W MBF - PLAIN | E112: 507
C113: 80W MBF - REGAL/FLINDERS | E113: 49
C114: 80W MBF - SYLVANIA SUBUR | E114: 51609
C115: 80W MBF TOORAK | E115: 145
C116: LED TRIAL | E116: 67
C117: TH FLOODLIGHT | E117: 28
B214: 4.1.2 - DESCRIPTOR METRICS ANNUALLY
E217: VOLUMES & EXPENDITURE
B218: SERVICE/SERVICE QUALITY | C218: DESCRIPTOR METRIC | D218: UNITS | E218: =CRY -> 2016-17
B219: LIGHT INSTALLATION | C219: Major road light installation | D219: 0's | E219: 569
C220: Minor road light installation | D220: 0's | E220: 1056
C221: Number of poles installed | D221: 0's | E221: 1070
C222: Total cost | D222: $0s | E222: 1894598.65
B223: LIGHT REPLACEMENT | C223: Major road light replacement | D223: 0's | E223: 1662
C224: Minor road light replacement | D224: 0's | E224: 5703
C225: Number of poles replaced | D225: 0's | E225: 402
C226: Total cost | D226: $0s | E226: 7922777.86
B227: LIGHT MAINTENANCE | C227: Major road light maintenance | D227: 0's | E227: 27465
C228: Minor road light maintenance | D228: 0's | E228: 55457
C229: Number of poles installed | D229: 0's | E229: 251445
C230: Total cost | D230: $0s | E230: 21032475.73
B231: QUALITY OF SUPPLY | C231: Mean days to rectify/replace public lighting assets | D231: days | E231: 7
C232: GSO breaches | D232: 0's | E232: 431
C233: GSL payments | D233: $0s | E233: 6465
C234: Customer complaints | D234: 0's | E234: 3755
B237: 4.1.3 - COST METRICS
E238: AVERAGE UNIT COST ($)
B239: ACTIVITY TYPE | C239: LIGHT TYPE | E239: =CRY -> 2016-17
B240: LIGHT INSTALLATION | C240: DNSP to enter description for type of light
C241: LED
C242: LRL P3 2016 | E242: 499.4434693
C243: Gerard P3 2016 | E243: 453.7777437
C244: LRL P3 Cut Off 2016 | E244: 499.4434693
C245: Gerard P3 Cut Off 2016 | E245: 433.7293763
C246: Gerard P4/P5 2016 | E246: 423.7051926
C247: GE Evolve P4/P5 2016 | E247: 359.1048977
C248: Gerard P4/P5 Cut off 16 | E248: 433.7293763
C249: Gerard P4/P5 RRRW 2016 | E249: 433.7293763
C250: LRL V5 2016 | E250: 638.7728829
C251: LRL V5 Cut Off 2016 | E251: 638.7728829
C252: Aldridge V3 2016 | E252: 1117.706103
C253: Aldridge V1 2016 | E253: 1117.706103
C254: Aldridge V1 Cut Off 2016 | E254: 1105.454323
C255: Aldridge V1 High Cut Off 2016 | E255: 1251.361886
C256: HID
C257: 100W SON (P09) | E257: 520.710275
C258: 150W SON Active Reactor | E258: 761.2906835
C259: 250W SON Active Reactor | E259: 761.2906835
C260: 400W SON Active Reactor | E260: 850.3945385
B340: LIGHT REPLACEMENT | C340: DNSP to enter description for type of light
C341: LED
C342: LRL P3 2016 | E342: 499.4434693
C343: Gerard P3 2016 | E343: 453.7777437
C344: LRL P3 Cut Off 2016 | E344: 499.4434693
C345: Gerard P3 Cut Off 2016 | E345: 433.7293763
C346: Gerard P4/P5 2016 | E346: 423.7051926
C347: GE Evolve P4/P5 2016 | E347: 359.1048977
C348: Gerard P4/P5 Cut off 16 | E348: 433.7293763
C349: Gerard P4/P5 RRRW 2016 | E349: 433.7293763
C350: LRL V5 2016 | E350: 638.7728829
C351: LRL V5 Cut Off 2016 | E351: 638.7728829
C352: Aldridge V3 2016 | E352: 1117.706103
C353: Aldridge V1 2016 | E353: 1117.706103
C354: Aldridge V1 Cut Off 2016 | E354: 1105.454323
C355: Aldridge V1 High Cut Off 2016 | E355: 1251.361886
C356: HID
C357: 100W SON (P09) | E357: 520.710275
C358: 150W SON Active Reactor | E358: 761.2906835
C359: 250W SON Active Reactor | E359: 761.2906835
C360: 400W SON Active Reactor | E360: 850.3945385
B440: LIGHT MAINTENANCE | C440: DNSP to enter description for type of light
C441: LED1x29 | E441: 29.70666914
C442: MBF1x1000 (P09) | E442: 88.74561002
C443: MBF1x125 (P09) | E443: 45.9826821
C444: MBF1x250 (P09) | E444: 52.47556689
C445: MBF1x400 (P09) | E445: 52.47556689
C446: MBF1x42 (P09) | E446: 42.88504289
C447: MBF1x50 (P09) | E447: 46.1706905
C448: MBF1x80 (P09) | E448: 44.90949154
C449: MBI1x100 (P09) | E449: 61.28760581
C450: MBI1x1000 (P09) | E450: 112.0269334
C451: MBI1x150 (P09) | E451: 93.86986283
C452: MBI1x250 (P09) | E452: 60.63001763
C453: MBI1x400 (P09) | E453: 61.60806009
C454: MBI1x70 (P09) | E454: 56.76660315
C455: MBI1x70 II | E455: 68.29080824
C456: SON1x100 (P09) | E456: 84.65339048
C457: SON1x1000 (P09) | E457: 87.74651813
C458: SON1x150 (P09) | E458: 72.76920769
C459: SON1x150 AR | E459: 65.33858647
C460: SON1x250 (P09) | E460: 76.19624402
C461: SON1x250 AR | E461: 66.38954428
... 9 more rows

Sheet 4.2 Metering
B1: REGULATORY REPORTING STATEMENT
B2: =INDEX(dms_TradingNameFull_List,MATCH(dms_TradingName,dms_TradingName_List)) -> Ausgrid
B3: =CONCATENATE((LOOKUP(dms_Model,dms_Model_List,dms_Worksheet_List))&" "&CRY) -> CATEGORY ANALYSIS 2016-17
B4: 4.2 METERING
B6: There are TWO tables on this worksheet. Each has been grouped for ease of navigation. See the Instructions sheet on how to group or ungroup tables.
B8: 4.2.1 - METERING DESCRIPTOR METRIC
D9: VOLUMES (0's)
B10: ASSET CATEGORY | C10: ASSET SUBCATEGORY | D10: =CRY -> 2016-17
B11: Meter Type 4 | C11: Single phase meter population
C12: Multi phase meter population
C13: Current transformer connected meter population
C14: Direct connect meter population
B15: Meter Type 5 | C15: Single phase meter population | D15: 471605
C16: Multi phase meter population | D16: 134610
C17: Current transformer connected meter population | D17: 8317
C18: Direct connect meter population | D18: 597898
B19: Meter Type 6 | C19: Single phase meter population | D19: 1637498
C20: Multi phase meter population | D20: 73643
C21: Current transformer connected meter population | D21: 2549
C22: Direct connect meter population | D22: 1708592
B25: 4.2.2 - COST METRICS
D26: VOLUMES (0's) | E26: EXPENDITURE ($0's)
B27: SERVICE SUBCATEGORY | C27: METER TYPE | D27: =CRY -> 2016-17 | E27: =CRY -> 2016-17
B28: Meter purchase | C28: Meter Type 4
C29: Meter Type 5 | D29: 64605 | E29: 4326303.47
C30: Meter Type 6
B31: Meter testing | C31: Meter Type 4
C32: Meter Type 5 | D32: 459 | E32: 11295.09
C33: Meter Type 6
B34: Meter investigation | C34: Meter Type 4
C35: Meter Type 5 | D35: 4464 | E35: 763506.87
C36: Meter Type 6
B37: Scheduled meter reading | C37: Meter Type 4
C38: Meter Type 5 | D38: 2109965 | E38: 2945442.026
C39: Meter Type 6 | D39: 4560136 | E39: 3701542.017
B40: Special meter reading | C40: Meter Type 4
C41: Meter Type 5 | D41: 56788 | E41: 554047.35
C42: Meter Type 6
B43: New meter installation | C43: Meter Type 4
C44: Meter Type 5 | D44: 0 | E44: 0
C45: Meter Type 6
B46: Meter replacement | C46: Meter Type 4
C47: Meter Type 5 | D47: 64605 | E47: 7638226.98
C48: Meter Type 6
B49: Meter maintenance | C49: Meter Type 4
C50: Meter Type 5 | D50: 7631 | E50: 708587.54
C51: Meter Type 6
B52: Remote meter reading | C52: Meter Type 4
B53: Remote meter re-configuration | C53: Meter Type 4
B54: Other metering | C54: Meter Type 4
C55: Meter Type 5 | E55: 2398970.25
C56: Meter Type 6
C57: Meter Type 7
B58: IT infrastructure capex | C58: Meter Type 4 | E58: 2304794.88
B59: IT infrastructure opex | C59: Meter Type 4 | E59: 13350100.91
B60: Communications infrastructure capex | C60: Meter Type 4
B61: Communications infrastructure opex | C61: Meter Type 4

Sheet 4.3 Fee-based services
B1: REGULATORY REPORTING STATEMENT
B2: =INDEX(dms_TradingNameFull_List,MATCH(dms_TradingName,dms_TradingName_List)) -> Ausgrid
B3: =CONCATENATE((LOOKUP(dms_Model,dms_Model_List,dms_Worksheet_List))&" "&CRY) -> CATEGORY ANALYSIS 2016-17
B4: 4.3 ANCILLARY SERVICES - FEE BASED SERVICES
B6: 4.3.1 - COST METRICS FOR FEE-BASED SERVICES
D7: EXPENDITURE ($0's) | F7: VOLUMES (0's)
B8: SERVICE | C8: SERVICE SUBCATEGORY | D8: =CRY -> 2016-17 | F8: =CRY -> 2016-17
B9: Common Fee-Based Services | C9: Energisation | E9: ED_FEE431_00001
C10: De-energisation | E10: ED_FEE431_00002
C11: Re-energisation | E11: ED_FEE431_00003
B12: Miscellaneous Fee-Based Services | C12: Site Establishment | D12: 1038549.689 | E12: ED_FEE431_00004 | F12: 31357
C13: Special meter reading for types 5 and 6 meters & MIMO Read | D13: 4836883.247 | E13: ED_FEE431_00005 | F13: 599772
C14: Meter Test (for Type 5 and 6 meter) | D14: 214999.5083 | E14: ED_FEE431_00006 | F14: 333
C15: Franchise current transformer (CT) meter install | D15: 133275.8499 | E15: ED_FEE431_00007 | F15: 166
C16: Types 5-7 non-standard Meter Data Services | D16: 0 | E16: ED_FEE431_00008 | F16: 0
C17: Emergency maintenance of failed metering equipment not owned by the DNSP | D17: 0 | E17: ED_FEE431_00009 | F17: 13
C18: Off peak conversion | D18: 141208.1769 | E18: ED_FEE431_00010 | F18: 1188
C19: Disconnection Visit (Site Visit Only - Payment Received) | D19: 545303.0622 | E19: ED_FEE431_00011 | F19: 10338
C20: Disconnection Completed | D20: 1422792.42 | E20: ED_FEE431_00012 | F20: 10980
C21: Disconnection Visit (Disconnection Completed – Technical/Advanced) | D21: 146739.6246 | E21: ED_FEE431_00013 | F21: 244
C22: Pillar/Pole Top Disconnection Completed | D22: 54727.08359 | E22: ED_FEE431_00014 | F22: 68
C23: Pillar/Pole Top Site Visit | D23: 11766.14427 | E23: ED_FEE431_00015 | F23: 29
C24: Reconnection/Disconnection Outside Normal Business Hours | D24: 116149.0585 | E24: ED_FEE431_00016 | F24: 3931
C25: Recovery of Debt Collection Costs - Dishonoured Transactions | D25: 0 | E25: ED_FEE431_00017 | F25: 0
C26: Retailer of Last Resort (ROLR) | D26: 0 | E26: ED_FEE431_00018 | F26: 0
C27: Perform a statutory right where access is prevented | D27: 0 | E27: ED_FEE431_00019 | F27: 2
C28: Vacant Property Disconnection | D28: 2088865.859 | E28: ED_FEE431_00020 | F28: 23435
C29: Vacant Property Site Visit | D29: 588173.6367 | E29: ED_FEE431_00021 | F29: 26777
C30: Supply & connect temporary supply to one or more customers: Install & remove HV LL links - New | D30: 0 | E30: ED_FEE431_00103 | F30: 0
C31: Supply & connect temporary supply to one or more customers: Break & remake HV bonds - New | D31: 85657.4 | E31: ED_FEE431_00104 | F31: 10
C32: Supply & connect temporary supply to one or more customers: Break & remake LV bonds - New | D32: 296270.11 | E32: ED_FEE431_00105 | F32: 89
C33: Design Information - underground urban residential subdivision (vacant lots) up to 5 lots | D33: 32858.77 | E33: ED_FEE431_00004 | F33: 6
C34: Design Information - underground urban residential subdivision (vacant lots) 6 to 10 lots | D34: 9442.71 | E34: ED_FEE431_00005 | F34: 11
C35: Design Information - underground urban residential subdivision (vacant lots) 11 to 40 lots | D35: 46191.68 | E35: ED_FEE431_00006 | F35: 57
C36: Design Information - underground urban residential subdivision (vacant lots) over 40 lots | D36: 23411.21 | E36: ED_FEE431_00007 | F36: 26
C37: Design Information - URD including Kisosk/HVC/PT (NOTE: Subset of overall Des Info costs.) | D37: 36017.52 | E37: ED_FEE431_00008 | F37: 30
C38: Design Certification - underground urban residential subdivision (vacant lots) up to 5 lots | D38: 20235.47 | E38: ED_FEE431_00009 | F38: 5
C39: Design Certification - underground urban residential subdivision (vacant lots) 6 to 10 lots | D39: 17390.78 | E39: ED_FEE431_00010 | F39: 10
C40: Design Certification - underground urban residential subdivision (vacant lots) 11 to 40 lots | D40: 112354.21 | E40: ED_FEE431_00011 | F40: 69
C41: Design Certification - underground urban residential subdivision (vacant lots) over 40 lots | D41: 36114.14 | E41: ED_FEE431_00012 | F41: 25
C42: Design Certification - rural overhead subdivisions and rural extensions 1 to 5 poles | D42: 40919.16 | E42: ED_FEE431_00013 | F42: 48
C43: Design Certification - rural overhead subdivisions and rural extensions 6 to 10 poles | D43: 9133.34 | E43: ED_FEE431_00014 | F43: 6
C44: Design Certification - rural overhead subdivisions and rural extensions 11 or more poles | D44: 2091.62 | E44: ED_FEE431_00015 | F44: 0
C45: Design Certification - underground commercial and industrial or rural subdivisions (vacant lots - no developments) up to 10 lots | D45: 10430.26 | E45: ED_FEE431_00016 | F45: 11
C46: Design Certification - underground commercial and industrial or rural subdivisions (vacant lots - no developments) 11 to 40 lots | D46: 9977.59 | E46: ED_FEE431_00017 | F46: 4
C47: Design Certification - underground commercial and industrial or rural subdivisions (vacant lots - no developments) over 40 lots | D47: 1434.86 | E47: ED_FEE431_00018 | F47: 4
C48: Design Certification - Kisosk/HVC/PT (NOTE: Subset of overall Des Cert costs.) | D48: 36838.39 | E48: ED_FEE431_00019 | F48: 104
C49: Inspection of service works by level 1 ASPs - underground urban residential subdivisions (vacant lots - no development) first 10 lots - A Grade | D49: 96276.68 | E49: ED_FEE431_00020 | F49: 422
C50: Inspection of service works by level 1 ASPs - underground urban residential subdivisions (vacant lots - no development) first 10 lots - B Grade | D50: 105664.87 | E50: ED_FEE431_00021 | F50: 560
C51: Inspection of service works by level 1 ASPs - underground urban residential subdivisions (vacant lots - no development) first 10 lots - C Grade | D51: 0 | E51: ED_FEE431_00022 | F51: 0
C52: Inspection of service works by level 1 ASPs - underground urban residential subdivisions (vacant lots - no development) next 40 lots - A Grade | D52: 57521.29 | E52: ED_FEE431_00023 | F52: 723
C53: Inspection of service works by level 1 ASPs - underground urban residential subdivisions (vacant lots - no development) next 40 lots - B Grade | D53: 198221.99 | E53: ED_FEE431_00024 | F53: 821
C54: Inspection of service works by level 1 ASPs - underground urban residential subdivisions (vacant lots - no development) next 40 lots - C Grade | D54: 0 | E54: ED_FEE431_00025 | F54: 0
C55: Inspection of service works by level 1 ASPs - underground urban residential subdivisions (vacant lots - no development) remainder lots - A Grade | D55: 2773.57 | E55: ED_FEE431_00026 | F55: 143
C56: Inspection of service works by level 1 ASPs - underground urban residential subdivisions (vacant lots - no development) remainder lots - B Grade | D56: 3100.99 | E56: ED_FEE431_00027 | F56: 34
C57: Inspection of service works by level 1 ASPs - underground urban residential subdivisions (vacant lots - no development) remainder lots - C Grade | D57: 0 | E57: ED_FEE431_00028 | F57: 0
C58: Inspection of service works by level 1 ASPs - underground urban residential subdivisions (vacant lots - no development) travel | D58: 49484.23 | E58: ED_FEE431_00029 | F58: 299
C59: Inspection of service works by level 1 ASPs - Rural overhead subdivisions and rural extensions 1-5 poles - A Grade | D59: 14023.83 | E59: ED_FEE431_00030 | F59: 43
C60: Inspection of service works by level 1 ASPs - Rural overhead subdivisions and rural extensions 1-5 poles - B Grade | D60: 98876.55 | E60: ED_FEE431_00031 | F60: 60
C61: Inspection of service works by level 1 ASPs - Rural overhead subdivisions and rural extensions 1-5 poles - C Grade | D61: 0 | E61: ED_FEE431_00032 | F61: 0
C62: Inspection of service works by level 1 ASPs - Rural overhead subdivisions and rural extensions 6-10 poles - A Grade | D62: 284.97 | E62: ED_FEE431_00033 | F62: 12
C63: Inspection of service works by level 1 ASPs - Rural overhead subdivisions and rural extensions 6-10 poles - B Grade | D63: 12795.27 | E63: ED_FEE431_00034 | F63: 8
C64: Inspection of service works by level 1 ASPs - Rural overhead subdivisions and rural extensions 6-10 poles - C Grade | D64: 0 | E64: ED_FEE431_00035 | F64: 0
C65: Inspection of service works by level 1 ASPs - Rural overhead subdivisions and rural extensions 11+ poles - A Grade | D65: 1615.6 | E65: ED_FEE431_00036 | F65: 27
C66: Inspection of service works by level 1 ASPs - Rural overhead subdivisions and rural extensions 11+ poles - B Grade | D66: 3771.77 | E66: ED_FEE431_00037 | F66: 50
C67: Inspection of service works by level 1 ASPs - Rural overhead subdivisions and rural extensions 11+ poles - C Grade | D67: 0 | E67: ED_FEE431_00038 | F67: 0
C68: Inspection of service works by level 1 ASPs - Rural overhead subdivisions and rural extensions - travel | D68: 13986.99 | E68: ED_FEE431_00039 | F68: 131
C69: Inspection of service works by level 1 ASPs - underground commercial and industrial or rural subdivisions (vacant lots - no development) first 10 lots A | D69: 21551.15 | E69: ED_FEE431_00040 | F69: 20
C70: Inspection of service works by level 1 ASPs - underground commercial and industrial or rural subdivisions (vacant lots - no development) first 10 lots B | D70: 20642.81 | E70: ED_FEE431_00041 | F70: 18
C71: Inspection of service works by level 1 ASPs - underground commercial and industrial or rural subdivisions (vacant lots - no development) first 10 lots C | D71: 0 | E71: ED_FEE431_00042 | F71: 1
C72: Inspection of service works by level 1 ASPs - underground commercial and industrial or rural subdivisions (vacant lots - no development) next 40 lots A | D72: 3849.28 | E72: ED_FEE431_00043 | F72: 0
C73: Inspection of service works by level 1 ASPs - underground commercial and industrial or rural subdivisions (vacant lots - no development) next 40 lots B | D73: 4409.43 | E73: ED_FEE431_00044 | F73: 4
C74: Inspection of service works by level 1 ASPs - underground commercial and industrial or rural subdivisions (vacant lots - no development) next 40 lots C | D74: 0 | E74: ED_FEE431_00045 | F74: 0
C75: Inspection of service works by level 1 ASPs - underground commercial and industrial or rural subdivisions (vacant lots - no development) remainder A | D75: 169 | E75: ED_FEE431_00046 | F75: 0
C76: Inspection of service works by level 1 ASPs - underground commercial and industrial or rural subdivisions (vacant lots - no development) remainder B | D76: 1368.04 | E76: ED_FEE431_00047 | F76: 0
C77: Inspection of service works by level 1 ASPs - underground commercial and industrial or rural subdivisions (vacant lots - no development) remainder C | D77: 0 | E77: ED_FEE431_00048 | F77: 0
C78: Inspection of service works by level 1 ASPs - underground commercial and industrial or rural subdivisions (vacant lots - no development) travel | D78: 5346.03 | E78: ED_FEE431_00049 | F78: 56
C79: Inspection of service works by level 1 ASPs - HV or LV UG joint, ABS/enclosed switch | D79: 7506.07 | E79: ED_FEE431_00050 | F79: 174
C80: Inspection of service works by level 1 ASPs - decommission substation | D80: 103322.14 | E80: ED_FEE431_00051 | F80: 13
C81: Inspection of service works by level 1 ASPs - substation (kiosk/PT) or HV Sw cubicle | D81: 243461.47 | E81: ED_FEE431_00052 | F81: 89
C82: Inspection of service work by level 2 ASPs - NOSW A Grade | D82: 494383.12 | E82: ED_FEE431_00053 | F82: 5276
C83: Inspection of service work by level 2 ASPs - NOSW B Grade | D83: 451536.76 | E83: ED_FEE431_00054 | F83: 5396
C84: Inspection of service work by level 2 ASPs - NOSW C Grade | D84: 9970.97 | E84: ED_FEE431_00055 | F84: 126
C85: Contestable substation commissioning - underground urban residential subdivisions (vacant lots) | D85: 96081.69 | E85: ED_FEE431_00056 | F85: 64
C86: Contestable substation commissioning - rural overhead subdivisions and rural extensions | D86: 25046.74 | E86: ED_FEE431_00057 | F86: 41
C87: Contestable substation commissioning - underground commercial and industrial or rural subdivisions (vacant lots - no developments) | D87: 54535.69 | E87: ED_FEE431_00058 | F87: 8
C88: Access Permits - underground residential urban subdivisions (vacant lots) | D88: 754815.2 | E88: ED_FEE431_00059 | F88: 129
C89: Access Permits - rural overhead subdivisions and rural extensions | D89: 271818.34 | E89: ED_FEE431_00060 | F89: 55
C90: Access Permits - underground commercial and industrial or rural subdivisions (vacant lots - no developments) | D90: 109230.19 | E90: ED_FEE431_00061 | F90: 14
C91: Access Permits - commercial and industrial developments | D91: 4160530.99 | E91: ED_FEE431_00062 | F91: 715
C92: Access Permits - asset relocation or street lighting | D92: 1437727.25 | E92: ED_FEE431_00063 | F92: 440
C93: Clearance to Work | D93: 1298263.46 | E93: ED_FEE431_00064 | F93: 413
C94: Notices of Arrangement | D94: 130103.1 | E94: ED_FEE431_00065 | F94: 419
C95: Authorisation of ASP Level 1 | D95: 323385 | E95: ED_FEE431_00066 | F95: 940
C96: Authorisation of ASP Level 2 | D96: 380224 | E96: ED_FEE431_00067 | F96: 715
C97: Administration relating to work performed by ASPs - underground urban residential subdivision (vacant lots) up to 5 lots | D97: 8012.76 | E97: ED_FEE431_00068 | F97: 6
C98: Administration relating to work performed by ASPs - underground urban residential subdivision (vacant lots) 6 to 10 lots | D98: 15357.16 | E98: ED_FEE431_00069 | F98: 12
C99: Administration relating to work performed by ASPs - underground urban residential subdivision (vacant lots) 11 to 40 lots | D99: 115312.12 | E99: ED_FEE431_00070 | F99: 61
C100: Administration relating to work performed by ASPs - underground urban residential subdivision (vacant lots) over 40 lots | D100: 35895.48 | E100: ED_FEE431_00071 | F100: 24
C101: Administration relating to work perfromed by ASPs - rural overhead subdivisions and rural extensions up to 5 lots | D101: 58636.03 | E101: ED_FEE431_00072 | F101: 46
C102: Administration relating to work perfromed by ASPs - rural overhead subdivisions and rural extensions 6 to 10 lots | D102: 9811.06 | E102: ED_FEE431_00073 | F102: 6
C103: Administration relating to work perfromed by ASPs - rural overhead subdivisions and rural extensions 11 or more | D103: 7047.51 | E103: ED_FEE431_00074 | F103: 1
C104: Administration relating to work perfromed by ASPs - subdivision involving substation/s (NOTE: Subset of overall Admin costs.) | D104: 17738.07 | E104: ED_FEE431_00075 | F104: 106
C105: Supply of conveyancing information: Desk enquiry | D105: 5323.77 | E105: ED_FEE431_00076 | F105: 0
C106: Supply of conveyancing information: Field visit | D106: 57275.27 | E106: ED_FEE431_00077 | F106: 35
C107: Connection offer service: Basic 100A Connections NOT requiring a load slip | D107: 711415.94 | E107: ED_FEE431_00078 | F107: 25831
C108: Connection offer service: Basic 100A Connections requiring a load slip or Basic Micro EG Connections >5kW or Basic Over 100A Connection Offer (new or existing site) | D108: 1909108.29 | E108: ED_FEE431_00079 | F108: 15937
C109: Connection Offer Service: Standard Off-site or On-site augmentation work | D109: 60512.38 | E109: ED_FEE431_00080 | F109: 1
C110: Connection Offer Service: Standard ASP 1 Connections | D110: 192085.46 | E110: ED_FEE431_00081 | F110: 726
C111: Indirect costs - corporate allocations | D111: 2753461.971
E112: ED_FEE431_00104
E113: ED_FEE431_00105
E114: ED_FEE431_00106
E115: ED_FEE431_00107
E116: ED_FEE431_00108
E117: ED_FEE431_00109
E118: ED_FEE431_00110
E119: ED_FEE431_00111
E120: ED_FEE431_00112
E121: ED_FEE431_00113
E122: ED_FEE431_00114
E123: ED_FEE431_00115
E124: ED_FEE431_00116
E125: ED_FEE431_00117
E126: ED_FEE431_00118
E127: ED_FEE431_00119
E128: ED_FEE431_00120
E129: ED_FEE431_00121
E130: ED_FEE431_00122
E131: ED_FEE431_00123
E132: ED_FEE431_00124
E133: ED_FEE431_00125
E134: ED_FEE431_00126
E135: ED_FEE431_00127
E136: ED_FEE431_00128
E137: ED_FEE431_00129
E138: ED_FEE431_00130
E139: ED_FEE431_00131
E140: ED_FEE431_00132
E141: ED_FEE431_00133
E142: ED_FEE431_00134
E143: ED_FEE431_00135
E144: ED_FEE431_00136
E145: ED_FEE431_00137
E146: ED_FEE431_00138
E147: ED_FEE431_00139
E148: ED_FEE431_00140
E149: ED_FEE431_00141
E150: ED_FEE431_00142
E151: ED_FEE431_00143
E152: ED_FEE431_00144
E153: ED_FEE431_00145
E154: ED_FEE431_00146
E155: ED_FEE431_00147
E156: ED_FEE431_00148
E157: ED_FEE431_00149
E158: ED_FEE431_00150
E159: ED_FEE431_00151
E160: ED_FEE431_00152
E161: ED_FEE431_00153
E162: ED_FEE431_00154
E163: ED_FEE431_00155
E164: ED_FEE431_00156
E165: ED_FEE431_00157
E166: ED_FEE431_00158
E167: ED_FEE431_00159
E168: ED_FEE431_00160
E169: ED_FEE431_00161
E170: ED_FEE431_00162
E171: ED_FEE431_00163
E172: ED_FEE431_00164
E173: ED_FEE431_00165
E174: ED_FEE431_00166
E175: ED_FEE431_00167
E176: ED_FEE431_00168
E177: ED_FEE431_00169
E178: ED_FEE431_00170
E179: ED_FEE431_00171
E180: ED_FEE431_00172
E181: ED_FEE431_00173
E182: ED_FEE431_00174
E183: ED_FEE431_00175
E184: ED_FEE431_00176
E185: ED_FEE431_00177
E186: ED_FEE431_00178
E187: ED_FEE431_00179
E188: ED_FEE431_00180
E189: ED_FEE431_00181
E190: ED_FEE431_00182
E191: ED_FEE431_00183
E192: ED_FEE431_00184
E193: ED_FEE431_00185
E194: ED_FEE431_00186
E195: ED_FEE431_00187
E196: ED_FEE431_00188
E197: ED_FEE431_00189
E198: ED_FEE431_00190
E199: ED_FEE431_00191
E200: ED_FEE431_00192
E201: ED_FEE431_00193
... 278 more rows

Sheet 4.4 Quoted services
B1: REGULATORY REPORTING STATEMENT
B2: =INDEX(dms_TradingNameFull_List,MATCH(dms_TradingName,dms_TradingName_List)) -> Ausgrid
B3: =CONCATENATE((LOOKUP(dms_Model,dms_Model_List,dms_Worksheet_List))&" "&CRY) -> CATEGORY ANALYSIS 2016-17
B4: 4.4 ANCILLARY SERVICES - QUOTED SERVICES
B6: 4.4.1 - COST METRICS FOR QUOTED SERVICES
D7: EXPENDITURE ($0's) | F7: VOLUMES (0's)
B8: SERVICE | C8: SERVICE SUBCATEGORY | D8: =CRY -> 2016-17 | F8: =CRY -> 2016-17
B9: Quoted Services | C9: Access Stand-by-person | D9: 299868.55 | E9: ED_QUO441_00023 | F9: 126
C10: Rectification Works - Provision of service/additional crew | D10: 111204.14 | E10: ED_QUO441_00031 | F10: 48
C11: Rectification Works - fitting of tigrer tails | D11: 3375763.49 | E11: ED_QUO441_00032 | F11: 2360
C12: Rectification Works - high load escorts | D12: 93619.66 | E12: ED_QUO441_00033 | F12: 5
C13: Design Information - rural overhead subdivisions and rural extensions | D13: 27526.65 | E13: ED_QUO441_00001 | F13: 51
C14: Design Information - underground commercial and industrial or rural subdivisions (vacant lots - no development) | D14: 44242.52 | E14: ED_QUO441_00002 | F14: 19
C15: Design Information - commercial and industrial developments | D15: 995038.26 | E15: ED_QUO441_00003 | F15: 670
C16: Design Information - asset relocation or street lighting | D16: 496168.72 | E16: ED_QUO441_00004 | F16: 433
C17: Design Information - chambers, multi-kiosk, CBD Chambers (NOTE: Subset of overall Des Info costs.) | D17: 162235.71 | E17: ED_QUO441_00005 | F17: 127
C18: Design Certification - commercial and industrial development | D18: 2058691.67 | E18: ED_QUO441_00006 | F18: 671
C19: Design Certification - asset relocation or street lighting | D19: 846916.82 | E19: ED_QUO441_00007 | F19: 472
C20: Design Certification - chambers, multi-kiosks, CBD chambers (NOTE: Subset of overall Des Cert costs.) | D20: 473098.27 | E20: ED_QUO441_00008 | F20: 123
C21: Design Rechecking - underground urban residential subdivision (vacant lots) | D21: 42354.18 | E21: ED_QUO441_00009 | F21: 60
C22: Design Rechecking - rural overhead subdivisions and rural extensions | D22: 13737.97 | E22: ED_QUO441_00010 | F22: 12
C23: Design Rechecking - underground commercial and industrial or rural subdivisions (vacant lots - no development) | D23: 5678.62 | E23: ED_QUO441_00011 | F23: 7
C24: Design Rechecking - commercial and industrial developments | D24: 228201.59 | E24: ED_QUO441_00012 | F24: 200
C25: Design Rechecking - asset relocation or street lighting | D25: 69764.51 | E25: ED_QUO441_00013 | F25: 66
C26: Inspection of service works by level 1 ASPs - commercial and industrial developments | D26: 2102426.72 | E26: ED_QUO441_00014 | F26: 1084
C27: Inspection of service works by level 1 ASPs - asset relocation or street lighting | D27: 1078153.77 | E27: ED_QUO441_00015 | F27: 593
C28: Level 1 Reinspections | D28: 2358.18 | E28: ED_QUO441_00016 | F28: 124
C29: Level 2 Reinspections | D29: 24521.74 | E29: ED_QUO441_00017 | F29: 235
C30: Reinspection of Installation (CoCEW) | D30: 224615.24 | E30: ED_QUO441_00018 | F30: 1027
C31: Contestable substation commissioning - commercial and industrial developments | D31: 824492.14 | E31: ED_QUO441_00019 | F31: 215
C32: Contestable substation commissioning - asset relocation or street lighting. Volumes are a subset of the figures above. | D32: 251428.74 | E32: ED_QUO441_00020 | F32: 8
C33: Contestable substation commissioning - complex and chamber substations. (NOTE: Subset of overall Sub Commissioning costs.) | D33: 875689.06 | E33: ED_QUO441_00021 | F33: 97
C34: Access Permits - complex and chamber substations | D34: 1026088.88 | E34: ED_QUO441_00022 | F34: 168
C35: Access Stand-by-person | E35: ED_QUO441_00023
C36: Administration relating to work perfromed by ASPs - underground commercial and industrial or rural subdivisions (vacant lots - no development) | D36: 58144.35 | E36: ED_QUO441_00024 | F36: 21
C37: Administration relating to work perfromed by ASPs - commercial and industrial developments | D37: 1116301.41 | E37: ED_QUO441_00025 | F37: 808
C38: Administration relating to work perfromed by ASPs - asset relocation or street lighting | D38: 455212.79 | E38: ED_QUO441_00026 | F38: 720
C39: Administration relating to work perfromed by ASPs - guarantee of revenue, clarification meetings, variations to contract, reinspections etc. (NOTE: Forecast volumes in addition to overall Admin volumes) | D39: 49392.18 | E39: ED_QUO441_00027 | F39: 66
C40: Customer interface coodrination for contestable works | D40: 77319.39 | E40: ED_QUO441_00028 | F40: 7
C41: Preliminary enquiry service | D41: 230471.88 | E41: ED_QUO441_00029 | F41: 235
C42: Connection Offer Service: Standard Embedded Generation >5MVA capacity | D42: 0 | E42: ED_QUO441_00030 | F42: 0
C43: Rectification Works - Provision of service/additional crew | E43: ED_QUO441_00031
C44: Rectification Works - fitting of tigrer tails | E44: ED_QUO441_00032
C45: Rectification Works - high load escorts | E45: ED_QUO441_00033
C46: Connection/relocation process facilitation | D46: 1975343.76 | E46: ED_QUO441_00034 | F46: 1976
C47: Carrying out planning studies and analysis relating to distribution (including subtransmission and dual function assets) connection applications | D47: 501120.59 | E47: ED_QUO441_00035 | F47: 39
C48: Services involved in obtaining deeds of agreement in relation to property rights associated with contestable connection works | D48: 122620.65 | E48: ED_QUO441_00036 | F48: 300
C49: Investigation review and implementation of remedial actions associated with ASPs connection works | D49: 27471.58 | E49: ED_QUO441_00037 | F49: 18
C50: Indirect costs - corporate allocations | D50: 5385883.749 | E50: ED_QUO441_00042
E51: ED_QUO441_00043
E52: ED_QUO441_00044
E53: ED_QUO441_00045
E54: ED_QUO441_00046
E55: ED_QUO441_00047
E56: ED_QUO441_00048
E57: ED_QUO441_00049
E58: ED_QUO441_00050
E59: ED_QUO441_00051
E60: ED_QUO441_00052
E61: ED_QUO441_00053
E62: ED_QUO441_00054
E63: ED_QUO441_00055
E64: ED_QUO441_00056
E65: ED_QUO441_00057
E66: ED_QUO441_00058
E67: ED_QUO441_00059
E68: ED_QUO441_00060
E69: ED_QUO441_00061
E70: ED_QUO441_00062
E71: ED_QUO441_00063
E72: ED_QUO441_00064
E73: ED_QUO441_00065
E74: ED_QUO441_00066
E75: ED_QUO441_00067
E76: ED_QUO441_00068
E77: ED_QUO441_00069
E78: ED_QUO441_00070
E79: ED_QUO441_00071
E80: ED_QUO441_00072
E81: ED_QUO441_00073
E82: ED_QUO441_00074
E83: ED_QUO441_00075
E84: ED_QUO441_00076
E85: ED_QUO441_00077
E86: ED_QUO441_00078
E87: ED_QUO441_00079
E88: ED_QUO441_00080
E89: ED_QUO441_00081
E90: ED_QUO441_00082
E91: ED_QUO441_00083
E92: ED_QUO441_00084
E93: ED_QUO441_00085
E94: ED_QUO441_00086
E95: ED_QUO441_00087
E96: ED_QUO441_00088
E97: ED_QUO441_00089
E98: ED_QUO441_00090
E99: ED_QUO441_00091
E100: ED_QUO441_00092
E101: ED_QUO441_00093
E102: ED_QUO441_00094
E103: ED_QUO441_00095
E104: ED_QUO441_00096
E105: ED_QUO441_00097
E106: ED_QUO441_00098
E107: ED_QUO441_00099
E108: ED_QUO441_00100
E109: ED_QUO441_00101
E110: ED_QUO441_00102
E111: ED_QUO441_00103
E112: ED_QUO441_00104
E113: ED_QUO441_00105
E114: ED_QUO441_00106
E115: ED_QUO441_00107
E116: ED_QUO441_00108
E117: ED_QUO441_00109
E118: ED_QUO441_00110
E119: ED_QUO441_00111
E120: ED_QUO441_00112
E121: ED_QUO441_00113
E122: ED_QUO441_00114
E123: ED_QUO441_00115
E124: ED_QUO441_00116
E125: ED_QUO441_00117
E126: ED_QUO441_00118
E127: ED_QUO441_00119
E128: ED_QUO441_00120
E129: ED_QUO441_00121
E130: ED_QUO441_00122
E131: ED_QUO441_00123
E132: ED_QUO441_00124
E133: ED_QUO441_00125
E134: ED_QUO441_00126
E135: ED_QUO441_00127
E136: ED_QUO441_00128
E137: ED_QUO441_00129
E138: ED_QUO441_00130
E139: ED_QUO441_00131
E140: ED_QUO441_00132
E141: ED_QUO441_00133
E142: ED_QUO441_00134
E143: ED_QUO441_00135
E144: ED_QUO441_00136
E145: ED_QUO441_00137
E146: ED_QUO441_00138
E147: ED_QUO441_00139
E148: ED_QUO441_00140
E149: ED_QUO441_00141
E150: ED_QUO441_00142
E151: ED_QUO441_00143
E152: ED_QUO441_00144
E153: ED_QUO441_00145
E154: ED_QUO441_00146
E155: ED_QUO441_00147
E156: ED_QUO441_00148
E157: ED_QUO441_00149
E158: ED_QUO441_00150
E159: ED_QUO441_00151
E160: ED_QUO441_00152
E161: ED_QUO441_00153
E162: ED_QUO441_00154
E163: ED_QUO441_00155
E164: ED_QUO441_00156
E165: ED_QUO441_00157
E166: ED_QUO441_00158
E167: ED_QUO441_00159
E168: ED_QUO441_00160
E169: ED_QUO441_00161
E170: ED_QUO441_00162
E171: ED_QUO441_00163
E172: ED_QUO441_00164
E173: ED_QUO441_00165
E174: ED_QUO441_00166
E175: ED_QUO441_00167
E176: ED_QUO441_00168
E177: ED_QUO441_00169
E178: ED_QUO441_00170
E179: ED_QUO441_00171
E180: ED_QUO441_00172
E181: ED_QUO441_00173
E182: ED_QUO441_00174
E183: ED_QUO441_00175
E184: ED_QUO441_00176
E185: ED_QUO441_00177
E186: ED_QUO441_00178
E187: ED_QUO441_00179
E188: ED_QUO441_00180
E189: ED_QUO441_00181
E190: ED_QUO441_00182
E191: ED_QUO441_00183
E192: ED_QUO441_00184
E193: ED_QUO441_00185
E194: ED_QUO441_00186
E195: ED_QUO441_00187
E196: ED_QUO441_00188
E197: ED_QUO441_00189
E198: ED_QUO441_00190
E199: ED_QUO441_00191
E200: ED_QUO441_00192
E201: ED_QUO441_00193
... 280 more rows

Sheet 5.2 Asset Age Profile
B1: REGULATORY REPORTING STATEMENT
B2: =INDEX(dms_TradingNameFull_List,MATCH(dms_TradingName,dms_TradingName_List)) -> Ausgrid
B3: =CONCATENATE((LOOKUP(dms_Model,dms_Model_List,dms_Worksheet_List))&" "&CRY) -> CATEGORY ANALYSIS 2016-17
B4: 5.2 ASSET AGE PROFILE
B6: There is ONE table on this worksheet. Both the ROWS and COLUMNS have been 'grouped' for easy navigation. See the Instructions sheet on how to group or ungroup data.
B8: 5.2.1 - ASSET AGE PROFILE
D9: ECONOMIC LIFE (YEARS) | F9: INSTALLED ASSETS -˃ QUANTITY CURRENTLY IN COMMISSION BY YEAR
B10: ASSET GROUP | C10: ASSET CATEGORY | D10: MEAN | E10: STANDARD DEVIATION | F10: =CRY -> 2016-17 | G10: =IF(dms_RPT="financial",(VALUE(LEFT(F10,4)-1)&"-"&MID(F10,3,2)),VALUE(LEFT(F10,4)-1)) -> 2015-16 | H10: =IF(dms_RPT="financial",(VALUE(LEFT(G10,4)-1)&"-"&MID(G10,3,2)),VALUE(LEFT(G10,4)-1)) -> 2014-15 | I10: 2013-14 | J10: 2012-13 | K10: 2011-12 | L10: 2010-11 | M10: 2009-10 | N10: 2008-09 | O10: 2007-08 | P10: 2006-07 | Q10: 2005-06 | R10: 2004-05 | S10: 2003-04 | T10: 2002-03 | U10: 2001-02 | V10: 2000-01 | W10: 1999-00 | X10: 1998-99 | Y10: 1997-98 | Z10: 1996-97 | AA10: 1995-96 | AB10: 1994-95 | AC10: 1993-94 | AD10: 1992-93 | AE10: 1991-92 | AF10: 1990-91 | AG10: 1989-90 | AH10: 1988-89 | AI10: 1987-88 | AJ10: 1986-87 | AK10: 1985-86 | AL10: 1984-85 | AM10: =IF(dms_RPT="financial",(VALUE(LEFT(AL10,4)-1)&"-"&MID(AL10,3,2)),VALUE(LEFT(AL10,4)-1)) -> 1983-84 | AN10: 1982-83 | AO10: 1981-82 | AP10: 1980-81 | AQ10: 1979-80 | AR10: 1978-79 | AS10: 1977-78 | AT10: 1976-77 | AU10: 1975-76 | AV10: 1974-75 | AW10: 1973-74 | AX10: 1972-73 | AY10: 1971-72 | AZ10: 1970-71 | BA10: 1969-70 | BB10: 1968-69 | BC10: 1967-68 | BD10: 1966-67 | BE10: 1965-66 | BF10: 1964-65 | BG10: 1963-64 | BH10: 1962-63 | BI10: 1961-62 | BJ10: 1960-61 | BK10: 1959-60 | BL10: 1958-59 | BM10: 1957-58 | BN10: 1956-57 | BO10: 1955-56 | BP10: 1954-55 | BQ10: 1953-54 | BR10: 1952-53 | BS10: =IF(dms_RPT="financial",(VALUE(LEFT(BR10,4)-1)&"-"&MID(BR10,3,2)),VALUE(LEFT(BR10,4)-1)) -> 1951-52 | BT10: 1950-51 | BU10: 1949-50 | BV10: 1948-49 | BW10: 1947-48 | BX10: 1946-47 | BY10: 1945-46 | BZ10: 1944-45 | CA10: 1943-44 | CB10: 1942-43 | CC10: 1941-42 | CD10: 1940-41 | CE10: 1939-40 | CF10: 1938-39 | CG10: 1937-38 | CH10: 1936-37 | CI10: 1935-36 | CJ10: 1934-35 | CK10: 1933-34 | CL10: 1932-33 | CM10: 1931-32 | CN10: 1930-31 | CO10: 1929-30 | CP10: 1928-29 | CQ10: 1927-28 | CR10: 1926-27 | CS10: 1925-26 | CT10: 1924-25 | CU10: 1923-24 | CV10: 1922-23 | CW10: 1921-22 | CX10: 1920-21 | CY10: =IF(dms_RPT="financial",(VALUE(LEFT(CX10,4)-1)&"-"&MID(CX10,3,2)),VALUE(LEFT(CX10,4)-1)) -> 1919-20 | CZ10: 1918-19 | DA10: 1917-18 | DB10: 1916-17 | DC10: 1915-16 | DD10: 1914-15 | DE10: 1913-14 | DF10: 1912-13 | DG10: 1911-12 | DH10: 1910-11
B11: POLES BY: HIGHEST OPERATING VOLTAGE ; MATERIAL TYPE; STAKING (IF WOOD) | C11: Staking of a wooden pole | D11: 6.396364907 | E11: 3.673783619 | F11: 802 | G11: 585 | H11: 1241 | I11: 1486 | J11: 1895 | K11: 2162 | L11: 1823 | M11: 2930 | N11: 2349 | O11: 2780 | P11: 1400 | Q11: 1081 | R11: 1041 | S11: 855 | T11: 990 | U11: 519 | V11: 344 | W11: 320 | X11: 303 | Y11: 301 | Z11: 299 | AA11: 0 | AB11: 0 | AC11: 0 | AD11: 0 | AE11: 0 | AF11: 0 | AG11: 0 | AH11: 0 | AI11: 0 | AJ11: 0 | AK11: 0 | AL11: 0 | AM11: 0 | AN11: 0 | AO11: 0 | AP11: 0 | AQ11: 0 | AR11: 0 | AS11: 0 | AT11: 0 | AU11: 0 | AV11: 0 | AW11: 0 | AX11: 0 | AY11: 0 | AZ11: 0 | BA11: 0 | BB11: 0 | BC11: 0 | BD11: 0 | BE11: 0 | BF11: 0 | BG11: 0 | BH11: 0 | BI11: 0 | BJ11: 0 | BK11: 0 | BL11: 0 | BM11: 0 | BN11: 0 | BO11: 0 | BP11: 0 | BQ11: 0 | BR11: 0 | BS11: 0 | BT11: 0 | BU11: 0 | BV11: 0 | BW11: 0 | BX11: 0 | BY11: 0 | BZ11: 0 | CA11: 0 | CB11: 0 | CC11: 0 | CD11: 0 | CE11: 0 | CF11: 0 | CG11: 0 | CH11: 0 | CI11: 0 | CJ11: 0 | CK11: 0 | CL11: 0 | CM11: 0 | CN11: 0 | CO11: 0 | CP11: 0 | CQ11: 0 | CR11: 0 | CS11: 0 | CT11: 0 | CU11: 0 | CV11: 0 | CW11: 0 | CX11: 0 | CY11: 0 | CZ11: 0 | DA11: 0 | DB11: 0 | DC11: 0 | DD11: 0 | DE11: 0 | DF11: 0 | DG11: 0 | DH11: 0
C12: ˂ = 1 kV; Wood | D12: 40.98736958 | E12: 13.25752147 | F12: 2135 | G12: 2021 | H12: 2697 | I12: 3178 | J12: 3503 | K12: 4192 | L12: 3844 | M12: 3655 | N12: 3055 | O12: 3018 | P12: 2633 | Q12: 2237 | R12: 1926 | S12: 2205 | T12: 1744 | U12: 1682 | V12: 1455 | W12: 1492 | X12: 1528 | Y12: 1893 | Z12: 2056 | AA12: 2979 | AB12: 3019 | AC12: 2649 | AD12: 1801 | AE12: 1541 | AF12: 3769 | AG12: 3867 | AH12: 3270 | AI12: 2786 | AJ12: 4454 | AK12: 3724 | AL12: 3255 | AM12: 2388 | AN12: 3640 | AO12: 6186 | AP12: 5631 | AQ12: 5413 | AR12: 4451 | AS12: 3351 | AT12: 3774 | AU12: 2595 | AV12: 3612 | AW12: 4484 | AX12: 3381 | AY12: 6643 | AZ12: 6521 | BA12: 5604 | BB12: 6737 | BC12: 9785 | BD12: 12219 | BE12: 10843 | BF12: 13629 | BG12: 9410 | BH12: 13923 | BI12: 7458 | BJ12: 9137 | BK12: 5863 | BL12: 7357 | BM12: 4532 | BN12: 2323 | BO12: 625 | BP12: 3226 | BQ12: 646 | BR12: 1250 | BS12: 548 | BT12: 861 | BU12: 154 | BV12: 26 | BW12: 720 | BX12: 626 | BZ12: 8 | CB12: 880 | CN12: 347 | DH12: 1.213333333
C13: > 1 kV & < = 11 kV; Wood | D13: 40.98736958 | E13: 13.25752147 | F13: 1231 | G13: 2005 | H13: 2019 | I13: 2611 | J13: 2940 | K13: 2902 | L13: 2809 | M13: 2701 | N13: 2897 | O13: 2230 | P13: 2121 | Q13: 1886 | R13: 1935 | S13: 1996 | T13: 1492 | U13: 1580 | V13: 1520 | W13: 2149 | X13: 1416 | Y13: 1505 | Z13: 1177 | AA13: 1499 | AB13: 1916 | AC13: 1635 | AD13: 1370 | AE13: 1518 | AF13: 2475 | AG13: 2473 | AH13: 1957 | AI13: 1931 | AJ13: 2484 | AK13: 2633 | AL13: 2281 | AM13: 1463 | AN13: 2420 | AO13: 3632 | AP13: 2776 | AQ13: 2070 | AR13: 2039 | AS13: 1759 | AT13: 1884 | AU13: 1770 | AV13: 3049 | AW13: 2839 | AX13: 2094 | AY13: 3031 | AZ13: 2809 | BA13: 3162 | BB13: 1878 | BC13: 3280 | BD13: 3802 | BE13: 3209 | BF13: 3666 | BG13: 2337 | BH13: 1789 | BI13: 902 | BJ13: 1773 | BK13: 1162 | BL13: 623 | BM13: 222 | BN13: 109 | BO13: 108 | BP13: 39 | BQ13: 35 | BR13: 17 | BS13: 1 | BT13: 1 | BU13: 0 | BV13: 24 | BW13: 1 | BX13: 0 | BZ13: 8 | CB13: 0 | CN13: 0
C14: ˃ 11 kV & < = 22 kV; Wood | D14: 40.98736958 | E14: 13.25752147 | F14: 24 | G14: 22 | H14: 33 | I14: 27 | J14: 22 | K14: 10 | L14: 9 | M14: 9 | N14: 38 | O14: 53 | P14: 11 | Q14: 27 | R14: 17 | S14: 67 | T14: 58 | U14: 34 | V14: 62 | W14: 81 | X14: 40 | Y14: 35 | Z14: 23 | AA14: 28 | AB14: 28 | AC14: 6 | AD14: 29 | AE14: 12 | AF14: 14 | AG14: 28 | AH14: 17 | AI14: 14 | AJ14: 32 | AK14: 8 | AL14: 14 | AM14: 12 | AN14: 22 | AO14: 14 | AP14: 11 | AQ14: 1 | AR14: 0 | AS14: 0 | AT14: 0 | AU14: 19 | AV14: 5 | AW14: 9 | AX14: 38 | AY14: 108 | AZ14: 33 | BA14: 188 | BB14: 0 | BC14: 0 | BD14: 81 | BE14: 0 | BF14: 0 | BG14: 1 | BH14: 2 | BI14: 0 | BJ14: 0 | BK14: 0 | BL14: 0 | BM14: 0 | BN14: 0 | BO14: 0 | BP14: 0 | BQ14: 0 | BR14: 0 | BS14: 0 | BT14: 0 | BU14: 0 | BV14: 0 | BW14: 0 | BX14: 0 | BZ14: 0 | CB14: 0 | CN14: 0
C15: > 22 kV & < = 66 kV; Wood | D15: 40.98736958 | E15: 13.25752147 | F15: 125 | G15: 175 | H15: 218 | I15: 192 | J15: 299 | K15: 264 | L15: 288 | M15: 351 | N15: 361 | O15: 259 | P15: 209 | Q15: 126 | R15: 194 | S15: 201 | T15: 202 | U15: 224 | V15: 133 | W15: 114 | X15: 92 | Y15: 114 | Z15: 90 | AA15: 121 | AB15: 189 | AC15: 217 | AD15: 197 | AE15: 320 | AF15: 185 | AG15: 219 | AH15: 141 | AI15: 108 | AJ15: 316 | AK15: 271 | AL15: 250 | AM15: 252 | AN15: 546 | AO15: 634 | AP15: 307 | AQ15: 359 | AR15: 243 | AS15: 244 | AT15: 390 | AU15: 196 | AV15: 217 | AW15: 343 | AX15: 199 | AY15: 463 | AZ15: 582 | BA15: 525 | BB15: 424 | BC15: 610 | BD15: 699 | BE15: 753 | BF15: 569 | BG15: 396 | BH15: 228 | BI15: 110 | BJ15: 248 | BK15: 229 | BL15: 43 | BM15: 0 | BN15: 0 | BO15: 0 | BP15: 16 | BQ15: 0 | BR15: 0 | BS15: 0 | BT15: 0 | BU15: 0 | BV15: 6 | BW15: 0 | BX15: 0 | BZ15: 65 | CB15: 0 | CN15: 0
C16: > 66 kV & < = 132 kV; Wood | D16: 40.98736958 | E16: 13.25752147 | F16: 19 | G16: 28 | H16: 20 | I16: 11 | J16: 17 | K16: 21 | L16: 22 | M16: 48 | N16: 35 | O16: 55 | P16: 16 | Q16: 9 | R16: 18 | S16: 11 | T16: 13 | U16: 11 | V16: 34 | W16: 79 | X16: 12 | Y16: 8 | Z16: 16 | AA16: 19 | AB16: 35 | AC16: 61 | AD16: 13 | AE16: 14 | AF16: 32 | AG16: 40 | AH16: 11 | AI16: 15 | AJ16: 17 | AK16: 18 | AL16: 19 | AM16: 30 | AN16: 406 | AO16: 328 | AP16: 48 | AQ16: 32 | AR16: 77 | AS16: 107 | AT16: 72 | AU16: 502 | AV16: 129 | AW16: 122 | AX16: 17 | AY16: 166 | AZ16: 141 | BA16: 373 | BB16: 240 | BC16: 186 | BD16: 64 | BE16: 165 | BF16: 117 | BG16: 104 | BH16: 67 | BI16: 0 | BJ16: 46 | BK16: 99 | BL16: 14 | BM16: 12 | BN16: 0 | BO16: 0 | BP16: 0 | BQ16: 0 | BR16: 0 | BS16: 0 | BT16: 0 | BU16: 0 | BV16: 0 | BW16: 0 | BX16: 0 | BZ16: 0 | CB16: 0 | CN16: 0
C17: > 132 kV; Wood | D17: 0 | E17: 0 | F17: 0 | G17: 0 | H17: 0 | I17: 0 | J17: 0 | K17: 0 | L17: 0 | M17: 0 | N17: 0 | O17: 0 | P17: 0 | Q17: 0 | R17: 0 | S17: 0 | T17: 0 | U17: 0 | V17: 0 | W17: 0 | X17: 0 | Y17: 0 | Z17: 0 | AA17: 0 | AB17: 0 | AC17: 0 | AD17: 0 | AE17: 0 | AF17: 0 | AG17: 0 | AH17: 0 | AI17: 0 | AJ17: 0 | AK17: 0 | AL17: 0 | AM17: 0 | AN17: 0 | AO17: 0 | AP17: 0 | AQ17: 0 | AR17: 0 | AS17: 0 | AT17: 0 | AU17: 0 | AV17: 0 | AW17: 0 | AX17: 0 | AY17: 0 | AZ17: 0 | BA17: 0 | BB17: 0 | BC17: 0 | BD17: 0 | BE17: 0 | BF17: 0 | BG17: 0 | BH17: 0 | BI17: 0 | BJ17: 0 | BK17: 0 | BL17: 0 | BM17: 0 | BN17: 0 | BO17: 0 | BP17: 0 | BQ17: 0 | BR17: 0 | BS17: 0 | BT17: 0 | BU17: 0 | BV17: 0 | BW17: 0 | BX17: 0 | BY17: 0 | BZ17: 0 | CA17: 0 | CB17: 0 | CC17: 0 | CD17: 0 | CE17: 0 | CF17: 0 | CG17: 0 | CH17: 0 | CI17: 0 | CJ17: 0 | CK17: 0 | CL17: 0 | CM17: 0 | CN17: 0 | CO17: 0 | CP17: 0 | CQ17: 0 | CR17: 0 | CS17: 0 | CT17: 0 | CU17: 0 | CV17: 0 | CW17: 0 | CX17: 0 | CY17: 0 | CZ17: 0 | DA17: 0 | DB17: 0 | DC17: 0 | DD17: 0 | DE17: 0 | DF17: 0 | DG17: 0 | DH17: 0
C18: ˂ = 1 kV; Concrete | D18: 40.38139335 | E18: 17.29711515 | F18: 5 | G18: 1 | H18: 2 | I18: 12 | J18: 50 | K18: 47 | L18: 25 | M18: 19 | N18: 2 | O18: 6 | P18: 5 | Q18: 7 | R18: 2 | S18: 14 | T18: 0 | U18: 0 | V18: 11 | W18: 6 | X18: 0 | Y18: 1 | Z18: 0 | AA18: 21 | AB18: 17 | AC18: 42 | AD18: 5 | AE18: 59 | AF18: 12 | AG18: 44 | AH18: 0 | AI18: 0 | AJ18: 2 | AK18: 23 | AL18: 7 | AM18: 0 | AN18: 0 | AO18: 3 | AP18: 0 | AQ18: 0 | AR18: 0 | AS18: 0 | AT18: 0 | AU18: 0 | AV18: 1 | AW18: 0 | AX18: 11 | AY18: 6 | AZ18: 4 | BA18: 3 | BB18: 0 | BC18: 0 | BD18: 0 | BE18: 0 | BF18: 0 | BG18: 8 | BH18: 0 | BI18: 1 | BJ18: 16 | BK18: 5 | BL18: 0 | BM18: 1 | BN18: 0 | BO18: 0 | BP18: 0 | BQ18: 0 | BR18: 0 | BS18: 0 | BT18: 0 | BU18: 0 | BV18: 0 | BW18: 0 | BX18: 0 | BZ18: 0 | CB18: 0 | CN18: 0
C19: > 1 kV & < = 11 kV; Concrete | D19: 40.38139335 | E19: 17.29711515 | F19: 18 | G19: 5 | H19: 9 | I19: 21 | J19: 16 | K19: 13 | L19: 19 | M19: 7 | N19: 2 | O19: 3 | P19: 9 | Q19: 8 | R19: 3 | S19: 7 | T19: 3 | U19: 0 | V19: 9 | W19: 0 | X19: 3 | Y19: 0 | Z19: 0 | AA19: 52 | AB19: 8 | AC19: 62 | AD19: 29 | AE19: 2 | AF19: 1 | AG19: 3 | AH19: 0 | AI19: 0 | AJ19: 0 | AK19: 0 | AL19: 0 | AM19: 11 | AN19: 0 | AO19: 0 | AP19: 0 | AQ19: 0 | AR19: 0 | AS19: 0 | AT19: 0 | AU19: 0 | AV19: 0 | AW19: 0 | AX19: 10 | AY19: 0 | AZ19: 1 | BA19: 0 | BB19: 0 | BC19: 1 | BD19: 0 | BE19: 0 | BF19: 0 | BG19: 0 | BH19: 0 | BI19: 0 | BJ19: 1 | BK19: 0 | BL19: 0 | BM19: 0 | BN19: 0 | BO19: 0 | BP19: 0 | BQ19: 0 | BR19: 0 | BS19: 0 | BT19: 0 | BU19: 0 | BV19: 0 | BW19: 0 | BX19: 0 | BZ19: 0 | CB19: 0 | CN19: 0
C20: ˃ 11 kV & < = 22 kV; Concrete | D20: 40.38139335 | E20: 17.29711515 | F20: 6 | G20: 0 | H20: 0 | I20: 0 | J20: 0 | K20: 0 | L20: 0 | M20: 0 | N20: 0 | O20: 0 | P20: 0 | Q20: 0 | R20: 0 | S20: 0 | T20: 0 | U20: 0 | V20: 0 | W20: 0 | X20: 1 | Y20: 0 | Z20: 0 | AA20: 0 | AB20: 0 | AC20: 0 | AD20: 0 | AE20: 0 | AF20: 0 | AG20: 0 | AH20: 0 | AI20: 0 | AJ20: 0 | AK20: 0 | AL20: 0 | AM20: 0 | AN20: 0 | AO20: 0 | AP20: 0 | AQ20: 0 | AR20: 0 | AS20: 0 | AT20: 0 | AU20: 0 | AV20: 0 | AW20: 0 | AX20: 0 | AY20: 0 | AZ20: 0 | BA20: 0 | BB20: 0 | BC20: 0 | BD20: 0 | BE20: 0 | BF20: 0 | BG20: 0 | BH20: 0 | BI20: 0 | BJ20: 0 | BK20: 0 | BL20: 0 | BM20: 0 | BN20: 0 | BO20: 0 | BP20: 0 | BQ20: 0 | BR20: 0 | BS20: 0 | BT20: 0 | BU20: 0 | BV20: 0 | BW20: 0 | BX20: 0 | BZ20: 0 | CB20: 0 | CN20: 0
C21: > 22 kV & < = 66 kV; Concrete | D21: 40.38139335 | E21: 17.29711515 | F21: 59 | G21: 36 | H21: 42 | I21: 90 | J21: 148 | K21: 160 | L21: 346 | M21: 327 | N21: 100 | O21: 112 | P21: 415 | Q21: 408 | R21: 306 | S21: 153 | T21: 114 | U21: 101 | V21: 74 | W21: 85 | X21: 13 | Y21: 59 | Z21: 6 | AA21: 60 | AB21: 10 | AC21: 50 | AD21: 15 | AE21: 85 | AF21: 41 | AG21: 46 | AH21: 38 | AI21: 0 | AJ21: 38 | AK21: 6 | AL21: 0 | AM21: 57 | AN21: 4 | AO21: 0 | AP21: 0 | AQ21: 1 | AR21: 0 | AS21: 0 | AT21: 1 | AU21: 0 | AV21: 20 | AW21: 0 | AX21: 0 | AY21: 0 | AZ21: 2 | BA21: 1 | BB21: 0 | BC21: 7 | BD21: 1 | BE21: 45 | BF21: 22 | BG21: 1 | BH21: 0 | BI21: 0 | BJ21: 0 | BK21: 23 | BL21: 0 | BM21: 0 | BN21: 0 | BO21: 0 | BP21: 0 | BQ21: 0 | BR21: 0 | BS21: 0 | BT21: 0 | BU21: 0 | BV21: 0 | BW21: 0 | BX21: 0 | BZ21: 0 | CB21: 0 | CN21: 0
C22: > 66 kV & < = 132 kV; Concrete | D22: 40.38139335 | E22: 17.29711515 | F22: 28 | G22: 30 | H22: 40 | I22: 31 | J22: 33 | K22: 245 | L22: 286 | M22: 404 | N22: 183 | O22: 64 | P22: 81 | Q22: 34 | R22: 44 | S22: 142 | T22: 257 | U22: 62 | V22: 139 | W22: 66 | X22: 2 | Y22: 1 | Z22: 17 | AA22: 30 | AB22: 2 | AC22: 1 | AD22: 4 | AE22: 0 | AF22: 99 | AG22: 28 | AH22: 2 | AI22: 46 | AJ22: 14 | AK22: 100 | AL22: 28 | AM22: 8 | AN22: 15 | AO22: 17 | AP22: 5 | AQ22: 0 | AR22: 0 | AS22: 0 | AT22: 0 | AU22: 0 | AV22: 1 | AW22: 2 | AX22: 0 | AY22: 1 | AZ22: 0 | BA22: 7 | BB22: 2 | BC22: 7 | BD22: 6 | BE22: 2 | BF22: 10 | BG22: 0 | BH22: 3 | BI22: 0 | BJ22: 0 | BK22: 37 | BL22: 0 | BM22: 0 | BN22: 0 | BO22: 0 | BP22: 0 | BQ22: 0 | BR22: 0 | BS22: 0 | BT22: 0 | BU22: 0 | BV22: 0 | BW22: 0 | BX22: 0 | BZ22: 0 | CB22: 0 | CN22: 0
C23: > 132 kV; Concrete | D23: 0 | E23: 0 | F23: 0 | G23: 0 | H23: 0 | I23: 0 | J23: 0 | K23: 0 | L23: 0 | M23: 0 | N23: 0 | O23: 0 | P23: 0 | Q23: 0 | R23: 0 | S23: 0 | T23: 0 | U23: 0 | V23: 0 | W23: 0 | X23: 0 | Y23: 0 | Z23: 0 | AA23: 0 | AB23: 0 | AC23: 0 | AD23: 0 | AE23: 0 | AF23: 0 | AG23: 0 | AH23: 0 | AI23: 0 | AJ23: 0 | AK23: 0 | AL23: 0 | AM23: 0 | AN23: 0 | AO23: 0 | AP23: 0 | AQ23: 0 | AR23: 0 | AS23: 0 | AT23: 0 | AU23: 0 | AV23: 0 | AW23: 0 | AX23: 0 | AY23: 0 | AZ23: 0 | BA23: 0 | BB23: 0 | BC23: 0 | BD23: 0 | BE23: 0 | BF23: 0 | BG23: 0 | BH23: 0 | BI23: 0 | BJ23: 0 | BK23: 0 | BL23: 0 | BM23: 0 | BN23: 0 | BO23: 0 | BP23: 0 | BQ23: 0 | BR23: 0 | BS23: 0 | BT23: 0 | BU23: 0 | BV23: 0 | BW23: 0 | BX23: 0 | BY23: 0 | BZ23: 0 | CA23: 0 | CB23: 0 | CC23: 0 | CD23: 0 | CE23: 0 | CF23: 0 | CG23: 0 | CH23: 0 | CI23: 0 | CJ23: 0 | CK23: 0 | CL23: 0 | CM23: 0 | CN23: 0 | CO23: 0 | CP23: 0 | CQ23: 0 | CR23: 0 | CS23: 0 | CT23: 0 | CU23: 0 | CV23: 0 | CW23: 0 | CX23: 0 | CY23: 0 | CZ23: 0 | DA23: 0 | DB23: 0 | DC23: 0 | DD23: 0 | DE23: 0 | DF23: 0 | DG23: 0 | DH23: 0
C24: ˂ = 1 kV; Steel | D24: 31.96510943 | E24: 16.37553111 | F24: 114 | G24: 32 | H24: 26 | I24: 92 | J24: 10 | K24: 40 | L24: 50 | M24: 46 | N24: 22 | O24: 155 | P24: 430 | Q24: 337 | R24: 279 | S24: 205 | T24: 151 | U24: 102 | V24: 99 | W24: 536 | X24: 11 | Y24: 47 | Z24: 33 | AA24: 43 | AB24: 10 | AC24: 24 | AD24: 10 | AE24: 166 | AF24: 111 | AG24: 184 | AH24: 4 | AI24: 114 | AJ24: 10 | AK24: 2 | AL24: 152 | AM24: 271 | AN24: 946 | AO24: 605 | AP24: 334 | AQ24: 80 | AR24: 53 | AS24: 13 | AT24: 78 | AU24: 13 | AV24: 11 | AW24: 28 | AX24: 24 | AY24: 203 | AZ24: 15 | BA24: 45 | BB24: 44 | BC24: 99 | BD24: 30 | BE24: 103 | BF24: 60 | BG24: 78 | BH24: 33 | BI24: 18 | BJ24: 20 | BK24: 44 | BL24: 16 | BM24: 3 | BN24: 8 | BO24: 1 | BP24: 8 | BQ24: 1 | BR24: 1 | BS24: 0 | BT24: 0 | BU24: 0 | BV24: 0 | BW24: 2 | BX24: 3 | BZ24: 0 | CB24: 0 | CN24: 0
C25: > 1 kV & < = 11 kV; Steel | D25: 31.96510943 | E25: 16.37553111 | F25: 3 | G25: 0 | H25: 1 | I25: 20 | J25: 0 | K25: 6 | L25: 4 | M25: 38 | N25: 0 | O25: 1 | P25: 0 | Q25: 4 | R25: 5 | S25: 0 | T25: 0 | U25: 0 | V25: 0 | W25: 0 | X25: 7 | Y25: 0 | Z25: 0 | AA25: 0 | AB25: 0 | AC25: 0 | AD25: 0 | AE25: 0 | AF25: 0 | AG25: 0 | AH25: 0 | AI25: 0 | AJ25: 0 | AK25: 0 | AL25: 0 | AM25: 0 | AN25: 1 | AO25: 0 | AP25: 1 | AQ25: 0 | AR25: 0 | AS25: 0 | AT25: 12 | AU25: 0 | AV25: 0 | AW25: 2 | AX25: 0 | AY25: 0 | AZ25: 0 | BA25: 7 | BB25: 0 | BC25: 2 | BD25: 0 | BE25: 1 | BF25: 0 | BG25: 1 | BH25: 0 | BI25: 0 | BJ25: 0 | BK25: 2 | BL25: 0 | BM25: 1 | BN25: 0 | BO25: 0 | BP25: 0 | BQ25: 0 | BR25: 0 | BS25: 0 | BT25: 0 | BU25: 0 | BV25: 0 | BW25: 0 | BX25: 0 | BZ25: 0 | CB25: 0 | CN25: 0
C26: ˃ 11 kV & < = 22 kV; Steel | D26: 31.96510943 | E26: 16.37553111 | F26: 0 | G26: 0 | H26: 0 | I26: 0 | J26: 1 | K26: 0 | L26: 0 | M26: 0 | N26: 0 | O26: 0 | P26: 0 | Q26: 0 | R26: 1 | S26: 0 | T26: 2 | U26: 4 | V26: 0 | W26: 0 | X26: 0 | Y26: 0 | Z26: 0 | AA26: 0 | AB26: 0 | AC26: 0 | AD26: 0 | AE26: 0 | AF26: 0 | AG26: 0 | AH26: 0 | AI26: 0 | AJ26: 0 | AK26: 0 | AL26: 0 | AM26: 0 | AN26: 0 | AO26: 0 | AP26: 0 | AQ26: 0 | AR26: 0 | AS26: 0 | AT26: 0 | AU26: 0 | AV26: 0 | AW26: 0 | AX26: 0 | AY26: 0 | AZ26: 0 | BA26: 0 | BB26: 0 | BC26: 0 | BD26: 0 | BE26: 0 | BF26: 0 | BG26: 0 | BH26: 0 | BI26: 0 | BJ26: 0 | BK26: 0 | BL26: 0 | BM26: 0 | BN26: 0 | BO26: 0 | BP26: 0 | BQ26: 0 | BR26: 0 | BS26: 0 | BT26: 0 | BU26: 0 | BV26: 0 | BW26: 0 | BX26: 0 | BZ26: 0 | CB26: 0 | CN26: 0
C27: > 22 kV & < = 66 kV; Steel | D27: 31.96510943 | E27: 16.37553111 | F27: 2 | G27: 0 | H27: 5 | I27: 1 | J27: 9 | K27: 24 | L27: 100 | M27: 2 | N27: 1 | O27: 21 | P27: 46 | Q27: 28 | R27: 0 | S27: 0 | T27: 0 | U27: 0 | V27: 0 | W27: 0 | X27: 0 | Y27: 0 | Z27: 0 | AA27: 0 | AB27: 0 | AC27: 0 | AD27: 0 | AE27: 0 | AF27: 0 | AG27: 0 | AH27: 0 | AI27: 0 | AJ27: 0 | AK27: 0 | AL27: 0 | AM27: 0 | AN27: 0 | AO27: 1 | AP27: 0 | AQ27: 0 | AR27: 0 | AS27: 0 | AT27: 0 | AU27: 0 | AV27: 0 | AW27: 0 | AX27: 0 | AY27: 0 | AZ27: 0 | BA27: 0 | BB27: 0 | BC27: 0 | BD27: 0 | BE27: 0 | BF27: 0 | BG27: 0 | BH27: 0 | BI27: 0 | BJ27: 0 | BK27: 0 | BL27: 0 | BM27: 0 | BN27: 0 | BO27: 0 | BP27: 0 | BQ27: 0 | BR27: 0 | BS27: 0 | BT27: 0 | BU27: 0 | BV27: 0 | BW27: 0 | BX27: 0 | BZ27: 0 | CB27: 0 | CN27: 0
C28: > 66 kV & < = 132 kV; Steel | D28: 31.96510943 | E28: 16.37553111 | F28: 7 | G28: 10 | H28: 68 | I28: 73 | J28: 8 | K28: 8 | L28: 9 | M28: 14 | N28: 7 | O28: 6 | P28: 0 | Q28: 14 | R28: 11 | S28: 2 | T28: 0 | U28: 0 | V28: 0 | W28: 0 | X28: 0 | Y28: 0 | Z28: 0 | AA28: 0 | AB28: 0 | AC28: 0 | AD28: 0 | AE28: 0 | AF28: 0 | AG28: 0 | AH28: 0 | AI28: 9 | AJ28: 0 | AK28: 0 | AL28: 0 | AM28: 0 | AN28: 2 | AO28: 0 | AP28: 36 | AQ28: 0 | AR28: 0 | AS28: 1 | AT28: 0 | AU28: 0 | AV28: 0 | AW28: 0 | AX28: 0 | AY28: 0 | AZ28: 0 | BA28: 0 | BB28: 0 | BC28: 0 | BD28: 0 | BE28: 0 | BF28: 0 | BG28: 0 | BH28: 0 | BI28: 0 | BJ28: 0 | BK28: 2 | BL28: 0 | BM28: 4 | BN28: 0 | BO28: 0 | BP28: 0 | BQ28: 0 | BR28: 0 | BS28: 0 | BT28: 0 | BU28: 0 | BV28: 0 | BW28: 0 | BX28: 0 | BZ28: 0 | CB28: 0 | CN28: 0
C29: > 132 kV; Steel | D29: 0 | E29: 0 | F29: 0 | G29: 0 | H29: 0 | I29: 0 | J29: 0 | K29: 0 | L29: 0 | M29: 0 | N29: 0 | O29: 0 | P29: 0 | Q29: 0 | R29: 0 | S29: 0 | T29: 0 | U29: 0 | V29: 0 | W29: 0 | X29: 0 | Y29: 0 | Z29: 0 | AA29: 0 | AB29: 0 | AC29: 0 | AD29: 0 | AE29: 0 | AF29: 0 | AG29: 0 | AH29: 0 | AI29: 0 | AJ29: 0 | AK29: 0 | AL29: 0 | AM29: 0 | AN29: 0 | AO29: 0 | AP29: 0 | AQ29: 0 | AR29: 0 | AS29: 0 | AT29: 0 | AU29: 0 | AV29: 0 | AW29: 0 | AX29: 0 | AY29: 0 | AZ29: 0 | BA29: 0 | BB29: 0 | BC29: 0 | BD29: 0 | BE29: 0 | BF29: 0 | BG29: 0 | BH29: 0 | BI29: 0 | BJ29: 0 | BK29: 0 | BL29: 0 | BM29: 0 | BN29: 0 | BO29: 0 | BP29: 0 | BQ29: 0 | BR29: 0 | BS29: 0 | BT29: 0 | BU29: 0 | BV29: 0 | BW29: 0 | BX29: 0 | BY29: 0 | BZ29: 0 | CA29: 0 | CB29: 0 | CC29: 0 | CD29: 0 | CE29: 0 | CF29: 0 | CG29: 0 | CH29: 0 | CI29: 0 | CJ29: 0 | CK29: 0 | CL29: 0 | CM29: 0 | CN29: 0 | CO29: 0 | CP29: 0 | CQ29: 0 | CR29: 0 | CS29: 0 | CT29: 0 | CU29: 0 | CV29: 0 | CW29: 0 | CX29: 0 | CY29: 0 | CZ29: 0 | DA29: 0 | DB29: 0 | DC29: 0 | DD29: 0 | DE29: 0 | DF29: 0 | DG29: 0 | DH29: 0
C30: Other | D30: 0 | E30: 0 | F30: 0 | G30: 0 | H30: 0 | I30: 0 | J30: 0 | K30: 0 | L30: 0 | M30: 0 | N30: 0 | O30: 0 | P30: 0 | Q30: 0 | R30: 0 | S30: 0 | T30: 0 | U30: 0 | V30: 0 | W30: 0 | X30: 0 | Y30: 0 | Z30: 0 | AA30: 0 | AB30: 0 | AC30: 0 | AD30: 0 | AE30: 0 | AF30: 0 | AG30: 0 | AH30: 0 | AI30: 0 | AJ30: 0 | AK30: 0 | AL30: 0 | AM30: 0 | AN30: 0 | AO30: 0 | AP30: 0 | AQ30: 0 | AR30: 0 | AS30: 0 | AT30: 0 | AU30: 0 | AV30: 0 | AW30: 0 | AX30: 0 | AY30: 0 | AZ30: 0 | BA30: 0 | BB30: 0 | BC30: 0 | BD30: 0 | BE30: 0 | BF30: 0 | BG30: 0 | BH30: 0 | BI30: 0 | BJ30: 0 | BK30: 0 | BL30: 0 | BM30: 0 | BN30: 0 | BO30: 0 | BP30: 0 | BQ30: 0 | BR30: 0 | BS30: 0 | BT30: 0 | BU30: 0 | BV30: 0 | BW30: 0 | BX30: 0 | BY30: 0 | BZ30: 0 | CA30: 0 | CB30: 0 | CC30: 0 | CD30: 0 | CE30: 0 | CF30: 0 | CG30: 0 | CH30: 0 | CI30: 0 | CJ30: 0 | CK30: 0 | CL30: 0 | CM30: 0 | CN30: 0 | CO30: 0 | CP30: 0 | CQ30: 0 | CR30: 0 | CS30: 0 | CT30: 0 | CU30: 0 | CV30: 0 | CW30: 0 | CX30: 0 | CY30: 0 | CZ30: 0 | DA30: 0 | DB30: 0 | DC30: 0 | DD30: 0 | DE30: 0 | DF30: 0 | DG30: 0 | DH30: 0
B31: OVERHEAD CONDUCTORS BY: HIGHEST OPERATING VOLTAGE; NUMBER OF PHASES (AT HV) | C31: ˂ = 1 kV | D31: 40.98736958 | E31: 13.25752147 | F31: 48.90425231 | G31: 69.98459167 | H31: 90.72851601 | I31: 138.445 | J31: 105.6849981 | K31: 148.0149401 | L31: 156.8703006 | M31: 127.0401029 | N31: 137.9865195 | O31: 121.2678123 | P31: 104.0934893 | Q31: 117.7827322 | R31: 106.2596277 | S31: 86.63119337 | T31: 101.2247178 | U31: 71.55732351 | V31: 64.95214892 | W31: 70.32994436 | X31: 59.47556557 | Y31: 47.30689756 | Z31: 54.38809116 | AA31: 51.97112258 | AB31: 64.78628561 | AC31: 64.59085373 | AD31: 46.07905657 | AE31: 38.7609106 | AF31: 87.03365016 | AG31: 99.38698845 | AH31: 91.69278674 | AI31: 68.21779092 | AJ31: 105.108548 | AK31: 100.933868 | AL31: 116.3943062 | AM31: 95.60392483 | AN31: 86.59645364 | AO31: 167.3075565 | AP31: 162.9249004 | AQ31: 339.3508907 | AR31: 218.5792043 | AS31: 146.2043084 | AT31: 148.7374638 | AU31: 150.7232372 | AV31: 163.5259835 | AW31: 268.2010268 | AX31: 170.1309827 | AY31: 282.043432 | AZ31: 191.8415269 | BA31: 226.8495737 | BB31: 307.8779226 | BC31: 425.2606254 | BD31: 346.6539802 | BE31: 509.7369171 | BF31: 514.5393665 | BG31: 535.3662711 | BH31: 863.7350394 | BI31: 507.9547301 | BJ31: 459.3206488 | BK31: 595.3277065 | BL31: 540.2259293 | BM31: 289.9082198 | BN31: 359.4176898 | BO31: 365.952846 | BP31: 103.9934211 | BQ31: 59.28537916 | BR31: 50.71850584 | BS31: 39.9744827 | BT31: 56.14415702 | BU31: 22.05555549 | BV31: 40.63810247 | BW31: 19.72847489 | BX31: 6.075626013 | BY31: 9.68956937 | BZ31: 22.7424948 | CA31: 40.50134443 | CB31: 0 | CC31: 0 | CD31: 0 | CE31: 52.30119566 | CF31: 0 | CG31: 0 | CH31: 0 | CI31: 0 | CJ31: 0 | CK31: 0 | CL31: 0 | CM31: 0 | CN31: 0 | CO31: 0 | CP31: 0 | CQ31: 76.3449674 | CR31: 65.03292095 | CS31: 0 | CT31: 0 | CU31: 0 | CV31: 0 | CW31: 0 | CX31: 0 | CY31: 2.530552105 | CZ31: 0 | DA31: 0 | DB31: 0 | DC31: 0 | DD31: 0 | DE31: 0 | DF31: 0 | DG31: 0 | DH31: 0
C32: > 1 kV & < = 11 kV | D32: 40.98736958 | E32: 13.25752147 | F32: 151.366368 | G32: 195.278296 | H32: 114.7914067 | I32: 161.9991974 | J32: 162.4863217 | K32: 131.5532883 | L32: 167.9989374 | M32: 143.3389472 | N32: 162.836657 | O32: 128.2718974 | P32: 138.5816105 | Q32: 117.9195275 | R32: 179.2788003 | S32: 105.2088927 | T32: 135.6305318 | U32: 119.2097624 | V32: 118.9411438 | W32: 154.2957662 | X32: 139.5187714 | Y32: 101.0416911 | Z32: 69.3481982 | AA32: 62.05557211 | AB32: 62.54678543 | AC32: 63.20078203 | AD32: 56.68906991 | AE32: 52.08206293 | AF32: 77.20650026 | AG32: 83.6969367 | AH32: 70.66555083 | AI32: 64.85817991 | AJ32: 83.52873489 | AK32: 96.77082402 | AL32: 83.05577066 | AM32: 61.59833494 | AN32: 57.23351299 | AO32: 112.8491267 | AP32: 103.2002191 | AQ32: 263.9809969 | AR32: 174.441091 | AS32: 121.2353497 | AT32: 174.6326033 | AU32: 156.9043526 | AV32: 139.8396117 | AW32: 201.794269 | AX32: 231.8017246 | AY32: 351.5457993 | AZ32: 186.6293827 | BA32: 169.9181136 | BB32: 323.7561017 | BC32: 341.1360814 | BD32: 252.9811179 | BE32: 252.856967 | BF32: 296.0424116 | BG32: 211.3963429 | BH32: 510.0874682 | BI32: 179.7190126 | BJ32: 284.1207275 | BK32: 215.6039096 | BL32: 212.3539983 | BM32: 102.1447252 | BN32: 83.39501849 | BO32: 151.373694 | BP32: 15.79899186 | BQ32: 31.18798056 | BR32: 13.5884091 | BS32: 27.65375377 | BT32: 1.179939986 | BU32: 0 | BV32: 0 | BW32: 0 | BX32: 9.626837249 | BY32: 0 | BZ32: 0 | CA32: 0 | CB32: 0 | CC32: 0 | CD32: 0 | CE32: 9.329533334 | CF32: 0 | CG32: 0 | CH32: 0 | CI32: 0 | CJ32: 0 | CK32: 0 | CL32: 0 | CM32: 0 | CN32: 0 | CO32: 0 | CP32: 0 | CQ32: 0.6384800821 | CR32: 0 | CS32: 0 | CT32: 0 | CU32: 0 | CV32: 0 | CW32: 0 | CX32: 0 | CY32: 0 | CZ32: 0 | DA32: 0 | DB32: 0 | DC32: 0 | DD32: 0 | DE32: 0 | DF32: 0 | DG32: 0 | DH32: 0
C33: ˃ 11 kV & < = 22 kV ; SWER | D33: 40.98736958 | E33: 13.25752147 | F33: 0 | G33: 0 | H33: 0.1144958561 | I33: 0 | J33: 0 | K33: 6.834439904 | L33: 0 | M33: 0 | N33: 0 | O33: 0 | P33: 0.3365625513 | Q33: 0.1163508942 | R33: 0 | S33: 0.2703303021 | T33: 0 | U33: 0 | V33: 0.1881958792 | W33: 0.4259423846 | X33: 0 | Y33: 0 | Z33: 0 | AA33: 0 | AB33: 0 | AC33: 0 | AD33: 0.1144956013 | AE33: 0 | AF33: 0 | AG33: 0.9270503168 | AH33: 0.11489611 | AI33: 0.1145961 | AJ33: 3.689080261 | AK33: 0.1145963351 | AL33: 39.35534052 | AM33: 1.579102855 | AN33: 0.1144956613 | AO33: 0.1167810699 | AP33: 0 | AQ33: 0 | AR33: 0 | AS33: 0.1144956813 | AT33: 2.360100436 | AU33: 0 | AV33: 0 | AW33: 4.479902002 | AX33: 0.1144959958 | AY33: 0 | AZ33: 0.5119905096 | BA33: 1.124042611 | BB33: 0 | BC33: 0 | BD33: 0 | BE33: 0 | BF33: 0 | BG33: 0 | BH33: 11.24703977 | BI33: 6.173420224 | BJ33: 0 | BK33: 0 | BL33: 0 | BM33: 0 | BN33: 42.63032275 | BO33: 0 | BP33: 0 | BQ33: 0 | BR33: 0 | BS33: 0 | BT33: 0 | BU33: 0 | BV33: 0 | BW33: 0 | BX33: 0 | BY33: 0 | BZ33: 0 | CA33: 0 | CB33: 0 | CC33: 0 | CD33: 0 | CE33: 0 | CF33: 0 | CG33: 0 | CH33: 0 | CI33: 0 | CJ33: 0 | CK33: 0 | CL33: 0 | CM33: 0 | CN33: 0 | CO33: 0 | CP33: 0 | CQ33: 0 | CR33: 0 | CS33: 0 | CT33: 0 | CU33: 0 | CV33: 0 | CW33: 0 | CX33: 0 | CY33: 0 | CZ33: 0 | DA33: 0 | DB33: 0 | DC33: 0 | DD33: 0 | DE33: 0 | DF33: 0 | DG33: 0 | DH33: 0
C34: ˃ 11 kV & < = 22 kV ; Single-Phase | D34: 40.98736958 | E34: 13.25752147 | F34: 0 | G34: 0.0001000049999 | H34: 0 | I34: 0 | J34: 0 | K34: 0 | L34: 0 | M34: 0 | N34: 4.036107818 | O34: 0.2682388828 | P34: 0 | Q34: 0 | R34: 2.084150368 | S34: 5.73146453 | T34: 0.2464062251 | U34: 0.3727779635 | V34: 2.181151574 | W34: 11.39900757 | X34: 2.945702736 | Y34: 3.562631976 | Z34: 0.6872592779 | AA34: 0 | AB34: 0.4968058368 | AC34: 0 | AD34: 0.0001030776406 | AE34: 0.2309504316 | AF34: 1.211450533 | AG34: 1.215876804 | AH34: 0.0001004241007 | AI34: 0.7707921624 | AJ34: 0.0001030970417 | AK34: 0.1779897424 | AL34: 0 | AM34: 0.1877348383 | AN34: 0.846494142 | AO34: 0.557156022 | AP34: 0 | AQ34: 1.119212957 | AR34: 0 | AS34: 0 | AT34: 0 | AU34: 0 | AV34: 0 | AW34: 6.210046197 | AX34: 6.13324487 | AY34: 7.171334908 | AZ34: 5.637060699 | BA34: 4.199175212 | BB34: 0 | BC34: 0 | BD34: 0 | BE34: 0 | BF34: 0 | BG34: 0 | BH34: 0 | BI34: 0 | BJ34: 0 | BK34: 0 | BL34: 0 | BM34: 0 | BN34: 0 | BO34: 0 | BP34: 0 | BQ34: 0 | BR34: 0 | BS34: 0 | BT34: 0 | BU34: 0 | BV34: 0 | BW34: 0 | BX34: 0 | BY34: 0 | BZ34: 0 | CA34: 0 | CB34: 0 | CC34: 0 | CD34: 0 | CE34: 0 | CF34: 0 | CG34: 0 | CH34: 0 | CI34: 0 | CJ34: 0 | CK34: 0 | CL34: 0 | CM34: 0 | CN34: 0 | CO34: 0 | CP34: 0 | CQ34: 0 | CR34: 0 | CS34: 0 | CT34: 0 | CU34: 0 | CV34: 0 | CW34: 0 | CX34: 0 | CY34: 0 | CZ34: 0 | DA34: 0 | DB34: 0 | DC34: 0 | DD34: 0 | DE34: 0 | DF34: 0 | DG34: 0 | DH34: 0
C35: ˃ 11 kV & < = 22 kV ; Multiple-Phase | D35: 40.98736958 | E35: 13.25752147 | F35: 0 | G35: 0.0002125 | H35: 0 | I35: 0 | J35: 0 | K35: 0 | L35: 0 | M35: 0.1271899615 | N35: 0.0002125 | O35: 0.0002125 | P35: 0 | Q35: 0 | R35: 0.0002627045815 | S35: 0.736527038 | T35: 2.869104508 | U35: 5.182867902 | V35: 0.0002125 | W35: 0.6557495976 | X35: 0.001267647857 | Y35: 1.181477996 | Z35: 0.0002125 | AA35: 0 | AB35: 2.673987277 | AC35: 0 | AD35: 0.0002125 | AE35: 0.0002125 | AF35: 0.08690996074 | AG35: 0.0002125 | AH35: 1.801836767 | AI35: 0.0002125 | AJ35: 0.0002125 | AK35: 0.0002125 | AL35: 0 | AM35: 0.0002125 | AN35: 0.0002125 | AO35: 0.0002125 | AP35: 0 | AQ35: 0.0002125 | AR35: 0 | AS35: 0 | AT35: 0 | AU35: 0 | AV35: 0 | AW35: 1.770177407 | AX35: 1.818904338 | AY35: 0.0003158682737 | AZ35: 0.0002125 | BA35: 25.32060449 | BB35: 0 | BC35: 0 | BD35: 0 | BE35: 0 | BF35: 0 | BG35: 11.65848642 | BH35: 0 | BI35: 0 | BJ35: 0 | BK35: 0 | BL35: 0 | BM35: 0 | BN35: 0 | BO35: 0 | BP35: 0 | BQ35: 0 | BR35: 0 | BS35: 0 | BT35: 0 | BU35: 0 | BV35: 0 | BW35: 0 | BX35: 0 | BY35: 0 | BZ35: 0 | CA35: 0 | CB35: 0 | CC35: 0 | CD35: 0 | CE35: 0 | CF35: 0 | CG35: 0 | CH35: 0 | CI35: 0 | CJ35: 0 | CK35: 0 | CL35: 0 | CM35: 0 | CN35: 0 | CO35: 0 | CP35: 0 | CQ35: 0 | CR35: 0 | CS35: 0 | CT35: 0 | CU35: 0 | CV35: 0 | CW35: 0 | CX35: 0 | CY35: 0 | CZ35: 0 | DA35: 0 | DB35: 0 | DC35: 0 | DD35: 0 | DE35: 0 | DF35: 0 | DG35: 0 | DH35: 0
C36: > 22 kV & < = 66 kV | D36: 40.98736958 | E36: 13.25752147 | F36: 18.50859319 | G36: 10.86576663 | H36: 6.29860092 | I36: 12.9425506 | J36: 31.66672793 | K36: 21.38836997 | L36: 49.30938962 | M36: 70.01726918 | N36: 21.09162558 | O36: 58.93851171 | P36: 34.73701341 | Q36: 78.50066605 | R36: 31.57044443 | S36: 5.836402878 | T36: 15.98066213 | U36: 19.11664036 | V36: 25.09238642 | W36: 12.96813676 | X36: 2.671153557 | Y36: 24.81369451 | Z36: 1.833513845 | AA36: 6.926235262 | AB36: 4.587303848 | AC36: 30.41935651 | AD36: 1.856081551 | AE36: 20.73898544 | AF36: 1.589143264 | AG36: 15.1496427 | AH36: 6.40941716 | AI36: 0.8921720225 | AJ36: 0.9601198526 | AK36: 1.046738083 | AL36: 25.112989 | AM36: 8.28132827 | AN36: 12.23232047 | AO36: 25.57182157 | AP36: 41.61736451 | AQ36: 70.4030756 | AR36: 15.85567061 | AS36: 9.755412737 | AT36: 38.45798655 | AU36: 18.72032518 | AV36: 12.32442946 | AW36: 20.71391734 | AX36: 7.186957786 | AY36: 16.0468091 | AZ36: 13.11335684 | BA36: 23.23369905 | BB36: 59.28023505 | BC36: 95.36324048 | BD36: 48.22215236 | BE36: 10.10474624 | BF36: 129.204525 | BG36: 96.79679458 | BH36: 87.19252969 | BI36: 25.86384502 | BJ36: 25.20666878 | BK36: 85.00262736 | BL36: 0 | BM36: 0 | BN36: 3.130398917 | BO36: 19.97368477 | BP36: 11.21822707 | BQ36: 5.376006469 | BR36: 4.693888922 | BS36: 6.031867843 | BT36: 0 | BU36: 0 | BV36: 0 | BW36: 0 | BX36: 0 | BY36: 0 | BZ36: 0 | CA36: 0 | CB36: 0 | CC36: 0 | CD36: 0 | CE36: 0 | CF36: 0 | CG36: 0 | CH36: 0 | CI36: 0 | CJ36: 0 | CK36: 0 | CL36: 0 | CM36: 0 | CN36: 0 | CO36: 0 | CP36: 0 | CQ36: 0 | CR36: 0 | CS36: 0 | CT36: 0 | CU36: 0 | CV36: 0 | CW36: 0 | CX36: 0 | CY36: 0 | CZ36: 0 | DA36: 0 | DB36: 0 | DC36: 0 | DD36: 0 | DE36: 0 | DF36: 0 | DG36: 0 | DH36: 0
C37: > 66 kV & < = 132 kV | D37: 40.98736958 | E37: 13.25752147 | F37: 6.273621086 | G37: 3.439241215 | H37: 16.39742492 | I37: 49.42467348 | J37: 12.02451537 | K37: 20.61947871 | L37: 73.64539531 | M37: 19.25299875 | N37: 0.3371780449 | O37: 10.45215945 | P37: 7.639508236 | Q37: 0 | R37: 4.270310185 | S37: 10.53054314 | T37: 19.59212309 | U37: 13.52030853 | V37: 3.535783709 | W37: 3.922555288 | X37: 0 | Y37: 4.666703971 | Z37: 1.70373541 | AA37: 0 | AB37: 35.47452355 | AC37: 0 | AD37: 0 | AE37: 0 | AF37: 0 | AG37: 0 | AH37: 0 | AI37: 6.254806961 | AJ37: 3.944252086 | AK37: 4.512719108 | AL37: 50.6833459 | AM37: 0.04780987078 | AN37: 8.794893417 | AO37: 16.19800199 | AP37: 2.130051228 | AQ37: 0.708122379 | AR37: 29.01775879 | AS37: 28.83291094 | AT37: 20.68235881 | AU37: 0.4905616459 | AV37: 12.68950803 | AW37: 27.48826478 | AX37: 24.78535716 | AY37: 32.1813899 | AZ37: 4.350913044 | BA37: 3.736276555 | BB37: 13.0871797 | BC37: 115.9371875 | BD37: 8.566916012 | BE37: 0.4045772313 | BF37: 14.64117906 | BG37: 48.49491986 | BH37: 42.55246154 | BI37: 10.30015696 | BJ37: 53.18780538 | BK37: 188.9969034 | BL37: 0 | BM37: 0 | BN37: 0 | BO37: 11.64751607 | BP37: 0 | BQ37: 0 | BR37: 0 | BS37: 0 | BT37: 0 | BU37: 0 | BV37: 0 | BW37: 0 | BX37: 0 | BY37: 0 | BZ37: 0 | CA37: 0 | CB37: 0 | CC37: 0 | CD37: 0 | CE37: 0 | CF37: 0 | CG37: 0 | CH37: 0 | CI37: 0 | CJ37: 0 | CK37: 0 | CL37: 0 | CM37: 0 | CN37: 0 | CO37: 0 | CP37: 0 | CQ37: 0 | CR37: 0 | CS37: 0 | CT37: 0 | CU37: 0 | CV37: 0 | CW37: 0 | CX37: 0 | CY37: 0 | CZ37: 0 | DA37: 0 | DB37: 0 | DC37: 0 | DD37: 0 | DE37: 0 | DF37: 0 | DG37: 0 | DH37: 0
C38: > 132 kV | D38: 0 | E38: 0 | F38: 0 | G38: 0 | H38: 0 | I38: 0 | J38: 0 | K38: 0 | L38: 0 | M38: 0 | N38: 0 | O38: 0 | P38: 0 | Q38: 0 | R38: 0 | S38: 0 | T38: 0 | U38: 0 | V38: 0 | W38: 0 | X38: 0 | Y38: 0 | Z38: 0 | AA38: 0 | AB38: 0 | AC38: 0 | AD38: 0 | AE38: 0 | AF38: 0 | AG38: 0 | AH38: 0 | AI38: 0 | AJ38: 0 | AK38: 0 | AL38: 0 | AM38: 0 | AN38: 0 | AO38: 0 | AP38: 0 | AQ38: 0 | AR38: 0 | AS38: 0 | AT38: 0 | AU38: 0 | AV38: 0 | AW38: 0 | AX38: 0 | AY38: 0 | AZ38: 0 | BA38: 0 | BB38: 0 | BC38: 0 | BD38: 0 | BE38: 0 | BF38: 0 | BG38: 0 | BH38: 0 | BI38: 0 | BJ38: 0 | BK38: 0 | BL38: 0 | BM38: 0 | BN38: 0 | BO38: 0 | BP38: 0 | BQ38: 0 | BR38: 0 | BS38: 0 | BT38: 0 | BU38: 0 | BV38: 0 | BW38: 0 | BX38: 0 | BY38: 0 | BZ38: 0 | CA38: 0 | CB38: 0 | CC38: 0 | CD38: 0 | CE38: 0 | CF38: 0 | CG38: 0 | CH38: 0 | CI38: 0 | CJ38: 0 | CK38: 0 | CL38: 0 | CM38: 0 | CN38: 0 | CO38: 0 | CP38: 0 | CQ38: 0 | CR38: 0 | CS38: 0 | CT38: 0 | CU38: 0 | CV38: 0 | CW38: 0 | CX38: 0 | CY38: 0 | CZ38: 0 | DA38: 0 | DB38: 0 | DC38: 0 | DD38: 0 | DE38: 0 | DF38: 0 | DG38: 0 | DH38: 0
C39: Other | D39: 0 | E39: 0 | F39: 0 | G39: 0 | H39: 0 | I39: 0 | J39: 0 | K39: 0 | L39: 0 | M39: 0 | N39: 0 | O39: 0 | P39: 0 | Q39: 0 | R39: 0 | S39: 0 | T39: 0 | U39: 0 | V39: 0 | W39: 0 | X39: 0 | Y39: 0 | Z39: 0 | AA39: 0 | AB39: 0 | AC39: 0 | AD39: 0 | AE39: 0 | AF39: 0 | AG39: 0 | AH39: 0 | AI39: 0 | AJ39: 0 | AK39: 0 | AL39: 0 | AM39: 0 | AN39: 0 | AO39: 0 | AP39: 0 | AQ39: 0 | AR39: 0 | AS39: 0 | AT39: 0 | AU39: 0 | AV39: 0 | AW39: 0 | AX39: 0 | AY39: 0 | AZ39: 0 | BA39: 0 | BB39: 0 | BC39: 0 | BD39: 0 | BE39: 0 | BF39: 0 | BG39: 0 | BH39: 0 | BI39: 0 | BJ39: 0 | BK39: 0 | BL39: 0 | BM39: 0 | BN39: 0 | BO39: 0 | BP39: 0 | BQ39: 0 | BR39: 0 | BS39: 0 | BT39: 0 | BU39: 0 | BV39: 0 | BW39: 0 | BX39: 0 | BY39: 0 | BZ39: 0 | CA39: 0 | CB39: 0 | CC39: 0 | CD39: 0 | CE39: 0 | CF39: 0 | CG39: 0 | CH39: 0 | CI39: 0 | CJ39: 0 | CK39: 0 | CL39: 0 | CM39: 0 | CN39: 0 | CO39: 0 | CP39: 0 | CQ39: 0 | CR39: 0 | CS39: 0 | CT39: 0 | CU39: 0 | CV39: 0 | CW39: 0 | CX39: 0 | CY39: 0 | CZ39: 0 | DA39: 0 | DB39: 0 | DC39: 0 | DD39: 0 | DE39: 0 | DF39: 0 | DG39: 0 | DH39: 0
B40: UNDERGROUND CABLES BY: HIGHEST OPERATING VOLTAGE | C40: ˂ = 1 kV | D40: 43.57599655 | E40: 16.79462465 | F40: 151.4062321 | G40: 153.7899013 | H40: 154.8661484 | I40: 174.661182 | J40: 172.0672637 | K40: 223.0903836 | L40: 188.2039137 | M40: 133.6293023 | N40: 152.8966393 | O40: 132.912709 | P40: 123.3944153 | Q40: 148.6981859 | R40: 171.0462999 | S40: 136.648565 | T40: 140.8360492 | U40: 100.9260819 | V40: 97.56666526 | W40: 99.82057808 | X40: 100.9930785 | Y40: 65.0031562 | Z40: 65.32475041 | AA40: 63.02659633 | AB40: 75.56920463 | AC40: 53.1294661 | AD40: 70.29280929 | AE40: 50.81798608 | AF40: 42.76465103 | AG40: 26.80025556 | AH40: 52.9806673 | AI40: 75.49045328 | AJ40: 33.92929861 | AK40: 39.35118598 | AL40: 49.45305329 | AM40: 44.79413989 | AN40: 59.57054082 | AO40: 118.4007265 | AP40: 118.607794 | AQ40: 99.09400135 | AR40: 138.6557508 | AS40: 99.33888141 | AT40: 108.6930632 | AU40: 70.57137259 | AV40: 53.33211119 | AW40: 94.51036704 | AX40: 45.04954518 | AY40: 85.66058134 | AZ40: 47.14153975 | BA40: 58.43188805 | BB40: 71.07315191 | BC40: 108.2752626 | BD40: 38.19496848 | BE40: 94.76089099 | BF40: 99.83254644 | BG40: 84.46616599 | BH40: 123.6486607 | BI40: 75.26703833 | BJ40: 104.8113885 | BK40: 102.1125898 | BL40: 85.67402503 | BM40: 56.63252828 | BN40: 73.12736493 | BO40: 48.08316343 | BP40: 82.02866951 | BQ40: 13.38015241 | BR40: 6.263766875 | BS40: 15.61023246 | BT40: 14.02297728 | BU40: 4.85619753 | BV40: 19.70354299 | BW40: 8.341137588 | BX40: 0.8693705394 | BY40: 2.796596643 | BZ40: 4.982783044 | CA40: 11.29373323 | CB40: 0.572625759 | CC40: 0.6291634124 | CD40: 0.8014293341 | CE40: 4.037028726 | CF40: 0.8265632641 | CG40: 0.8226424551 | CH40: 0.6210867289 | CI40: 0.5881439462 | CJ40: 0.4760514973 | CK40: 0.711564568 | CL40: 0.5356704167 | CM40: 0.6134540923 | CN40: 1.038186472 | CO40: 0.7944634526 | CP40: 0.7407822417 | CQ40: 20.72273965 | CR40: 13.37943126 | CS40: 0.5855451266 | CT40: 0.4735039721 | CU40: 0 | CV40: 0 | CW40: 0.4665759473 | CX40: 0.4675102838 | CY40: 0 | CZ40: 0 | DA40: 0 | DB40: 0 | DC40: 0 | DD40: 0 | DE40: 0 | DF40: 0 | DG40: 0 | DH40: 0
C41: > 1 kV & < = 11 kV | D41: 46.1215311 | E41: 18.56725017 | F41: 116.40491 | G41: 123.0537532 | H41: 120.6048299 | I41: 255.2994581 | J41: 268.707647 | K41: 284.4266748 | L41: 288.0479782 | M41: 236.073514 | N41: 215.1671213 | O41: 160.8210141 | P41: 188.7267658 | Q41: 144.0932972 | R41: 129.0965913 | S41: 104.6145797 | T41: 112.8129945 | U41: 91.90458397 | V41: 120.1830675 | W41: 115.9178034 | X41: 110.072355 | Y41: 84.80465389 | Z41: 51.23009932 | AA41: 61.1315419 | AB41: 89.39356957 | AC41: 55.42497835 | AD41: 70.94138257 | AE41: 84.31881247 | AF41: 63.54632322 | AG41: 50.78759217 | AH41: 59.52108395 | AI41: 84.98597092 | AJ41: 44.13521704 | AK41: 43.69957034 | AL41: 71.56546095 | AM41: 38.59146155 | AN41: 71.11846719 | AO41: 92.00131586 | AP41: 106.3947572 | AQ41: 131.5469344 | AR41: 154.946593 | AS41: 133.328752 | AT41: 118.4312536 | AU41: 90.63598186 | AV41: 91.27011595 | AW41: 110.6009557 | AX41: 70.55727912 | AY41: 94.17152329 | AZ41: 62.29626649 | BA41: 115.3456466 | BB41: 72.80023965 | BC41: 137.8705004 | BD41: 87.39382877 | BE41: 125.7565325 | BF41: 122.8580426 | BG41: 176.8119642 | BH41: 239.772384 | BI41: 132.8805255 | BJ41: 162.0813589 | BK41: 159.9458153 | BL41: 178.6823674 | BM41: 150.4911813 | BN41: 162.0603866 | BO41: 182.1501286 | BP41: 197.4593846 | BQ41: 25.63732893 | BR41: 34.42176956 | BS41: 24.27046092 | BT41: 25.60714354 | BU41: 16.7438585 | BV41: 29.63204077 | BW41: 15.72086667 | BX41: 1.564746934 | BY41: 4.153109107 | BZ41: 13.64882839 | CA41: 29.67947832 | CB41: 2.178481215 | CC41: 1.731506591 | CD41: 1.564497916 | CE41: 27.34989414 | CF41: 3.957120255 | CG41: 6.531476963 | CH41: 2.729705988 | CI41: 1.895279118 | CJ41: 0.9368654436 | CK41: 0.7996967583 | CL41: 0.659446916 | CM41: 1.841344317 | CN41: 2.630667726 | CO41: 17.21872008 | CP41: 10.47505589 | CQ41: 62.65594956 | CR41: 51.44649301 | CS41: 2.793093346 | CT41: 0.4749127499 | CU41: 0.4754345673 | CV41: 0.4725352041 | CW41: 0 | CX41: 0 | CY41: 0 | CZ41: 0 | DA41: 0 | DB41: 0 | DC41: 0 | DD41: 0 | DE41: 0 | DF41: 0 | DG41: 0 | DH41: 0
C42: > 11 kV & < = 22 kV | D42: 0 | E42: 0 | F42: 0 | G42: 0 | H42: 0 | I42: 0 | J42: 0 | K42: 0 | L42: 0 | M42: 0 | N42: 0 | O42: 0 | P42: 0 | Q42: 0 | R42: 0 | S42: 0 | T42: 0 | U42: 0 | V42: 0 | W42: 0 | X42: 0 | Y42: 0 | Z42: 0 | AA42: 0 | AB42: 0 | AC42: 0 | AD42: 0 | AE42: 0 | AF42: 0 | AG42: 0 | AH42: 0 | AI42: 0 | AJ42: 0 | AK42: 0 | AL42: 0 | AM42: 0 | AN42: 0 | AO42: 0 | AP42: 0 | AQ42: 0 | AR42: 0 | AS42: 0 | AT42: 0 | AU42: 0 | AV42: 0 | AW42: 0 | AX42: 0 | AY42: 0 | AZ42: 0 | BA42: 0 | BB42: 0 | BC42: 0 | BD42: 0 | BE42: 0 | BF42: 0 | BG42: 0 | BH42: 0 | BI42: 0 | BJ42: 0 | BK42: 0 | BL42: 0 | BM42: 0 | BN42: 0 | BO42: 0 | BP42: 0 | BQ42: 0 | BR42: 0 | BS42: 0 | BT42: 0 | BU42: 0 | BV42: 0 | BW42: 0 | BX42: 0 | BY42: 0 | BZ42: 0 | CA42: 0 | CB42: 0 | CC42: 0 | CD42: 0 | CE42: 0 | CF42: 0 | CG42: 0 | CH42: 0 | CI42: 0 | CJ42: 0 | CK42: 0 | CL42: 0 | CM42: 0 | CN42: 0 | CO42: 0 | CP42: 0 | CQ42: 0 | CR42: 0 | CS42: 0 | CT42: 0 | CU42: 0 | CV42: 0 | CW42: 0 | CX42: 0 | CY42: 0 | CZ42: 0 | DA42: 0 | DB42: 0 | DC42: 0 | DD42: 0 | DE42: 0 | DF42: 0 | DG42: 0 | DH42: 0
C43: > 22 kV & < = 33 kV | D43: 48.9312717 | E43: 11.86431259 | F43: 14.80991268 | G43: 7.136949642 | H43: 2.633009395 | I43: 7.330290582 | J43: 15.39586534 | K43: 20.25363328 | L43: 20.35345179 | M43: 29.41825899 | N43: 19.38556978 | O43: 8.150178303 | P43: 18.22650413 | Q43: 5.575190107 | R43: 10.96895493 | S43: 0.9158206001 | T43: 0.877349321 | U43: 5.411756304 | V43: 6.238669599 | W43: 9.616575506 | X43: 0.9964945336 | Y43: 2.545295404 | Z43: 0.7129835508 | AA43: 7.300853753 | AB43: 0.2342062484 | AC43: 2.517852936 | AD43: 0.3268000763 | AE43: 0.4706166344 | AF43: 0.868907557 | AG43: 0.553594543 | AH43: 0.6880940967 | AI43: 0.2119307322 | AJ43: 1.278891888 | AK43: 0.4926014105 | AL43: 0.09631179296 | AM43: 0.519198768 | AN43: 0.2513370761 | AO43: 0.02937286315 | AP43: 0.2095726315 | AQ43: 0.1976815725 | AR43: 0.3094092036 | AS43: 0.2694748875 | AT43: 0.6244662265 | AU43: 3.733763861 | AV43: 9.356924782 | AW43: 11.48780625 | AX43: 6.669420221 | AY43: 12.99303299 | AZ43: 10.03303611 | BA43: 2.956804964 | BB43: 0.6564238898 | BC43: 13.44950801 | BD43: 16.76660008 | BE43: 13.4660782 | BF43: 28.21173412 | BG43: 27.27093117 | BH43: 26.46056428 | BI43: 0.03915269868 | BJ43: 0.09739504958 | BK43: 0.3479945035 | BL43: 0.05544924688 | BM43: 0.4918041871 | BN43: 2.565078309 | BO43: 43.65548736 | BP43: 15.19840856 | BQ43: 0.06299582338 | BR43: 19.77209669 | BS43: 7.061406849 | BT43: 4.12482118 | BU43: 1.394953262 | BV43: 19.16790223 | BW43: 16.36033806 | BX43: 42.27201317 | BY43: 0.6475653786 | BZ43: 0 | CA43: 0.9133472746 | CB43: 2.590933837 | CC43: 0.02495098589 | CD43: 3.19879938 | CE43: 1.054392864 | CF43: 0.242237855 | CG43: 0.2135182097 | CH43: 20.54615671 | CI43: 0 | CJ43: 0 | CK43: 0 | CL43: 0 | CM43: 9.956860392 | CN43: 1.423443247 | CO43: 8.988491628 | CP43: 0 | CQ43: 0 | CR43: 0 | CS43: 0 | CT43: 0 | CU43: 0 | CV43: 0 | CW43: 0 | CX43: 0 | CY43: 0 | CZ43: 0 | DA43: 0 | DB43: 0 | DC43: 0 | DD43: 0 | DE43: 0 | DF43: 0 | DG43: 0 | DH43: 0
C44: > 33 kV & < = 66 kV | D44: 48.9312717 | E44: 11.86431259 | F44: 0 | G44: 0 | H44: 0.5537281682 | I44: 6.853319741 | J44: 0.4830309432 | K44: 0.5835350449 | L44: 0.8304949431 | M44: 0.1273130486 | N44: 0.08125771651 | O44: 0 | P44: 0 | Q44: 0 | R44: 0 | S44: 0 | T44: 0 | U44: 0 | V44: 0 | W44: 0 | X44: 0 | Y44: 0 | Z44: 0 | AA44: 0 | AB44: 0 | AC44: 0 | AD44: 0 | AE44: 0 | AF44: 0 | AG44: 0 | AH44: 0 | AI44: 0 | AJ44: 0 | AK44: 0 | AL44: 0 | AM44: 0 | AN44: 0 | AO44: 0 | AP44: 0 | AQ44: 0 | AR44: 0 | AS44: 0 | AT44: 0 | AU44: 0 | AV44: 0 | AW44: 0 | AX44: 0 | AY44: 0 | AZ44: 0 | BA44: 0 | BB44: 0 | BC44: 0 | BD44: 0 | BE44: 0 | BF44: 0 | BG44: 0 | BH44: 0 | BI44: 0 | BJ44: 0 | BK44: 0 | BL44: 0 | BM44: 0 | BN44: 0 | BO44: 0.1059912982 | BP44: 0 | BQ44: 0 | BR44: 0 | BS44: 0 | BT44: 0 | BU44: 0 | BV44: 0 | BW44: 0 | BX44: 0 | BY44: 0 | BZ44: 0 | CA44: 0 | CB44: 0 | CC44: 0 | CD44: 0 | CE44: 0 | CF44: 0 | CG44: 0 | CH44: 0 | CI44: 0 | CJ44: 0 | CK44: 0 | CL44: 0 | CM44: 0 | CN44: 0 | CO44: 0 | CP44: 0 | CQ44: 0 | CR44: 0 | CS44: 0 | CT44: 0 | CU44: 0 | CV44: 0 | CW44: 0 | CX44: 0 | CY44: 0 | CZ44: 0 | DA44: 0 | DB44: 0 | DC44: 0 | DD44: 0 | DE44: 0 | DF44: 0 | DG44: 0 | DH44: 0
C45: > 66 kV & < = 132 kV | D45: 49.62192454 | E45: 7.811156551 | F45: 36.12407846 | G45: 17.70674158 | H45: 39.1445283 | I45: 32.25644288 | J45: 23.2220375 | K45: 19.21905932 | L45: 27.1736623 | M45: 24.15209114 | N45: 0.3830722687 | O45: 18.83545397 | P45: 0.2530166721 | Q45: 0.3109083349 | R45: 5.61029004 | S45: 4.314893355 | T45: 16.39924241 | U45: 8.291074335 | V45: 0 | W45: 6.6131225 | X45: 0.5722789717 | Y45: 9.464369863 | Z45: 0.2422345296 | AA45: 0 | AB45: 0.4496865492 | AC45: 0.4535797724 | AD45: 0 | AE45: 0 | AF45: 0.1338472711 | AG45: 0.9724773457 | AH45: 0 | AI45: 11.14613955 | AJ45: 0 | AK45: 0.1354386804 | AL45: 0.1346236167 | AM45: 0 | AN45: 3.237353506 | AO45: 3.403598087 | AP45: 14.68009257 | AQ45: 27.22210273 | AR45: 7.510237852 | AS45: 13.80890653 | AT45: 9.499341508 | AU45: 4.770836698 | AV45: 10.47554699 | AW45: 3.032048649 | AX45: 77.42487976 | AY45: 42.07294535 | AZ45: 27.1643571 | BA45: 8.88234633 | BB45: 37.60152115 | BC45: 18.56396471 | BD45: 5.08864605 | BE45: 16.23010519 | BF45: 0 | BG45: 0 | BH45: 26.83580767 | BI45: 0 | BJ45: 0.1722844632 | BK45: 2.665420575 | BL45: 0 | BM45: 0 | BN45: 0 | BO45: 0 | BP45: 0 | BQ45: 0 | BR45: 0 | BS45: 0 | BT45: 0 | BU45: 0 | BV45: 0 | BW45: 0 | BX45: 0 | BY45: 0 | BZ45: 0 | CA45: 0 | CB45: 0 | CC45: 0 | CD45: 0 | CE45: 0 | CF45: 0 | CG45: 0 | CH45: 0 | CI45: 0 | CJ45: 0 | CK45: 0 | CL45: 0 | CM45: 0 | CN45: 0 | CO45: 0 | CP45: 0 | CQ45: 0 | CR45: 0 | CS45: 0 | CT45: 0 | CU45: 0 | CV45: 0 | CW45: 0 | CX45: 0 | CY45: 0 | CZ45: 0 | DA45: 0 | DB45: 0 | DC45: 0 | DD45: 0 | DE45: 0 | DF45: 0 | DG45: 0 | DH45: 0
C46: > 132 kV | D46: 0 | E46: 0 | F46: 0 | G46: 0 | H46: 0 | I46: 0 | J46: 0 | K46: 0 | L46: 0 | M46: 0 | N46: 0 | O46: 0 | P46: 0 | Q46: 0 | R46: 0 | S46: 0 | T46: 0 | U46: 0 | V46: 0 | W46: 0 | X46: 0 | Y46: 0 | Z46: 0 | AA46: 0 | AB46: 0 | AC46: 0 | AD46: 0 | AE46: 0 | AF46: 0 | AG46: 0 | AH46: 0 | AI46: 0 | AJ46: 0 | AK46: 0 | AL46: 0 | AM46: 0 | AN46: 0 | AO46: 0 | AP46: 0 | AQ46: 0 | AR46: 0 | AS46: 0 | AT46: 0 | AU46: 0 | AV46: 0 | AW46: 0 | AX46: 0 | AY46: 0 | AZ46: 0 | BA46: 0 | BB46: 0 | BC46: 0 | BD46: 0 | BE46: 0 | BF46: 0 | BG46: 0 | BH46: 0 | BI46: 0 | BJ46: 0 | BK46: 0 | BL46: 0 | BM46: 0 | BN46: 0 | BO46: 0 | BP46: 0 | BQ46: 0 | BR46: 0 | BS46: 0 | BT46: 0 | BU46: 0 | BV46: 0 | BW46: 0 | BX46: 0 | BY46: 0 | BZ46: 0 | CA46: 0 | CB46: 0 | CC46: 0 | CD46: 0 | CE46: 0 | CF46: 0 | CG46: 0 | CH46: 0 | CI46: 0 | CJ46: 0 | CK46: 0 | CL46: 0 | CM46: 0 | CN46: 0 | CO46: 0 | CP46: 0 | CQ46: 0 | CR46: 0 | CS46: 0 | CT46: 0 | CU46: 0 | CV46: 0 | CW46: 0 | CX46: 0 | CY46: 0 | CZ46: 0 | DA46: 0 | DB46: 0 | DC46: 0 | DD46: 0 | DE46: 0 | DF46: 0 | DG46: 0 | DH46: 0
C47: Other | D47: 38.1517058 | E47: 20.50442779 | F47: 1745 | G47: 2163 | H47: 2354 | I47: 2496 | J47: 2396 | K47: 2135 | L47: 1437 | M47: 1424 | N47: 3575 | O47: 1422 | P47: 1700 | Q47: 1715 | R47: 2045 | S47: 1716 | T47: 896 | U47: 739 | V47: 708 | W47: 975 | X47: 999 | Y47: 716 | Z47: 429 | AA47: 871 | AB47: 1117 | AC47: 1216 | AD47: 1377 | AE47: 934 | AF47: 1120 | AG47: 727 | AH47: 459 | AI47: 481 | AJ47: 316 | AK47: 769 | AL47: 477 | AM47: 859 | AN47: 552 | AO47: 1681 | AP47: 1137 | AQ47: 665 | AR47: 435 | AS47: 620 | AT47: 765 | AU47: 588 | AV47: 336 | AW47: 391 | AX47: 687 | AY47: 441 | AZ47: 432 | BA47: 491 | BB47: 229 | BC47: 268 | BD47: 111 | BE47: 243 | BF47: 161 | BG47: 193 | BH47: 11712 | BI47: 105 | BJ47: 83 | BK47: 3175 | BL47: 8 | BM47: 8 | BN47: 6 | BO47: 8 | BP47: 7 | BQ47: 13 | BR47: 7 | BS47: 7 | BT47: 4 | BU47: 3 | BV47: 1 | BW47: 2 | BX47: 1 | BY47: 2 | BZ47: 3 | CA47: 0 | CB47: 5 | CC47: 1 | CD47: 0 | CE47: 5 | CF47: 1 | CG47: 7 | CH47: 4 | CI47: 1 | CJ47: 1 | CK47: 0 | CL47: 1 | CM47: 12 | CN47: 15 | CO47: 4 | CP47: 11 | CQ47: 9 | CR47: 11 | CS47: 11 | CT47: 0 | CU47: 4 | CV47: 3 | CW47: 0 | CX47: 8 | CY47: 1 | CZ47: 0 | DA47: 0 | DB47: 0 | DC47: 0 | DD47: 1 | DE47: 1 | DF47: 1 | DG47: 0 | DH47: 1
B48: SERVICE LINES BY: CONNECTION VOLTAGE; CUSTOMER TYPE; CONNECTION COMPLEXITY | C48: ˂ = 11 kV ; Residential ; Simple Type | D48: 30 | E48: 5 | F48: 19947 | G48: 24226 | H48: 25455 | I48: 26781 | J48: 19589 | K48: 24355 | L48: 19616 | M48: 22037 | N48: 26175 | O48: 20693 | P48: 16482 | Q48: 15422 | R48: 9762 | S48: 9613 | T48: 7896 | U48: 7207 | V48: 5932 | W48: 4290 | X48: 4076 | Y48: 4436 | Z48: 4508 | AA48: 5678 | AB48: 6154 | AC48: 5587 | AD48: 4311 | AE48: 3700 | AF48: 8390 | AG48: 8276 | AH48: 6780 | AI48: 5786 | AJ48: 7881 | AK48: 7791 | AL48: 6365 | AM48: 5080 | AN48: 3684 | AO48: 6208 | AP48: 6039 | AQ48: 12311 | AR48: 6151 | AS48: 4449 | AT48: 4069 | AU48: 3990 | AV48: 3857 | AW48: 7588 | AX48: 3532 | AY48: 6161 | AZ48: 4630 | BA48: 6405 | BB48: 8948 | BC48: 10256 | BD48: 7223 | BE48: 11331 | BF48: 14735 | BG48: 12987 | BH48: 23262 | BI48: 12282 | BJ48: 14798 | BK48: 19693 | BL48: 16356 | BM48: 7942 | BN48: 9235 | BO48: 11462 | BP48: 3430 | BQ48: 2003 | BR48: 1391 | BS48: 1335 | BT48: 1551 | BU48: 668 | BV48: 981 | BW48: 318 | BX48: 41 | BY48: 272 | BZ48: 907 | CA48: 0 | CB48: 0 | CC48: 1 | CD48: 0 | CE48: 1466 | CF48: 1 | CG48: 1 | CH48: 4 | CI48: 0 | CJ48: 0 | CK48: 0 | CL48: 0 | CM48: 0 | CN48: 0 | CO48: 0 | CP48: 0 | CQ48: 3049 | CR48: 935 | CS48: 0 | CT48: 0 | CU48: 0 | CV48: 0 | CW48: 0 | CX48: 0 | CY48: 3576 | CZ48: 0 | DA48: 0 | DB48: 0 | DC48: 0 | DD48: 0 | DE48: 0 | DF48: 0 | DG48: 0 | DH48: 60
C49: ˂ = 11 kV ; Commercial & Industrial ; Simple Type | D49: 30 | E49: 5 | F49: 837 | G49: 800 | H49: 771 | I49: 810 | J49: 654 | K49: 754 | L49: 563 | M49: 684 | N49: 663 | O49: 612 | P49: 560 | Q49: 1123 | R49: 1639 | S49: 701 | T49: 495 | U49: 439 | V49: 515 | W49: 384 | X49: 369 | Y49: 358 | Z49: 382 | AA49: 424 | AB49: 440 | AC49: 402 | AD49: 321 | AE49: 326 | AF49: 516 | AG49: 528 | AH49: 484 | AI49: 395 | AJ49: 526 | AK49: 492 | AL49: 456 | AM49: 337 | AN49: 309 | AO49: 465 | AP49: 432 | AQ49: 804 | AR49: 454 | AS49: 345 | AT49: 279 | AU49: 243 | AV49: 265 | AW49: 336 | AX49: 341 | AY49: 438 | AZ49: 300 | BA49: 475 | BB49: 515 | BC49: 898 | BD49: 383 | BE49: 708 | BF49: 973 | BG49: 1055 | BH49: 1253 | BI49: 760 | BJ49: 1086 | BK49: 1283 | BL49: 928 | BM49: 594 | BN49: 575 | BO49: 670 | BP49: 237 | BQ49: 121 | BR49: 67 | BS49: 56 | BT49: 73 | BU49: 60 | BV49: 77 | BW49: 9 | BX49: 9 | BY49: 6 | BZ49: 51 | CA49: 0 | CB49: 0 | CC49: 0 | CD49: 0 | CE49: 73 | CF49: 0 | CG49: 0 | CH49: 0 | CI49: 0 | CJ49: 0 | CK49: 0 | CL49: 0 | CM49: 0 | CN49: 0 | CO49: 0 | CP49: 0 | CQ49: 123 | CR49: 138 | CS49: 0 | CT49: 0 | CU49: 0 | CV49: 0 | CW49: 0 | CX49: 0 | CY49: 135 | CZ49: 0 | DA49: 0 | DB49: 0 | DC49: 0 | DD49: 0 | DE49: 0 | DF49: 0 | DG49: 0 | DH49: 3
C50: ˂ = 11 kV ; Residential ; Complex Type | D50: 44.88105858 | E50: 21.50178725 | F50: 9600.03839 | G50: 5245.03839 | H50: 4876.03839 | I50: 5453.03839 | J50: 5079.03839 | K50: 7001.03839 | L50: 4709.03839 | M50: 3950.03839 | N50: 3657.03839 | O50: 3432.03839 | P50: 3738.03839 | Q50: 3522.03839 | R50: 2718.03839 | S50: 3042.03839 | T50: 2732.03839 | U50: 2132.03839 | V50: 2545.03839 | W50: 2376.03839 | X50: 2972.03839 | Y50: 2032.03839 | Z50: 3334.03839 | AA50: 2434.03839 | AB50: 3275.03839 | AC50: 2468.03839 | AD50: 2476.03839 | AE50: 2293.03839 | AF50: 2129.03839 | AG50: 1943.03839 | AH50: 3526.03839 | AI50: 1509.03839 | AJ50: 2190.03839 | AK50: 1853.03839 | AL50: 2431.03839 | AM50: 1106.03839 | AN50: 3015.03839 | AO50: 4343.03839 | AP50: 6247.03839 | AQ50: 8381.03839 | AR50: 6540.03839 | AS50: 5163.03839 | AT50: 4177.03839 | AU50: 627.03839 | AV50: 1170.03839 | AW50: 2571.03839 | AX50: 251.03839 | AY50: 3831.03839 | AZ50: 1245.03839 | BA50: 1430.03839 | BB50: 2134.03839 | BC50: 2827.03839 | BD50: 940.03839 | BE50: 3258.03839 | BF50: 2742.03839 | BG50: 2039.03839 | BH50: 3916.03839 | BI50: 1428.03839 | BJ50: 4336.03839 | BK50: 3446.03839 | BL50: 2146.03839 | BM50: 2658.03839 | BN50: 1009.024691 | BO50: 1078.03839 | BP50: 543.03839 | BQ50: 401.03839 | BR50: 145.03839 | BS50: 270.0246914 | BT50: 486.03839 | BU50: 502.0246914 | BV50: 144.0246914 | BW50: 486.03839 | BX50: 34.03838999 | BY50: 201.03839 | BZ50: 711.0246914 | CA50: 0 | CB50: 0 | CC50: 0 | CD50: 0 | CE50: 23.02469136 | CF50: 1.024691358 | CG50: 1.01369863 | CH50: 4.038389988 | CI50: 0 | CJ50: 0 | CK50: 0 | CL50: 0 | CM50: 0 | CN50: 0 | CO50: 0 | CP50: 0 | CQ50: 1163.024691 | CR50: 28.02469136 | CS50: 0 | CT50: 0 | CU50: 0 | CV50: 0 | CW50: 0 | CX50: 0 | CY50: 1347.03839 | CZ50: 0 | DA50: 0 | DB50: 0 | DC50: 0 | DD50: 0 | DE50: 0 | DF50: 0 | DG50: 0 | DH50: 3451.07678
C51: ˂ = 11 kV ; Commercial & Industrial ; Complex Type | D51: 44.88105858 | E51: 21.50178725 | F51: 927.0126582 | G51: 900.0126582 | H51: 1117.012658 | I51: 691.0126582 | J51: 799.0126582 | K51: 886.0126582 | L51: 697.0126582 | M51: 633.0126582 | N51: 762.0126582 | O51: 765.0126582 | P51: 757.0126582 | Q51: 943.0126582 | R51: 800.0126582 | S51: 514.0126582 | T51: 394.0126582 | U51: 308.0126582 | V51: 437.0126582 | W51: 213.0126582 | X51: 123.0126582 | Y51: 149.0126582 | Z51: 130.0126582 | AA51: 106.0126582 | AB51: 173.0126582 | AC51: 116.0126582 | AD51: 89.01265823 | AE51: 99.01265823 | AF51: 98.01265823 | AG51: 142.0126582 | AH51: 120.0126582 | AI51: 143.0126582 | AJ51: 97.01265823 | AK51: 141.0126582 | AL51: 250.0126582 | AM51: 80.01265823 | AN51: 251.0126582 | AO51: 70.01265823 | AP51: 86.01265823 | AQ51: 444.0126582 | AR51: 194.0126582 | AS51: 101.0126582 | AT51: 147.0126582 | AU51: 60.01265823 | AV51: 95.01265823 | AW51: 209.0126582 | AX51: 66.01265823 | AY51: 192.0126582 | AZ51: 78.01265823 | BA51: 209.0126582 | BB51: 144.0126582 | BC51: 714.0126582 | BD51: 138.0126582 | BE51: 407.0126582 | BF51: 616.0126582 | BG51: 566.0126582 | BH51: 560.0126582 | BI51: 411.0126582 | BJ51: 616.0126582 | BK51: 464.0126582 | BL51: 534.0126582 | BM51: 521.0126582 | BN51: 588.0126582 | BO51: 253.0126582 | BP51: 713.0126582 | BQ51: 71.01265823 | BR51: 53.01265823 | BS51: 106.0126582 | BT51: 156.0126582 | BU51: 56.01265823 | BV51: 67.01265823 | BW51: 88.01265823 | BX51: 1.012658228 | BY51: 12.01265823 | BZ51: 84.01265823 | CA51: 0 | CB51: 0 | CC51: 0 | CD51: 0 | CE51: 18.01265823 | CF51: 0.01265822785 | CG51: 0 | CH51: 0.01265822785 | CI51: 0 | CJ51: 0 | CK51: 0 | CL51: 0 | CM51: 0 | CN51: 0 | CO51: 0 | CP51: 0 | CQ51: 191.0126582 | CR51: 136.0126582 | CS51: 0 | CT51: 0 | CU51: 0 | CV51: 0 | CW51: 0 | CX51: 0 | CY51: 34.01265823 | CZ51: 0 | DA51: 0 | DB51: 0 | DC51: 0 | DD51: 0 | DE51: 0 | DF51: 0 | DG51: 0 | DH51: 267.0253165
C52: ˂ = 11 kV ; Subdivision ; Complex Type | D52: 0 | E52: 0 | F52: 0 | G52: 0 | H52: 0 | I52: 0 | J52: 0 | K52: 0 | L52: 0 | M52: 0 | N52: 0 | O52: 0 | P52: 0 | Q52: 0 | R52: 0 | S52: 0 | T52: 0 | U52: 0 | V52: 0 | W52: 0 | X52: 0 | Y52: 0 | Z52: 0 | AA52: 0 | AB52: 0 | AC52: 0 | AD52: 0 | AE52: 0 | AF52: 0 | AG52: 0 | AH52: 0 | AI52: 0 | AJ52: 0 | AK52: 0 | AL52: 0 | AM52: 0 | AN52: 0 | AO52: 0 | AP52: 0 | AQ52: 0 | AR52: 0 | AS52: 0 | AT52: 0 | AU52: 0 | AV52: 0 | AW52: 0 | AX52: 0 | AY52: 0 | AZ52: 0 | BA52: 0 | BB52: 0 | BC52: 0 | BD52: 0 | BE52: 0 | BF52: 0 | BG52: 0 | BH52: 0 | BI52: 0 | BJ52: 0 | BK52: 0 | BL52: 0 | BM52: 0 | BN52: 0 | BO52: 0 | BP52: 0 | BQ52: 0 | BR52: 0 | BS52: 0 | BT52: 0 | BU52: 0 | BV52: 0 | BW52: 0 | BX52: 0 | BY52: 0 | BZ52: 0 | CA52: 0 | CB52: 0 | CC52: 0 | CD52: 0 | CE52: 0 | CF52: 0 | CG52: 0 | CH52: 0 | CI52: 0 | CJ52: 0 | CK52: 0 | CL52: 0 | CM52: 0 | CN52: 0 | CO52: 0 | CP52: 0 | CQ52: 0 | CR52: 0 | CS52: 0 | CT52: 0 | CU52: 0 | CV52: 0 | CW52: 0 | CX52: 0 | CY52: 0 | CZ52: 0 | DA52: 0 | DB52: 0 | DC52: 0 | DD52: 0 | DE52: 0 | DF52: 0 | DG52: 0 | DH52: 0
C53: > 11 kV & < = 22 kV ; Commercial & Industrial | D53: 0 | E53: 0 | F53: 0 | G53: 0 | H53: 0 | I53: 0 | J53: 0 | K53: 0 | L53: 0 | M53: 0 | N53: 0 | O53: 0 | P53: 0 | Q53: 0 | R53: 0 | S53: 0 | T53: 0 | U53: 0 | V53: 0 | W53: 0 | X53: 0 | Y53: 0 | Z53: 0 | AA53: 0 | AB53: 0 | AC53: 0 | AD53: 0 | AE53: 0 | AF53: 0 | AG53: 0 | AH53: 0 | AI53: 0 | AJ53: 0 | AK53: 0 | AL53: 0 | AM53: 0 | AN53: 0 | AO53: 0 | AP53: 0 | AQ53: 0 | AR53: 0 | AS53: 0 | AT53: 0 | AU53: 0 | AV53: 0 | AW53: 0 | AX53: 0 | AY53: 0 | AZ53: 0 | BA53: 0 | BB53: 0 | BC53: 0 | BD53: 0 | BE53: 0 | BF53: 0 | BG53: 0 | BH53: 0 | BI53: 0 | BJ53: 0 | BK53: 0 | BL53: 0 | BM53: 0 | BN53: 0 | BO53: 0 | BP53: 0 | BQ53: 0 | BR53: 0 | BS53: 0 | BT53: 0 | BU53: 0 | BV53: 0 | BW53: 0 | BX53: 0 | BY53: 0 | BZ53: 0 | CA53: 0 | CB53: 0 | CC53: 0 | CD53: 0 | CE53: 0 | CF53: 0 | CG53: 0 | CH53: 0 | CI53: 0 | CJ53: 0 | CK53: 0 | CL53: 0 | CM53: 0 | CN53: 0 | CO53: 0 | CP53: 0 | CQ53: 0 | CR53: 0 | CS53: 0 | CT53: 0 | CU53: 0 | CV53: 0 | CW53: 0 | CX53: 0 | CY53: 0 | CZ53: 0 | DA53: 0 | DB53: 0 | DC53: 0 | DD53: 0 | DE53: 0 | DF53: 0 | DG53: 0 | DH53: 0
C54: > 11 kV & < = 22 kV ; Subdivision | D54: 0 | E54: 0 | F54: 0 | G54: 0 | H54: 0 | I54: 0 | J54: 0 | K54: 0 | L54: 0 | M54: 0 | N54: 0 | O54: 0 | P54: 0 | Q54: 0 | R54: 0 | S54: 0 | T54: 0 | U54: 0 | V54: 0 | W54: 0 | X54: 0 | Y54: 0 | Z54: 0 | AA54: 0 | AB54: 0 | AC54: 0 | AD54: 0 | AE54: 0 | AF54: 0 | AG54: 0 | AH54: 0 | AI54: 0 | AJ54: 0 | AK54: 0 | AL54: 0 | AM54: 0 | AN54: 0 | AO54: 0 | AP54: 0 | AQ54: 0 | AR54: 0 | AS54: 0 | AT54: 0 | AU54: 0 | AV54: 0 | AW54: 0 | AX54: 0 | AY54: 0 | AZ54: 0 | BA54: 0 | BB54: 0 | BC54: 0 | BD54: 0 | BE54: 0 | BF54: 0 | BG54: 0 | BH54: 0 | BI54: 0 | BJ54: 0 | BK54: 0 | BL54: 0 | BM54: 0 | BN54: 0 | BO54: 0 | BP54: 0 | BQ54: 0 | BR54: 0 | BS54: 0 | BT54: 0 | BU54: 0 | BV54: 0 | BW54: 0 | BX54: 0 | BY54: 0 | BZ54: 0 | CA54: 0 | CB54: 0 | CC54: 0 | CD54: 0 | CE54: 0 | CF54: 0 | CG54: 0 | CH54: 0 | CI54: 0 | CJ54: 0 | CK54: 0 | CL54: 0 | CM54: 0 | CN54: 0 | CO54: 0 | CP54: 0 | CQ54: 0 | CR54: 0 | CS54: 0 | CT54: 0 | CU54: 0 | CV54: 0 | CW54: 0 | CX54: 0 | CY54: 0 | CZ54: 0 | DA54: 0 | DB54: 0 | DC54: 0 | DD54: 0 | DE54: 0 | DF54: 0 | DG54: 0 | DH54: 0
C55: > 22 kV & < = 33 kV ; Commercial & Industrial | D55: 0 | E55: 0 | F55: 0 | G55: 0 | H55: 0 | I55: 0 | J55: 0 | K55: 0 | L55: 0 | M55: 0 | N55: 0 | O55: 0 | P55: 0 | Q55: 0 | R55: 0 | S55: 0 | T55: 0 | U55: 0 | V55: 0 | W55: 0 | X55: 0 | Y55: 0 | Z55: 0 | AA55: 0 | AB55: 0 | AC55: 0 | AD55: 0 | AE55: 0 | AF55: 0 | AG55: 0 | AH55: 0 | AI55: 0 | AJ55: 0 | AK55: 0 | AL55: 0 | AM55: 0 | AN55: 0 | AO55: 0 | AP55: 0 | AQ55: 0 | AR55: 0 | AS55: 0 | AT55: 0 | AU55: 0 | AV55: 0 | AW55: 0 | AX55: 0 | AY55: 0 | AZ55: 0 | BA55: 0 | BB55: 0 | BC55: 0 | BD55: 0 | BE55: 0 | BF55: 0 | BG55: 0 | BH55: 0 | BI55: 0 | BJ55: 0 | BK55: 0 | BL55: 0 | BM55: 0 | BN55: 0 | BO55: 0 | BP55: 0 | BQ55: 0 | BR55: 0 | BS55: 0 | BT55: 0 | BU55: 0 | BV55: 0 | BW55: 0 | BX55: 0 | BY55: 0 | BZ55: 0 | CA55: 0 | CB55: 0 | CC55: 0 | CD55: 0 | CE55: 0 | CF55: 0 | CG55: 0 | CH55: 0 | CI55: 0 | CJ55: 0 | CK55: 0 | CL55: 0 | CM55: 0 | CN55: 0 | CO55: 0 | CP55: 0 | CQ55: 0 | CR55: 0 | CS55: 0 | CT55: 0 | CU55: 0 | CV55: 0 | CW55: 0 | CX55: 0 | CY55: 0 | CZ55: 0 | DA55: 0 | DB55: 0 | DC55: 0 | DD55: 0 | DE55: 0 | DF55: 0 | DG55: 0 | DH55: 0
C56: > 22 kV & < = 33 kV ; Subdivision | D56: 0 | E56: 0 | F56: 0 | G56: 0 | H56: 0 | I56: 0 | J56: 0 | K56: 0 | L56: 0 | M56: 0 | N56: 0 | O56: 0 | P56: 0 | Q56: 0 | R56: 0 | S56: 0 | T56: 0 | U56: 0 | V56: 0 | W56: 0 | X56: 0 | Y56: 0 | Z56: 0 | AA56: 0 | AB56: 0 | AC56: 0 | AD56: 0 | AE56: 0 | AF56: 0 | AG56: 0 | AH56: 0 | AI56: 0 | AJ56: 0 | AK56: 0 | AL56: 0 | AM56: 0 | AN56: 0 | AO56: 0 | AP56: 0 | AQ56: 0 | AR56: 0 | AS56: 0 | AT56: 0 | AU56: 0 | AV56: 0 | AW56: 0 | AX56: 0 | AY56: 0 | AZ56: 0 | BA56: 0 | BB56: 0 | BC56: 0 | BD56: 0 | BE56: 0 | BF56: 0 | BG56: 0 | BH56: 0 | BI56: 0 | BJ56: 0 | BK56: 0 | BL56: 0 | BM56: 0 | BN56: 0 | BO56: 0 | BP56: 0 | BQ56: 0 | BR56: 0 | BS56: 0 | BT56: 0 | BU56: 0 | BV56: 0 | BW56: 0 | BX56: 0 | BY56: 0 | BZ56: 0 | CA56: 0 | CB56: 0 | CC56: 0 | CD56: 0 | CE56: 0 | CF56: 0 | CG56: 0 | CH56: 0 | CI56: 0 | CJ56: 0 | CK56: 0 | CL56: 0 | CM56: 0 | CN56: 0 | CO56: 0 | CP56: 0 | CQ56: 0 | CR56: 0 | CS56: 0 | CT56: 0 | CU56: 0 | CV56: 0 | CW56: 0 | CX56: 0 | CY56: 0 | CZ56: 0 | DA56: 0 | DB56: 0 | DC56: 0 | DD56: 0 | DE56: 0 | DF56: 0 | DG56: 0 | DH56: 0
C57: > 33 kV & < = 66 kV ; Commercial & Industrial | D57: 0 | E57: 0 | F57: 0 | G57: 0 | H57: 0 | I57: 0 | J57: 0 | K57: 0 | L57: 0 | M57: 0 | N57: 0 | O57: 0 | P57: 0 | Q57: 0 | R57: 0 | S57: 0 | T57: 0 | U57: 0 | V57: 0 | W57: 0 | X57: 0 | Y57: 0 | Z57: 0 | AA57: 0 | AB57: 0 | AC57: 0 | AD57: 0 | AE57: 0 | AF57: 0 | AG57: 0 | AH57: 0 | AI57: 0 | AJ57: 0 | AK57: 0 | AL57: 0 | AM57: 0 | AN57: 0 | AO57: 0 | AP57: 0 | AQ57: 0 | AR57: 0 | AS57: 0 | AT57: 0 | AU57: 0 | AV57: 0 | AW57: 0 | AX57: 0 | AY57: 0 | AZ57: 0 | BA57: 0 | BB57: 0 | BC57: 0 | BD57: 0 | BE57: 0 | BF57: 0 | BG57: 0 | BH57: 0 | BI57: 0 | BJ57: 0 | BK57: 0 | BL57: 0 | BM57: 0 | BN57: 0 | BO57: 0 | BP57: 0 | BQ57: 0 | BR57: 0 | BS57: 0 | BT57: 0 | BU57: 0 | BV57: 0 | BW57: 0 | BX57: 0 | BY57: 0 | BZ57: 0 | CA57: 0 | CB57: 0 | CC57: 0 | CD57: 0 | CE57: 0 | CF57: 0 | CG57: 0 | CH57: 0 | CI57: 0 | CJ57: 0 | CK57: 0 | CL57: 0 | CM57: 0 | CN57: 0 | CO57: 0 | CP57: 0 | CQ57: 0 | CR57: 0 | CS57: 0 | CT57: 0 | CU57: 0 | CV57: 0 | CW57: 0 | CX57: 0 | CY57: 0 | CZ57: 0 | DA57: 0 | DB57: 0 | DC57: 0 | DD57: 0 | DE57: 0 | DF57: 0 | DG57: 0 | DH57: 0
C58: > 33 kV & < = 66 kV ; Subdivision | D58: 0 | E58: 0 | F58: 0 | G58: 0 | H58: 0 | I58: 0 | J58: 0 | K58: 0 | L58: 0 | M58: 0 | N58: 0 | O58: 0 | P58: 0 | Q58: 0 | R58: 0 | S58: 0 | T58: 0 | U58: 0 | V58: 0 | W58: 0 | X58: 0 | Y58: 0 | Z58: 0 | AA58: 0 | AB58: 0 | AC58: 0 | AD58: 0 | AE58: 0 | AF58: 0 | AG58: 0 | AH58: 0 | AI58: 0 | AJ58: 0 | AK58: 0 | AL58: 0 | AM58: 0 | AN58: 0 | AO58: 0 | AP58: 0 | AQ58: 0 | AR58: 0 | AS58: 0 | AT58: 0 | AU58: 0 | AV58: 0 | AW58: 0 | AX58: 0 | AY58: 0 | AZ58: 0 | BA58: 0 | BB58: 0 | BC58: 0 | BD58: 0 | BE58: 0 | BF58: 0 | BG58: 0 | BH58: 0 | BI58: 0 | BJ58: 0 | BK58: 0 | BL58: 0 | BM58: 0 | BN58: 0 | BO58: 0 | BP58: 0 | BQ58: 0 | BR58: 0 | BS58: 0 | BT58: 0 | BU58: 0 | BV58: 0 | BW58: 0 | BX58: 0 | BY58: 0 | BZ58: 0 | CA58: 0 | CB58: 0 | CC58: 0 | CD58: 0 | CE58: 0 | CF58: 0 | CG58: 0 | CH58: 0 | CI58: 0 | CJ58: 0 | CK58: 0 | CL58: 0 | CM58: 0 | CN58: 0 | CO58: 0 | CP58: 0 | CQ58: 0 | CR58: 0 | CS58: 0 | CT58: 0 | CU58: 0 | CV58: 0 | CW58: 0 | CX58: 0 | CY58: 0 | CZ58: 0 | DA58: 0 | DB58: 0 | DC58: 0 | DD58: 0 | DE58: 0 | DF58: 0 | DG58: 0 | DH58: 0
C59: > 66 kV & < = 132 kV ; Commercial & Industrial | D59: 0 | E59: 0 | F59: 0 | G59: 0 | H59: 0 | I59: 0 | J59: 0 | K59: 0 | L59: 0 | M59: 0 | N59: 0 | O59: 0 | P59: 0 | Q59: 0 | R59: 0 | S59: 0 | T59: 0 | U59: 0 | V59: 0 | W59: 0 | X59: 0 | Y59: 0 | Z59: 0 | AA59: 0 | AB59: 0 | AC59: 0 | AD59: 0 | AE59: 0 | AF59: 0 | AG59: 0 | AH59: 0 | AI59: 0 | AJ59: 0 | AK59: 0 | AL59: 0 | AM59: 0 | AN59: 0 | AO59: 0 | AP59: 0 | AQ59: 0 | AR59: 0 | AS59: 0 | AT59: 0 | AU59: 0 | AV59: 0 | AW59: 0 | AX59: 0 | AY59: 0 | AZ59: 0 | BA59: 0 | BB59: 0 | BC59: 0 | BD59: 0 | BE59: 0 | BF59: 0 | BG59: 0 | BH59: 0 | BI59: 0 | BJ59: 0 | BK59: 0 | BL59: 0 | BM59: 0 | BN59: 0 | BO59: 0 | BP59: 0 | BQ59: 0 | BR59: 0 | BS59: 0 | BT59: 0 | BU59: 0 | BV59: 0 | BW59: 0 | BX59: 0 | BY59: 0 | BZ59: 0 | CA59: 0 | CB59: 0 | CC59: 0 | CD59: 0 | CE59: 0 | CF59: 0 | CG59: 0 | CH59: 0 | CI59: 0 | CJ59: 0 | CK59: 0 | CL59: 0 | CM59: 0 | CN59: 0 | CO59: 0 | CP59: 0 | CQ59: 0 | CR59: 0 | CS59: 0 | CT59: 0 | CU59: 0 | CV59: 0 | CW59: 0 | CX59: 0 | CY59: 0 | CZ59: 0 | DA59: 0 | DB59: 0 | DC59: 0 | DD59: 0 | DE59: 0 | DF59: 0 | DG59: 0 | DH59: 0
C60: > 66 kV & < = 132 kV ; Subdivision | D60: 0 | E60: 0 | F60: 0 | G60: 0 | H60: 0 | I60: 0 | J60: 0 | K60: 0 | L60: 0 | M60: 0 | N60: 0 | O60: 0 | P60: 0 | Q60: 0 | R60: 0 | S60: 0 | T60: 0 | U60: 0 | V60: 0 | W60: 0 | X60: 0 | Y60: 0 | Z60: 0 | AA60: 0 | AB60: 0 | AC60: 0 | AD60: 0 | AE60: 0 | AF60: 0 | AG60: 0 | AH60: 0 | AI60: 0 | AJ60: 0 | AK60: 0 | AL60: 0 | AM60: 0 | AN60: 0 | AO60: 0 | AP60: 0 | AQ60: 0 | AR60: 0 | AS60: 0 | AT60: 0 | AU60: 0 | AV60: 0 | AW60: 0 | AX60: 0 | AY60: 0 | AZ60: 0 | BA60: 0 | BB60: 0 | BC60: 0 | BD60: 0 | BE60: 0 | BF60: 0 | BG60: 0 | BH60: 0 | BI60: 0 | BJ60: 0 | BK60: 0 | BL60: 0 | BM60: 0 | BN60: 0 | BO60: 0 | BP60: 0 | BQ60: 0 | BR60: 0 | BS60: 0 | BT60: 0 | BU60: 0 | BV60: 0 | BW60: 0 | BX60: 0 | BY60: 0 | BZ60: 0 | CA60: 0 | CB60: 0 | CC60: 0 | CD60: 0 | CE60: 0 | CF60: 0 | CG60: 0 | CH60: 0 | CI60: 0 | CJ60: 0 | CK60: 0 | CL60: 0 | CM60: 0 | CN60: 0 | CO60: 0 | CP60: 0 | CQ60: 0 | CR60: 0 | CS60: 0 | CT60: 0 | CU60: 0 | CV60: 0 | CW60: 0 | CX60: 0 | CY60: 0 | CZ60: 0 | DA60: 0 | DB60: 0 | DC60: 0 | DD60: 0 | DE60: 0 | DF60: 0 | DG60: 0 | DH60: 0
C61: > 132 kV ; Commercial & Industrial | D61: 0 | E61: 0 | F61: 0 | G61: 0 | H61: 0 | I61: 0 | J61: 0 | K61: 0 | L61: 0 | M61: 0 | N61: 0 | O61: 0 | P61: 0 | Q61: 0 | R61: 0 | S61: 0 | T61: 0 | U61: 0 | V61: 0 | W61: 0 | X61: 0 | Y61: 0 | Z61: 0 | AA61: 0 | AB61: 0 | AC61: 0 | AD61: 0 | AE61: 0 | AF61: 0 | AG61: 0 | AH61: 0 | AI61: 0 | AJ61: 0 | AK61: 0 | AL61: 0 | AM61: 0 | AN61: 0 | AO61: 0 | AP61: 0 | AQ61: 0 | AR61: 0 | AS61: 0 | AT61: 0 | AU61: 0 | AV61: 0 | AW61: 0 | AX61: 0 | AY61: 0 | AZ61: 0 | BA61: 0 | BB61: 0 | BC61: 0 | BD61: 0 | BE61: 0 | BF61: 0 | BG61: 0 | BH61: 0 | BI61: 0 | BJ61: 0 | BK61: 0 | BL61: 0 | BM61: 0 | BN61: 0 | BO61: 0 | BP61: 0 | BQ61: 0 | BR61: 0 | BS61: 0 | BT61: 0 | BU61: 0 | BV61: 0 | BW61: 0 | BX61: 0 | BY61: 0 | BZ61: 0 | CA61: 0 | CB61: 0 | CC61: 0 | CD61: 0 | CE61: 0 | CF61: 0 | CG61: 0 | CH61: 0 | CI61: 0 | CJ61: 0 | CK61: 0 | CL61: 0 | CM61: 0 | CN61: 0 | CO61: 0 | CP61: 0 | CQ61: 0 | CR61: 0 | CS61: 0 | CT61: 0 | CU61: 0 | CV61: 0 | CW61: 0 | CX61: 0 | CY61: 0 | CZ61: 0 | DA61: 0 | DB61: 0 | DC61: 0 | DD61: 0 | DE61: 0 | DF61: 0 | DG61: 0 | DH61: 0
C62: > 132 kV ; Subdivision | D62: 0 | E62: 0 | F62: 0 | G62: 0 | H62: 0 | I62: 0 | J62: 0 | K62: 0 | L62: 0 | M62: 0 | N62: 0 | O62: 0 | P62: 0 | Q62: 0 | R62: 0 | S62: 0 | T62: 0 | U62: 0 | V62: 0 | W62: 0 | X62: 0 | Y62: 0 | Z62: 0 | AA62: 0 | AB62: 0 | AC62: 0 | AD62: 0 | AE62: 0 | AF62: 0 | AG62: 0 | AH62: 0 | AI62: 0 | AJ62: 0 | AK62: 0 | AL62: 0 | AM62: 0 | AN62: 0 | AO62: 0 | AP62: 0 | AQ62: 0 | AR62: 0 | AS62: 0 | AT62: 0 | AU62: 0 | AV62: 0 | AW62: 0 | AX62: 0 | AY62: 0 | AZ62: 0 | BA62: 0 | BB62: 0 | BC62: 0 | BD62: 0 | BE62: 0 | BF62: 0 | BG62: 0 | BH62: 0 | BI62: 0 | BJ62: 0 | BK62: 0 | BL62: 0 | BM62: 0 | BN62: 0 | BO62: 0 | BP62: 0 | BQ62: 0 | BR62: 0 | BS62: 0 | BT62: 0 | BU62: 0 | BV62: 0 | BW62: 0 | BX62: 0 | BY62: 0 | BZ62: 0 | CA62: 0 | CB62: 0 | CC62: 0 | CD62: 0 | CE62: 0 | CF62: 0 | CG62: 0 | CH62: 0 | CI62: 0 | CJ62: 0 | CK62: 0 | CL62: 0 | CM62: 0 | CN62: 0 | CO62: 0 | CP62: 0 | CQ62: 0 | CR62: 0 | CS62: 0 | CT62: 0 | CU62: 0 | CV62: 0 | CW62: 0 | CX62: 0 | CY62: 0 | CZ62: 0 | DA62: 0 | DB62: 0 | DC62: 0 | DD62: 0 | DE62: 0 | DF62: 0 | DG62: 0 | DH62: 0
C63: Other | D63: 0 | E63: 0 | F63: 0 | G63: 0 | H63: 0 | I63: 0 | J63: 0 | K63: 0 | L63: 0 | M63: 0 | N63: 0 | O63: 0 | P63: 0 | Q63: 0 | R63: 0 | S63: 0 | T63: 0 | U63: 0 | V63: 0 | W63: 0 | X63: 0 | Y63: 0 | Z63: 0 | AA63: 0 | AB63: 0 | AC63: 0 | AD63: 0 | AE63: 0 | AF63: 0 | AG63: 0 | AH63: 0 | AI63: 0 | AJ63: 0 | AK63: 0 | AL63: 0 | AM63: 0 | AN63: 0 | AO63: 0 | AP63: 0 | AQ63: 0 | AR63: 0 | AS63: 0 | AT63: 0 | AU63: 0 | AV63: 0 | AW63: 0 | AX63: 0 | AY63: 0 | AZ63: 0 | BA63: 0 | BB63: 0 | BC63: 0 | BD63: 0 | BE63: 0 | BF63: 0 | BG63: 0 | BH63: 0 | BI63: 0 | BJ63: 0 | BK63: 0 | BL63: 0 | BM63: 0 | BN63: 0 | BO63: 0 | BP63: 0 | BQ63: 0 | BR63: 0 | BS63: 0 | BT63: 0 | BU63: 0 | BV63: 0 | BW63: 0 | BX63: 0 | BY63: 0 | BZ63: 0 | CA63: 0 | CB63: 0 | CC63: 0 | CD63: 0 | CE63: 0 | CF63: 0 | CG63: 0 | CH63: 0 | CI63: 0 | CJ63: 0 | CK63: 0 | CL63: 0 | CM63: 0 | CN63: 0 | CO63: 0 | CP63: 0 | CQ63: 0 | CR63: 0 | CS63: 0 | CT63: 0 | CU63: 0 | CV63: 0 | CW63: 0 | CX63: 0 | CY63: 0 | CZ63: 0 | DA63: 0 | DB63: 0 | DC63: 0 | DD63: 0 | DE63: 0 | DF63: 0 | DG63: 0 | DH63: 0
B64: TRANSFORMERS BY: MOUNTING TYPE; HIGHEST OPERATING VOLTAGE ; AMPERE RATING; NUMBER OF PHASES (AT LV) | C64: Pole Mounted ; < = 22kV ; < = 60 kVA ; Single Phase | D64: 33.80862714 | E64: 14.11442907 | F64: 34 | G64: 56 | H64: 65 | I64: 96 | J64: 73 | K64: 71 | L64: 79 | M64: 80 | N64: 129 | O64: 200 | P64: 106 | Q64: 68 | R64: 45 | S64: 57 | T64: 50 | U64: 20 | V64: 187 | W64: 42 | X64: 21 | Y64: 11 | Z64: 7 | AA64: 8 | AB64: 3 | AC64: 16 | AD64: 7 | AE64: 9 | AF64: 8 | AG64: 14 | AH64: 17 | AI64: 11 | AJ64: 15 | AK64: 26 | AL64: 22 | AM64: 16 | AN64: 68 | AO64: 33 | AP64: 52 | AQ64: 72 | AR64: 53 | AS64: 40 | AT64: 42 | AU64: 25 | AV64: 30 | AW64: 26 | AX64: 38 | AY64: 18 | AZ64: 17 | BA64: 24 | BB64: 17 | BC64: 17 | BD64: 15 | BE64: 9 | BF64: 17 | BG64: 11 | BH64: 12 | BI64: 11 | BJ64: 29 | BK64: 7 | BL64: 10 | BM64: 17 | BN64: 12 | BO64: 4 | BP64: 2 | BQ64: 0 | BR64: 0 | BS64: 0 | BT64: 1 | BU64: 254 | BV64: 0 | BW64: 0 | BX64: 0 | BY64: 0 | BZ64: 0 | CA64: 0 | CB64: 0 | CC64: 0 | CD64: 0 | CE64: 0 | CF64: 0 | CG64: 0 | CH64: 0 | CI64: 0 | CJ64: 0 | CK64: 0 | CL64: 0 | CM64: 0 | CN64: 0 | CO64: 0 | CP64: 0 | CQ64: 0 | CR64: 0 | CS64: 0 | CT64: 0 | CU64: 0 | CV64: 0 | CW64: 0 | CX64: 0 | CY64: 0 | CZ64: 0 | DA64: 0 | DB64: 0 | DC64: 0 | DD64: 0 | DE64: 0 | DF64: 0 | DG64: 0 | DH64: 0
C65: Pole Mounted ; < = 22kV ; > 60 kVA and < = 600 kVA ; Single Phase | D65: 33.80862714 | E65: 14.11442907 | F65: 5 | G65: 4 | H65: 6 | I65: 19 | J65: 5 | K65: 19 | L65: 26 | M65: 25 | N65: 27 | O65: 28 | P65: 39 | Q65: 18 | R65: 14 | S65: 12 | T65: 8 | U65: 3 | V65: 53 | W65: 2 | X65: 0 | Y65: 0 | Z65: 0 | AA65: 1 | AB65: 41 | AC65: 2 | AD65: 14 | AE65: 5 | AF65: 0 | AG65: 5 | AH65: 0 | AI65: 0 | AJ65: 1 | AK65: 1 | AL65: 0 | AM65: 0 | AN65: 0 | AO65: 1 | AP65: 2 | AQ65: 1 | AR65: 0 | AS65: 0 | AT65: 2 | AU65: 1 | AV65: 1 | AW65: 1 | AX65: 0 | AY65: 1 | AZ65: 0 | BA65: 0 | BB65: 0 | BC65: 0 | BD65: 0 | BE65: 0 | BF65: 1 | BG65: 0 | BH65: 0 | BI65: 0 | BJ65: 0 | BK65: 0 | BL65: 0 | BM65: 0 | BN65: 0 | BO65: 0 | BP65: 0 | BQ65: 0 | BR65: 0 | BS65: 0 | BT65: 0 | BU65: 12 | BV65: 0 | BW65: 0 | BX65: 0 | BY65: 0 | BZ65: 0 | CA65: 0 | CB65: 0 | CC65: 0 | CD65: 0 | CE65: 0 | CF65: 0 | CG65: 0 | CH65: 0 | CI65: 0 | CJ65: 0 | CK65: 0 | CL65: 0 | CM65: 0 | CN65: 0 | CO65: 0 | CP65: 0 | CQ65: 0 | CR65: 0 | CS65: 0 | CT65: 0 | CU65: 0 | CV65: 0 | CW65: 0 | CX65: 0 | CY65: 0 | CZ65: 0 | DA65: 0 | DB65: 0 | DC65: 0 | DD65: 0 | DE65: 0 | DF65: 0 | DG65: 0 | DH65: 0
C66: Pole Mounted ; < = 22kV ; > 600 kVA ; Single Phase | D66: 0 | E66: 0 | F66: 0 | G66: 0 | H66: 0 | I66: 0 | J66: 0 | K66: 0 | L66: 0 | M66: 0 | N66: 0 | O66: 0 | P66: 0 | Q66: 0 | R66: 0 | S66: 0 | T66: 0 | U66: 0 | V66: 0 | W66: 0 | X66: 0 | Y66: 0 | Z66: 0 | AA66: 0 | AB66: 0 | AC66: 0 | AD66: 0 | AE66: 0 | AF66: 0 | AG66: 0 | AH66: 0 | AI66: 0 | AJ66: 0 | AK66: 0 | AL66: 0 | AM66: 0 | AN66: 0 | AO66: 0 | AP66: 0 | AQ66: 0 | AR66: 0 | AS66: 0 | AT66: 0 | AU66: 0 | AV66: 0 | AW66: 0 | AX66: 0 | AY66: 0 | AZ66: 0 | BA66: 0 | BB66: 0 | BC66: 0 | BD66: 0 | BE66: 0 | BF66: 0 | BG66: 0 | BH66: 0 | BI66: 0 | BJ66: 0 | BK66: 0 | BL66: 0 | BM66: 0 | BN66: 0 | BO66: 0 | BP66: 0 | BQ66: 0 | BR66: 0 | BS66: 0 | BT66: 0 | BU66: 0 | BV66: 0 | BW66: 0 | BX66: 0 | BY66: 0 | BZ66: 0 | CA66: 0 | CB66: 0 | CC66: 0 | CD66: 0 | CE66: 0 | CF66: 0 | CG66: 0 | CH66: 0 | CI66: 0 | CJ66: 0 | CK66: 0 | CL66: 0 | CM66: 0 | CN66: 0 | CO66: 0 | CP66: 0 | CQ66: 0 | CR66: 0 | CS66: 0 | CT66: 0 | CU66: 0 | CV66: 0 | CW66: 0 | CX66: 0 | CY66: 0 | CZ66: 0 | DA66: 0 | DB66: 0 | DC66: 0 | DD66: 0 | DE66: 0 | DF66: 0 | DG66: 0 | DH66: 0
C67: Pole Mounted ; < = 22kV ; < = 60 kVA ; Multiple Phase | D67: 32.34534498 | E67: 11.67940056 | F67: 11 | G67: 22 | H67: 27 | I67: 27 | J67: 16 | K67: 18 | L67: 33 | M67: 23 | N67: 42 | O67: 76 | P67: 30 | Q67: 25 | R67: 16 | S67: 15 | T67: 14 | U67: 5 | V67: 79 | W67: 17 | X67: 15 | Y67: 59 | Z67: 137 | AA67: 116 | AB67: 243 | AC67: 170 | AD67: 253 | AE67: 102 | AF67: 124 | AG67: 399 | AH67: 103 | AI67: 84 | AJ67: 135 | AK67: 114 | AL67: 87 | AM67: 57 | AN67: 150 | AO67: 151 | AP67: 109 | AQ67: 60 | AR67: 48 | AS67: 34 | AT67: 42 | AU67: 32 | AV67: 38 | AW67: 44 | AX67: 30 | AY67: 27 | AZ67: 55 | BA67: 31 | BB67: 25 | BC67: 38 | BD67: 27 | BE67: 18 | BF67: 33 | BG67: 27 | BH67: 18 | BI67: 23 | BJ67: 29 | BK67: 17 | BL67: 15 | BM67: 21 | BN67: 12 | BO67: 18 | BP67: 5 | BQ67: 1 | BR67: 0 | BS67: 0 | BT67: 1 | BU67: 134 | BV67: 1 | BW67: 0 | BX67: 0 | BY67: 0 | BZ67: 0 | CA67: 0 | CB67: 0 | CC67: 0 | CD67: 0 | CE67: 0 | CF67: 0 | CG67: 0 | CH67: 0 | CI67: 0 | CJ67: 0 | CK67: 0 | CL67: 0 | CM67: 0 | CN67: 0 | CO67: 0 | CP67: 0 | CQ67: 0 | CR67: 0 | CS67: 0 | CT67: 0 | CU67: 0 | CV67: 0 | CW67: 0 | CX67: 0 | CY67: 0 | CZ67: 0 | DA67: 0 | DB67: 0 | DC67: 0 | DD67: 0 | DE67: 0 | DF67: 0 | DG67: 0 | DH67: 0
C68: Pole Mounted ; < = 22kV ; > 60 kVA and < = 600 kVA ; Multiple Phase | D68: 34.75129955 | E68: 13.75524472 | F68: 119 | G68: 201 | H68: 161 | I68: 218 | J68: 181 | K68: 189 | L68: 225 | M68: 313 | N68: 315 | O68: 486 | P68: 278 | Q68: 230 | R68: 93 | S68: 94 | T68: 75 | U68: 47 | V68: 451 | W68: 48 | X68: 44 | Y68: 87 | Z68: 117 | AA68: 126 | AB68: 299 | AC68: 89 | AD68: 176 | AE68: 168 | AF68: 91 | AG68: 167 | AH68: 71 | AI68: 78 | AJ68: 83 | AK68: 107 | AL68: 85 | AM68: 124 | AN68: 286 | AO68: 83 | AP68: 88 | AQ68: 107 | AR68: 81 | AS68: 55 | AT68: 52 | AU68: 122 | AV68: 92 | AW68: 117 | AX68: 152 | AY68: 140 | AZ68: 145 | BA68: 213 | BB68: 162 | BC68: 179 | BD68: 137 | BE68: 148 | BF68: 167 | BG68: 115 | BH68: 106 | BI68: 78 | BJ68: 86 | BK68: 49 | BL68: 64 | BM68: 11 | BN68: 17 | BO68: 12 | BP68: 3 | BQ68: 6 | BR68: 1 | BS68: 5 | BT68: 2 | BU68: 199 | BV68: 0 | BW68: 0 | BX68: 0 | BY68: 0 | BZ68: 0 | CA68: 0 | CB68: 0 | CC68: 0 | CD68: 0 | CE68: 0 | CF68: 0 | CG68: 0 | CH68: 0 | CI68: 0 | CJ68: 0 | CK68: 0 | CL68: 0 | CM68: 0 | CN68: 0 | CO68: 0 | CP68: 0 | CQ68: 0 | CR68: 0 | CS68: 0 | CT68: 0 | CU68: 0 | CV68: 0 | CW68: 0 | CX68: 0 | CY68: 0 | CZ68: 0 | DA68: 0 | DB68: 0 | DC68: 0 | DD68: 0 | DE68: 0 | DF68: 0 | DG68: 0 | DH68: 0
C69: Pole Mounted ; < = 22kV ; > 600 kVA ; Multiple Phase | D69: 34.75129955 | E69: 13.75524472 | F69: 0 | G69: 0 | H69: 0 | I69: 0 | J69: 0 | K69: 0 | L69: 0 | M69: 0 | N69: 0 | O69: 0 | P69: 0 | Q69: 0 | R69: 1 | S69: 0 | T69: 0 | U69: 0 | V69: 0 | W69: 0 | X69: 0 | Y69: 0 | Z69: 0 | AA69: 0 | AB69: 0 | AC69: 0 | AD69: 0 | AE69: 0 | AF69: 0 | AG69: 0 | AH69: 0 | AI69: 0 | AJ69: 0 | AK69: 0 | AL69: 0 | AM69: 0 | AN69: 0 | AO69: 0 | AP69: 0 | AQ69: 0 | AR69: 0 | AS69: 0 | AT69: 0 | AU69: 0 | AV69: 0 | AW69: 0 | AX69: 0 | AY69: 0 | AZ69: 0 | BA69: 0 | BB69: 0 | BC69: 0 | BD69: 0 | BE69: 0 | BF69: 0 | BG69: 0 | BH69: 0 | BI69: 0 | BJ69: 0 | BK69: 0 | BL69: 0 | BM69: 0 | BN69: 0 | BO69: 0 | BP69: 0 | BQ69: 0 | BR69: 0 | BS69: 0 | BT69: 0 | BU69: 0 | BV69: 0 | BW69: 0 | BX69: 0 | BY69: 0 | BZ69: 0 | CA69: 0 | CB69: 0 | CC69: 0 | CD69: 0 | CE69: 0 | CF69: 0 | CG69: 0 | CH69: 0 | CI69: 0 | CJ69: 0 | CK69: 0 | CL69: 0 | CM69: 0 | CN69: 0 | CO69: 0 | CP69: 0 | CQ69: 0 | CR69: 0 | CS69: 0 | CT69: 0 | CU69: 0 | CV69: 0 | CW69: 0 | CX69: 0 | CY69: 0 | CZ69: 0 | DA69: 0 | DB69: 0 | DC69: 0 | DD69: 0 | DE69: 0 | DF69: 0 | DG69: 0 | DH69: 0
C70: Kiosk Mounted ; < = 22kV ; < = 60 kVA ; Single Phase | D70: 33.13977523 | E70: 13.8736851 | F70: 0 | G70: 0 | H70: 0 | I70: 0 | J70: 0 | K70: 0 | L70: 0 | M70: 0 | N70: 0 | O70: 0 | P70: 0 | Q70: 0 | R70: 0 | S70: 0 | T70: 0 | U70: 0 | V70: 0 | W70: 0 | X70: 0 | Y70: 1 | Z70: 0 | AA70: 0 | AB70: 0 | AC70: 0 | AD70: 0 | AE70: 0 | AF70: 0 | AG70: 0 | AH70: 0 | AI70: 0 | AJ70: 0 | AK70: 0 | AL70: 0 | AM70: 0 | AN70: 0 | AO70: 0 | AP70: 0 | AQ70: 0 | AR70: 0 | AS70: 0 | AT70: 0 | AU70: 0 | AV70: 0 | AW70: 0 | AX70: 0 | AY70: 0 | AZ70: 0 | BA70: 0 | BB70: 0 | BC70: 0 | BD70: 0 | BE70: 0 | BF70: 0 | BG70: 0 | BH70: 0 | BI70: 0 | BJ70: 0 | BK70: 0 | BL70: 0 | BM70: 0 | BN70: 0 | BO70: 0 | BP70: 0 | BQ70: 0 | BR70: 0 | BS70: 0 | BT70: 0 | BU70: 0 | BV70: 0 | BW70: 0 | BX70: 0 | BY70: 0 | BZ70: 0 | CA70: 0 | CB70: 0 | CC70: 0 | CD70: 0 | CE70: 0 | CF70: 0 | CG70: 0 | CH70: 0 | CI70: 0 | CJ70: 0 | CK70: 0 | CL70: 0 | CM70: 0 | CN70: 0 | CO70: 0 | CP70: 0 | CQ70: 0 | CR70: 0 | CS70: 0 | CT70: 0 | CU70: 0 | CV70: 0 | CW70: 0 | CX70: 0 | CY70: 0 | CZ70: 0 | DA70: 0 | DB70: 0 | DC70: 0 | DD70: 0 | DE70: 0 | DF70: 0 | DG70: 0 | DH70: 0
C71: Kiosk Mounted ; < = 22kV ; > 60 kVA and < = 600 kVA ; Single Phase | D71: 0 | E71: 0 | F71: 0 | G71: 0 | H71: 0 | I71: 0 | J71: 0 | K71: 0 | L71: 0 | M71: 0 | N71: 0 | O71: 0 | P71: 0 | Q71: 0 | R71: 0 | S71: 0 | T71: 0 | U71: 0 | V71: 0 | W71: 0 | X71: 0 | Y71: 0 | Z71: 0 | AA71: 0 | AB71: 0 | AC71: 0 | AD71: 0 | AE71: 0 | AF71: 0 | AG71: 0 | AH71: 0 | AI71: 0 | AJ71: 0 | AK71: 0 | AL71: 0 | AM71: 0 | AN71: 0 | AO71: 0 | AP71: 0 | AQ71: 0 | AR71: 0 | AS71: 0 | AT71: 0 | AU71: 0 | AV71: 0 | AW71: 0 | AX71: 0 | AY71: 0 | AZ71: 0 | BA71: 0 | BB71: 0 | BC71: 0 | BD71: 0 | BE71: 0 | BF71: 0 | BG71: 0 | BH71: 0 | BI71: 0 | BJ71: 0 | BK71: 0 | BL71: 0 | BM71: 0 | BN71: 0 | BO71: 0 | BP71: 0 | BQ71: 0 | BR71: 0 | BS71: 0 | BT71: 0 | BU71: 0 | BV71: 0 | BW71: 0 | BX71: 0 | BY71: 0 | BZ71: 0 | CA71: 0 | CB71: 0 | CC71: 0 | CD71: 0 | CE71: 0 | CF71: 0 | CG71: 0 | CH71: 0 | CI71: 0 | CJ71: 0 | CK71: 0 | CL71: 0 | CM71: 0 | CN71: 0 | CO71: 0 | CP71: 0 | CQ71: 0 | CR71: 0 | CS71: 0 | CT71: 0 | CU71: 0 | CV71: 0 | CW71: 0 | CX71: 0 | CY71: 0 | CZ71: 0 | DA71: 0 | DB71: 0 | DC71: 0 | DD71: 0 | DE71: 0 | DF71: 0 | DG71: 0 | DH71: 0
C72: Kiosk Mounted ; < = 22kV ; > 600 kVA ; Single Phase | D72: 0 | E72: 0 | F72: 0 | G72: 0 | H72: 0 | I72: 0 | J72: 0 | K72: 0 | L72: 0 | M72: 0 | N72: 0 | O72: 0 | P72: 0 | Q72: 0 | R72: 0 | S72: 0 | T72: 0 | U72: 0 | V72: 0 | W72: 0 | X72: 0 | Y72: 0 | Z72: 0 | AA72: 0 | AB72: 0 | AC72: 0 | AD72: 0 | AE72: 0 | AF72: 0 | AG72: 0 | AH72: 0 | AI72: 0 | AJ72: 0 | AK72: 0 | AL72: 0 | AM72: 0 | AN72: 0 | AO72: 0 | AP72: 0 | AQ72: 0 | AR72: 0 | AS72: 0 | AT72: 0 | AU72: 0 | AV72: 0 | AW72: 0 | AX72: 0 | AY72: 0 | AZ72: 0 | BA72: 0 | BB72: 0 | BC72: 0 | BD72: 0 | BE72: 0 | BF72: 0 | BG72: 0 | BH72: 0 | BI72: 0 | BJ72: 0 | BK72: 0 | BL72: 0 | BM72: 0 | BN72: 0 | BO72: 0 | BP72: 0 | BQ72: 0 | BR72: 0 | BS72: 0 | BT72: 0 | BU72: 0 | BV72: 0 | BW72: 0 | BX72: 0 | BY72: 0 | BZ72: 0 | CA72: 0 | CB72: 0 | CC72: 0 | CD72: 0 | CE72: 0 | CF72: 0 | CG72: 0 | CH72: 0 | CI72: 0 | CJ72: 0 | CK72: 0 | CL72: 0 | CM72: 0 | CN72: 0 | CO72: 0 | CP72: 0 | CQ72: 0 | CR72: 0 | CS72: 0 | CT72: 0 | CU72: 0 | CV72: 0 | CW72: 0 | CX72: 0 | CY72: 0 | CZ72: 0 | DA72: 0 | DB72: 0 | DC72: 0 | DD72: 0 | DE72: 0 | DF72: 0 | DG72: 0 | DH72: 0
C73: Kiosk Mounted ; < = 22kV ; < = 60 kVA ; Multiple Phase | D73: 33.13977523 | E73: 13.8736851 | F73: 0 | G73: 0 | H73: 0 | I73: 0 | J73: 0 | K73: 0 | L73: 0 | M73: 0 | N73: 0 | O73: 0 | P73: 0 | Q73: 0 | R73: 0 | S73: 0 | T73: 0 | U73: 0 | V73: 0 | W73: 0 | X73: 0 | Y73: 0 | Z73: 0 | AA73: 0 | AB73: 0 | AC73: 0 | AD73: 1 | AE73: 0 | AF73: 0 | AG73: 0 | AH73: 0 | AI73: 0 | AJ73: 0 | AK73: 0 | AL73: 0 | AM73: 0 | AN73: 0 | AO73: 0 | AP73: 0 | AQ73: 0 | AR73: 0 | AS73: 0 | AT73: 0 | AU73: 0 | AV73: 0 | AW73: 0 | AX73: 0 | AY73: 0 | AZ73: 0 | BA73: 0 | BB73: 0 | BC73: 0 | BD73: 0 | BE73: 0 | BF73: 0 | BG73: 0 | BH73: 0 | BI73: 0 | BJ73: 0 | BK73: 0 | BL73: 0 | BM73: 0 | BN73: 0 | BO73: 0 | BP73: 0 | BQ73: 0 | BR73: 0 | BS73: 0 | BT73: 0 | BU73: 0 | BV73: 0 | BW73: 0 | BX73: 0 | BY73: 0 | BZ73: 0 | CA73: 0 | CB73: 0 | CC73: 0 | CD73: 0 | CE73: 0 | CF73: 0 | CG73: 0 | CH73: 0 | CI73: 0 | CJ73: 0 | CK73: 0 | CL73: 0 | CM73: 0 | CN73: 0 | CO73: 0 | CP73: 0 | CQ73: 0 | CR73: 0 | CS73: 0 | CT73: 0 | CU73: 0 | CV73: 0 | CW73: 0 | CX73: 0 | CY73: 0 | CZ73: 0 | DA73: 0 | DB73: 0 | DC73: 0 | DD73: 0 | DE73: 0 | DF73: 0 | DG73: 0 | DH73: 0
C74: Kiosk Mounted ; < = 22kV ; > 60 kVA and < = 600 kVA ; Multiple Phase | D74: 33.13977523 | E74: 13.8736851 | F74: 157 | G74: 111 | H74: 131 | I74: 161 | J74: 144 | K74: 195 | L74: 196 | M74: 161 | N74: 229 | O74: 196 | P74: 177 | Q74: 205 | R74: 155 | S74: 182 | T74: 121 | U74: 77 | V74: 110 | W74: 30 | X74: 30 | Y74: 36 | Z74: 33 | AA74: 94 | AB74: 242 | AC74: 483 | AD74: 202 | AE74: 120 | AF74: 90 | AG74: 62 | AH74: 122 | AI74: 88 | AJ74: 177 | AK74: 107 | AL74: 27 | AM74: 69 | AN74: 169 | AO74: 145 | AP74: 316 | AQ74: 196 | AR74: 250 | AS74: 256 | AT74: 193 | AU74: 211 | AV74: 182 | AW74: 139 | AX74: 151 | AY74: 157 | AZ74: 124 | BA74: 97 | BB74: 62 | BC74: 106 | BD74: 40 | BE74: 40 | BF74: 68 | BG74: 74 | BH74: 45 | BI74: 20 | BJ74: 8 | BK74: 4 | BL74: 4 | BM74: 0 | BN74: 0 | BO74: 0 | BP74: 0 | BQ74: 0 | BR74: 4 | BS74: 0 | BT74: 0 | BU74: 10 | BV74: 2 | BW74: 0 | BX74: 0 | BY74: 0 | BZ74: 0 | CA74: 1 | CB74: 0 | CC74: 0 | CD74: 0 | CE74: 1 | CF74: 0 | CG74: 0 | CH74: 0 | CI74: 0 | CJ74: 0 | CK74: 0 | CL74: 0 | CM74: 0 | CN74: 0 | CO74: 1 | CP74: 0 | CQ74: 0 | CR74: 0 | CS74: 0 | CT74: 0 | CU74: 0 | CV74: 0 | CW74: 0 | CX74: 0 | CY74: 0 | CZ74: 0 | DA74: 0 | DB74: 0 | DC74: 0 | DD74: 0 | DE74: 0 | DF74: 0 | DG74: 0 | DH74: 0
C75: Kiosk Mounted ; < = 22kV ; > 600 kVA ; Multiple Phase | D75: 33.13977523 | E75: 13.8736851 | F75: 132 | G75: 166 | H75: 177 | I75: 285 | J75: 314 | K75: 332 | L75: 372 | M75: 279 | N75: 291 | O75: 282 | P75: 288 | Q75: 219 | R75: 134 | S75: 130 | T75: 123 | U75: 101 | V75: 182 | W75: 40 | X75: 23 | Y75: 19 | Z75: 10 | AA75: 28 | AB75: 42 | AC75: 552 | AD75: 17 | AE75: 31 | AF75: 47 | AG75: 21 | AH75: 38 | AI75: 12 | AJ75: 25 | AK75: 18 | AL75: 22 | AM75: 14 | AN75: 11 | AO75: 25 | AP75: 15 | AQ75: 11 | AR75: 2 | AS75: 3 | AT75: 1 | AU75: 5 | AV75: 10 | AW75: 4 | AX75: 1 | AY75: 1 | AZ75: 0 | BA75: 1 | BB75: 1 | BC75: 1 | BD75: 1 | BE75: 0 | BF75: 2 | BG75: 1 | BH75: 1 | BI75: 0 | BJ75: 1 | BK75: 0 | BL75: 0 | BM75: 0 | BN75: 0 | BO75: 0 | BP75: 0 | BQ75: 0 | BR75: 0 | BS75: 0 | BT75: 0 | BU75: 8 | BV75: 0 | BW75: 0 | BX75: 0 | BY75: 0 | BZ75: 0 | CA75: 0 | CB75: 0 | CC75: 0 | CD75: 0 | CE75: 0 | CF75: 0 | CG75: 0 | CH75: 0 | CI75: 0 | CJ75: 0 | CK75: 0 | CL75: 0 | CM75: 0 | CN75: 0 | CO75: 0 | CP75: 0 | CQ75: 0 | CR75: 0 | CS75: 0 | CT75: 0 | CU75: 0 | CV75: 0 | CW75: 0 | CX75: 0 | CY75: 0 | CZ75: 0 | DA75: 0 | DB75: 0 | DC75: 0 | DD75: 0 | DE75: 0 | DF75: 0 | DG75: 0 | DH75: 0
C76: Ground Outdoor / Indoor Chamber Mounted; ˂ 22 kV ; < = 60 kVA ; Single Phase | D76: 0 | E76: 0 | F76: 0 | G76: 0 | H76: 0 | I76: 0 | J76: 0 | K76: 0 | L76: 0 | M76: 0 | N76: 0 | O76: 0 | P76: 0 | Q76: 0 | R76: 0 | S76: 0 | T76: 0 | U76: 0 | V76: 0 | W76: 0 | X76: 0 | Y76: 0 | Z76: 0 | AA76: 0 | AB76: 0 | AC76: 0 | AD76: 0 | AE76: 0 | AF76: 0 | AG76: 0 | AH76: 0 | AI76: 0 | AJ76: 0 | AK76: 0 | AL76: 0 | AM76: 0 | AN76: 0 | AO76: 0 | AP76: 0 | AQ76: 0 | AR76: 0 | AS76: 0 | AT76: 0 | AU76: 0 | AV76: 0 | AW76: 0 | AX76: 0 | AY76: 0 | AZ76: 0 | BA76: 0 | BB76: 0 | BC76: 0 | BD76: 0 | BE76: 0 | BF76: 0 | BG76: 0 | BH76: 0 | BI76: 0 | BJ76: 0 | BK76: 0 | BL76: 0 | BM76: 0 | BN76: 0 | BO76: 0 | BP76: 0 | BQ76: 0 | BR76: 0 | BS76: 0 | BT76: 0 | BU76: 0 | BV76: 0 | BW76: 0 | BX76: 0 | BY76: 0 | BZ76: 0 | CA76: 0 | CB76: 0 | CC76: 0 | CD76: 0 | CE76: 0 | CF76: 0 | CG76: 0 | CH76: 0 | CI76: 0 | CJ76: 0 | CK76: 0 | CL76: 0 | CM76: 0 | CN76: 0 | CO76: 0 | CP76: 0 | CQ76: 0 | CR76: 0 | CS76: 0 | CT76: 0 | CU76: 0 | CV76: 0 | CW76: 0 | CX76: 0 | CY76: 0 | CZ76: 0 | DA76: 0 | DB76: 0 | DC76: 0 | DD76: 0 | DE76: 0 | DF76: 0 | DG76: 0 | DH76: 0
C77: Ground Outdoor / Indoor Chamber Mounted; ˂ 22 kV ; > 60 kVA and < = 600 kVA ; Single Phase | D77: 0 | E77: 0 | F77: 0 | G77: 0 | H77: 0 | I77: 0 | J77: 0 | K77: 0 | L77: 0 | M77: 0 | N77: 0 | O77: 0 | P77: 0 | Q77: 0 | R77: 0 | S77: 0 | T77: 0 | U77: 0 | V77: 0 | W77: 0 | X77: 0 | Y77: 0 | Z77: 0 | AA77: 0 | AB77: 0 | AC77: 0 | AD77: 0 | AE77: 0 | AF77: 0 | AG77: 0 | AH77: 0 | AI77: 0 | AJ77: 0 | AK77: 0 | AL77: 0 | AM77: 0 | AN77: 0 | AO77: 0 | AP77: 0 | AQ77: 0 | AR77: 0 | AS77: 0 | AT77: 0 | AU77: 0 | AV77: 0 | AW77: 0 | AX77: 0 | AY77: 0 | AZ77: 0 | BA77: 0 | BB77: 0 | BC77: 0 | BD77: 0 | BE77: 0 | BF77: 0 | BG77: 0 | BH77: 0 | BI77: 0 | BJ77: 0 | BK77: 0 | BL77: 0 | BM77: 0 | BN77: 0 | BO77: 0 | BP77: 0 | BQ77: 0 | BR77: 0 | BS77: 0 | BT77: 0 | BU77: 0 | BV77: 0 | BW77: 0 | BX77: 0 | BY77: 0 | BZ77: 0 | CA77: 0 | CB77: 0 | CC77: 0 | CD77: 0 | CE77: 0 | CF77: 0 | CG77: 0 | CH77: 0 | CI77: 0 | CJ77: 0 | CK77: 0 | CL77: 0 | CM77: 0 | CN77: 0 | CO77: 0 | CP77: 0 | CQ77: 0 | CR77: 0 | CS77: 0 | CT77: 0 | CU77: 0 | CV77: 0 | CW77: 0 | CX77: 0 | CY77: 0 | CZ77: 0 | DA77: 0 | DB77: 0 | DC77: 0 | DD77: 0 | DE77: 0 | DF77: 0 | DG77: 0 | DH77: 0
C78: Ground Outdoor / Indoor Chamber Mounted; ˂ 22 kV ; > 600 kVA ; Single Phase | D78: 0 | E78: 0 | F78: 0 | G78: 0 | H78: 0 | I78: 0 | J78: 0 | K78: 0 | L78: 0 | M78: 0 | N78: 0 | O78: 0 | P78: 0 | Q78: 0 | R78: 0 | S78: 0 | T78: 0 | U78: 0 | V78: 0 | W78: 0 | X78: 0 | Y78: 0 | Z78: 0 | AA78: 0 | AB78: 0 | AC78: 0 | AD78: 0 | AE78: 0 | AF78: 0 | AG78: 0 | AH78: 0 | AI78: 0 | AJ78: 0 | AK78: 0 | AL78: 0 | AM78: 0 | AN78: 0 | AO78: 0 | AP78: 0 | AQ78: 0 | AR78: 0 | AS78: 0 | AT78: 0 | AU78: 0 | AV78: 0 | AW78: 0 | AX78: 0 | AY78: 0 | AZ78: 0 | BA78: 0 | BB78: 0 | BC78: 0 | BD78: 0 | BE78: 0 | BF78: 0 | BG78: 0 | BH78: 0 | BI78: 0 | BJ78: 0 | BK78: 0 | BL78: 0 | BM78: 0 | BN78: 0 | BO78: 0 | BP78: 0 | BQ78: 0 | BR78: 0 | BS78: 0 | BT78: 0 | BU78: 0 | BV78: 0 | BW78: 0 | BX78: 0 | BY78: 0 | BZ78: 0 | CA78: 0 | CB78: 0 | CC78: 0 | CD78: 0 | CE78: 0 | CF78: 0 | CG78: 0 | CH78: 0 | CI78: 0 | CJ78: 0 | CK78: 0 | CL78: 0 | CM78: 0 | CN78: 0 | CO78: 0 | CP78: 0 | CQ78: 0 | CR78: 0 | CS78: 0 | CT78: 0 | CU78: 0 | CV78: 0 | CW78: 0 | CX78: 0 | CY78: 0 | CZ78: 0 | DA78: 0 | DB78: 0 | DC78: 0 | DD78: 0 | DE78: 0 | DF78: 0 | DG78: 0 | DH78: 0
C79: Ground Outdoor / Indoor Chamber Mounted; ˂ 22 kV ; < = 60 kVA ; Multiple Phase | D79: 55.74410536 | E79: 10.48427033 | F79: 0 | G79: 0 | H79: 0 | I79: 0 | J79: 0 | K79: 0 | L79: 0 | M79: 0 | N79: 0 | O79: 0 | P79: 2 | Q79: 0 | R79: 0 | S79: 0 | T79: 0 | U79: 0 | V79: 0 | W79: 0 | X79: 0 | Y79: 0 | Z79: 0 | AA79: 0 | AB79: 0 | AC79: 0 | AD79: 0 | AE79: 0 | AF79: 0 | AG79: 0 | AH79: 0 | AI79: 0 | AJ79: 0 | AK79: 0 | AL79: 0 | AM79: 0 | AN79: 0 | AO79: 0 | AP79: 0 | AQ79: 0 | AR79: 0 | AS79: 0 | AT79: 0 | AU79: 0 | AV79: 0 | AW79: 0 | AX79: 0 | AY79: 0 | AZ79: 0 | BA79: 0 | BB79: 0 | BC79: 0 | BD79: 0 | BE79: 0 | BF79: 0 | BG79: 0 | BH79: 0 | BI79: 0 | BJ79: 0 | BK79: 0 | BL79: 0 | BM79: 0 | BN79: 0 | BO79: 0 | BP79: 0 | BQ79: 0 | BR79: 0 | BS79: 0 | BT79: 0 | BU79: 0 | BV79: 0 | BW79: 0 | BX79: 0 | BY79: 0 | BZ79: 0 | CA79: 0 | CB79: 0 | CC79: 0 | CD79: 0 | CE79: 0 | CF79: 0 | CG79: 0 | CH79: 0 | CI79: 0 | CJ79: 0 | CK79: 0 | CL79: 0 | CM79: 0 | CN79: 0 | CO79: 0 | CP79: 0 | CQ79: 0 | CR79: 0 | CS79: 0 | CT79: 0 | CU79: 0 | CV79: 0 | CW79: 0 | CX79: 0 | CY79: 0 | CZ79: 0 | DA79: 0 | DB79: 0 | DC79: 0 | DD79: 0 | DE79: 0 | DF79: 0 | DG79: 0 | DH79: 0
C80: Ground Outdoor / Indoor Chamber Mounted; ˂ 22 kV ; > 60 kVA and < = 600 kVA ; Multiple Phase | D80: 55.74410536 | E80: 10.48427033 | F80: 1 | G80: 0 | H80: 2 | I80: 5 | J80: 2 | K80: 8 | L80: 6 | M80: 0 | N80: 3 | O80: 2 | P80: 3 | Q80: 4 | R80: 1 | S80: 0 | T80: 0 | U80: 0 | V80: 4 | W80: 0 | X80: 0 | Y80: 0 | Z80: 1 | AA80: 0 | AB80: 2 | AC80: 5 | AD80: 1 | AE80: 1 | AF80: 0 | AG80: 3 | AH80: 2 | AI80: 1 | AJ80: 2 | AK80: 1 | AL80: 0 | AM80: 1 | AN80: 10 | AO80: 11 | AP80: 4 | AQ80: 6 | AR80: 4 | AS80: 3 | AT80: 9 | AU80: 9 | AV80: 4 | AW80: 12 | AX80: 44 | AY80: 37 | AZ80: 36 | BA80: 23 | BB80: 44 | BC80: 17 | BD80: 13 | BE80: 25 | BF80: 7 | BG80: 20 | BH80: 29 | BI80: 18 | BJ80: 33 | BK80: 16 | BL80: 14 | BM80: 5 | BN80: 9 | BO80: 1 | BP80: 3 | BQ80: 3 | BR80: 65 | BS80: 3 | BT80: 1 | BU80: 89 | BV80: 9 | BW80: 18 | BX80: 2 | BY80: 0 | BZ80: 0 | CA80: 23 | CB80: 8 | CC80: 1 | CD80: 2 | CE80: 1 | CF80: 0 | CG80: 8 | CH80: 1 | CI80: 0 | CJ80: 0 | CK80: 0 | CL80: 0 | CM80: 0 | CN80: 0 | CO80: 10 | CP80: 0 | CQ80: 1 | CR80: 0 | CS80: 1 | CT80: 1 | CU80: 0 | CV80: 0 | CW80: 0 | CX80: 0 | CY80: 0 | CZ80: 0 | DA80: 0 | DB80: 0 | DC80: 0 | DD80: 0 | DE80: 0 | DF80: 0 | DG80: 0 | DH80: 0
C81: Ground Outdoor / Indoor Chamber Mounted; ˂ 22 kV ; > 600 kVA ; Multiple Phase | D81: 37.80848465 | E81: 11.39291437 | F81: 78 | G81: 90 | H81: 94 | I81: 96 | J81: 90 | K81: 78 | L81: 86 | M81: 87 | N81: 54 | O81: 77 | P81: 70 | Q81: 63 | R81: 54 | S81: 56 | T81: 40 | U81: 13 | V81: 45 | W81: 9 | X81: 19 | Y81: 41 | Z81: 18 | AA81: 34 | AB81: 132 | AC81: 557 | AD81: 48 | AE81: 91 | AF81: 91 | AG81: 164 | AH81: 112 | AI81: 128 | AJ81: 107 | AK81: 49 | AL81: 38 | AM81: 38 | AN81: 63 | AO81: 47 | AP81: 73 | AQ81: 40 | AR81: 31 | AS81: 22 | AT81: 18 | AU81: 43 | AV81: 15 | AW81: 43 | AX81: 115 | AY81: 184 | AZ81: 99 | BA81: 93 | BB81: 32 | BC81: 49 | BD81: 62 | BE81: 48 | BF81: 70 | BG81: 85 | BH81: 15 | BI81: 29 | BJ81: 19 | BK81: 4 | BL81: 2 | BM81: 0 | BN81: 0 | BO81: 0 | BP81: 0 | BQ81: 0 | BR81: 0 | BS81: 0 | BT81: 0 | BU81: 0 | BV81: 0 | BW81: 0 | BX81: 0 | BY81: 0 | BZ81: 0 | CA81: 0 | CB81: 0 | CC81: 0 | CD81: 0 | CE81: 0 | CF81: 0 | CG81: 0 | CH81: 0 | CI81: 0 | CJ81: 0 | CK81: 0 | CL81: 0 | CM81: 0 | CN81: 0 | CO81: 0 | CP81: 0 | CQ81: 0 | CR81: 0 | CS81: 0 | CT81: 0 | CU81: 0 | CV81: 0 | CW81: 0 | CX81: 0 | CY81: 0 | CZ81: 0 | DA81: 0 | DB81: 0 | DC81: 0 | DD81: 0 | DE81: 0 | DF81: 0 | DG81: 0 | DH81: 0
C82: Ground Outdoor / Indoor Chamber Mounted; > = 22 kV & < = 33 kV ; < = 15 MVA | D82: 51.8275154 | E82: 7.413315825 | F82: 0 | G82: 3 | H82: 1 | I82: 1 | J82: 0 | K82: 1 | L82: 0 | M82: 0 | N82: 0 | O82: 1 | P82: 1 | Q82: 0 | R82: 0 | S82: 0 | T82: 1 | U82: 0 | V82: 0 | W82: 0 | X82: 0 | Y82: 0 | Z82: 0 | AA82: 0 | AB82: 0 | AC82: 0 | AD82: 0 | AE82: 0 | AF82: 0 | AG82: 1 | AH82: 0 | AI82: 0 | AJ82: 0 | AK82: 0 | AL82: 0 | AM82: 0 | AN82: 0 | AO82: 0 | AP82: 0 | AQ82: 0 | AR82: 0 | AS82: 4 | AT82: 0 | AU82: 0 | AV82: 0 | AW82: 0 | AX82: 0 | AY82: 1 | AZ82: 2 | BA82: 0 | BB82: 3 | BC82: 0 | BD82: 3 | BE82: 5 | BF82: 1 | BG82: 11 | BH82: 6 | BI82: 5 | BJ82: 2 | BK82: 4 | BL82: 2 | BM82: 1 | BN82: 0 | BO82: 0 | BP82: 0 | BQ82: 2 | BR82: 2 | BS82: 0 | BT82: 1 | BU82: 0 | BV82: 0 | BW82: 0 | BX82: 0 | BY82: 1 | BZ82: 0 | CA82: 0 | CB82: 0 | CC82: 0 | CD82: 0 | CE82: 0 | CF82: 0 | CG82: 0 | CH82: 0 | CI82: 0 | CJ82: 0 | CK82: 0 | CL82: 0 | CM82: 0 | CN82: 0 | CO82: 0 | CP82: 0 | CQ82: 0 | CR82: 0 | CS82: 0 | CT82: 0 | CU82: 0 | CV82: 0 | CW82: 0 | CX82: 0 | CY82: 0 | CZ82: 0 | DA82: 0 | DB82: 0 | DC82: 0 | DD82: 0 | DE82: 0 | DF82: 0 | DG82: 0 | DH82: 0
C83: Ground Outdoor / Indoor Chamber Mounted; > = 22 kV & < = 33 kV ; > 15 MVA and < = 40 MVA | D83: 48.57027821 | E83: 4.475263103 | F83: 1 | G83: 0 | H83: 1 | I83: 2 | J83: 0 | K83: 7 | L83: 12 | M83: 2 | N83: 5 | O83: 16 | P83: 14 | Q83: 17 | R83: 10 | S83: 5 | T83: 12 | U83: 1 | V83: 0 | W83: 9 | X83: 0 | Y83: 0 | Z83: 0 | AA83: 0 | AB83: 0 | AC83: 0 | AD83: 1 | AE83: 2 | AF83: 0 | AG83: 0 | AH83: 0 | AI83: 1 | AJ83: 0 | AK83: 2 | AL83: 0 | AM83: 0 | AN83: 1 | AO83: 0 | AP83: 0 | AQ83: 0 | AR83: 1 | AS83: 0 | AT83: 3 | AU83: 3 | AV83: 4 | AW83: 3 | AX83: 2 | AY83: 4 | AZ83: 9 | BA83: 5 | BB83: 3 | BC83: 10 | BD83: 3 | BE83: 3 | BF83: 5 | BG83: 3 | BH83: 11 | BI83: 3 | BJ83: 0 | BK83: 4 | BL83: 0 | BM83: 0 | BN83: 0 | BO83: 0 | BP83: 0 | BQ83: 0 | BR83: 0 | BS83: 0 | BT83: 0 | BU83: 0 | BV83: 0 | BW83: 0 | BX83: 0 | BY83: 0 | BZ83: 0 | CA83: 0 | CB83: 0 | CC83: 0 | CD83: 0 | CE83: 0 | CF83: 0 | CG83: 0 | CH83: 0 | CI83: 0 | CJ83: 0 | CK83: 0 | CL83: 0 | CM83: 0 | CN83: 0 | CO83: 0 | CP83: 0 | CQ83: 0 | CR83: 0 | CS83: 0 | CT83: 0 | CU83: 0 | CV83: 0 | CW83: 0 | CX83: 0 | CY83: 0 | CZ83: 0 | DA83: 0 | DB83: 0 | DC83: 0 | DD83: 0 | DE83: 0 | DF83: 0 | DG83: 0 | DH83: 0
C84: Ground Outdoor / Indoor Chamber Mounted; > = 22 kV & < = 33 kV ; > 40 MVA | D84: 0 | E84: 0 | F84: 0 | G84: 0 | H84: 0 | I84: 0 | J84: 0 | K84: 0 | L84: 0 | M84: 0 | N84: 0 | O84: 0 | P84: 0 | Q84: 0 | R84: 0 | S84: 0 | T84: 0 | U84: 0 | V84: 0 | W84: 0 | X84: 0 | Y84: 0 | Z84: 0 | AA84: 0 | AB84: 0 | AC84: 0 | AD84: 0 | AE84: 0 | AF84: 0 | AG84: 0 | AH84: 0 | AI84: 0 | AJ84: 0 | AK84: 0 | AL84: 0 | AM84: 0 | AN84: 0 | AO84: 0 | AP84: 0 | AQ84: 0 | AR84: 0 | AS84: 0 | AT84: 0 | AU84: 0 | AV84: 0 | AW84: 0 | AX84: 0 | AY84: 0 | AZ84: 0 | BA84: 0 | BB84: 0 | BC84: 0 | BD84: 0 | BE84: 0 | BF84: 0 | BG84: 0 | BH84: 0 | BI84: 0 | BJ84: 0 | BK84: 0 | BL84: 0 | BM84: 0 | BN84: 0 | BO84: 0 | BP84: 0 | BQ84: 0 | BR84: 0 | BS84: 0 | BT84: 0 | BU84: 0 | BV84: 0 | BW84: 0 | BX84: 0 | BY84: 0 | BZ84: 0 | CA84: 0 | CB84: 0 | CC84: 0 | CD84: 0 | CE84: 0 | CF84: 0 | CG84: 0 | CH84: 0 | CI84: 0 | CJ84: 0 | CK84: 0 | CL84: 0 | CM84: 0 | CN84: 0 | CO84: 0 | CP84: 0 | CQ84: 0 | CR84: 0 | CS84: 0 | CT84: 0 | CU84: 0 | CV84: 0 | CW84: 0 | CX84: 0 | CY84: 0 | CZ84: 0 | DA84: 0 | DB84: 0 | DC84: 0 | DD84: 0 | DE84: 0 | DF84: 0 | DG84: 0 | DH84: 0
C85: Ground Outdoor / Indoor Chamber Mounted; > 33 kV & < = 66 kV ; < = 15 MVA | D85: 43.71995698 | E85: 10.39006646 | F85: 0 | G85: 0 | H85: 0 | I85: 0 | J85: 0 | K85: 0 | L85: 0 | M85: 0 | N85: 0 | O85: 3 | P85: 0 | Q85: 0 | R85: 0 | S85: 0 | T85: 0 | U85: 0 | V85: 0 | W85: 0 | X85: 0 | Y85: 0 | Z85: 0 | AA85: 0 | AB85: 0 | AC85: 0 | AD85: 0 | AE85: 0 | AF85: 0 | AG85: 0 | AH85: 0 | AI85: 0 | AJ85: 0 | AK85: 0 | AL85: 0 | AM85: 0 | AN85: 0 | AO85: 0 | AP85: 0 | AQ85: 0 | AR85: 0 | AS85: 0 | AT85: 2 | AU85: 0 | AV85: 0 | AW85: 0 | AX85: 0 | AY85: 0 | AZ85: 2 | BA85: 0 | BB85: 0 | BC85: 0 | BD85: 2 | BE85: 0 | BF85: 0 | BG85: 1 | BH85: 0 | BI85: 0 | BJ85: 1 | BK85: 0 | BL85: 0 | BM85: 0 | BN85: 1 | BO85: 0 | BP85: 0 | BQ85: 0 | BR85: 0 | BS85: 0 | BT85: 0 | BU85: 0 | BV85: 0 | BW85: 0 | BX85: 0 | BY85: 0 | BZ85: 0 | CA85: 0 | CB85: 0 | CC85: 0 | CD85: 0 | CE85: 0 | CF85: 0 | CG85: 0 | CH85: 0 | CI85: 0 | CJ85: 0 | CK85: 0 | CL85: 0 | CM85: 0 | CN85: 0 | CO85: 0 | CP85: 0 | CQ85: 0 | CR85: 0 | CS85: 0 | CT85: 0 | CU85: 0 | CV85: 0 | CW85: 0 | CX85: 0 | CY85: 0 | CZ85: 0 | DA85: 0 | DB85: 0 | DC85: 0 | DD85: 0 | DE85: 0 | DF85: 0 | DG85: 0 | DH85: 0
C86: Ground Outdoor / Indoor Chamber Mounted; > 33 kV & < = 66 kV ; > 15 MVA and < = 40 MVA | D86: 43.71995698 | E86: 10.39006646 | F86: 0 | G86: 0 | H86: 0 | I86: 0 | J86: 4 | K86: 0 | L86: 4 | M86: 0 | N86: 2 | O86: 5 | P86: 1 | Q86: 2 | R86: 4 | S86: 1 | T86: 0 | U86: 0 | V86: 0 | W86: 0 | X86: 0 | Y86: 0 | Z86: 0 | AA86: 0 | AB86: 0 | AC86: 0 | AD86: 0 | AE86: 0 | AF86: 0 | AG86: 0 | AH86: 0 | AI86: 0 | AJ86: 0 | AK86: 0 | AL86: 0 | AM86: 3 | AN86: 2 | AO86: 0 | AP86: 0 | AQ86: 1 | AR86: 0 | AS86: 0 | AT86: 1 | AU86: 2 | AV86: 0 | AW86: 1 | AX86: 0 | AY86: 0 | AZ86: 0 | BA86: 2 | BB86: 1 | BC86: 0 | BD86: 0 | BE86: 1 | BF86: 0 | BG86: 0 | BH86: 1 | BI86: 0 | BJ86: 0 | BK86: 0 | BL86: 0 | BM86: 0 | BN86: 0 | BO86: 0 | BP86: 0 | BQ86: 0 | BR86: 0 | BS86: 0 | BT86: 0 | BU86: 0 | BV86: 0 | BW86: 0 | BX86: 0 | BY86: 0 | BZ86: 0 | CA86: 0 | CB86: 0 | CC86: 0 | CD86: 0 | CE86: 0 | CF86: 0 | CG86: 0 | CH86: 0 | CI86: 0 | CJ86: 0 | CK86: 0 | CL86: 0 | CM86: 0 | CN86: 0 | CO86: 0 | CP86: 0 | CQ86: 0 | CR86: 0 | CS86: 0 | CT86: 0 | CU86: 0 | CV86: 0 | CW86: 0 | CX86: 0 | CY86: 0 | CZ86: 0 | DA86: 0 | DB86: 0 | DC86: 0 | DD86: 0 | DE86: 0 | DF86: 0 | DG86: 0 | DH86: 0
C87: Ground Outdoor / Indoor Chamber Mounted; > 33 kV & < = 66 kV ; > 40 MVA | D87: 0 | E87: 0 | F87: 0 | G87: 0 | H87: 0 | I87: 0 | J87: 0 | K87: 0 | L87: 0 | M87: 0 | N87: 0 | O87: 0 | P87: 0 | Q87: 0 | R87: 0 | S87: 0 | T87: 0 | U87: 0 | V87: 0 | W87: 0 | X87: 0 | Y87: 0 | Z87: 0 | AA87: 0 | AB87: 0 | AC87: 0 | AD87: 0 | AE87: 0 | AF87: 0 | AG87: 0 | AH87: 0 | AI87: 0 | AJ87: 0 | AK87: 0 | AL87: 0 | AM87: 0 | AN87: 0 | AO87: 0 | AP87: 0 | AQ87: 0 | AR87: 0 | AS87: 0 | AT87: 0 | AU87: 0 | AV87: 0 | AW87: 0 | AX87: 0 | AY87: 0 | AZ87: 0 | BA87: 0 | BB87: 0 | BC87: 0 | BD87: 0 | BE87: 0 | BF87: 0 | BG87: 0 | BH87: 0 | BI87: 0 | BJ87: 0 | BK87: 0 | BL87: 0 | BM87: 0 | BN87: 0 | BO87: 0 | BP87: 0 | BQ87: 0 | BR87: 0 | BS87: 0 | BT87: 0 | BU87: 0 | BV87: 0 | BW87: 0 | BX87: 0 | BY87: 0 | BZ87: 0 | CA87: 0 | CB87: 0 | CC87: 0 | CD87: 0 | CE87: 0 | CF87: 0 | CG87: 0 | CH87: 0 | CI87: 0 | CJ87: 0 | CK87: 0 | CL87: 0 | CM87: 0 | CN87: 0 | CO87: 0 | CP87: 0 | CQ87: 0 | CR87: 0 | CS87: 0 | CT87: 0 | CU87: 0 | CV87: 0 | CW87: 0 | CX87: 0 | CY87: 0 | CZ87: 0 | DA87: 0 | DB87: 0 | DC87: 0 | DD87: 0 | DE87: 0 | DF87: 0 | DG87: 0 | DH87: 0
C88: Ground Outdoor / Indoor Chamber Mounted; > 66 kV & < = 132 kV ; < = 100 MVA | D88: 43.71995698 | E88: 10.39006646 | F88: 4 | G88: 8 | H88: 8 | I88: 1 | J88: 6 | K88: 17 | L88: 8 | M88: 20 | N88: 8 | O88: 11 | P88: 7 | Q88: 7 | R88: 8 | S88: 6 | T88: 4 | U88: 6 | V88: 3 | W88: 1 | X88: 4 | Y88: 4 | Z88: 1 | AA88: 0 | AB88: 0 | AC88: 4 | AD88: 3 | AE88: 0 | AF88: 0 | AG88: 1 | AH88: 0 | AI88: 0 | AJ88: 2 | AK88: 0 | AL88: 0 | AM88: 3 | AN88: 2 | AO88: 2 | AP88: 3 | AQ88: 4 | AR88: 4 | AS88: 2 | AT88: 1 | AU88: 0 | AV88: 3 | AW88: 3 | AX88: 6 | AY88: 4 | AZ88: 1 | BA88: 2 | BB88: 2 | BC88: 1 | BD88: 0 | BE88: 1 | BF88: 0 | BG88: 2 | BH88: 3 | BI88: 2 | BJ88: 3 | BK88: 2 | BL88: 0 | BM88: 0 | BN88: 3 | BO88: 0 | BP88: 0 | BQ88: 1 | BR88: 0 | BS88: 1 | BT88: 0 | BU88: 0 | BV88: 0 | BW88: 0 | BX88: 0 | BY88: 0 | BZ88: 0 | CA88: 0 | CB88: 0 | CC88: 0 | CD88: 0 | CE88: 0 | CF88: 0 | CG88: 0 | CH88: 0 | CI88: 0 | CJ88: 0 | CK88: 0 | CL88: 0 | CM88: 0 | CN88: 0 | CO88: 0 | CP88: 0 | CQ88: 0 | CR88: 0 | CS88: 0 | CT88: 0 | CU88: 0 | CV88: 0 | CW88: 0 | CX88: 0 | CY88: 0 | CZ88: 0 | DA88: 0 | DB88: 0 | DC88: 0 | DD88: 0 | DE88: 0 | DF88: 0 | DG88: 0 | DH88: 0
C89: Ground Outdoor / Indoor Chamber Mounted; > 66 kV & < = 132 kV ; > 100 MVA | D89: 43.71995698 | E89: 10.39006646 | F89: 0 | G89: 0 | H89: 1 | I89: 0 | J89: 0 | K89: 0 | L89: 2 | M89: 6 | N89: 6 | O89: 1 | P89: 1 | Q89: 2 | R89: 2 | S89: 0 | T89: 0 | U89: 0 | V89: 1 | W89: 1 | X89: 1 | Y89: 0 | Z89: 0 | AA89: 0 | AB89: 0 | AC89: 0 | AD89: 0 | AE89: 0 | AF89: 2 | AG89: 0 | AH89: 0 | AI89: 0 | AJ89: 0 | AK89: 0 | AL89: 0 | AM89: 0 | AN89: 0 | AO89: 3 | AP89: 2 | AQ89: 0 | AR89: 0 | AS89: 3 | AT89: 0 | AU89: 0 | AV89: 0 | AW89: 0 | AX89: 0 | AY89: 1 | AZ89: 2 | BA89: 0 | BB89: 1 | BC89: 2 | BD89: 2 | BE89: 0 | BF89: 0 | BG89: 2 | BH89: 0 | BI89: 1 | BJ89: 0 | BK89: 0 | BL89: 0 | BM89: 0 | BN89: 0 | BO89: 0 | BP89: 0 | BQ89: 0 | BR89: 0 | BS89: 0 | BT89: 0 | BU89: 0 | BV89: 0 | BW89: 0 | BX89: 0 | BY89: 0 | BZ89: 0 | CA89: 0 | CB89: 0 | CC89: 0 | CD89: 0 | CE89: 0 | CF89: 0 | CG89: 0 | CH89: 0 | CI89: 0 | CJ89: 0 | CK89: 0 | CL89: 0 | CM89: 0 | CN89: 0 | CO89: 0 | CP89: 0 | CQ89: 0 | CR89: 0 | CS89: 0 | CT89: 0 | CU89: 0 | CV89: 0 | CW89: 0 | CX89: 0 | CY89: 0 | CZ89: 0 | DA89: 0 | DB89: 0 | DC89: 0 | DD89: 0 | DE89: 0 | DF89: 0 | DG89: 0 | DH89: 0
C90: Ground Outdoor / Indoor Chamber Mounted; > 132 kV ; < = 100 MVA | D90: 0 | E90: 0 | F90: 0 | G90: 0 | H90: 0 | I90: 0 | J90: 0 | K90: 0 | L90: 0 | M90: 0 | N90: 0 | O90: 0 | P90: 0 | Q90: 0 | R90: 0 | S90: 0 | T90: 0 | U90: 0 | V90: 0 | W90: 0 | X90: 0 | Y90: 0 | Z90: 0 | AA90: 0 | AB90: 0 | AC90: 0 | AD90: 0 | AE90: 0 | AF90: 0 | AG90: 0 | AH90: 0 | AI90: 0 | AJ90: 0 | AK90: 0 | AL90: 0 | AM90: 0 | AN90: 0 | AO90: 0 | AP90: 0 | AQ90: 0 | AR90: 0 | AS90: 0 | AT90: 0 | AU90: 0 | AV90: 0 | AW90: 0 | AX90: 0 | AY90: 0 | AZ90: 0 | BA90: 0 | BB90: 0 | BC90: 0 | BD90: 0 | BE90: 0 | BF90: 0 | BG90: 0 | BH90: 0 | BI90: 0 | BJ90: 0 | BK90: 0 | BL90: 0 | BM90: 0 | BN90: 0 | BO90: 0 | BP90: 0 | BQ90: 0 | BR90: 0 | BS90: 0 | BT90: 0 | BU90: 0 | BV90: 0 | BW90: 0 | BX90: 0 | BY90: 0 | BZ90: 0 | CA90: 0 | CB90: 0 | CC90: 0 | CD90: 0 | CE90: 0 | CF90: 0 | CG90: 0 | CH90: 0 | CI90: 0 | CJ90: 0 | CK90: 0 | CL90: 0 | CM90: 0 | CN90: 0 | CO90: 0 | CP90: 0 | CQ90: 0 | CR90: 0 | CS90: 0 | CT90: 0 | CU90: 0 | CV90: 0 | CW90: 0 | CX90: 0 | CY90: 0 | CZ90: 0 | DA90: 0 | DB90: 0 | DC90: 0 | DD90: 0 | DE90: 0 | DF90: 0 | DG90: 0 | DH90: 0
C91: Ground Outdoor / Indoor Chamber Mounted; > 132 kV ; > 100 MVA | D91: 0 | E91: 0 | F91: 0 | G91: 0 | H91: 0 | I91: 0 | J91: 0 | K91: 0 | L91: 0 | M91: 0 | N91: 0 | O91: 0 | P91: 0 | Q91: 0 | R91: 0 | S91: 0 | T91: 0 | U91: 0 | V91: 0 | W91: 0 | X91: 0 | Y91: 0 | Z91: 0 | AA91: 0 | AB91: 0 | AC91: 0 | AD91: 0 | AE91: 0 | AF91: 0 | AG91: 0 | AH91: 0 | AI91: 0 | AJ91: 0 | AK91: 0 | AL91: 0 | AM91: 0 | AN91: 0 | AO91: 0 | AP91: 0 | AQ91: 0 | AR91: 0 | AS91: 0 | AT91: 0 | AU91: 0 | AV91: 0 | AW91: 0 | AX91: 0 | AY91: 0 | AZ91: 0 | BA91: 0 | BB91: 0 | BC91: 0 | BD91: 0 | BE91: 0 | BF91: 0 | BG91: 0 | BH91: 0 | BI91: 0 | BJ91: 0 | BK91: 0 | BL91: 0 | BM91: 0 | BN91: 0 | BO91: 0 | BP91: 0 | BQ91: 0 | BR91: 0 | BS91: 0 | BT91: 0 | BU91: 0 | BV91: 0 | BW91: 0 | BX91: 0 | BY91: 0 | BZ91: 0 | CA91: 0 | CB91: 0 | CC91: 0 | CD91: 0 | CE91: 0 | CF91: 0 | CG91: 0 | CH91: 0 | CI91: 0 | CJ91: 0 | CK91: 0 | CL91: 0 | CM91: 0 | CN91: 0 | CO91: 0 | CP91: 0 | CQ91: 0 | CR91: 0 | CS91: 0 | CT91: 0 | CU91: 0 | CV91: 0 | CW91: 0 | CX91: 0 | CY91: 0 | CZ91: 0 | DA91: 0 | DB91: 0 | DC91: 0 | DD91: 0 | DE91: 0 | DF91: 0 | DG91: 0 | DH91: 0
C92: Other | D92: 22.68056652 | E92: 9.683326349 | F92: 1 | G92: 0 | H92: 1 | I92: 0 | J92: 0 | K92: 0 | L92: 1 | M92: 0 | N92: 3 | O92: 1 | P92: 3 | Q92: 1 | R92: 0 | S92: 1 | T92: 1 | U92: 1 | V92: 0 | W92: 2 | X92: 0 | Y92: 0 | Z92: 0 | AA92: 1 | AB92: 1 | AC92: 0 | AD92: 0 | AE92: 0 | AF92: 0 | AG92: 1 | AH92: 0 | AI92: 0 | AJ92: 0 | AK92: 0 | AL92: 0 | AM92: 0 | AN92: 0 | AO92: 0 | AP92: 0 | AQ92: 1 | AR92: 1 | AS92: 0 | AT92: 1 | AU92: 0 | AV92: 0 | AW92: 0 | AX92: 0 | AY92: 0 | AZ92: 0 | BA92: 0 | BB92: 0 | BC92: 0 | BD92: 0 | BE92: 0 | BF92: 0 | BG92: 1 | BH92: 2 | BI92: 0 | BJ92: 0 | BK92: 0 | BL92: 0 | BM92: 0 | BN92: 0 | BO92: 0 | BP92: 0 | BQ92: 0 | BR92: 0 | BS92: 0 | BT92: 0 | BU92: 0 | BV92: 0 | BW92: 0 | BX92: 0 | BY92: 0 | BZ92: 0 | CA92: 0 | CB92: 0 | CC92: 0 | CD92: 0 | CE92: 0 | CF92: 0 | CG92: 0 | CH92: 0 | CI92: 0 | CJ92: 0 | CK92: 0 | CL92: 0 | CM92: 0 | CN92: 0 | CO92: 0 | CP92: 0 | CQ92: 0 | CR92: 0 | CS92: 0 | CT92: 0 | CU92: 0 | CV92: 0 | CW92: 0 | CX92: 0 | CY92: 0 | CZ92: 0 | DA92: 0 | DB92: 0 | DC92: 0 | DD92: 0 | DE92: 0 | DF92: 0 | DG92: 0 | DH92: 0
B93: SWITCHGEAR BY: HIGHEST OPERATING VOLTAGE ; SWITCH FUNCTION | C93: ˂ = 11 kV ; Fuse | D93: 28.64493103 | E93: 18.76831983 | F93: 2820 | G93: 1903 | H93: 2192 | I93: 2884 | J93: 2798 | K93: 2963 | L93: 2725 | M93: 3025 | N93: 3207 | O93: 3185 | P93: 2428 | Q93: 2557 | R93: 2104 | S93: 1935 | T93: 1459 | U93: 791 | V93: 632 | W93: 780 | X93: 732 | Y93: 677 | Z93: 666 | AA93: 820 | AB93: 860 | AC93: 749 | AD93: 760 | AE93: 911 | AF93: 785 | AG93: 558 | AH93: 389 | AI93: 399 | AJ93: 421 | AK93: 438 | AL93: 423 | AM93: 427 | AN93: 2299 | AO93: 552 | AP93: 320 | AQ93: 251 | AR93: 266 | AS93: 249 | AT93: 328 | AU93: 338 | AV93: 347 | AW93: 351 | AX93: 373 | AY93: 395 | AZ93: 452 | BA93: 490 | BB93: 356 | BC93: 318 | BD93: 356 | BE93: 363 | BF93: 328 | BG93: 361 | BH93: 299 | BI93: 291 | BJ93: 277 | BK93: 195 | BL93: 281 | BM93: 140 | BN93: 90 | BO93: 83 | BP93: 92 | BQ93: 151 | BR93: 112 | BS93: 90 | BT93: 45 | BU93: 54 | BV93: 14 | BW93: 33 | BX93: 30 | BY93: 1 | BZ93: 9 | CA93: 8 | CB93: 13 | CC93: 18 | CD93: 18 | CE93: 46 | CF93: 34 | CG93: 57 | CH93: 51 | CI93: 26 | CJ93: 6 | CK93: 5 | CL93: 9 | CM93: 62 | CN93: 67 | CO93: 30 | CP93: 31 | CQ93: 28 | CR93: 41 | CS93: 5 | CT93: 0 | CU93: 7 | CV93: 10 | CW93: 1 | CX93: 17 | CY93: 12 | CZ93: 4 | DA93: 0 | DB93: 0 | DC93: 6 | DD93: 43 | DE93: 20 | DF93: 0 | DG93: 0 | DH93: 11
C94: ˂ = 11 kV ; Switch | D94: 28.49410292 | E94: 19.85488276 | F94: 1967 | G94: 2443 | H94: 2530 | I94: 2998 | J94: 3461 | K94: 3307 | L94: 3067 | M94: 2842 | N94: 3018 | O94: 2339 | P94: 2011 | Q94: 2158 | R94: 1464 | S94: 1616 | T94: 1243 | U94: 908 | V94: 736 | W94: 972 | X94: 850 | Y94: 856 | Z94: 715 | AA94: 908 | AB94: 667 | AC94: 861 | AD94: 827 | AE94: 881 | AF94: 839 | AG94: 774 | AH94: 686 | AI94: 735 | AJ94: 708 | AK94: 662 | AL94: 672 | AM94: 696 | AN94: 2016 | AO94: 1044 | AP94: 982 | AQ94: 995 | AR94: 1152 | AS94: 1144 | AT94: 1383 | AU94: 1429 | AV94: 1350 | AW94: 1061 | AX94: 1201 | AY94: 1175 | AZ94: 1329 | BA94: 1477 | BB94: 1288 | BC94: 1111 | BD94: 1073 | BE94: 1029 | BF94: 1086 | BG94: 1253 | BH94: 1233 | BI94: 524 | BJ94: 450 | BK94: 274 | BL94: 469 | BM94: 242 | BN94: 139 | BO94: 117 | BP94: 133 | BQ94: 124 | BR94: 140 | BS94: 85 | BT94: 71 | BU94: 67 | BV94: 44 | BW94: 40 | BX94: 44 | BY94: 6 | BZ94: 16 | CA94: 6 | CB94: 23 | CC94: 25 | CD94: 15 | CE94: 49 | CF94: 31 | CG94: 68 | CH94: 43 | CI94: 18 | CJ94: 4 | CK94: 17 | CL94: 11 | CM94: 77 | CN94: 88 | CO94: 41 | CP94: 112 | CQ94: 82 | CR94: 39 | CS94: 31 | CT94: 0 | CU94: 21 | CV94: 11 | CW94: 9 | CX94: 18 | CY94: 13 | CZ94: 4 | DA94: 0 | DB94: 0 | DC94: 2 | DD94: 37 | DE94: 30 | DF94: 8 | DG94: 0 | DH94: 0
C95: ˂ = 11 kV ; Circuit Breaker | D95: 49.47852086 | E95: 18.42187388 | F95: 317 | G95: 285 | H95: 271 | I95: 371 | J95: 428 | K95: 373 | L95: 407 | M95: 474 | N95: 237 | O95: 243 | P95: 251 | Q95: 186 | R95: 167 | S95: 126 | T95: 93 | U95: 205 | V95: 138 | W95: 88 | X95: 112 | Y95: 108 | Z95: 70 | AA95: 61 | AB95: 65 | AC95: 49 | AD95: 47 | AE95: 54 | AF95: 48 | AG95: 55 | AH95: 35 | AI95: 47 | AJ95: 84 | AK95: 14 | AL95: 89 | AM95: 39 | AN95: 46 | AO95: 42 | AP95: 40 | AQ95: 64 | AR95: 57 | AS95: 69 | AT95: 42 | AU95: 86 | AV95: 81 | AW95: 85 | AX95: 109 | AY95: 153 | AZ95: 108 | BA95: 81 | BB95: 66 | BC95: 38 | BD95: 100 | BE95: 79 | BF95: 101 | BG95: 67 | BH95: 56 | BI95: 69 | BJ95: 12 | BK95: 30 | BL95: 39 | BM95: 40 | BN95: 18 | BO95: 26 | BP95: 42 | BQ95: 61 | BR95: 30 | BS95: 39 | BT95: 59 | BU95: 37 | BV95: 12 | BW95: 7 | BX95: 9 | BY95: 29 | BZ95: 3 | CA95: 4 | CB95: 16 | CC95: 18 | CD95: 9 | CE95: 34 | CF95: 25 | CG95: 40 | CH95: 30 | CI95: 9 | CJ95: 7 | CK95: 0 | CL95: 8 | CM95: 21 | CN95: 13 | CO95: 4 | CP95: 15 | CQ95: 2 | CR95: 11 | CS95: 0 | CT95: 0 | CU95: 1 | CV95: 0 | CW95: 0 | CX95: 14 | CY95: 0 | CZ95: 0 | DA95: 0 | DB95: 0 | DC95: 0 | DD95: 24 | DE95: 9 | DF95: 0 | DG95: 0 | DH95: 0
C96: > 11 kV & < = 22 kV ; Switch | D96: 49.47852086 | E96: 18.42187388 | F96: 1 | G96: 0 | H96: 0 | I96: 1 | J96: 0 | K96: 0 | L96: 0 | M96: 1 | N96: 4 | O96: 3 | P96: 1 | Q96: 0 | R96: 1 | S96: 20 | T96: 1 | U96: 1 | V96: 6 | W96: 1 | X96: 0 | Y96: 0 | Z96: 0 | AA96: 1 | AB96: 0 | AC96: 13 | AD96: 0 | AE96: 0 | AF96: 1 | AG96: 0 | AH96: 0 | AI96: 0 | AJ96: 0 | AK96: 0 | AL96: 0 | AM96: 0 | AN96: 0 | AO96: 0 | AP96: 0 | AQ96: 1 | AR96: 0 | AS96: 0 | AT96: 0 | AU96: 0 | AV96: 0 | AW96: 0 | AX96: 1 | AY96: 2 | AZ96: 0 | BA96: 3 | BB96: 0 | BC96: 0 | BD96: 0 | BE96: 0 | BF96: 0 | BG96: 0 | BH96: 0 | BI96: 0 | BJ96: 0 | BK96: 0 | BL96: 0 | BM96: 0 | BN96: 0 | BO96: 0 | BP96: 0 | BQ96: 0 | BR96: 0 | BS96: 0 | BT96: 0 | BU96: 0 | BV96: 0 | BW96: 0 | BX96: 0 | BY96: 0 | BZ96: 0 | CA96: 0 | CB96: 0 | CC96: 0 | CD96: 0 | CE96: 0 | CF96: 0 | CG96: 0 | CH96: 0 | CI96: 0 | CJ96: 0 | CK96: 0 | CL96: 0 | CM96: 0 | CN96: 0 | CO96: 0 | CP96: 0 | CQ96: 0 | CR96: 0 | CS96: 0 | CT96: 0 | CU96: 0 | CV96: 0 | CW96: 0 | CX96: 0 | CY96: 0 | CZ96: 0 | DA96: 0 | DB96: 0 | DC96: 0 | DD96: 0 | DE96: 0 | DF96: 0 | DG96: 0 | DH96: 0
C97: > 11 kV & < = 22 kV ; Circuit Breaker | D97: 46.34018565 | E97: 13.18114412 | F97: 2 | G97: 0 | H97: 0 | I97: 0 | J97: 0 | K97: 0 | L97: 0 | M97: 0 | N97: 3 | O97: 0 | P97: 1 | Q97: 1 | R97: 0 | S97: 1 | T97: 0 | U97: 0 | V97: 0 | W97: 0 | X97: 0 | Y97: 1 | Z97: 0 | AA97: 0 | AB97: 0 | AC97: 0 | AD97: 0 | AE97: 0 | AF97: 0 | AG97: 0 | AH97: 0 | AI97: 0 | AJ97: 0 | AK97: 0 | AL97: 0 | AM97: 0 | AN97: 0 | AO97: 0 | AP97: 0 | AQ97: 0 | AR97: 0 | AS97: 0 | AT97: 0 | AU97: 0 | AV97: 0 | AW97: 0 | AX97: 0 | AY97: 0 | AZ97: 0 | BA97: 0 | BB97: 0 | BC97: 0 | BD97: 0 | BE97: 0 | BF97: 0 | BG97: 0 | BH97: 0 | BI97: 0 | BJ97: 0 | BK97: 0 | BL97: 0 | BM97: 0 | BN97: 0 | BO97: 0 | BP97: 0 | BQ97: 0 | BR97: 0 | BS97: 0 | BT97: 0 | BU97: 0 | BV97: 0 | BW97: 0 | BX97: 0 | BY97: 0 | BZ97: 0 | CA97: 0 | CB97: 0 | CC97: 0 | CD97: 0 | CE97: 0 | CF97: 0 | CG97: 0 | CH97: 0 | CI97: 0 | CJ97: 0 | CK97: 0 | CL97: 0 | CM97: 0 | CN97: 0 | CO97: 0 | CP97: 0 | CQ97: 0 | CR97: 0 | CS97: 0 | CT97: 0 | CU97: 0 | CV97: 0 | CW97: 0 | CX97: 0 | CY97: 0 | CZ97: 0 | DA97: 0 | DB97: 0 | DC97: 0 | DD97: 0 | DE97: 0 | DF97: 0 | DG97: 0 | DH97: 0
C98: > 22 kV & < = 33 kV ; Switch | D98: 47.03025458 | E98: 17.22843628 | F98: 87 | G98: 148 | H98: 72 | I98: 48 | J98: 87 | K98: 77 | L98: 46 | M98: 120 | N98: 53 | O98: 28 | P98: 48 | Q98: 52 | R98: 85 | S98: 23 | T98: 5 | U98: 3 | V98: 3 | W98: 2 | X98: 1 | Y98: 0 | Z98: 0 | AA98: 87 | AB98: 1 | AC98: 7 | AD98: 0 | AE98: 7 | AF98: 2 | AG98: 4 | AH98: 1 | AI98: 2 | AJ98: 0 | AK98: 5 | AL98: 0 | AM98: 0 | AN98: 0 | AO98: 8 | AP98: 0 | AQ98: 1 | AR98: 47 | AS98: 24 | AT98: 11 | AU98: 8 | AV98: 0 | AW98: 18 | AX98: 10 | AY98: 33 | AZ98: 44 | BA98: 0 | BB98: 0 | BC98: 172 | BD98: 129 | BE98: 29 | BF98: 51 | BG98: 466 | BH98: 23 | BI98: 82 | BJ98: 105 | BK98: 113 | BL98: 34 | BM98: 24 | BN98: 99 | BO98: 0 | BP98: 0 | BQ98: 13 | BR98: 0 | BS98: 54 | BT98: 2 | BU98: 0 | BV98: 0 | BW98: 0 | BX98: 0 | BY98: 0 | BZ98: 0 | CA98: 0 | CB98: 0 | CC98: 3 | CD98: 0 | CE98: 0 | CF98: 0 | CG98: 0 | CH98: 0 | CI98: 0 | CJ98: 0 | CK98: 0 | CL98: 0 | CM98: 0 | CN98: 0 | CO98: 0 | CP98: 0 | CQ98: 0 | CR98: 0 | CS98: 0 | CT98: 0 | CU98: 0 | CV98: 0 | CW98: 0 | CX98: 0 | CY98: 0 | CZ98: 0 | DA98: 0 | DB98: 0 | DC98: 0 | DD98: 0 | DE98: 0 | DF98: 0 | DG98: 0 | DH98: 0
C99: > 22 kV & < = 33 kV ; Circuit Breaker | D99: 46.34018565 | E99: 13.18114412 | F99: 34 | G99: 35 | H99: 32 | I99: 39 | J99: 59 | K99: 64 | L99: 35 | M99: 57 | N99: 22 | O99: 21 | P99: 21 | Q99: 15 | R99: 23 | S99: 15 | T99: 9 | U99: 2 | V99: 14 | W99: 28 | X99: 1 | Y99: 0 | Z99: 0 | AA99: 29 | AB99: 0 | AC99: 53 | AD99: 0 | AE99: 0 | AF99: 0 | AG99: 0 | AH99: 0 | AI99: 0 | AJ99: 0 | AK99: 0 | AL99: 0 | AM99: 0 | AN99: 0 | AO99: 0 | AP99: 0 | AQ99: 0 | AR99: 1 | AS99: 6 | AT99: 1 | AU99: 12 | AV99: 4 | AW99: 9 | AX99: 0 | AY99: 0 | AZ99: 10 | BA99: 2 | BB99: 9 | BC99: 26 | BD99: 19 | BE99: 2 | BF99: 3 | BG99: 73 | BH99: 5 | BI99: 18 | BJ99: 30 | BK99: 32 | BL99: 18 | BM99: 2 | BN99: 9 | BO99: 0 | BP99: 0 | BQ99: 4 | BR99: 0 | BS99: 18 | BT99: 0 | BU99: 0 | BV99: 3 | BW99: 0 | BX99: 0 | BY99: 0 | BZ99: 0 | CA99: 0 | CB99: 0 | CC99: 0 | CD99: 0 | CE99: 0 | CF99: 0 | CG99: 0 | CH99: 0 | CI99: 0 | CJ99: 0 | CK99: 0 | CL99: 0 | CM99: 0 | CN99: 0 | CO99: 0 | CP99: 0 | CQ99: 0 | CR99: 0 | CS99: 0 | CT99: 0 | CU99: 0 | CV99: 0 | CW99: 0 | CX99: 0 | CY99: 0 | CZ99: 0 | DA99: 0 | DB99: 0 | DC99: 0 | DD99: 0 | DE99: 0 | DF99: 0 | DG99: 0 | DH99: 0
C100: > 33 kV & < = 66 kV ; Switch | D100: 46.50246767 | E100: 17.49112697 | F100: 0 | G100: 1 | H100: 0 | I100: 13 | J100: 58 | K100: 6 | L100: 30 | M100: 54 | N100: 5 | O100: 30 | P100: 13 | Q100: 9 | R100: 18 | S100: 6 | T100: 1 | U100: 7 | V100: 3 | W100: 15 | X100: 2 | Y100: 0 | Z100: 0 | AA100: 1 | AB100: 0 | AC100: 0 | AD100: 0 | AE100: 0 | AF100: 0 | AG100: 5 | AH100: 0 | AI100: 0 | AJ100: 0 | AK100: 10 | AL100: 7 | AM100: 9 | AN100: 43 | AO100: 19 | AP100: 0 | AQ100: 8 | AR100: 0 | AS100: 45 | AT100: 0 | AU100: 3 | AV100: 0 | AW100: 9 | AX100: 0 | AY100: 2 | AZ100: 0 | BA100: 11 | BB100: 2 | BC100: 0 | BD100: 0 | BE100: 10 | BF100: 0 | BG100: 2 | BH100: 0 | BI100: 1 | BJ100: 1 | BK100: 0 | BL100: 0 | BM100: 21 | BN100: 1 | BO100: 0 | BP100: 0 | BQ100: 0 | BR100: 0 | BS100: 0 | BT100: 0 | BU100: 0 | BV100: 0 | BW100: 0 | BX100: 0 | BY100: 0 | BZ100: 0 | CA100: 0 | CB100: 0 | CC100: 0 | CD100: 0 | CE100: 0 | CF100: 0 | CG100: 0 | CH100: 0 | CI100: 0 | CJ100: 0 | CK100: 0 | CL100: 0 | CM100: 0 | CN100: 0 | CO100: 0 | CP100: 0 | CQ100: 0 | CR100: 0 | CS100: 0 | CT100: 0 | CU100: 0 | CV100: 0 | CW100: 0 | CX100: 0 | CY100: 0 | CZ100: 0 | DA100: 0 | DB100: 0 | DC100: 0 | DD100: 0 | DE100: 0 | DF100: 0 | DG100: 0 | DH100: 0
C101: > 33 kV & < = 66 kV ; Circuit Breaker | D101: 30.84188912 | E101: 11.8419619 | F101: 3 | G101: 4 | H101: 7 | I101: 7 | J101: 19 | K101: 11 | L101: 19 | M101: 19 | N101: 2 | O101: 12 | P101: 2 | Q101: 4 | R101: 7 | S101: 5 | T101: 2 | U101: 10 | V101: 4 | W101: 0 | X101: 0 | Y101: 0 | Z101: 0 | AA101: 0 | AB101: 0 | AC101: 0 | AD101: 0 | AE101: 0 | AF101: 0 | AG101: 0 | AH101: 0 | AI101: 0 | AJ101: 0 | AK101: 0 | AL101: 0 | AM101: 0 | AN101: 1 | AO101: 1 | AP101: 0 | AQ101: 0 | AR101: 0 | AS101: 0 | AT101: 0 | AU101: 0 | AV101: 0 | AW101: 0 | AX101: 0 | AY101: 0 | AZ101: 0 | BA101: 0 | BB101: 0 | BC101: 0 | BD101: 0 | BE101: 0 | BF101: 0 | BG101: 0 | BH101: 0 | BI101: 0 | BJ101: 0 | BK101: 0 | BL101: 0 | BM101: 0 | BN101: 0 | BO101: 0 | BP101: 0 | BQ101: 0 | BR101: 0 | BS101: 0 | BT101: 0 | BU101: 0 | BV101: 0 | BW101: 0 | BX101: 0 | BY101: 0 | BZ101: 0 | CA101: 0 | CB101: 0 | CC101: 0 | CD101: 0 | CE101: 0 | CF101: 0 | CG101: 0 | CH101: 0 | CI101: 0 | CJ101: 0 | CK101: 0 | CL101: 0 | CM101: 0 | CN101: 0 | CO101: 0 | CP101: 0 | CQ101: 0 | CR101: 0 | CS101: 0 | CT101: 0 | CU101: 0 | CV101: 0 | CW101: 0 | CX101: 0 | CY101: 0 | CZ101: 0 | DA101: 0 | DB101: 0 | DC101: 0 | DD101: 0 | DE101: 0 | DF101: 0 | DG101: 0 | DH101: 0
C102: > 66 kV & < = 132 kV ; Switch | D102: 47.42408503 | E102: 10.63853761 | F102: 130 | G102: 72 | H102: 166 | I102: 233 | J102: 193 | K102: 153 | L102: 187 | M102: 190 | N102: 50 | O102: 26 | P102: 82 | Q102: 77 | R102: 46 | S102: 44 | T102: 40 | U102: 45 | V102: 54 | W102: 0 | X102: 10 | Y102: 25 | Z102: 0 | AA102: 24 | AB102: 19 | AC102: 22 | AD102: 0 | AE102: 0 | AF102: 0 | AG102: 0 | AH102: 0 | AI102: 0 | AJ102: 25 | AK102: 0 | AL102: 0 | AM102: 6 | AN102: 37 | AO102: 28 | AP102: 0 | AQ102: 26 | AR102: 33 | AS102: 36 | AT102: 9 | AU102: 11 | AV102: 5 | AW102: 1 | AX102: 15 | AY102: 11 | AZ102: 12 | BA102: 30 | BB102: 2 | BC102: 37 | BD102: 30 | BE102: 2 | BF102: 6 | BG102: 100 | BH102: 14 | BI102: 4 | BJ102: 13 | BK102: 46 | BL102: 4 | BM102: 2 | BN102: 0 | BO102: 18 | BP102: 27 | BQ102: 3 | BR102: 0 | BS102: 31 | BT102: 0 | BU102: 7 | BV102: 0 | BW102: 0 | BX102: 0 | BY102: 0 | BZ102: 0 | CA102: 0 | CB102: 0 | CC102: 0 | CD102: 0 | CE102: 0 | CF102: 0 | CG102: 0 | CH102: 0 | CI102: 0 | CJ102: 0 | CK102: 0 | CL102: 0 | CM102: 0 | CN102: 0 | CO102: 0 | CP102: 0 | CQ102: 0 | CR102: 0 | CS102: 0 | CT102: 0 | CU102: 0 | CV102: 0 | CW102: 0 | CX102: 0 | CY102: 0 | CZ102: 0 | DA102: 0 | DB102: 0 | DC102: 0 | DD102: 0 | DE102: 0 | DF102: 0 | DG102: 0 | DH102: 0
C103: > 66 kV & < = 132 kV ; Circuit Breaker | D103: 34.64618982 | E103: 12.48088633 | F103: 30 | G103: 21 | H103: 40 | I103: 59 | J103: 41 | K103: 37 | L103: 41 | M103: 62 | N103: 33 | O103: 38 | P103: 40 | Q103: 30 | R103: 16 | S103: 14 | T103: 23 | U103: 9 | V103: 19 | W103: 5 | X103: 10 | Y103: 5 | Z103: 3 | AA103: 8 | AB103: 4 | AC103: 1 | AD103: 0 | AE103: 0 | AF103: 0 | AG103: 0 | AH103: 0 | AI103: 0 | AJ103: 0 | AK103: 0 | AL103: 0 | AM103: 0 | AN103: 1 | AO103: 0 | AP103: 0 | AQ103: 1 | AR103: 2 | AS103: 3 | AT103: 0 | AU103: 0 | AV103: 0 | AW103: 0 | AX103: 0 | AY103: 0 | AZ103: 0 | BA103: 1 | BB103: 0 | BC103: 0 | BD103: 0 | BE103: 0 | BF103: 0 | BG103: 0 | BH103: 0 | BI103: 0 | BJ103: 0 | BK103: 2 | BL103: 0 | BM103: 2 | BN103: 0 | BO103: 0 | BP103: 0 | BQ103: 0 | BR103: 0 | BS103: 0 | BT103: 0 | BU103: 2 | BV103: 0 | BW103: 0 | BX103: 0 | BY103: 0 | BZ103: 0 | CA103: 0 | CB103: 0 | CC103: 0 | CD103: 0 | CE103: 0 | CF103: 0 | CG103: 0 | CH103: 0 | CI103: 0 | CJ103: 0 | CK103: 0 | CL103: 0 | CM103: 0 | CN103: 0 | CO103: 0 | CP103: 0 | CQ103: 0 | CR103: 0 | CS103: 0 | CT103: 0 | CU103: 0 | CV103: 0 | CW103: 0 | CX103: 0 | CY103: 0 | CZ103: 0 | DA103: 0 | DB103: 0 | DC103: 0 | DD103: 0 | DE103: 0 | DF103: 0 | DG103: 0 | DH103: 0
C104: > 132 kV ; Switch | D104: 0 | E104: 0 | F104: 0 | G104: 0 | H104: 0 | I104: 0 | J104: 0 | K104: 0 | L104: 0 | M104: 0 | N104: 0 | O104: 0 | P104: 0 | Q104: 0 | R104: 0 | S104: 0 | T104: 0 | U104: 0 | V104: 0 | W104: 0 | X104: 0 | Y104: 0 | Z104: 0 | AA104: 0 | AB104: 0 | AC104: 0 | AD104: 0 | AE104: 0 | AF104: 0 | AG104: 0 | AH104: 0 | AI104: 0 | AJ104: 0 | AK104: 0 | AL104: 0 | AM104: 0 | AN104: 0 | AO104: 0 | AP104: 0 | AQ104: 0 | AR104: 0 | AS104: 0 | AT104: 0 | AU104: 0 | AV104: 0 | AW104: 0 | AX104: 0 | AY104: 0 | AZ104: 0 | BA104: 0 | BB104: 0 | BC104: 0 | BD104: 0 | BE104: 0 | BF104: 0 | BG104: 0 | BH104: 0 | BI104: 0 | BJ104: 0 | BK104: 0 | BL104: 0 | BM104: 0 | BN104: 0 | BO104: 0 | BP104: 0 | BQ104: 0 | BR104: 0 | BS104: 0 | BT104: 0 | BU104: 0 | BV104: 0 | BW104: 0 | BX104: 0 | BY104: 0 | BZ104: 0 | CA104: 0 | CB104: 0 | CC104: 0 | CD104: 0 | CE104: 0 | CF104: 0 | CG104: 0 | CH104: 0 | CI104: 0 | CJ104: 0 | CK104: 0 | CL104: 0 | CM104: 0 | CN104: 0 | CO104: 0 | CP104: 0 | CQ104: 0 | CR104: 0 | CS104: 0 | CT104: 0 | CU104: 0 | CV104: 0 | CW104: 0 | CX104: 0 | CY104: 0 | CZ104: 0 | DA104: 0 | DB104: 0 | DC104: 0 | DD104: 0 | DE104: 0 | DF104: 0 | DG104: 0 | DH104: 0
C105: > 132 kV ; Circuit Breaker | D105: 0 | E105: 0 | F105: 0 | G105: 0 | H105: 0 | I105: 0 | J105: 0 | K105: 0 | L105: 0 | M105: 0 | N105: 0 | O105: 0 | P105: 0 | Q105: 0 | R105: 0 | S105: 0 | T105: 0 | U105: 0 | V105: 0 | W105: 0 | X105: 0 | Y105: 0 | Z105: 0 | AA105: 0 | AB105: 0 | AC105: 0 | AD105: 0 | AE105: 0 | AF105: 0 | AG105: 0 | AH105: 0 | AI105: 0 | AJ105: 0 | AK105: 0 | AL105: 0 | AM105: 0 | AN105: 0 | AO105: 0 | AP105: 0 | AQ105: 0 | AR105: 0 | AS105: 0 | AT105: 0 | AU105: 0 | AV105: 0 | AW105: 0 | AX105: 0 | AY105: 0 | AZ105: 0 | BA105: 0 | BB105: 0 | BC105: 0 | BD105: 0 | BE105: 0 | BF105: 0 | BG105: 0 | BH105: 0 | BI105: 0 | BJ105: 0 | BK105: 0 | BL105: 0 | BM105: 0 | BN105: 0 | BO105: 0 | BP105: 0 | BQ105: 0 | BR105: 0 | BS105: 0 | BT105: 0 | BU105: 0 | BV105: 0 | BW105: 0 | BX105: 0 | BY105: 0 | BZ105: 0 | CA105: 0 | CB105: 0 | CC105: 0 | CD105: 0 | CE105: 0 | CF105: 0 | CG105: 0 | CH105: 0 | CI105: 0 | CJ105: 0 | CK105: 0 | CL105: 0 | CM105: 0 | CN105: 0 | CO105: 0 | CP105: 0 | CQ105: 0 | CR105: 0 | CS105: 0 | CT105: 0 | CU105: 0 | CV105: 0 | CW105: 0 | CX105: 0 | CY105: 0 | CZ105: 0 | DA105: 0 | DB105: 0 | DC105: 0 | DD105: 0 | DE105: 0 | DF105: 0 | DG105: 0 | DH105: 0
C106: Other | D106: 23.77347887 | E106: 16.60103576 | F106: 14 | G106: 3 | H106: 7 | I106: 14 | J106: 4 | K106: 8 | L106: 2 | M106: 26 | N106: 2 | O106: 2 | P106: 2 | Q106: 2 | R106: 2 | S106: 6 | T106: 2 | U106: 1 | V106: 4 | W106: 3 | X106: 1 | Y106: 1 | Z106: 0 | AA106: 0 | AB106: 1 | AC106: 3 | AD106: 3 | AE106: 2 | AF106: 1 | AG106: 2 | AH106: 2 | AI106: 0 | AJ106: 0 | AK106: 3 | AL106: 0 | AM106: 1 | AN106: 7 | AO106: 2 | AP106: 0 | AQ106: 0 | AR106: 0 | AS106: 0 | AT106: 0 | AU106: 0 | AV106: 0 | AW106: 0 | AX106: 1 | AY106: 2 | AZ106: 1 | BA106: 0 | BB106: 0 | BC106: 0 | BD106: 0 | BE106: 1 | BF106: 0 | BG106: 2 | BH106: 0 | BI106: 2 | BJ106: 0 | BK106: 1 | BL106: 1 | BM106: 1 | BN106: 1 | BO106: 0 | BP106: 0 | BQ106: 0 | BR106: 0 | BS106: 0 | BT106: 0 | BU106: 0 | BV106: 0 | BW106: 0 | BX106: 0 | BY106: 0 | BZ106: 0 | CA106: 0 | CB106: 0 | CC106: 0 | CD106: 0 | CE106: 0 | CF106: 0 | CG106: 0 | CH106: 0 | CI106: 0 | CJ106: 0 | CK106: 0 | CL106: 0 | CM106: 0 | CN106: 0 | CO106: 0 | CP106: 0 | CQ106: 0 | CR106: 0 | CS106: 0 | CT106: 0 | CU106: 0 | CV106: 0 | CW106: 0 | CX106: 0 | CY106: 0 | CZ106: 0 | DA106: 0 | DB106: 0 | DC106: 0 | DD106: 0 | DE106: 0 | DF106: 0 | DG106: 0 | DH106: 0
B107: PUBLIC LIGHTING BY: ASSET TYPE ; LIGHTING OBLIGATION | C107: Luminaires ; Major Road | D107: 18.08363041 | E107: 16.60762295 | F107: 1949 | G107: 2503 | H107: 2664 | I107: 2643 | J107: 2798 | K107: 3050 | L107: 3116 | M107: 3747 | N107: 4340 | O107: 2564 | P107: 1360 | Q107: 649 | R107: 591 | S107: 548 | T107: 309 | U107: 381 | V107: 514 | W107: 548 | X107: 1666 | Y107: 218 | Z107: 412 | AA107: 482 | AB107: 498 | AC107: 459 | AD107: 493 | AE107: 723 | AF107: 468 | AG107: 507 | AH107: 614 | AI107: 617 | AJ107: 680 | AK107: 490 | AL107: 290 | AM107: 300 | AN107: 195 | AO107: 249 | AP107: 300 | AQ107: 300 | AR107: 645 | AS107: 368 | AT107: 202 | AU107: 360 | AV107: 257 | AW107: 323 | AX107: 285 | AY107: 626 | AZ107: 1158 | BA107: 1150 | BB107: 1680 | BC107: 1781 | BD107: 1362 | BE107: 317 | BF107: 96 | BG107: 62 | BH107: 27 | BI107: 30 | BJ107: 0 | BK107: 2 | BL107: 0 | BM107: 5 | BN107: 1 | BO107: 0 | BP107: 0 | BQ107: 0 | BR107: 0 | BS107: 1 | BT107: 6 | BU107: 0 | BV107: 0 | BW107: 0 | BX107: 0 | BY107: 0 | BZ107: 0 | CA107: 0 | CB107: 0 | CC107: 0 | CD107: 0 | CE107: 0 | CF107: 0 | CG107: 0 | CH107: 0 | CI107: 0 | CJ107: 0 | CK107: 0 | CL107: 0 | CM107: 0 | CN107: 0 | CO107: 0 | CP107: 0 | CQ107: 0 | CR107: 0 | CS107: 0 | CT107: 0 | CU107: 0 | CV107: 0 | CW107: 0 | CX107: 0 | CY107: 0 | CZ107: 0 | DA107: 0 | DB107: 0 | DC107: 0 | DD107: 0 | DE107: 0 | DF107: 0 | DG107: 0 | DH107: 0
C108: Luminaires ; Minor Road | D108: 11.56319696 | E108: 11.88276003 | F108: 9517 | G108: 13669 | H108: 14036 | I108: 13840 | J108: 12792 | K108: 12282 | L108: 11681 | M108: 9744 | N108: 8372 | O108: 10771 | P108: 13318 | Q108: 7820 | R108: 9171 | S108: 8900 | T108: 1406 | U108: 1255 | V108: 1493 | W108: 2053 | X108: 4954 | Y108: 834 | Z108: 953 | AA108: 1710 | AB108: 1212 | AC108: 1144 | AD108: 1154 | AE108: 1175 | AF108: 1000 | AG108: 907 | AH108: 708 | AI108: 638 | AJ108: 769 | AK108: 625 | AL108: 329 | AM108: 439 | AN108: 372 | AO108: 500 | AP108: 669 | AQ108: 888 | AR108: 1073 | AS108: 563 | AT108: 602 | AU108: 567 | AV108: 452 | AW108: 386 | AX108: 444 | AY108: 719 | AZ108: 845 | BA108: 1022 | BB108: 1993 | BC108: 1008 | BD108: 1002 | BE108: 726 | BF108: 556 | BG108: 507 | BH108: 348 | BI108: 209 | BJ108: 45 | BK108: 16 | BL108: 11 | BM108: 12 | BN108: 2 | BO108: 1 | BP108: 0 | BQ108: 2 | BR108: 0 | BS108: 0 | BT108: 20 | BU108: 0 | BV108: 1 | BW108: 1 | BX108: 0 | BY108: 0 | BZ108: 0 | CA108: 0 | CB108: 0 | CC108: 0 | CD108: 0 | CE108: 0 | CF108: 4 | CG108: 0 | CH108: 0 | CI108: 0 | CJ108: 0 | CK108: 0 | CL108: 0 | CM108: 0 | CN108: 0 | CO108: 0 | CP108: 0 | CQ108: 0 | CR108: 0 | CS108: 0 | CT108: 0 | CU108: 0 | CV108: 0 | CW108: 0 | CX108: 0 | CY108: 0 | CZ108: 0 | DA108: 0 | DB108: 0 | DC108: 0 | DD108: 0 | DE108: 0 | DF108: 0 | DG108: 0 | DH108: 0
C109: Brackets ; Major Road | D109: 28.81905768 | E109: 17.1011344 | F109: 259 | G109: 305 | H109: 371 | I109: 482 | J109: 689 | K109: 1038 | L109: 988 | M109: 1250 | N109: 1923 | O109: 1308 | P109: 874 | Q109: 1519 | R109: 440 | S109: 443 | T109: 260 | U109: 260 | V109: 326 | W109: 366 | X109: 2340 | Y109: 340 | Z109: 552 | AA109: 684 | AB109: 614 | AC109: 565 | AD109: 661 | AE109: 1460 | AF109: 616 | AG109: 638 | AH109: 1001 | AI109: 827 | AJ109: 950 | AK109: 766 | AL109: 470 | AM109: 540 | AN109: 475 | AO109: 571 | AP109: 629 | AQ109: 760 | AR109: 1475 | AS109: 984 | AT109: 552 | AU109: 1044 | AV109: 831 | AW109: 825 | AX109: 765 | AY109: 1272 | AZ109: 2012 | BA109: 2315 | BB109: 2842 | BC109: 2850 | BD109: 2552 | BE109: 876 | BF109: 324 | BG109: 193 | BH109: 103 | BI109: 110 | BJ109: 7 | BK109: 8 | BL109: 0 | BM109: 12 | BN109: 1 | BO109: 1 | BP109: 0 | BQ109: 0 | BR109: 0 | BS109: 1 | BT109: 14 | BU109: 0 | BV109: 1 | BW109: 0 | BX109: 3 | BY109: 0 | BZ109: 0 | CA109: 0 | CB109: 0 | CC109: 0 | CD109: 0 | CE109: 0 | CF109: 0 | CG109: 0 | CH109: 0 | CI109: 0 | CJ109: 0 | CK109: 1 | CL109: 0 | CM109: 0 | CN109: 0 | CO109: 0 | CP109: 0 | CQ109: 0 | CR109: 0 | CS109: 0 | CT109: 0 | CU109: 0 | CV109: 0 | CW109: 0 | CX109: 0 | CY109: 0 | CZ109: 0 | DA109: 0 | DB109: 0 | DC109: 0 | DD109: 0 | DE109: 0 | DF109: 0 | DG109: 0 | DH109: 0
